Workbook

Sheet __FDSCACHE__ (hidden)
B1: This sheet contains FactSet XML data for use with this workbook's =FDS codes. Modifying the worksheet's contents may damage the workbook's =FDS functionality.

Sheet Div Yields
B2: Name | C2: Tickers | D2: Dividend | E2: 30 Day | F2: 90 Day | G2: 180 Day | H2: 360 Day | I2: 720 Day
B3: ALLETE, Inc. (NYSE-ALE) | C3: ALE | D3: 2.14 | E3: =ALE!H$3 -> 0.03042307984 | F3: =ALE!I$3 -> 0.03150172965 | G3: =ALE!J$3 -> 0.03310532599 | H3: =ALE!K$3 -> 0.03510423506 | I3: =ALE!L$3 -> 0.03711464087
B4: Alliant Energy Corporation (NYSE-LNT) | C4: LNT | D4: 1.26 | E4: =LNT!H$3 -> 0.03144340188 | F4: =LNT!I$3 -> 0.03210618256 | G4: =LNT!J$3 -> 0.03290924709 | H4: =LNT!K$3 -> 0.03372045697 | I4: =LNT!L$3 -> 0.03584553298
B5: Ameren Corporation (NYSE-AEE) | C5: AEE | D5: 1.76 | E5: =AEE!H$3 -> 0.03187578105 | F5: =AEE!I$3 -> 0.03231116632 | G5: =AEE!J$3 -> 0.0336690675 | H5: =AEE!K$3 -> 0.03489125119 | I5: =AEE!L$3 -> 0.03680867035
B6: American Electric Power Co. (NYSE-AEP) | C6: AEP | D6: 2.36 | E6: =AEP!H$3 -> 0.03436392758 | F6: =AEP!I$3 -> 0.03536969996 | G6: =AEP!J$3 -> 0.03655375846 | H6: =AEP!K$3 -> 0.03650768892 | I6: =AEP!L$3 -> 0.03801413961
B7: Avista Corporation (NYSE-AVA) | C7: AVA | D7: 1.43 | E7: =AVA!H$3 -> 0.0345828295 | F7: =AVA!I$3 -> 0.03580778979 | G7: =AVA!J$3 -> 0.0355289311 | H7: =AVA!K$3 -> 0.03555882194 | I7: =AVA!L$3 -> 0.03755854844
B8: Black Hills Corporation (NYSE-BKH) | C8: BKH | D8: 1.78 | E8: =BKH!H$3 -> 0.0260247869 | F8: =BKH!I$3 -> 0.02703450697 | G8: =BKH!J$3 -> 0.02825503965 | H8: =BKH!K$3 -> 0.02947198781 | I8: =BKH!L$3 -> 0.03216334643
B9: Consolidated Edison, Inc. (NYSE-ED) | C9: ED | D9: 2.76 | E9: =ED!H$3 -> 0.03448563099 | F9: =ED!I$3 -> 0.03562526353 | G9: =ED!J$3 -> 0.0366571187 | H9: =ED!K$3 -> 0.03690082124 | I9: =ED!L$3 -> 0.03864779397
B10: CMS Energy Corporation (NYSE-CMS) | C10: CMS | D10: 1.33 | E10: =CMS!H$3 -> 0.02901206291 | F10: =CMS!I$3 -> 0.02980384736 | G10: =CMS!J$3 -> 0.03094410543 | H10: =CMS!K$3 -> 0.03150596955 | I10: =CMS!L$3 -> 0.03329450828
B11: Dominion Resources, Inc. (NYSE-D) | C11: D | D11: 3.02 | E11: =D!H$3 -> 0.03849929248 | F11: =D!I$3 -> 0.03930932447 | G11: =D!J$3 -> 0.03996224318 | H11: =D!K$3 -> 0.04067536368 | I11: =D!L$3 -> 0.04144803433
B12: DTE Energy Company (NYSE-DTE) | C12: DTE | D12: 3.3 | E12: =DTE!H$3 -> 0.03122230597 | F12: =DTE!I$3 -> 0.03227148906 | G12: =DTE!J$3 -> 0.03344602127 | H12: =DTE!K$3 -> 0.03496500409 | I12: =DTE!L$3 -> 0.03666879275
B13: Duke Energy Corporation (NYSE-DUK) | C13: DUK | D13: 3.42 | E13: =DUK!H$3 -> 0.04103245003 | F13: =DUK!I$3 -> 0.04195203729 | G13: =DUK!J$3 -> 0.04306602688 | H13: =DUK!K$3 -> 0.04310305593 | I13: =DUK!L$3 -> 0.04435814788
B14: Edison International (NYSE-EIX) | C14: EIX | D14: 2.17 | E14: =EIX!H$3 -> 0.02727341282 | F14: =EIX!I$3 -> 0.02771321294 | G14: =EIX!J$3 -> 0.02902188232 | H14: =EIX!K$3 -> 0.02993904117 | I14: =EIX!L$3 -> 0.03150596181
B15: El Paso Electric Company (NYSE-EE) | C15: EE | D15: 1.24 | E15: =EE!H$3 -> 0.02382172131 | F15: =EE!I$3 -> 0.02501176629 | G15: =EE!J$3 -> 0.02601532013 | H15: =EE!K$3 -> 0.02703688136 | I15: =EE!L$3 -> 0.02868013817
B16: Entergy Corporation (NYSE-ETR) | C16: ETR | D16: 3.48 | E16: =ETR!H$3 -> 0.04546523477 | F16: =ETR!I$3 -> 0.04640151235 | G16: =ETR!J$3 -> 0.04709006125 | H16: =ETR!K$3 -> 0.04643129813 | I16: =ETR!L$3 -> 0.04769154508
B17: Eversource Energy (NYSE-ES) | C17: ES | D17: 1.9 | E17: =ES!H$3 -> 0.03157649822 | F17: =ES!I$3 -> 0.03243027964 | G17: =ES!J$3 -> 0.03377794458 | H17: =ES!K$3 -> 0.03389924589 | I17: =ES!L$3 -> 0.0351571535
B18: FirstEnergy Corporation (ASE-FE) | C18: FE | D18: 1.44 | E18: =FE!H$3 -> 0.04927400682 | F18: =FE!I$3 -> 0.0473371052 | G18: =FE!J$3 -> 0.04610089907 | H18: =FE!K$3 -> 0.04428237187 | I18: =FE!L$3 -> 0.04437354829
B19: Hawaiian Electric Inductries (NYSE-HE) | C19: HE | D19: 1.24 | E19: =HE!H$3 -> 0.03746563133 | F19: =HE!I$3 -> 0.03733540306 | G19: =HE!J$3 -> 0.03867533512 | H19: =HE!K$3 -> 0.03918016557 | I19: =HE!L$3 -> 0.04004026066
B20: IDACORP, Inc. (NYSE-IDA) | C20: IDA | D20: 2.2 | E20: =IDA!H$3 -> 0.02597515044 | F20: =IDA!I$3 -> 0.02662589409 | G20: =IDA!J$3 -> 0.02744520489 | H20: =IDA!K$3 -> 0.02853564578 | I20: =IDA!L$3 -> 0.03014559769
B21: MGE Energy, Inc. (NYSE-MGEE) | C21: MGEE | D21: 1.23 | E21: =MGEE!H$3 -> 0.01908900442 | F21: =MGEE!I$3 -> 0.01924648365 | G21: =MGEE!J$3 -> 0.01986814694 | H21: =MGEE!K$3 -> 0.02159066862 | I21: =MGEE!L$3 -> 0.0235139227
B22: NorthWestern Corporation (NYSE-NWE) | C22: NWE | D22: 2.1 | E22: =NWE!H$3 -> 0.03471686468 | F22: =NWE!I$3 -> 0.03572414158 | G22: =NWE!J$3 -> 0.03636444096 | H22: =NWE!K$3 -> 0.03604050266 | I22: =NWE!L$3 -> 0.03703975895
B23: OGE Energy Corp. (NYSE-OGE) | C23: OGE | D23: 1.21 | E23: =OGE!H$3 -> 0.03494450274 | F23: =OGE!I$3 -> 0.03460240596 | G23: =OGE!J$3 -> 0.03616048081 | H23: =OGE!K$3 -> 0.0386786053 | I23: =OGE!L$3 -> 0.03990141111
B24: Otter Tail Corporation (NDQ-OTTR) | C24: OTTR | D24: 1.28 | E24: =OTTR!H$3 -> 0.03308490932 | F24: =OTTR!I$3 -> 0.03363822845 | G24: =OTTR!J$3 -> 0.03404484196 | H24: =OTTR!K$3 -> 0.03768918203 | I24: =OTTR!L$3 -> 0.04015810011
B25: PG&E Corporation (NYSE-PCG) | C25: PCG | D25: 1.96 | E25: =PCG!H$3 -> 0.02933385216 | F25: =PCG!I$3 -> 0.02983554929 | G25: =PCG!J$3 -> 0.03107576038 | H25: =PCG!K$3 -> 0.03200127715 | I25: =PCG!L$3 -> 0.033467428
B26: Pinnacle West Capital Corp. (NYSE-PNW) | C26: PNW | D26: 2.62 | E26: =PNW!H$3 -> 0.03064470852 | F26: =PNW!I$3 -> 0.03164157795 | G26: =PNW!J$3 -> 0.03305502442 | H26: =PNW!K$3 -> 0.03436418605 | I26: =PNW!L$3 -> 0.0363590706
B27: PNM Resources, Inc. (NYSE-PNM) | C27: PNM | D27: 0.97 | E27: =PNM!H$3 -> 0.02599258631 | F27: =PNM!I$3 -> 0.02657008507 | G27: =PNM!J$3 -> 0.02797090769 | H27: =PNM!K$3 -> 0.02879551146 | I27: =PNM!L$3 -> 0.03053576247
B28: Portland General Electric Company (NYSE-POR) | C28: POR | D28: 1.36 | E28: =POR!H$3 -> 0.0297538742 | F28: =POR!I$3 -> 0.03034878791 | G28: =POR!J$3 -> 0.03113493714 | H28: =POR!K$3 -> 0.03228067307 | I28: =POR!L$3 -> 0.03375326298
B29: PPL Corporation (NYSE-PPL) | C29: PPL | D29: 1.58 | E29: =PPL!H$3 -> 0.04082652174 | F29: =PPL!I$3 -> 0.04246474709 | G29: =PPL!J$3 -> 0.04444701444 | H29: =PPL!K$3 -> 0.04379589021 | I29: =PPL!L$3 -> 0.04520261479
B30: SCANA Corporation (NYSE-SCG) | C30: SCG | D30: 2.45 | E30: =SCG!H$3 -> 0.03700608209 | F30: =SCG!I$3 -> 0.03642924054 | G30: =SCG!J$3 -> 0.03526730377 | H30: =SCG!K$3 -> 0.03541777515 | I30: =SCG!L$3 -> 0.03758098721
B31: Southern Company (NYSE-SO) | C31: SO | D31: 2.32 | E31: =SO!H$3 -> 0.04640030934 | F31: =SO!I$3 -> 0.04665014846 | G31: =SO!J$3 -> 0.04671804608 | H31: =SO!K$3 -> 0.04638399752 | I31: =SO!L$3 -> 0.04797024506
B32: WEC Energy Group (NYSE-WEC) | C32: WEC | D32: 2.08 | E32: =WEC!H$3 -> 0.03400433773 | F32: =WEC!I$3 -> 0.03468741488 | G32: =WEC!J$3 -> 0.03522034351 | H32: =WEC!K$3 -> 0.0351553587 | I32: =WEC!L$3 -> 0.03692683568
B33: Xcel Energy Inc. (NYSE-XEL) | C33: XEL | D33: 1.44 | E33: =XEL!H$3 -> 0.03151950269 | F33: =XEL!I$3 -> 0.03270167293 | G33: =XEL!J$3 -> 0.03411015527 | H33: =XEL!K$3 -> 0.03464904805 | I33: =XEL!L$3 -> 0.03642042466
B34: Avangrid (NYSE-AVG) | C34: AGR | D34: 1.73 | E34: =AGR!H$3 -> 0.03913525415 | F34: =AGR!I$3 -> 0.04059614011 | G34: =AGR!J$3 -> 0.0424654508 | H34: =AGR!K$3 -> 0.04220922029 | I34: =AGR!L$3 -> 0.04029743344
B35: CenterPoint Energy (NYSE-CNP) | C35: CNP | D35: 1.07 | E35: =CNP!H$3 -> 0.03827078068 | F35: =CNP!I$3 -> 0.03899069568 | G35: =CNP!J$3 -> 0.04184891369 | H35: =CNP!K$3 -> 0.04570875266 | I35: =CNP!L$3 -> 0.04870361222
B36: SEMPRA Energy (NYSE-SRE) | C36: SRE | D36: 3.29 | E36: =SRE!H$3 -> 0.02918624491 | F36: =SRE!I$3 -> 0.03002138301 | G36: =SRE!J$3 -> 0.03098646527 | H36: =SRE!K$3 -> 0.03140763149 | I36: =SRE!L$3 -> 0.03188663146
B37: Exelon Corp. (NYSE-EXC) | C37: EXC | D37: 1.31 | E37: =EXC!H$3 -> 0.03752542276 | F37: =EXC!I$3 -> 0.03688259198 | G37: =EXC!J$3 -> 0.03784012787 | H37: =EXC!K$3 -> 0.038375065 | I37: =EXC!L$3 -> 0.0395855817
B38: Public Service Enterprise Grp. (NYSE-PEG) | C38: PEG | D38: 1.72 | E38: =PEG!H$3 -> 0.03911491142 | F38: =PEG!I$3 -> 0.0388700565 | G38: =PEG!J$3 -> 0.03980380939 | H38: =PEG!K$3 -> 0.03945559939 | I38: =PEG!L$3 -> 0.04028314561
B39: SEMPRA Energy (NYSE-SRE) | C39: SRE | D39: 3.29 | E39: =SRE!H$3 -> 0.02918624491 | F39: =SRE!I$3 -> 0.03002138301 | G39: =SRE!J$3 -> 0.03098646527 | H39: =SRE!K$3 -> 0.03140763149 | I39: =SRE!L$3 -> 0.03188663146
B40: Vectren Corporation (NYSE-VVC) | C40: VVC | D40: 1.68 | E40: =VVC!H$3 -> 0.02810978432 | F40: =VVC!I$3 -> 0.02911522079 | G40: =VVC!J$3 -> 0.03110986288 | H40: =VVC!K$3 -> 0.03280479358 | I40: =VVC!L$3 -> 0.03467337486
B41: NextEra Energy Inc. (NYSE-NEE) | C41: NEE | D41: 3.93 | E41: =NEE!H$3 -> 0.02891683283 | F41: =NEE!I$3 -> 0.03005496056 | G41: =NEE!J$3 -> 0.03131257868 | H41: =NEE!K$3 -> 0.0321674563 | I41: =NEE!L$3 -> 0.03383593895
B42: Westar Energy Inc. (NYSE-WR) | C42: WR | D42: 1.6 | E42: =WR!H$3 -> 0.03068465128 | F42: =WR!I$3 -> 0.02987613851 | G42: =WR!J$3 -> 0.02907751581 | H42: =WR!K$3 -> 0.0303243122 | I42: =WR!L$3 -> 0.03291671752
B43: Great Plains Energy Inc. (NYSE-GXP) | C43: GXP | D43: 1.1 | E43: =GXP!H$3 -> 0.03825288635 | F43: =GXP!I$3 -> 0.03850477031 | G43: =GXP!J$3 -> 0.0393482499 | H43: =GXP!K$3 -> 0.03823552698 | I43: =GXP!L$3 -> 0.0392845451
B45: Atmos Energy Corporation (NYSE-ATO) | C45: ATO | D45: 1.8 | E45: =ATO!H$3 -> 0.02212380316 | F45: =ATO!I$3 -> 0.02275539773 | G45: =ATO!J$3 -> 0.02366506051 | H45: =ATO!K$3 -> 0.02415697561 | I45: =ATO!L$3 -> 0.02587821039
B46: Chesapeake Utilities Corporation (NYSE-CPK) | C46: CPK | D46: 1.3 | E46: =CPK!H$3 -> 0.01786286814 | F46: =CPK!I$3 -> 0.01872779076 | G46: =CPK!J$3 -> 0.01952857682 | H46: =CPK!K$3 -> 0.02028111005 | I46: =CPK!L$3 -> 0.02140443404
B47: New Jersey Resources Corp. (NYSE-NJR) | C47: NJR | D47: 1.02 | E47: =NJR!H$3 -> 0.02508505144 | F47: =NJR!I$3 -> 0.02590037666 | G47: =NJR!J$3 -> 0.02773656906 | H47: =NJR!K$3 -> 0.02824319917 | I47: =NJR!L$3 -> 0.02986880108
B48: NiSource Inc. (NYSE-NI) | C48: NI | D48: 0.7 | E48: =NI!H$3 -> 0.02842908973 | F48: =NI!I$3 -> 0.02954916418 | G48: =NI!J$3 -> 0.03025972934 | H48: =NI!K$3 -> 0.03010781465 | I48: =NI!L$3 -> 0.03048035063
B49: Northwest Natural Gas Co. (NYSE-NWN) | C49: NWN | D49: 1.88 | E49: =NWN!H$3 -> 0.03136993159 | F49: =NWN!I$3 -> 0.03164923963 | G49: =NWN!J$3 -> 0.031837366 | H49: =NWN!K$3 -> 0.03261094249 | I49: =NWN!L$3 -> 0.03470840427
B50: South Jersey Industries, Inc. (NYSE-SJI) | C50: SJI | D50: 1.09 | E50: =SJI!H$3 -> 0.03006039658 | F50: =SJI!I$3 -> 0.0310600304 | G50: =SJI!J$3 -> 0.03288707263 | H50: =SJI!K$3 -> 0.03556035655 | I50: =SJI!L$3 -> 0.03768772343
B51: Southwest Gas Corporation (NYSE-SWX) | C51: SWX | D51: 1.98 | E51: =SWX!H$3 -> 0.02444957584 | F51: =SWX!I$3 -> 0.02404887509 | G51: =SWX!J$3 -> 0.02551562832 | H51: =SWX!K$3 -> 0.02732731708 | I51: =SWX!L$3 -> 0.02925128871
B52: Spire (NYSE-SR) | C52: SR | D52: 2.1 | E52: =SR!H$3 -> 0.03022873073 | F52: =SR!I$3 -> 0.03131238662 | G52: =SR!J$3 -> 0.03218621 | H52: =SR!K$3 -> 0.03214468852 | I52: =SR!L$3 -> 0.03369057953
B53: WGL Holdings Inc. (NYSE-WGL) | C53: WGL | D53: 2.04 | E53: =WGL!H$3 -> 0.02467682233 | F53: =WGL!I$3 -> 0.02470650928 | G53: =WGL!J$3 -> 0.02704374724 | H53: =WGL!K$3 -> 0.02859121684 | I53: =WGL!L$3 -> 0.03027706269

Sheet ALE
A1: ='Div Yields'!$C$3 -> ALE | G1: Dividend | H1: 30 Day Avg | I1: 90 Day Avg | J1: 180 Day Avg | K1: 360 Day Avg | L1: 720 Day Avg
H2: =AVERAGE($D$4:$D$33) -> 70.34133333 | I2: =AVERAGE($D$4:$D$93) -> 67.93277778 | J2: =AVERAGE($D$4:$D$183) -> 64.64216667 | K2: =AVERAGE($D$4:$D$363) -> 60.96130556 | L2: =AVERAGE($D$4:$D$507) -> 57.65918651
A3: Date | B3: Open | C3: High | D3: Close | E3: Volume (k) | G3: =INDEX(Master,MATCH($A$1,Tickers,0),MATCH(G1,Header,0)) -> 2.14 | H3: =$G3/H2 -> 0.03042307984 | I3: =$G3/I2 -> 0.03150172965 | J3: 0.03310532599 | K3: 0.03510423506 | L3: 0.03711464087
A4: 2017-06-01 | B4: 73.45 | C4: 73.6 | D4: 73.58 | E4: 236.916
A5: 2017-05-31 | B5: 72.9 | C5: 73.46 | D5: 73.39 | E5: 235.842
A6: 2017-05-30 | B6: 73.1 | C6: 73.22 | D6: 72.71 | E6: 124.794
A7: 2017-05-26 | B7: 72.96 | C7: 73.52 | D7: 73.15 | E7: 294.567
A8: 2017-05-25 | B8: 72.05 | C8: 73.06 | D8: 72.99 | E8: 164.96
A9: 2017-05-24 | B9: 71.13 | C9: 72.39 | D9: 72 | E9: 357.658
A10: 2017-05-23 | B10: 70.55 | C10: 71.09 | D10: 70.9 | E10: 182.101
A11: 2017-05-22 | B11: 69.37 | C11: 70.48 | D11: 70.32 | E11: 145.896
A12: 2017-05-19 | B12: 69.01 | C12: 69.67 | D12: 69.26 | E12: 163.429
A13: 2017-05-18 | B13: 68.99 | C13: 69.4 | D13: 69.17 | E13: 224.785
A14: 2017-05-17 | B14: 68.31 | C14: 69.15 | D14: 68.77 | E14: 230.006
A15: 2017-05-16 | B15: 69.46 | C15: 69.55 | D15: 68.41 | E15: 231.644
A16: 2017-05-15 | B16: 69.62 | C16: 69.88 | D16: 69.48 | E16: 132.949
A17: 2017-05-12 | B17: 69.37 | C17: 69.63 | D17: 69.36 | E17: 128.839
A18: 2017-05-11 | B18: 68.96 | C18: 69.36 | D18: 69.36 | E18: 167.291
A19: 2017-05-10 | B19: 69.54 | C19: 69.975 | D19: 69.39 | E19: 176.932
A20: 2017-05-09 | B20: 69.63 | C20: 69.98 | D20: 69.4 | E20: 204.679
A21: 2017-05-08 | B21: 69.95 | C21: 70.32 | D21: 69.81 | E21: 255.034
A22: 2017-05-05 | B22: 69.63 | C22: 70.02 | D22: 69.79 | E22: 167.57
A23: 2017-05-04 | B23: 68.15 | C23: 69.28 | D23: 69.21 | E23: 265.746
A24: 2017-05-03 | B24: 69.15 | C24: 69.15 | D24: 68.54 | E24: 204.697
A25: 2017-05-02 | B25: 69.38 | C25: 69.6 | D25: 69.13 | E25: 196.039
A26: 2017-05-01 | B26: 70.17 | C26: 70.17 | D26: 69.18 | E26: 262.097
A27: 2017-04-28 | B27: 70.82 | C27: 70.82 | D27: 69.91 | E27: 205.283
A28: 2017-04-27 | B28: 71.2 | C28: 71.76 | D28: 70.78 | E28: 211.271
A29: 2017-04-26 | B29: 70.92 | C29: 71.33 | D29: 71.11 | E29: 302.068
A30: 2017-04-25 | B30: 70.86 | C30: 71.02 | D30: 70.76 | E30: 178.628
A31: 2017-04-24 | B31: 70.8 | C31: 72.05 | D31: 70.85 | E31: 166.585
A32: 2017-04-21 | B32: 69.3 | C32: 70.54 | D32: 70.38 | E32: 291.63
A33: 2017-04-20 | B33: 69 | C33: 69.24 | D33: 69.15 | E33: 180.958
A34: 2017-04-19 | B34: 69.51 | C34: 69.79 | D34: 69 | E34: 261.055
A35: 2017-04-18 | B35: 69.43 | C35: 69.88 | D35: 69.51 | E35: 315.763
A36: 2017-04-17 | B36: 68.98 | C36: 69.46 | D36: 69.37 | E36: 223.432
A37: 2017-04-13 | B37: 69.27 | C37: 69.33 | D37: 68.82 | E37: 264.47
A38: 2017-04-12 | B38: 69.41 | C38: 69.45 | D38: 69.32 | E38: 278.658
A39: 2017-04-11 | B39: 68.82 | C39: 69.58 | D39: 69.37 | E39: 418.504
A40: 2017-04-10 | B40: 68.74 | C40: 69.15 | D40: 68.95 | E40: 292.124
A41: 2017-04-07 | B41: 68.44 | C41: 68.98 | D41: 68.7 | E41: 263.986
A42: 2017-04-06 | B42: 67.84 | C42: 68.55 | D42: 68.44 | E42: 170.725
A43: 2017-04-05 | B43: 67.71 | C43: 68.4 | D43: 68.01 | E43: 382.263
A44: 2017-04-04 | B44: 67.07 | C44: 67.98 | D44: 67.78 | E44: 188.335
A45: 2017-04-03 | B45: 67.71 | C45: 67.71 | D45: 67.14 | E45: 184.408
A46: 2017-03-31 | B46: 67.64 | C46: 68.21 | D46: 67.71 | E46: 268.535
A47: 2017-03-30 | B47: 67.87 | C47: 67.87 | D47: 67.48 | E47: 182.206
A48: 2017-03-29 | B48: 68.22 | C48: 68.23 | D48: 67.75 | E48: 276.68
A49: 2017-03-28 | B49: 68 | C49: 68.38 | D49: 68.36 | E49: 151.326
A50: 2017-03-27 | B50: 67.79 | C50: 68.35 | D50: 68.15 | E50: 218.521
A51: 2017-03-24 | B51: 67.36 | C51: 68.17 | D51: 67.92 | E51: 151.782
A52: 2017-03-23 | B52: 67.24 | C52: 67.95 | D52: 67.5 | E52: 154.24
A53: 2017-03-22 | B53: 67.21 | C53: 67.76 | D53: 67.42 | E53: 217.417
A54: 2017-03-21 | B54: 66.51 | C54: 67.41 | D54: 67.1 | E54: 181.018
A55: 2017-03-20 | B55: 67.62 | C55: 67.62 | D55: 66.48 | E55: 164.459
A56: 2017-03-17 | B56: 66.52 | C56: 67.6 | D56: 67.38 | E56: 627.332
A57: 2017-03-16 | B57: 67.04 | C57: 67.1092 | D57: 66.66 | E57: 194.607
A58: 2017-03-15 | B58: 65.69 | C58: 67.21 | D58: 66.9 | E58: 279.501
A59: 2017-03-14 | B59: 65.24 | C59: 65.59 | D59: 65.38 | E59: 171.055
A60: 2017-03-13 | B60: 65.02 | C60: 65.32 | D60: 65.32 | E60: 198.427
A61: 2017-03-10 | B61: 64.85 | C61: 65.22 | D61: 65.08 | E61: 234.82
A62: 2017-03-09 | B62: 65.23 | C62: 65.7 | D62: 64.59 | E62: 351.374
A63: 2017-03-08 | B63: 66.27 | C63: 66.45 | D63: 65.2 | E63: 189.136
A64: 2017-03-07 | B64: 66.96 | C64: 67.35 | D64: 66.83 | E64: 290.989
A65: 2017-03-06 | B65: 67.2 | C65: 67.43 | D65: 67.15 | E65: 249.216
A66: 2017-03-03 | B66: 67.15 | C66: 67.41 | D66: 67.33 | E66: 336.695
A67: 2017-03-02 | B67: 67.05 | C67: 67.69 | D67: 67.08 | E67: 196.148
A68: 2017-03-01 | B68: 66.72 | C68: 67.79 | D68: 67.19 | E68: 287.853
A69: 2017-02-28 | B69: 66.87 | C69: 67.515 | D69: 67.21 | E69: 259.351
A70: 2017-02-27 | B70: 67.02 | C70: 67.21 | D70: 67.14 | E70: 265.422
A71: 2017-02-24 | B71: 66.79 | C71: 67.25 | D71: 67.13 | E71: 565.277
A72: 2017-02-23 | B72: 66.91 | C72: 67.1 | D72: 66.76 | E72: 435.529
A73: 2017-02-22 | B73: 67.1 | C73: 67.21 | D73: 66.5 | E73: 255.889
A74: 2017-02-21 | B74: 66.52 | C74: 67.11 | D74: 67.06 | E74: 296.683
A75: 2017-02-17 | B75: 66.52 | C75: 66.65 | D75: 66.59 | E75: 268.962
A76: 2017-02-16 | B76: 65.64 | C76: 66.37 | D76: 66.24 | E76: 178.634
A77: 2017-02-15 | B77: 65.9 | C77: 65.97 | D77: 65.71 | E77: 205.616
A78: 2017-02-14 | B78: 65.38 | C78: 65.38 | D78: 65.12 | E78: 193.679
A79: 2017-02-13 | B79: 65.61 | C79: 65.61 | D79: 65.38 | E79: 186.79
A80: 2017-02-10 | B80: 65.74 | C80: 66.27 | D80: 65.9 | E80: 159.229
A81: 2017-02-09 | B81: 65.62 | C81: 66.5 | D81: 65.64 | E81: 150.423
A82: 2017-02-08 | B82: 65.73 | C82: 66.24 | D82: 65.81 | E82: 170.814
A83: 2017-02-07 | B83: 65.75 | C83: 65.91 | D83: 65.53 | E83: 149.049
A84: 2017-02-06 | B84: 66.28 | C84: 66.28 | D84: 65.75 | E84: 165.053
A85: 2017-02-03 | B85: 65.41 | C85: 65.88 | D85: 65.87 | E85: 192.742
A86: 2017-02-02 | B86: 64.91 | C86: 65.28 | D86: 65.25 | E86: 166.095
A87: 2017-02-01 | B87: 65.13 | C87: 65.34 | D87: 64.6 | E87: 270.387
A88: 2017-01-31 | B88: 64.46 | C88: 65.48 | D88: 65.35 | E88: 248.99
A89: 2017-01-30 | B89: 64.55 | C89: 64.55 | D89: 64.37 | E89: 259.019
A90: 2017-01-27 | B90: 65 | C90: 65.11 | D90: 64.46 | E90: 130.567
A91: 2017-01-26 | B91: 64.46 | C91: 65.1 | D91: 64.68 | E91: 211.112
A92: 2017-01-25 | B92: 63.25 | C92: 64.74 | D92: 64.36 | E92: 442.785
A93: 2017-01-24 | B93: 62.13 | C93: 63.02 | D93: 62.93 | E93: 208.087
A94: 2017-01-23 | B94: 62.87 | C94: 63.025 | D94: 62.18 | E94: 111.355
A95: 2017-01-20 | B95: 62.48 | C95: 63.16 | D95: 62.72 | E95: 185.882
A96: 2017-01-19 | B96: 63.09 | C96: 63.22 | D96: 62.58 | E96: 130.573
A97: 2017-01-18 | B97: 62.84 | C97: 63.37 | D97: 63.34 | E97: 160.913
A98: 2017-01-17 | B98: 63 | C98: 63.6 | D98: 63.06 | E98: 131.207
A99: 2017-01-13 | B99: 62.81 | C99: 63.26 | D99: 62.68 | E99: 265.984
A100: 2017-01-12 | B100: 63.14 | C100: 63.18 | D100: 62.92 | E100: 237.47
A101: 2017-01-11 | B101: 62.34 | C101: 63.28 | D101: 63.17 | E101: 234.187
A102: 2017-01-10 | B102: 62.28 | C102: 62.66 | D102: 62.31 | E102: 314.163
A103: 2017-01-09 | B103: 63.8 | C103: 63.8376 | D103: 62.32 | E103: 197.798
A104: 2017-01-06 | B104: 63.62 | C104: 63.92 | D104: 63.64 | E104: 289.056
A105: 2017-01-05 | B105: 64.31 | C105: 64.34 | D105: 63.79 | E105: 144.859
A106: 2017-01-04 | B106: 63.95 | C106: 64.46 | D106: 64.2 | E106: 227.992
A107: 2017-01-03 | B107: 64.3 | C107: 64.73 | D107: 63.66 | E107: 169.131
A108: 2016-12-30 | B108: 64.32 | C108: 64.92 | D108: 64.19 | E108: 223.196
A109: 2016-12-29 | B109: 63.67 | C109: 64.37 | D109: 64.31 | E109: 144.856
A110: 2016-12-28 | B110: 64.25 | C110: 64.25 | D110: 63.31 | E110: 141.617
A111: 2016-12-27 | B111: 63.5 | C111: 64.34 | D111: 64.12 | E111: 125.281
A112: 2016-12-23 | B112: 63.57 | C112: 63.87 | D112: 63.83 | E112: 337.655
A113: 2016-12-22 | B113: 63.44 | C113: 64.04 | D113: 63.29 | E113: 289.733
A114: 2016-12-21 | B114: 64.39 | C114: 64.755 | D114: 63.58 | E114: 239.32
A115: 2016-12-20 | B115: 64 | C115: 65.01 | D115: 64.35 | E115: 341.045
A116: 2016-12-19 | B116: 64.56 | C116: 64.56 | D116: 63.86 | E116: 409.402
A117: 2016-12-16 | B117: 64.73 | C117: 65.46 | D117: 64.4 | E117: 1048.365
A118: 2016-12-15 | B118: 64.04 | C118: 64.63 | D118: 64.48 | E118: 276.618
A119: 2016-12-14 | B119: 66.39 | C119: 66.92 | D119: 64.08 | E119: 290.769
A120: 2016-12-13 | B120: 66 | C120: 66.39 | D120: 66.23 | E120: 297.909
A121: 2016-12-12 | B121: 64.62 | C121: 65.99 | D121: 65.76 | E121: 230.505
A122: 2016-12-09 | B122: 64.4 | C122: 65.19 | D122: 65.19 | E122: 337.839
A123: 2016-12-08 | B123: 62.91 | C123: 64.3 | D123: 64.21 | E123: 278.006
A124: 2016-12-07 | B124: 62.72 | C124: 63.37 | D124: 63.29 | E124: 178.177
A125: 2016-12-06 | B125: 62.44 | C125: 62.85 | D125: 62.59 | E125: 242.866
A126: 2016-12-05 | B126: 61.56 | C126: 62.2 | D126: 62.19 | E126: 189.177
A127: 2016-12-02 | B127: 61.96 | C127: 62.67 | D127: 61.68 | E127: 211.668
A128: 2016-12-01 | B128: 61.32 | C128: 62.05 | D128: 61.32 | E128: 278.729
A129: 2016-11-30 | B129: 62.93 | C129: 63.18 | D129: 61.82 | E129: 271.09
A130: 2016-11-29 | B130: 63.89 | C130: 64.375 | D130: 63.75 | E130: 235.107
A131: 2016-11-28 | B131: 63.16 | C131: 64.57 | D131: 64 | E131: 266.514
A132: 2016-11-25 | B132: 62.25 | C132: 62.94 | D132: 62.94 | E132: 76.385
A133: 2016-11-23 | B133: 61.86 | C133: 62.75 | D133: 62.1 | E133: 239.29
A134: 2016-11-22 | B134: 61.62 | C134: 62.59 | D134: 62.57 | E134: 150.174
A135: 2016-11-21 | B135: 61.25 | C135: 61.46 | D135: 61.4 | E135: 228.803
A136: 2016-11-18 | B136: 60.77 | C136: 61.4 | D136: 60.93 | E136: 259.691
A137: 2016-11-17 | B137: 61.1 | C137: 61.51 | D137: 60.75 | E137: 216.562
A138: 2016-11-16 | B138: 61.57 | C138: 61.94 | D138: 61.11 | E138: 310.862
A139: 2016-11-15 | B139: 60.74 | C139: 61.6 | D139: 61.57 | E139: 232.307
A140: 2016-11-14 | B140: 59.65 | C140: 60.74 | D140: 60.56 | E140: 225.264
A141: 2016-11-11 | B141: 58.45 | C141: 60.47 | D141: 59.76 | E141: 362.539
A142: 2016-11-10 | B142: 58.99 | C142: 59.16 | D142: 58.42 | E142: 388.175
A143: 2016-11-09 | B143: 59.1 | C143: 59.76 | D143: 59.42 | E143: 286.273
A144: 2016-11-08 | B144: 60.14 | C144: 60.79 | D144: 60.35 | E144: 140.618
A145: 2016-11-07 | B145: 59.46 | C145: 60.17 | D145: 60.13 | E145: 276.131
A146: 2016-11-04 | B146: 61.2 | C146: 61.2 | D146: 58.96 | E146: 284.136
A147: 2016-11-03 | B147: 58.67 | C147: 59.63 | D147: 59.39 | E147: 161.385
A148: 2016-11-02 | B148: 59.58 | C148: 59.7 | D148: 59.06 | E148: 141.063
A149: 2016-11-01 | B149: 61.2 | C149: 61.2 | D149: 59.65 | E149: 218.43
A150: 2016-10-31 | B150: 59.73 | C150: 61.4 | D150: 61.29 | E150: 273.951
A151: 2016-10-28 | B151: 59.42 | C151: 59.83 | D151: 59.6 | E151: 228.872
A152: 2016-10-27 | B152: 59.55 | C152: 59.8 | D152: 59.4 | E152: 138.08
A153: 2016-10-26 | B153: 60.13 | C153: 60.27 | D153: 59.84 | E153: 144.59
A154: 2016-10-25 | B154: 59.47 | C154: 60.15 | D154: 60.14 | E154: 125.441
A155: 2016-10-24 | B155: 59.94 | C155: 60.04 | D155: 59.58 | E155: 234.257
A156: 2016-10-21 | B156: 59.06 | C156: 59.71 | D156: 59.56 | E156: 254.894
A157: 2016-10-20 | B157: 59.34 | C157: 59.58 | D157: 59.44 | E157: 147.18
A158: 2016-10-19 | B158: 59.09 | C158: 59.31 | D158: 59.18 | E158: 198.881
A159: 2016-10-18 | B159: 58.18 | C159: 59.01 | D159: 58.99 | E159: 313.016
A160: 2016-10-17 | B160: 57.77 | C160: 58.06 | D160: 57.95 | E160: 122.558
A161: 2016-10-14 | B161: 57.83 | C161: 58.26 | D161: 57.58 | E161: 107.251
A162: 2016-10-13 | B162: 57.49 | C162: 58.58 | D162: 58.05 | E162: 188.339
A163: 2016-10-12 | B163: 56.91 | C163: 57.5 | D163: 57.46 | E163: 240.958
A164: 2016-10-11 | B164: 57.66 | C164: 57.7 | D164: 56.81 | E164: 182.646
A165: 2016-10-10 | B165: 56.96 | C165: 57.77 | D165: 57.73 | E165: 123.044
A166: 2016-10-07 | B166: 57.42 | C166: 57.68 | D166: 57.06 | E166: 265.972
A167: 2016-10-06 | B167: 56.93 | C167: 57.2799 | D167: 56.96 | E167: 171.843
A168: 2016-10-05 | B168: 57.52 | C168: 57.69 | D168: 57.11 | E168: 254.361
A169: 2016-10-04 | B169: 59.08 | C169: 59.28 | D169: 57.38 | E169: 183.061
A170: 2016-10-03 | B170: 59.55 | C170: 59.55 | D170: 59.22 | E170: 236.327
A171: 2016-09-30 | B171: 60.19 | C171: 60.25 | D171: 59.62 | E171: 172.468
A172: 2016-09-29 | B172: 60.66 | C172: 60.66 | D172: 59.87 | E172: 103.938
A173: 2016-09-28 | B173: 60.89 | C173: 61.11 | D173: 60.81 | E173: 132.476
A174: 2016-09-27 | B174: 61.67 | C174: 61.92 | D174: 60.92 | E174: 205.128
A175: 2016-09-26 | B175: 62.29 | C175: 62.29 | D175: 61.64 | E175: 194.454
A176: 2016-09-23 | B176: 62.6 | C176: 62.6 | D176: 62.22 | E176: 150.368
A177: 2016-09-22 | B177: 62.47 | C177: 62.7 | D177: 62.7 | E177: 196.88
A178: 2016-09-21 | B178: 60.9 | C178: 62.29 | D178: 62.19 | E178: 160.72
A179: 2016-09-20 | B179: 61.11 | C179: 61.33 | D179: 60.6 | E179: 130.583
A180: 2016-09-19 | B180: 60.51 | C180: 60.79 | D180: 60.74 | E180: 166.65
A181: 2016-09-16 | B181: 59.5 | C181: 60.55 | D181: 60.51 | E181: 748.682
A182: 2016-09-15 | B182: 58.44 | C182: 59.69 | D182: 59.5 | E182: 215.508
A183: 2016-09-14 | B183: 58.96 | C183: 59.18 | D183: 58.52 | E183: 409.621
A184: 2016-09-13 | B184: 59.42 | C184: 59.6 | D184: 58.7 | E184: 430.755
A185: 2016-09-12 | B185: 58.94 | C185: 59.97 | D185: 59.78 | E185: 335.751
A186: 2016-09-09 | B186: 61.31 | C186: 61.31 | D186: 59.14 | E186: 153.71
A187: 2016-09-08 | B187: 61.44 | C187: 61.96 | D187: 61.81 | E187: 154.204
A188: 2016-09-07 | B188: 61.24 | C188: 61.79 | D188: 61.61 | E188: 211.273
A189: 2016-09-06 | B189: 60.96 | C189: 61.42 | D189: 61.33 | E189: 190.661
A190: 2016-09-02 | B190: 59.65 | C190: 60.52 | D190: 60.51 | E190: 163.039
A191: 2016-09-01 | B191: 59.19 | C191: 59.52 | D191: 59.43 | E191: 198.13
A192: 2016-08-31 | B192: 58.92 | C192: 59.38 | D192: 59.3 | E192: 175.921
A193: 2016-08-30 | B193: 59.73 | C193: 60.06 | D193: 58.87 | E193: 181.183
A194: 2016-08-29 | B194: 59.01 | C194: 59.63 | D194: 59.62 | E194: 266.532
A195: 2016-08-26 | B195: 60.22 | C195: 60.84 | D195: 58.98 | E195: 275.699
A196: 2016-08-25 | B196: 59.99 | C196: 60.31 | D196: 60.06 | E196: 305.253
A197: 2016-08-24 | B197: 60.32 | C197: 60.32 | D197: 59.93 | E197: 221.247
A198: 2016-08-23 | B198: 61.28 | C198: 61.66 | D198: 60.39 | E198: 151.046
A199: 2016-08-22 | B199: 60.69 | C199: 61.14 | D199: 61.07 | E199: 95.112
A200: 2016-08-19 | B200: 60.9 | C200: 61.24 | D200: 60.49 | E200: 182.931
... 309 more rows

Sheet LNT
A1: ='Div Yields'!C4 -> LNT | G1: Dividend | H1: 30 Day Avg | I1: 90 Day Avg | J1: 180 Day Avg | K1: 360 Day Avg | L1: 720 Day Avg
H2: =AVERAGE($D$4:$D$33) -> 40.072 | I2: =AVERAGE($D$4:$D$93) -> 39.24477778 | J2: =AVERAGE($D$4:$D$183) -> 38.28711111 | K2: =AVERAGE($D$4:$D$363) -> 37.36604167 | L2: =AVERAGE($D$4:$D$507) -> 35.15082341
A3: Date | B3: Open | C3: High | D3: Close | E3: Volume (k) | G3: =INDEX(Master,MATCH($A$1,Tickers,0),MATCH(G1,Header,0)) -> 1.26 | H3: =$G3/H2 -> 0.03144340188 | I3: =$G3/I2 -> 0.03210618256 | J3: =$G3/J2 -> 0.03290924709 | K3: 0.03372045697 | L3: 0.03584553298
A4: 2017-06-01 | B4: 41.46 | C4: 41.64 | D4: 41.63 | E4: 1757.123
A5: 2017-05-31 | B5: 41.51 | C5: 41.705 | D5: 41.47 | E5: 2185.952
A6: 2017-05-30 | B6: 41.25 | C6: 41.49 | D6: 41.47 | E6: 1465.344
A7: 2017-05-26 | B7: 41.52 | C7: 41.64 | D7: 41.36 | E7: 958.56
A8: 2017-05-25 | B8: 41.16 | C8: 41.58 | D8: 41.56 | E8: 1385.516
A9: 2017-05-24 | B9: 41 | C9: 41.27 | D9: 41.12 | E9: 1742.257
A10: 2017-05-23 | B10: 40.37 | C10: 41.27 | D10: 40.91 | E10: 2437.607
A11: 2017-05-22 | B11: 39.63 | C11: 40.4611 | D11: 40.38 | E11: 1615.95
A12: 2017-05-19 | B12: 39.77 | C12: 39.9 | D12: 39.75 | E12: 6536.52
A13: 2017-05-18 | B13: 39.64 | C13: 40 | D13: 39.82 | E13: 1724.557
A14: 2017-05-17 | B14: 39.52 | C14: 39.87 | D14: 39.62 | E14: 1492.203
A15: 2017-05-16 | B15: 39.7 | C15: 39.8 | D15: 39.38 | E15: 1307.988
A16: 2017-05-15 | B16: 39.63 | C16: 39.86 | D16: 39.78 | E16: 1093.793
A17: 2017-05-12 | B17: 39.54 | C17: 39.7 | D17: 39.61 | E17: 1724.209
A18: 2017-05-11 | B18: 39.41 | C18: 39.47 | D18: 39.4 | E18: 1256.276
A19: 2017-05-10 | B19: 39.58 | C19: 39.7153 | D19: 39.52 | E19: 1366.707
A20: 2017-05-09 | B20: 39.79 | C20: 39.8425 | D20: 39.57 | E20: 1318.611
A21: 2017-05-08 | B21: 40.1 | C21: 40.14 | D21: 39.79 | E21: 1273.035
A22: 2017-05-05 | B22: 39.94 | C22: 40.1792 | D22: 40.06 | E22: 1452.571
A23: 2017-05-04 | B23: 39.53 | C23: 40 | D23: 39.87 | E23: 2181.27
A24: 2017-05-03 | B24: 39.36 | C24: 39.53 | D24: 39.29 | E24: 1405.724
A25: 2017-05-02 | B25: 39.21 | C25: 39.47 | D25: 39.42 | E25: 1547.462
A26: 2017-05-01 | B26: 39.4 | C26: 39.44 | D26: 39.1 | E26: 1185.623
A27: 2017-04-28 | B27: 39.59 | C27: 39.7365 | D27: 39.32 | E27: 1910.863
A28: 2017-04-27 | B28: 39.5 | C28: 39.99 | D28: 39.72 | E28: 1730.065
A29: 2017-04-26 | B29: 39.65 | C29: 39.67 | D29: 39.48 | E29: 1943.754
A30: 2017-04-25 | B30: 39.94 | C30: 40.085 | D30: 40.01 | E30: 1496.368
A31: 2017-04-24 | B31: 40.03 | C31: 40.12 | D31: 40.07 | E31: 1351.631
A32: 2017-04-21 | B32: 39.7 | C32: 40.14 | D32: 39.96 | E32: 1219.772
A33: 2017-04-20 | B33: 39.76 | C33: 39.785 | D33: 39.72 | E33: 1248.526
A34: 2017-04-19 | B34: 40.13 | C34: 40.22 | D34: 39.81 | E34: 970.954
A35: 2017-04-18 | B35: 39.85 | C35: 40.22 | D35: 40.15 | E35: 1276.85
A36: 2017-04-17 | B36: 39.72 | C36: 39.91 | D36: 39.88 | E36: 912.016
A37: 2017-04-13 | B37: 39.87 | C37: 39.9 | D37: 39.62 | E37: 1173.269
A38: 2017-04-12 | B38: 39.59 | C38: 39.93 | D38: 39.89 | E38: 1445.073
A39: 2017-04-11 | B39: 39.69 | C39: 39.79 | D39: 39.7 | E39: 850.879
A40: 2017-04-10 | B40: 39.71 | C40: 39.97 | D40: 39.71 | E40: 739.027
A41: 2017-04-07 | B41: 40.01 | C41: 40.07 | D41: 39.7 | E41: 1063.385
A42: 2017-04-06 | B42: 39.85 | C42: 39.99 | D42: 39.87 | E42: 657.104
A43: 2017-04-05 | B43: 39.73 | C43: 40.01 | D43: 39.98 | E43: 1186.147
A44: 2017-04-04 | B44: 39.54 | C44: 39.99 | D44: 39.87 | E44: 1020.528
A45: 2017-04-03 | B45: 39.63 | C45: 39.63 | D45: 39.59 | E45: 1045.807
A46: 2017-03-31 | B46: 39.55 | C46: 39.84 | D46: 39.61 | E46: 1026.697
A47: 2017-03-30 | B47: 39.89 | C47: 39.89 | D47: 39.57 | E47: 847.383
A48: 2017-03-29 | B48: 40.04 | C48: 40.1 | D48: 39.98 | E48: 988.989
A49: 2017-03-28 | B49: 40.01 | C49: 40.155 | D49: 40.12 | E49: 915.397
A50: 2017-03-27 | B50: 40.24 | C50: 40.32 | D50: 40.06 | E50: 1156.604
A51: 2017-03-24 | B51: 39.86 | C51: 40.22 | D51: 40.1 | E51: 777.914
A52: 2017-03-23 | B52: 39.71 | C52: 40.25 | D52: 39.84 | E52: 877.154
A53: 2017-03-22 | B53: 39.94 | C53: 40.2 | D53: 39.78 | E53: 1151.104
A54: 2017-03-21 | B54: 39.03 | C54: 39.77 | D54: 39.7 | E54: 1250.541
A55: 2017-03-20 | B55: 39.62 | C55: 39.68 | D55: 39.1 | E55: 917.687
A56: 2017-03-17 | B56: 39.36 | C56: 39.78 | D56: 39.56 | E56: 5360.207
A57: 2017-03-16 | B57: 39.33 | C57: 39.62 | D57: 39.13 | E57: 1612.398
A58: 2017-03-15 | B58: 39.03 | C58: 39.81 | D58: 39.58 | E58: 1537.103
A59: 2017-03-14 | B59: 38.81 | C59: 38.94 | D59: 38.87 | E59: 1061.896
A60: 2017-03-13 | B60: 38.61 | C60: 38.84 | D60: 38.75 | E60: 1656.58
A61: 2017-03-10 | B61: 38.49 | C61: 38.68 | D61: 38.61 | E61: 1102.479
A62: 2017-03-09 | B62: 38.36 | C62: 38.67 | D62: 38.3 | E62: 1121.875
A63: 2017-03-08 | B63: 38.98 | C63: 39 | D63: 38.39 | E63: 1019.296
A64: 2017-03-07 | B64: 39.2 | C64: 39.52 | D64: 39.28 | E64: 1147.039
A65: 2017-03-06 | B65: 39.12 | C65: 39.37 | D65: 39.18 | E65: 1039.086
A66: 2017-03-03 | B66: 39.26 | C66: 39.26 | D66: 39.19 | E66: 1175.505
A67: 2017-03-02 | B67: 38.9 | C67: 39.51 | D67: 39.25 | E67: 1183.871
A68: 2017-03-01 | B68: 38.95 | C68: 39.41 | D68: 39.08 | E68: 1454.76
A69: 2017-02-28 | B69: 39.06 | C69: 39.59 | D69: 39.48 | E69: 1927.283
A70: 2017-02-27 | B70: 39.46 | C70: 39.56 | D70: 39.05 | E70: 1746.125
A71: 2017-02-24 | B71: 39.59 | C71: 39.64 | D71: 39.52 | E71: 1538.82
A72: 2017-02-23 | B72: 38.84 | C72: 39.15 | D72: 39.11 | E72: 1103.622
A73: 2017-02-22 | B73: 38.4 | C73: 38.72 | D73: 38.65 | E73: 1323.811
A74: 2017-02-21 | B74: 37.9 | C74: 38.48 | D74: 38.43 | E74: 1184.277
A75: 2017-02-17 | B75: 37.97 | C75: 38.16 | D75: 38.08 | E75: 1254.972
A76: 2017-02-16 | B76: 37.55 | C76: 37.95 | D76: 37.93 | E76: 1478.744
A77: 2017-02-15 | B77: 37.23 | C77: 37.58 | D77: 37.54 | E77: 1144.488
A78: 2017-02-14 | B78: 37.89 | C78: 37.97 | D78: 37.67 | E78: 887.494
A79: 2017-02-13 | B79: 37.89 | C79: 37.99 | D79: 37.99 | E79: 979.097
A80: 2017-02-10 | B80: 37.65 | C80: 37.89 | D80: 37.86 | E80: 904.021
A81: 2017-02-09 | B81: 38.06 | C81: 38.2 | D81: 37.65 | E81: 1060.808
A82: 2017-02-08 | B82: 37.89 | C82: 38.15 | D82: 38.15 | E82: 1542.862
A83: 2017-02-07 | B83: 37.72 | C83: 37.8 | D83: 37.8 | E83: 758.533
A84: 2017-02-06 | B84: 37.99 | C84: 37.99 | D84: 37.66 | E84: 852.561
A85: 2017-02-03 | B85: 37.53 | C85: 37.905 | D85: 37.82 | E85: 1520.614
A86: 2017-02-02 | B86: 36.99 | C86: 37.52 | D86: 37.51 | E86: 748.549
A87: 2017-02-01 | B87: 37.37 | C87: 37.52 | D87: 36.98 | E87: 1191.065
A88: 2017-01-31 | B88: 36.88 | C88: 37.7099 | D88: 37.65 | E88: 1666.782
A89: 2017-01-30 | B89: 37.07 | C89: 37.08 | D89: 36.86 | E89: 911.611
A90: 2017-01-27 | B90: 36.84 | C90: 36.9 | D90: 36.89 | E90: 1124.044
A91: 2017-01-26 | B91: 36.88 | C91: 37.2 | D91: 36.95 | E91: 750.516
A92: 2017-01-25 | B92: 36.87 | C92: 37.01 | D92: 36.89 | E92: 1015.704
A93: 2017-01-24 | B93: 36.82 | C93: 37.09 | D93: 36.95 | E93: 1370.726
A94: 2017-01-23 | B94: 37.37 | C94: 37.55 | D94: 37.03 | E94: 1096.091
A95: 2017-01-20 | B95: 37.43 | C95: 37.48 | D95: 37.36 | E95: 718.901
A96: 2017-01-19 | B96: 37.49 | C96: 37.72 | D96: 37.28 | E96: 723.689
A97: 2017-01-18 | B97: 37.7 | C97: 37.82 | D97: 37.7 | E97: 937.706
A98: 2017-01-17 | B98: 37.62 | C98: 37.99 | D98: 37.75 | E98: 1111.619
A99: 2017-01-13 | B99: 37.58 | C99: 37.695 | D99: 37.49 | E99: 949.624
A100: 2017-01-12 | B100: 37.75 | C100: 37.81 | D100: 37.65 | E100: 812.395
A101: 2017-01-11 | B101: 37.33 | C101: 37.82 | D101: 37.75 | E101: 706.912
A102: 2017-01-10 | B102: 37.27 | C102: 37.39 | D102: 37.24 | E102: 572.788
A103: 2017-01-09 | B103: 37.86 | C103: 38.06 | D103: 37.28 | E103: 807.711
A104: 2017-01-06 | B104: 37.96 | C104: 38.075 | D104: 37.8 | E104: 1331.626
A105: 2017-01-05 | B105: 38.22 | C105: 38.29 | D105: 38.11 | E105: 1334.735
A106: 2017-01-04 | B106: 38.01 | C106: 38.26 | D106: 38.16 | E106: 1032.771
A107: 2017-01-03 | B107: 37.94 | C107: 38.08 | D107: 37.93 | E107: 866.626
A108: 2016-12-30 | B108: 38.21 | C108: 38.34 | D108: 37.89 | E108: 771.788
A109: 2016-12-29 | B109: 37.66 | C109: 38.24 | D109: 38.19 | E109: 627.373
A110: 2016-12-28 | B110: 37.99 | C110: 38.04 | D110: 37.54 | E110: 863.22
A111: 2016-12-27 | B111: 37.76 | C111: 38.1 | D111: 38 | E111: 412.075
A112: 2016-12-23 | B112: 37.85 | C112: 37.95 | D112: 37.86 | E112: 293.213
A113: 2016-12-22 | B113: 37.65 | C113: 37.86 | D113: 37.81 | E113: 668.26
A114: 2016-12-21 | B114: 37.81 | C114: 38.06 | D114: 37.69 | E114: 583.655
A115: 2016-12-20 | B115: 37.63 | C115: 37.92 | D115: 37.8 | E115: 769.468
A116: 2016-12-19 | B116: 37.88 | C116: 37.88 | D116: 37.77 | E116: 551.341
A117: 2016-12-16 | B117: 37.07 | C117: 37.65 | D117: 37.61 | E117: 1867.34
A118: 2016-12-15 | B118: 36.48 | C118: 37.02 | D118: 37.01 | E118: 649.549
A119: 2016-12-14 | B119: 37.65 | C119: 37.84 | D119: 36.62 | E119: 1235.521
A120: 2016-12-13 | B120: 37.35 | C120: 37.61 | D120: 37.51 | E120: 946.657
A121: 2016-12-12 | B121: 36.67 | C121: 37.29 | D121: 37.21 | E121: 721.227
A122: 2016-12-09 | B122: 36.39 | C122: 36.88 | D122: 36.83 | E122: 989.539
A123: 2016-12-08 | B123: 36.24 | C123: 36.53 | D123: 36.44 | E123: 837.587
A124: 2016-12-07 | B124: 36.33 | C124: 36.58 | D124: 36.47 | E124: 969.293
A125: 2016-12-06 | B125: 36.24 | C125: 36.47 | D125: 36.08 | E125: 945.904
A126: 2016-12-05 | B126: 35.84 | C126: 36.1 | D126: 36.07 | E126: 1216.821
A127: 2016-12-02 | B127: 35.84 | C127: 36.405 | D127: 35.99 | E127: 1033.523
A128: 2016-12-01 | B128: 35.69 | C128: 35.82 | D128: 35.51 | E128: 936.299
A129: 2016-11-30 | B129: 36.72 | C129: 36.72 | D129: 35.92 | E129: 1808.262
A130: 2016-11-29 | B130: 36.98 | C130: 37.525 | D130: 37.25 | E130: 1075.033
A131: 2016-11-28 | B131: 36.5 | C131: 37.26 | D131: 37.09 | E131: 1043.226
A132: 2016-11-25 | B132: 35.9 | C132: 36.44 | D132: 36.35 | E132: 474.709
A133: 2016-11-23 | B133: 35.56 | C133: 36.24 | D133: 35.75 | E133: 871.922
A134: 2016-11-22 | B134: 35.91 | C134: 36.34 | D134: 36.13 | E134: 1113.285
A135: 2016-11-21 | B135: 35.72 | C135: 35.95 | D135: 35.83 | E135: 1496.799
A136: 2016-11-18 | B136: 35.74 | C136: 35.99 | D136: 35.64 | E136: 919.28
A137: 2016-11-17 | B137: 35.67 | C137: 36.065 | D137: 35.81 | E137: 1039.313
A138: 2016-11-16 | B138: 36.12 | C138: 36.38 | D138: 35.78 | E138: 730.94
A139: 2016-11-15 | B139: 35.6 | C139: 36.25 | D139: 36.02 | E139: 1360.491
A140: 2016-11-14 | B140: 35.04 | C140: 35.74 | D140: 35.51 | E140: 1835.315
A141: 2016-11-11 | B141: 35.48 | C141: 35.9873 | D141: 35.36 | E141: 1906.495
A142: 2016-11-10 | B142: 36.55 | C142: 36.57 | D142: 35.49 | E142: 2845.924
A143: 2016-11-09 | B143: 37.69 | C143: 37.69 | D143: 36.81 | E143: 2456.825
A144: 2016-11-08 | B144: 38.06 | C144: 38.67 | D144: 38.5 | E144: 2438.808
A145: 2016-11-07 | B145: 37 | C145: 37.95 | D145: 37.93 | E145: 2156.095
A146: 2016-11-04 | B146: 37.08 | C146: 37.61 | D146: 36.83 | E146: 2449.085
A147: 2016-11-03 | B147: 36.77 | C147: 37.26 | D147: 37.09 | E147: 1053.42
A148: 2016-11-02 | B148: 37.35 | C148: 37.35 | D148: 36.98 | E148: 1348.511
A149: 2016-11-01 | B149: 38.02 | C149: 38.08 | D149: 37.42 | E149: 1590.451
A150: 2016-10-31 | B150: 37.38 | C150: 38.33 | D150: 38.05 | E150: 1980.773
A151: 2016-10-28 | B151: 37.08 | C151: 37.355 | D151: 37.23 | E151: 1350.393
A152: 2016-10-27 | B152: 37.01 | C152: 37.16 | D152: 37.02 | E152: 1365.452
A153: 2016-10-26 | B153: 37.33 | C153: 37.55 | D153: 37.48 | E153: 1256.58
A154: 2016-10-25 | B154: 37.19 | C154: 37.41 | D154: 37.39 | E154: 1056.254
A155: 2016-10-24 | B155: 37.28 | C155: 37.52 | D155: 37.32 | E155: 1315.513
A156: 2016-10-21 | B156: 37.13 | C156: 37.29 | D156: 37.07 | E156: 1159.196
A157: 2016-10-20 | B157: 37.41 | C157: 37.63 | D157: 37.32 | E157: 1039.175
A158: 2016-10-19 | B158: 37.4 | C158: 37.44 | D158: 37.29 | E158: 1227.411
A159: 2016-10-18 | B159: 37.42 | C159: 37.595 | D159: 37.38 | E159: 1415.793
A160: 2016-10-17 | B160: 37.12 | C160: 37.37 | D160: 37.21 | E160: 877.846
A161: 2016-10-14 | B161: 37.06 | C161: 37.38 | D161: 36.97 | E161: 1314.84
A162: 2016-10-13 | B162: 36.88 | C162: 37.44 | D162: 37.23 | E162: 1633.151
A163: 2016-10-12 | B163: 36.43 | C163: 36.94 | D163: 36.92 | E163: 1039.211
A164: 2016-10-11 | B164: 36.74 | C164: 36.77 | D164: 36.37 | E164: 1196.075
A165: 2016-10-10 | B165: 36.53 | C165: 36.92 | D165: 36.88 | E165: 1127.799
A166: 2016-10-07 | B166: 36.99 | C166: 37.24 | D166: 36.54 | E166: 1346.658
A167: 2016-10-06 | B167: 36.64 | C167: 36.9 | D167: 36.69 | E167: 1271.409
A168: 2016-10-05 | B168: 37 | C168: 37.36 | D168: 36.78 | E168: 2057.558
A169: 2016-10-04 | B169: 37.63 | C169: 37.69 | D169: 36.93 | E169: 2127.979
A170: 2016-10-03 | B170: 38.33 | C170: 38.33 | D170: 37.8 | E170: 1793.971
A171: 2016-09-30 | B171: 39.02 | C171: 39.18 | D171: 38.31 | E171: 2031.936
A172: 2016-09-29 | B172: 39.2 | C172: 39.37 | D172: 38.86 | E172: 1056.215
A173: 2016-09-28 | B173: 39.76 | C173: 39.81 | D173: 39.39 | E173: 1131.745
A174: 2016-09-27 | B174: 40.42 | C174: 40.6 | D174: 39.68 | E174: 1522.012
A175: 2016-09-26 | B175: 40.1 | C175: 40.41 | D175: 40.26 | E175: 1468.382
A176: 2016-09-23 | B176: 39.73 | C176: 40.29 | D176: 40.11 | E176: 1893.887
A177: 2016-09-22 | B177: 40 | C177: 40.13 | D177: 39.98 | E177: 1152.377
A178: 2016-09-21 | B178: 38.91 | C178: 39.75 | D178: 39.7 | E178: 1038.055
A179: 2016-09-20 | B179: 38.98 | C179: 39.1471 | D179: 38.85 | E179: 878.257
A180: 2016-09-19 | B180: 38.6 | C180: 38.79 | D180: 38.77 | E180: 1585.806
A181: 2016-09-16 | B181: 37.78 | C181: 38.53 | D181: 38.43 | E181: 2194.796
A182: 2016-09-15 | B182: 37.46 | C182: 37.97 | D182: 37.96 | E182: 1130.944
A183: 2016-09-14 | B183: 37.53 | C183: 37.81 | D183: 37.56 | E183: 650.292
A184: 2016-09-13 | B184: 37.7 | C184: 37.723 | D184: 37.37 | E184: 935.142
A185: 2016-09-12 | B185: 37.09 | C185: 37.8 | D185: 37.72 | E185: 1496.4
A186: 2016-09-09 | B186: 38.57 | C186: 38.57 | D186: 37.15 | E186: 1069.773
A187: 2016-09-08 | B187: 38.78 | C187: 39.11 | D187: 38.86 | E187: 746.699
A188: 2016-09-07 | B188: 38.78 | C188: 39.13 | D188: 38.98 | E188: 943.294
A189: 2016-09-06 | B189: 38.47 | C189: 38.925 | D189: 38.81 | E189: 919.982
A190: 2016-09-02 | B190: 37.69 | C190: 38.26 | D190: 38.21 | E190: 1051.985
A191: 2016-09-01 | B191: 37.96 | C191: 37.96 | D191: 37.67 | E191: 740.437
A192: 2016-08-31 | B192: 37.87 | C192: 37.98 | D192: 37.95 | E192: 955.765
A193: 2016-08-30 | B193: 38.28 | C193: 38.49 | D193: 37.84 | E193: 1328.839
A194: 2016-08-29 | B194: 38.01 | C194: 38.39 | D194: 38.25 | E194: 847.13
A195: 2016-08-26 | B195: 38.89 | C195: 39.12 | D195: 37.92 | E195: 1018.636
A196: 2016-08-25 | B196: 38.82 | C196: 38.92 | D196: 38.87 | E196: 931.15
A197: 2016-08-24 | B197: 38.46 | C197: 38.82 | D197: 38.82 | E197: 1891.003
A198: 2016-08-23 | B198: 39.17 | C198: 39.34 | D198: 38.58 | E198: 1362.328
A199: 2016-08-22 | B199: 38.99 | C199: 39.265 | D199: 39.08 | E199: 1035.455
A200: 2016-08-19 | B200: 39.33 | C200: 39.59 | D200: 38.84 | E200: 5804.338
... 309 more rows

Sheet AEE
A1: ='Div Yields'!C5 -> AEE | G1: Dividend | H1: 30 Day Avg | I1: 90 Day Avg | J1: 180 Day Avg | K1: 360 Day Avg | L1: 720 Day Avg
H2: =AVERAGE($D$4:$D$33) -> 55.21433333 | I2: =AVERAGE($D$4:$D$93) -> 54.47033333 | J2: =AVERAGE($D$4:$D$183) -> 52.2735 | K2: =AVERAGE($D$4:$D$363) -> 50.44244444 | L2: =AVERAGE($D$4:$D$507) -> 47.81482143
A3: Date | B3: Open | C3: High | D3: Close | E3: Volume (k) | G3: =INDEX(Master,MATCH($A$1,Tickers,0),MATCH(G1,Header,0)) -> 1.76 | H3: =$G3/H2 -> 0.03187578105 | I3: =$G3/I2 -> 0.03231116632 | J3: =$G3/J2 -> 0.0336690675 | K3: 0.03489125119 | L3: 0.03680867035
A4: 2017-06-01 | B4: 56.75 | C4: 56.89 | D4: 56.8 | E4: 2592.092
A5: 2017-05-31 | B5: 56.57 | C5: 56.96 | D5: 56.75 | E5: 2085.958
A6: 2017-05-30 | B6: 56.17 | C6: 56.57 | D6: 56.46 | E6: 1189.934
A7: 2017-05-26 | B7: 55.99 | C7: 56.21 | D7: 56.15 | E7: 1188.238
A8: 2017-05-25 | B8: 55.72 | C8: 56.235 | D8: 56.05 | E8: 2165.383
A9: 2017-05-24 | B9: 56.32 | C9: 56.5 | D9: 56.14 | E9: 3378.225
A10: 2017-05-23 | B10: 56.51 | C10: 57.09 | D10: 56.46 | E10: 2437.351
A11: 2017-05-22 | B11: 55.48 | C11: 56.53 | D11: 56.42 | E11: 2605.749
A12: 2017-05-19 | B12: 55.28 | C12: 55.88 | D12: 55.6 | E12: 1981.168
A13: 2017-05-18 | B13: 54.64 | C13: 55.35 | D13: 55.3 | E13: 3231.028
A14: 2017-05-17 | B14: 54.78 | C14: 54.98 | D14: 54.43 | E14: 2385.244
A15: 2017-05-16 | B15: 55.1 | C15: 55.32 | D15: 54.66 | E15: 1651.469
A16: 2017-05-15 | B16: 54.86 | C16: 55.2 | D16: 55.17 | E16: 1081.087
A17: 2017-05-12 | B17: 54.47 | C17: 55.09 | D17: 54.93 | E17: 1316.329
A18: 2017-05-11 | B18: 54.31 | C18: 54.45 | D18: 54.45 | E18: 1220.432
A19: 2017-05-10 | B19: 54.24 | C19: 54.55 | D19: 54.45 | E19: 1025.443
A20: 2017-05-09 | B20: 54.63 | C20: 54.685 | D20: 54.21 | E20: 937.129
A21: 2017-05-08 | B21: 54.8 | C21: 54.95 | D21: 54.63 | E21: 875.825
A22: 2017-05-05 | B22: 54.95 | C22: 55.12 | D22: 54.78 | E22: 1210.622
A23: 2017-05-04 | B23: 54.37 | C23: 54.85 | D23: 54.81 | E23: 1469.532
A24: 2017-05-03 | B24: 54.23 | C24: 54.69 | D24: 54.24 | E24: 1592.464
A25: 2017-05-02 | B25: 54.45 | C25: 54.63 | D25: 54.25 | E25: 1837.105
A26: 2017-05-01 | B26: 54.79 | C26: 54.81 | D26: 54.27 | E26: 1088.426
A27: 2017-04-28 | B27: 54.99 | C27: 55.11 | D27: 54.69 | E27: 1102.777
A28: 2017-04-27 | B28: 55.09 | C28: 55.39 | D28: 55.03 | E28: 1245.507
A29: 2017-04-26 | B29: 54.94 | C29: 55.515 | D29: 55.16 | E29: 1794.359
A30: 2017-04-25 | B30: 55.2 | C30: 55.38 | D30: 55.08 | E30: 1806.677
A31: 2017-04-24 | B31: 55.26 | C31: 55.675 | D31: 55.43 | E31: 1463.883
A32: 2017-04-21 | B32: 54.52 | C32: 55.225 | D32: 55.09 | E32: 1262.632
A33: 2017-04-20 | B33: 54.31 | C33: 54.87 | D33: 54.54 | E33: 2445.596
A34: 2017-04-19 | B34: 55.25 | C34: 55.41 | D34: 54.89 | E34: 1046.219
A35: 2017-04-18 | B35: 55.47 | C35: 55.66 | D35: 55.34 | E35: 1140.131
A36: 2017-04-17 | B36: 55.17 | C36: 55.49 | D36: 55.43 | E36: 2073.799
A37: 2017-04-13 | B37: 55.36 | C37: 55.36 | D37: 54.99 | E37: 1885.764
A38: 2017-04-12 | B38: 54.7 | C38: 55.415 | D38: 55.39 | E38: 2243.075
A39: 2017-04-11 | B39: 54.5 | C39: 54.86 | D39: 54.79 | E39: 1522.709
A40: 2017-04-10 | B40: 54.55 | C40: 54.76 | D40: 54.71 | E40: 1156.69
A41: 2017-04-07 | B41: 54.83 | C41: 54.96 | D41: 54.52 | E41: 1870.072
A42: 2017-04-06 | B42: 55.04 | C42: 55.16 | D42: 54.71 | E42: 2280.289
A43: 2017-04-05 | B43: 54.61 | C43: 55.09 | D43: 55.05 | E43: 2026.738
A44: 2017-04-04 | B44: 54.63 | C44: 55.04 | D44: 54.72 | E44: 977.76
A45: 2017-04-03 | B45: 54.52 | C45: 54.59 | D45: 54.57 | E45: 1428.686
A46: 2017-03-31 | B46: 54.56 | C46: 54.905 | D46: 54.59 | E46: 2105.234
A47: 2017-03-30 | B47: 54.96 | C47: 54.99 | D47: 54.69 | E47: 1310.211
A48: 2017-03-29 | B48: 55.2 | C48: 55.35 | D48: 55.13 | E48: 1996.814
A49: 2017-03-28 | B49: 55.94 | C49: 56.44 | D49: 55.31 | E49: 5066.72
A50: 2017-03-27 | B50: 56.42 | C50: 56.57 | D50: 56.05 | E50: 1083.326
A51: 2017-03-24 | B51: 56.03 | C51: 56.425 | D51: 56.19 | E51: 1141.501
A52: 2017-03-23 | B52: 55.86 | C52: 56.5 | D52: 56.05 | E52: 1924.433
A53: 2017-03-22 | B53: 55.74 | C53: 56.2 | D53: 56.04 | E53: 1776.598
A54: 2017-03-21 | B54: 54.61 | C54: 55.61 | D54: 55.49 | E54: 1377.137
A55: 2017-03-20 | B55: 55.06 | C55: 55.23 | D55: 54.69 | E55: 1380.037
A56: 2017-03-17 | B56: 54.43 | C56: 55.28 | D56: 55.05 | E56: 2346.124
A57: 2017-03-16 | B57: 54.47 | C57: 54.62 | D57: 54.35 | E57: 1388.296
A58: 2017-03-15 | B58: 54.23 | C58: 55.02 | D58: 54.79 | E58: 1407.762
A59: 2017-03-14 | B59: 54.17 | C59: 54.3 | D59: 54.02 | E59: 1685.401
A60: 2017-03-13 | B60: 53.84 | C60: 54.25 | D60: 54.19 | E60: 1718.233
A61: 2017-03-10 | B61: 53.98 | C61: 54.22 | D61: 53.89 | E61: 1891.121
A62: 2017-03-09 | B62: 54.26 | C62: 54.53 | D62: 54.12 | E62: 1287.968
A63: 2017-03-08 | B63: 54.28 | C63: 54.49 | D63: 54.12 | E63: 1062.166
A64: 2017-03-07 | B64: 54.86 | C64: 54.97 | D64: 54.82 | E64: 1005.186
A65: 2017-03-06 | B65: 54.85 | C65: 55.16 | D65: 54.89 | E65: 1138.77
A66: 2017-03-03 | B66: 55.13 | C66: 55.22 | D66: 54.89 | E66: 923.271
A67: 2017-03-02 | B67: 54.53 | C67: 55.51 | D67: 55.12 | E67: 906.359
A68: 2017-03-01 | B68: 54.03 | C68: 55.065 | D68: 54.76 | E68: 1674.859
A69: 2017-02-28 | B69: 54.16 | C69: 54.83 | D69: 54.69 | E69: 2668.562
A70: 2017-02-27 | B70: 54.55 | C70: 54.59 | D70: 54.29 | E70: 1616.072
A71: 2017-02-24 | B71: 54.14 | C71: 54.6 | D71: 54.58 | E71: 2108.751
A72: 2017-02-23 | B72: 54.23 | C72: 54.27 | D72: 54.07 | E72: 1456.081
A73: 2017-02-22 | B73: 53.83 | C73: 54.095 | D73: 53.97 | E73: 1145.8
A74: 2017-02-21 | B74: 53.22 | C74: 53.97 | D74: 53.89 | E74: 1461.777
A75: 2017-02-17 | B75: 53.1 | C75: 53.48 | D75: 53.37 | E75: 1846.764
A76: 2017-02-16 | B76: 52.01 | C76: 53.08 | D76: 52.94 | E76: 2248.203
A77: 2017-02-15 | B77: 52.14 | C77: 52.59 | D77: 52.54 | E77: 2209.474
A78: 2017-02-14 | B78: 52.91 | C78: 52.91 | D78: 52.65 | E78: 1416.785
A79: 2017-02-13 | B79: 52.93 | C79: 53.205 | D79: 53.05 | E79: 1404.399
A80: 2017-02-10 | B80: 52.72 | C80: 53.05 | D80: 52.93 | E80: 1060.496
A81: 2017-02-09 | B81: 53.06 | C81: 53.32 | D81: 52.9 | E81: 1261.543
A82: 2017-02-08 | B82: 52.81 | C82: 53.24 | D82: 53.12 | E82: 943.315
A83: 2017-02-07 | B83: 52.74 | C83: 52.88 | D83: 52.68 | E83: 544.302
A84: 2017-02-06 | B84: 52.87 | C84: 52.98 | D84: 52.65 | E84: 874.719
A85: 2017-02-03 | B85: 52.78 | C85: 52.97 | D85: 52.69 | E85: 623.311
A86: 2017-02-02 | B86: 51.86 | C86: 52.62 | D86: 52.59 | E86: 1032.904
A87: 2017-02-01 | B87: 52.24 | C87: 52.6395 | D87: 51.75 | E87: 1076.857
A88: 2017-01-31 | B88: 51.72 | C88: 52.66 | D88: 52.65 | E88: 1460.136
A89: 2017-01-30 | B89: 52.01 | C89: 52.01 | D89: 51.69 | E89: 592.904
A90: 2017-01-27 | B90: 52.24 | C90: 52.3 | D90: 51.82 | E90: 649.614
A91: 2017-01-26 | B91: 51.92 | C91: 52.28 | D91: 52.08 | E91: 1062.041
A92: 2017-01-25 | B92: 51.84 | C92: 52.07 | D92: 51.9 | E92: 974.398
A93: 2017-01-24 | B93: 51.91 | C93: 52.24 | D93: 52.06 | E93: 1129.856
A94: 2017-01-23 | B94: 52.16 | C94: 52.4 | D94: 51.98 | E94: 665.361
A95: 2017-01-20 | B95: 51.91 | C95: 52.4 | D95: 52.05 | E95: 806.087
A96: 2017-01-19 | B96: 52.17 | C96: 52.32 | D96: 51.81 | E96: 915.698
A97: 2017-01-18 | B97: 52.39 | C97: 52.66 | D97: 52.36 | E97: 880.617
A98: 2017-01-17 | B98: 52.06 | C98: 52.6 | D98: 52.55 | E98: 1052.397
A99: 2017-01-13 | B99: 51.9 | C99: 52.09 | D99: 51.97 | E99: 905.552
A100: 2017-01-12 | B100: 52.19 | C100: 52.39 | D100: 51.96 | E100: 1470.192
A101: 2017-01-11 | B101: 51.9 | C101: 52.44 | D101: 52.2 | E101: 1674.843
A102: 2017-01-10 | B102: 52.05 | C102: 52.45 | D102: 51.97 | E102: 1287.084
A103: 2017-01-09 | B103: 53.13 | C103: 53.216 | D103: 51.99 | E103: 1588.253
A104: 2017-01-06 | B104: 52.47 | C104: 53.395 | D104: 53.1 | E104: 1883.81
A105: 2017-01-05 | B105: 52.45 | C105: 52.76 | D105: 52.7 | E105: 2256.159
A106: 2017-01-04 | B106: 52.45 | C106: 52.92 | D106: 52.44 | E106: 1114.317
A107: 2017-01-03 | B107: 52.59 | C107: 52.59 | D107: 52.38 | E107: 1107.195
A108: 2016-12-30 | B108: 52.49 | C108: 52.88 | D108: 52.46 | E108: 951.094
A109: 2016-12-29 | B109: 52.27 | C109: 52.7 | D109: 52.56 | E109: 922.797
A110: 2016-12-28 | B110: 52.58 | C110: 52.58 | D110: 51.82 | E110: 615.131
A111: 2016-12-27 | B111: 52.43 | C111: 52.76 | D111: 52.56 | E111: 632.921
A112: 2016-12-23 | B112: 52.5 | C112: 52.64 | D112: 52.45 | E112: 597.626
A113: 2016-12-22 | B113: 51.97 | C113: 52.445 | D113: 52.41 | E113: 965.041
A114: 2016-12-21 | B114: 52.17 | C114: 52.53 | D114: 51.95 | E114: 832.77
A115: 2016-12-20 | B115: 51.92 | C115: 52.35 | D115: 52.19 | E115: 918.295
A116: 2016-12-19 | B116: 51.94 | C116: 52.17 | D116: 51.89 | E116: 958.625
A117: 2016-12-16 | B117: 51.13 | C117: 51.85 | D117: 51.6 | E117: 1852.368
A118: 2016-12-15 | B118: 50.58 | C118: 51.23 | D118: 51.1 | E118: 1059.519
A119: 2016-12-14 | B119: 52.03 | C119: 52.36 | D119: 50.7 | E119: 1348.964
A120: 2016-12-13 | B120: 51.37 | C120: 51.935 | D120: 51.92 | E120: 1550.629
A121: 2016-12-12 | B121: 50.57 | C121: 51.4 | D121: 51.34 | E121: 1823.796
A122: 2016-12-09 | B122: 49.82 | C122: 50.73 | D122: 50.73 | E122: 2790.919
A123: 2016-12-08 | B123: 49.39 | C123: 49.97 | D123: 49.82 | E123: 1261.779
A124: 2016-12-07 | B124: 49.58 | C124: 50.19 | D124: 49.88 | E124: 2040.892
A125: 2016-12-06 | B125: 49.32 | C125: 49.57 | D125: 49.34 | E125: 1624.988
A126: 2016-12-05 | B126: 49.09 | C126: 49.18 | D126: 49.16 | E126: 1324.93
A127: 2016-12-02 | B127: 49.22 | C127: 49.99 | D127: 49.66 | E127: 1749.898
A128: 2016-12-01 | B128: 48.85 | C128: 49 | D128: 48.91 | E128: 1464.62
A129: 2016-11-30 | B129: 49.47 | C129: 50.335 | D129: 49.12 | E129: 1962.897
A130: 2016-11-29 | B130: 50.81 | C130: 51.3682 | D130: 50.93 | E130: 1500.431
A131: 2016-11-28 | B131: 50.15 | C131: 51.21 | D131: 51.08 | E131: 1825.358
A132: 2016-11-25 | B132: 49.22 | C132: 50.09 | D132: 49.99 | E132: 616.565
A133: 2016-11-23 | B133: 48.85 | C133: 49.44 | D133: 49.07 | E133: 1348.265
A134: 2016-11-22 | B134: 48.92 | C134: 49.53 | D134: 49.43 | E134: 1542.439
A135: 2016-11-21 | B135: 48.53 | C135: 49.12 | D135: 48.84 | E135: 866.977
A136: 2016-11-18 | B136: 48.43 | C136: 48.82 | D136: 48.48 | E136: 1224.41
A137: 2016-11-17 | B137: 48.36 | C137: 48.81 | D137: 48.51 | E137: 1439.604
A138: 2016-11-16 | B138: 49.36 | C138: 49.52 | D138: 48.47 | E138: 1642.484
A139: 2016-11-15 | B139: 48.88 | C139: 49.47 | D139: 49.27 | E139: 2124.654
A140: 2016-11-14 | B140: 47.49 | C140: 48.67 | D140: 48.62 | E140: 3519.161
A141: 2016-11-11 | B141: 47.8 | C141: 48.45 | D141: 47.77 | E141: 2161.783
A142: 2016-11-10 | B142: 48.71 | C142: 48.71 | D142: 47.8 | E142: 2323.663
A143: 2016-11-09 | B143: 49.8 | C143: 49.99 | D143: 49.05 | E143: 1905.443
A144: 2016-11-08 | B144: 50.93 | C144: 51.455 | D144: 51.21 | E144: 1400.441
A145: 2016-11-07 | B145: 49.75 | C145: 50.825 | D145: 50.81 | E145: 1779.772
A146: 2016-11-04 | B146: 49.95 | C146: 50.27 | D146: 49.36 | E146: 1732.992
A147: 2016-11-03 | B147: 48.54 | C147: 49.245 | D147: 49.07 | E147: 1528.617
A148: 2016-11-02 | B148: 49.1 | C148: 49.1 | D148: 48.65 | E148: 1293.498
A149: 2016-11-01 | B149: 49.96 | C149: 49.96 | D149: 49.17 | E149: 1382.022
A150: 2016-10-31 | B150: 49.15 | C150: 50.25 | D150: 49.95 | E150: 1469.645
A151: 2016-10-28 | B151: 48.82 | C151: 49.24 | D151: 48.87 | E151: 1939.245
A152: 2016-10-27 | B152: 48.89 | C152: 49.09 | D152: 48.74 | E152: 1114.965
A153: 2016-10-26 | B153: 49 | C153: 49.22 | D153: 49.1 | E153: 696.226
A154: 2016-10-25 | B154: 48.48 | C154: 49.04 | D154: 49.03 | E154: 1285.633
A155: 2016-10-24 | B155: 48.72 | C155: 48.93 | D155: 48.65 | E155: 997.402
A156: 2016-10-21 | B156: 48.36 | C156: 48.63 | D156: 48.47 | E156: 1069.092
A157: 2016-10-20 | B157: 48.7 | C157: 48.99 | D157: 48.62 | E157: 757.993
A158: 2016-10-19 | B158: 48.79 | C158: 48.89 | D158: 48.7 | E158: 1221.868
A159: 2016-10-18 | B159: 48.45 | C159: 48.95 | D159: 48.91 | E159: 1076.056
A160: 2016-10-17 | B160: 48.23 | C160: 48.39 | D160: 48.18 | E160: 1030.255
A161: 2016-10-14 | B161: 47.82 | C161: 48.3 | D161: 48.03 | E161: 1658.21
A162: 2016-10-13 | B162: 47.64 | C162: 48.42 | D162: 48.04 | E162: 1801.21
A163: 2016-10-12 | B163: 46.96 | C163: 47.7134 | D163: 47.59 | E163: 2038.535
A164: 2016-10-11 | B164: 47.5 | C164: 47.69 | D164: 46.88 | E164: 1444.22
A165: 2016-10-10 | B165: 47.5 | C165: 47.79 | D165: 47.7 | E165: 1352.288
A166: 2016-10-07 | B166: 47.98 | C166: 48.33 | D166: 47.43 | E166: 1472.373
A167: 2016-10-06 | B167: 47.47 | C167: 47.83 | D167: 47.59 | E167: 1230.317
A168: 2016-10-05 | B168: 47.51 | C168: 47.95 | D168: 47.71 | E168: 4074.587
A169: 2016-10-04 | B169: 48.51 | C169: 48.52 | D169: 47.38 | E169: 3360.87
A170: 2016-10-03 | B170: 48.97 | C170: 49.08 | D170: 48.63 | E170: 1567.546
A171: 2016-09-30 | B171: 49.73 | C171: 49.95 | D171: 49.18 | E171: 2012.83
A172: 2016-09-29 | B172: 50.11 | C172: 50.21 | D172: 49.6 | E172: 1491.83
A173: 2016-09-28 | B173: 50.73 | C173: 50.81 | D173: 50.36 | E173: 2037.789
A174: 2016-09-27 | B174: 51.76 | C174: 51.91 | D174: 50.56 | E174: 1541.745
A175: 2016-09-26 | B175: 51.69 | C175: 51.76 | D175: 51.48 | E175: 1164.217
A176: 2016-09-23 | B176: 51.22 | C176: 51.86 | D176: 51.7 | E176: 1576.289
A177: 2016-09-22 | B177: 51.34 | C177: 51.47 | D177: 51.41 | E177: 1273.725
A178: 2016-09-21 | B178: 50.05 | C178: 51.195 | D178: 51.14 | E178: 1602.578
A179: 2016-09-20 | B179: 50.22 | C179: 50.68 | D179: 50.1 | E179: 1394.339
A180: 2016-09-19 | B180: 49.49 | C180: 50.05 | D180: 50.04 | E180: 1842.224
A181: 2016-09-16 | B181: 48.54 | C181: 49.45 | D181: 49.38 | E181: 2038.359
A182: 2016-09-15 | B182: 48.39 | C182: 48.8 | D182: 48.65 | E182: 1528.511
A183: 2016-09-14 | B183: 48.23 | C183: 48.73 | D183: 48.49 | E183: 1295.736
A184: 2016-09-13 | B184: 48.73 | C184: 48.76 | D184: 48.1 | E184: 1773.932
A185: 2016-09-12 | B185: 48.08 | C185: 48.93 | D185: 48.86 | E185: 1814.883
A186: 2016-09-09 | B186: 49.44 | C186: 49.51 | D186: 48.06 | E186: 1926.285
A187: 2016-09-08 | B187: 49.9 | C187: 50.24 | D187: 49.85 | E187: 1469.598
A188: 2016-09-07 | B188: 49.79 | C188: 50.06 | D188: 50.02 | E188: 1074.063
A189: 2016-09-06 | B189: 49.52 | C189: 49.97 | D189: 49.84 | E189: 1282.443
A190: 2016-09-02 | B190: 49.15 | C190: 49.67 | D190: 49.66 | E190: 1898.615
A191: 2016-09-01 | B191: 49.4 | C191: 49.5 | D191: 49.15 | E191: 1293.649
A192: 2016-08-31 | B192: 49.33 | C192: 49.52 | D192: 49.42 | E192: 1449.413
A193: 2016-08-30 | B193: 49.75 | C193: 50.04 | D193: 49.3 | E193: 974.758
A194: 2016-08-29 | B194: 49.51 | C194: 49.92 | D194: 49.77 | E194: 1472.997
A195: 2016-08-26 | B195: 50.49 | C195: 50.745 | D195: 49.4 | E195: 1397.774
A196: 2016-08-25 | B196: 50.38 | C196: 50.58 | D196: 50.44 | E196: 931.607
A197: 2016-08-24 | B197: 50.29 | C197: 50.49 | D197: 50.32 | E197: 1551.142
A198: 2016-08-23 | B198: 50.74 | C198: 51.08 | D198: 50.42 | E198: 820.923
A199: 2016-08-22 | B199: 50.7 | C199: 50.9 | D199: 50.65 | E199: 1284.011
A200: 2016-08-19 | B200: 51.24 | C200: 51.26 | D200: 50.57 | E200: 1371.525
... 309 more rows

Sheet AEP
A1: ='Div Yields'!C6 -> AEP | G1: Dividend | H1: 30 Day Avg | I1: 90 Day Avg | J1: 180 Day Avg | K1: 360 Day Avg | L1: 720 Day Avg
H2: =AVERAGE($D$4:$D$33) -> 68.67666667 | I2: =AVERAGE($D$4:$D$93) -> 66.72377778 | J2: =AVERAGE($D$4:$D$183) -> 64.56244444 | K2: =AVERAGE($D$4:$D$363) -> 64.64391667 | L2: =AVERAGE($D$4:$D$507) -> 62.0821627
A3: Date | B3: Open | C3: High | D3: Close | E3: Volume (k) | G3: =INDEX(Master,MATCH($A$1,Tickers,0),MATCH(G1,Header,0)) -> 2.36 | H3: =$G3/H2 -> 0.03436392758 | I3: =$G3/I2 -> 0.03536969996 | J3: =$G3/J2 -> 0.03655375846 | K3: 0.03650768892 | L3: 0.03801413961
A4: 2017-06-01 | B4: 71.65 | C4: 72.22 | D4: 72.21 | E4: 2715.088
A5: 2017-05-31 | B5: 71.26 | C5: 71.91 | D5: 71.78 | E5: 2857.064
A6: 2017-05-30 | B6: 70.77 | C6: 71.26 | D6: 71.21 | E6: 2027.892
A7: 2017-05-26 | B7: 70.8 | C7: 71.01 | D7: 70.87 | E7: 3464.774
A8: 2017-05-25 | B8: 70.17 | C8: 70.93 | D8: 70.8 | E8: 2214.239
A9: 2017-05-24 | B9: 69.74 | C9: 70.235 | D9: 70.2 | E9: 2009.067
A10: 2017-05-23 | B10: 69.43 | C10: 70.07 | D10: 69.59 | E10: 2251.938
A11: 2017-05-22 | B11: 68.68 | C11: 69.58 | D11: 69.42 | E11: 2881.486
A12: 2017-05-19 | B12: 68.3 | C12: 68.74 | D12: 68.72 | E12: 2377.568
A13: 2017-05-18 | B13: 68.35 | C13: 68.89 | D13: 68.31 | E13: 2139.887
A14: 2017-05-17 | B14: 68.01 | C14: 68.5 | D14: 68.15 | E14: 2243.927
A15: 2017-05-16 | B15: 68.43 | C15: 68.6325 | D15: 67.86 | E15: 1556.72
A16: 2017-05-15 | B16: 68.08 | C16: 68.72 | D16: 68.56 | E16: 2427.672
A17: 2017-05-12 | B17: 67.59 | C17: 68.3 | D17: 68.06 | E17: 2241.667
A18: 2017-05-11 | B18: 67.23 | C18: 67.56 | D18: 67.55 | E18: 1491.189
A19: 2017-05-10 | B19: 67.35 | C19: 67.62 | D19: 67.41 | E19: 2236.261
A20: 2017-05-09 | B20: 67.63 | C20: 67.77 | D20: 67.31 | E20: 2340.668
A21: 2017-05-08 | B21: 67.99 | C21: 68.18 | D21: 67.73 | E21: 2650.883
A22: 2017-05-05 | B22: 68.22 | C22: 68.66 | D22: 68.41 | E22: 2674.812
A23: 2017-05-04 | B23: 67.71 | C23: 68.12 | D23: 68.02 | E23: 2284.967
A24: 2017-05-03 | B24: 68 | C24: 68.25 | D24: 67.9 | E24: 1879.033
A25: 2017-05-02 | B25: 67.67 | C25: 68.16 | D25: 68.01 | E25: 3172.017
A26: 2017-05-01 | B26: 68.03 | C26: 68.03 | D26: 67.47 | E26: 1694.436
A27: 2017-04-28 | B27: 68.1 | C27: 68.24 | D27: 67.83 | E27: 2671.29
A28: 2017-04-27 | B28: 67.44 | C28: 68.46 | D28: 68.1 | E28: 2225.418
A29: 2017-04-26 | B29: 67.79 | C29: 68.12 | D29: 67.69 | E29: 2821.581
A30: 2017-04-25 | B30: 67.74 | C30: 68.03 | D30: 67.86 | E30: 1824.482
A31: 2017-04-24 | B31: 67.82 | C31: 68.09 | D31: 67.97 | E31: 2714.533
A32: 2017-04-21 | B32: 67.28 | C32: 68.03 | D32: 67.86 | E32: 2721.113
A33: 2017-04-20 | B33: 67.54 | C33: 67.65 | D33: 67.44 | E33: 2518.59
A34: 2017-04-19 | B34: 67.99 | C34: 68.13 | D34: 67.74 | E34: 2802.215
A35: 2017-04-18 | B35: 67.77 | C35: 68.12 | D35: 67.98 | E35: 2427.455
A36: 2017-04-17 | B36: 67.67 | C36: 67.875 | D36: 67.74 | E36: 1452.586
A37: 2017-04-13 | B37: 67.8 | C37: 67.9 | D37: 67.54 | E37: 1899.033
A38: 2017-04-12 | B38: 67.15 | C38: 67.85 | D38: 67.79 | E38: 2286.721
A39: 2017-04-11 | B39: 67.39 | C39: 67.54 | D39: 67.39 | E39: 2046.6
A40: 2017-04-10 | B40: 67.47 | C40: 67.63 | D40: 67.5 | E40: 1556.692
A41: 2017-04-07 | B41: 67.8 | C41: 67.99 | D41: 67.32 | E41: 2934.58
A42: 2017-04-06 | B42: 67.62 | C42: 67.77 | D42: 67.62 | E42: 2073.761
A43: 2017-04-05 | B43: 67.28 | C43: 67.9 | D43: 67.83 | E43: 2162.664
A44: 2017-04-04 | B44: 67.16 | C44: 67.52 | D44: 67.29 | E44: 1767.622
A45: 2017-04-03 | B45: 67.02 | C45: 67.18 | D45: 67.15 | E45: 1940.711
A46: 2017-03-31 | B46: 67.08 | C46: 67.51 | D46: 67.13 | E46: 2260.376
A47: 2017-03-30 | B47: 67.16 | C47: 67.39 | D47: 67.16 | E47: 2081.137
A48: 2017-03-29 | B48: 67.59 | C48: 67.72 | D48: 67.39 | E48: 2272.428
A49: 2017-03-28 | B49: 67.48 | C49: 67.9 | D49: 67.84 | E49: 2644.982
A50: 2017-03-27 | B50: 67.94 | C50: 68.25 | D50: 67.69 | E50: 2565.655
A51: 2017-03-24 | B51: 67.39 | C51: 68.02 | D51: 67.79 | E51: 1969.462
A52: 2017-03-23 | B52: 67.35 | C52: 68.03 | D52: 67.45 | E52: 2554.667
A53: 2017-03-22 | B53: 67.34 | C53: 67.8 | D53: 67.44 | E53: 2609.343
A54: 2017-03-21 | B54: 66.1 | C54: 67.22 | D54: 66.98 | E54: 3159.335
A55: 2017-03-20 | B55: 66.62 | C55: 66.86 | D55: 66.13 | E55: 1861.478
A56: 2017-03-17 | B56: 66.16 | C56: 66.86 | D56: 66.47 | E56: 3823.567
A57: 2017-03-16 | B57: 66.47 | C57: 66.5 | D57: 66.01 | E57: 1615.28
A58: 2017-03-15 | B58: 65.86 | C58: 67 | D58: 66.68 | E58: 1776.023
A59: 2017-03-14 | B59: 65.77 | C59: 65.93 | D59: 65.79 | E59: 1641.89
A60: 2017-03-13 | B60: 65.41 | C60: 65.8499 | D60: 65.81 | E60: 1922.007
A61: 2017-03-10 | B61: 65.3 | C61: 65.59 | D61: 65.4 | E61: 2358.634
A62: 2017-03-09 | B62: 65.21 | C62: 65.65 | D62: 64.84 | E62: 2532.275
A63: 2017-03-08 | B63: 65.77 | C63: 65.9 | D63: 65.15 | E63: 3126.137
A64: 2017-03-07 | B64: 66.25 | C64: 66.52 | D64: 66.24 | E64: 2769.998
A65: 2017-03-06 | B65: 66.37 | C65: 66.5973 | D65: 66.35 | E65: 1832.269
A66: 2017-03-03 | B66: 66.57 | C66: 66.62 | D66: 66.52 | E66: 2127.375
A67: 2017-03-02 | B67: 65.9 | C67: 66.96 | D67: 66.5 | E67: 2442.862
A68: 2017-03-01 | B68: 66.2 | C68: 66.74 | D68: 66.12 | E68: 3147.106
A69: 2017-02-28 | B69: 66.7 | C69: 67.15 | D69: 66.97 | E69: 3912.044
A70: 2017-02-27 | B70: 67.06 | C70: 67.12 | D70: 66.7 | E70: 3101.297
A71: 2017-02-24 | B71: 66.19 | C71: 67.22 | D71: 67.15 | E71: 4094.073
A72: 2017-02-23 | B72: 65.55 | C72: 66.09 | D72: 66.01 | E72: 2286.647
A73: 2017-02-22 | B73: 64.67 | C73: 65.405 | D73: 65.31 | E73: 2455.852
A74: 2017-02-21 | B74: 63.98 | C74: 64.87 | D74: 64.76 | E74: 2067.267
A75: 2017-02-17 | B75: 63.8 | C75: 64.13 | D75: 64.11 | E75: 1956.203
A76: 2017-02-16 | B76: 63.39 | C76: 63.721 | D76: 63.7 | E76: 1890.265
A77: 2017-02-15 | B77: 62.93 | C77: 63.33 | D77: 63.29 | E77: 2068.263
A78: 2017-02-14 | B78: 63.64 | C78: 63.74 | D78: 63.27 | E78: 2218.831
A79: 2017-02-13 | B79: 63.97 | C79: 64.1 | D79: 63.79 | E79: 2188.901
A80: 2017-02-10 | B80: 63.35 | C80: 64.075 | D80: 63.95 | E80: 2429.795
A81: 2017-02-09 | B81: 63.68 | C81: 64.02 | D81: 63.42 | E81: 2517.027
A82: 2017-02-08 | B82: 63.32 | C82: 64.02 | D82: 63.8 | E82: 1817.031
A83: 2017-02-07 | B83: 63.82 | C83: 64.01 | D83: 63.93 | E83: 1552.844
A84: 2017-02-06 | B84: 64.25 | C84: 64.41 | D84: 63.82 | E84: 1741.371
A85: 2017-02-03 | B85: 63.78 | C85: 64.34 | D85: 64.03 | E85: 2288.855
A86: 2017-02-02 | B86: 63.11 | C86: 63.81 | D86: 63.78 | E86: 1802.748
A87: 2017-02-01 | B87: 63.58 | C87: 63.81 | D87: 63.09 | E87: 2779.623
A88: 2017-01-31 | B88: 63.15 | C88: 64.105 | D88: 64.06 | E88: 2712.252
A89: 2017-01-30 | B89: 63.11 | C89: 63.4 | D89: 63.21 | E89: 2265.025
A90: 2017-01-27 | B90: 62.78 | C90: 63.04 | D90: 62.97 | E90: 2537.446
A91: 2017-01-26 | B91: 62.5 | C91: 62.82 | D91: 62.64 | E91: 2525.638
A92: 2017-01-25 | B92: 62.68 | C92: 62.83 | D92: 62.53 | E92: 2316.942
A93: 2017-01-24 | B93: 62.64 | C93: 62.9 | D93: 62.78 | E93: 2061.077
A94: 2017-01-23 | B94: 62.91 | C94: 63.14 | D94: 62.71 | E94: 1317.786
A95: 2017-01-20 | B95: 62.9 | C95: 63.15 | D95: 62.91 | E95: 2014.966
A96: 2017-01-19 | B96: 63.19 | C96: 63.41 | D96: 62.7 | E96: 2628.32
A97: 2017-01-18 | B97: 63.53 | C97: 63.9183 | D97: 63.46 | E97: 1883.858
A98: 2017-01-17 | B98: 63.45 | C98: 64.03 | D98: 63.81 | E98: 1705.804
A99: 2017-01-13 | B99: 63.09 | C99: 63.3 | D99: 63.23 | E99: 2506.564
A100: 2017-01-12 | B100: 62.96 | C100: 63.4 | D100: 63.29 | E100: 2140.333
A101: 2017-01-11 | B101: 62.21 | C101: 63.19 | D101: 63.18 | E101: 2918.425
A102: 2017-01-10 | B102: 62.58 | C102: 62.7 | D102: 62.12 | E102: 2046.802
A103: 2017-01-09 | B103: 62.96 | C103: 63.33 | D103: 62.31 | E103: 2382.105
A104: 2017-01-06 | B104: 62.9 | C104: 63.31 | D104: 63.14 | E104: 1769.918
A105: 2017-01-05 | B105: 63.03 | C105: 63.43 | D105: 63.19 | E105: 3885.023
A106: 2017-01-04 | B106: 62.91 | C106: 63.41 | D106: 62.85 | E106: 2127.189
A107: 2017-01-03 | B107: 63.01 | C107: 63.03 | D107: 62.76 | E107: 1944.263
A108: 2016-12-30 | B108: 63.32 | C108: 63.42 | D108: 62.96 | E108: 1677.203
A109: 2016-12-29 | B109: 62.66 | C109: 63.38 | D109: 63.28 | E109: 1508.331
A110: 2016-12-28 | B110: 63.09 | C110: 63.12 | D110: 62.39 | E110: 1501.844
A111: 2016-12-27 | B111: 62.97 | C111: 63.27 | D111: 63.13 | E111: 1246.507
A112: 2016-12-23 | B112: 63.53 | C112: 63.53 | D112: 63.17 | E112: 1121.643
A113: 2016-12-22 | B113: 62.8 | C113: 63.38 | D113: 63.24 | E113: 2143.081
A114: 2016-12-21 | B114: 63.1 | C114: 63.4 | D114: 62.8 | E114: 1506.006
A115: 2016-12-20 | B115: 62.96 | C115: 63.355 | D115: 63.21 | E115: 2548.967
A116: 2016-12-19 | B116: 63.11 | C116: 63.2 | D116: 62.94 | E116: 2011.466
A117: 2016-12-16 | B117: 62.26 | C117: 62.84 | D117: 62.81 | E117: 3966.166
A118: 2016-12-15 | B118: 61.32 | C118: 62.14 | D118: 62.11 | E118: 2290.723
A119: 2016-12-14 | B119: 63.02 | C119: 63.41 | D119: 61.7 | E119: 3726.056
A120: 2016-12-13 | B120: 62.01 | C120: 62.78 | D120: 62.71 | E120: 2909.017
A121: 2016-12-12 | B121: 60.98 | C121: 62.09 | D121: 61.95 | E121: 2603.391
A122: 2016-12-09 | B122: 60.3 | C122: 60.99 | D122: 60.99 | E122: 2329.412
A123: 2016-12-08 | B123: 59.81 | C123: 60.36 | D123: 60.18 | E123: 2877.593
A124: 2016-12-07 | B124: 59.73 | C124: 60.34 | D124: 60.25 | E124: 2444.672
A125: 2016-12-06 | B125: 59.39 | C125: 59.64 | D125: 59.47 | E125: 3343.439
A126: 2016-12-05 | B126: 58.43 | C126: 59.22 | D126: 59.2 | E126: 3400.602
A127: 2016-12-02 | B127: 58.63 | C127: 59.17 | D127: 58.7 | E127: 2130.017
A128: 2016-12-01 | B128: 58.82 | C128: 58.8899 | D128: 58.16 | E128: 3539.252
A129: 2016-11-30 | B129: 60.5 | C129: 60.5 | D129: 59.05 | E129: 3515.291
A130: 2016-11-29 | B130: 60.63 | C130: 61.4532 | D130: 61.27 | E130: 2770.373
A131: 2016-11-28 | B131: 60 | C131: 61.14 | D131: 60.9 | E131: 2705.334
A132: 2016-11-25 | B132: 59.07 | C132: 59.95 | D132: 59.72 | E132: 984.818
A133: 2016-11-23 | B133: 58.64 | C133: 59.25 | D133: 58.82 | E133: 2438.466
A134: 2016-11-22 | B134: 59.32 | C134: 59.39 | D134: 59.17 | E134: 4091.374
A135: 2016-11-21 | B135: 58.62 | C135: 59.3784 | D135: 59.32 | E135: 2462.338
A136: 2016-11-18 | B136: 58.84 | C136: 59.23 | D136: 58.44 | E136: 2775.742
A137: 2016-11-17 | B137: 58.8 | C137: 59.32 | D137: 58.86 | E137: 2307.234
A138: 2016-11-16 | B138: 59.46 | C138: 59.68 | D138: 58.99 | E138: 2755.393
A139: 2016-11-15 | B139: 58.97 | C139: 59.74 | D139: 59.46 | E139: 3537.934
A140: 2016-11-14 | B140: 59.59 | C140: 59.68 | D140: 58.72 | E140: 7074.577
A141: 2016-11-11 | B141: 59.76 | C141: 60.875 | D141: 59.99 | E141: 3539.837
A142: 2016-11-10 | B142: 61 | C142: 61 | D142: 59.74 | E142: 5057.574
A143: 2016-11-09 | B143: 62.01 | C143: 62.01 | D143: 61.25 | E143: 3160.934
A144: 2016-11-08 | B144: 62.89 | C144: 63.68 | D144: 63.23 | E144: 2970.789
A145: 2016-11-07 | B145: 62.63 | C145: 63.275 | D145: 63.24 | E145: 3102.53
A146: 2016-11-04 | B146: 63.25 | C146: 63.74 | D146: 62.4 | E146: 2966.923
A147: 2016-11-03 | B147: 62.47 | C147: 63.37 | D147: 62.92 | E147: 2401.806
A148: 2016-11-02 | B148: 62.74 | C148: 62.89 | D148: 62.61 | E148: 3156.164
A149: 2016-11-01 | B149: 64.55 | C149: 64.9 | D149: 63.38 | E149: 4536.329
A150: 2016-10-31 | B150: 63.59 | C150: 65.25 | D150: 64.84 | E150: 4076.402
A151: 2016-10-28 | B151: 63.23 | C151: 63.85 | D151: 63.41 | E151: 2351.889
A152: 2016-10-27 | B152: 63.31 | C152: 63.47 | D152: 63.19 | E152: 2305.032
A153: 2016-10-26 | B153: 63.35 | C153: 63.87 | D153: 63.53 | E153: 2250.805
A154: 2016-10-25 | B154: 62.82 | C154: 63.71 | D154: 63.46 | E154: 2535.075
A155: 2016-10-24 | B155: 62.76 | C155: 63.13 | D155: 63.03 | E155: 1677.416
A156: 2016-10-21 | B156: 62.59 | C156: 62.8 | D156: 62.48 | E156: 1782.741
A157: 2016-10-20 | B157: 63.22 | C157: 63.4101 | D157: 62.91 | E157: 1682.7
A158: 2016-10-19 | B158: 63.38 | C158: 63.44 | D158: 63.19 | E158: 2351.365
A159: 2016-10-18 | B159: 63.27 | C159: 63.48 | D159: 63.37 | E159: 2833.853
A160: 2016-10-17 | B160: 62.5 | C160: 63.14 | D160: 62.97 | E160: 2767.877
A161: 2016-10-14 | B161: 62.25 | C161: 62.835 | D161: 62.3 | E161: 2490.069
A162: 2016-10-13 | B162: 61.86 | C162: 63.0135 | D162: 62.53 | E162: 3456.987
A163: 2016-10-12 | B163: 61.43 | C163: 62.19 | D163: 62 | E163: 2648.442
A164: 2016-10-11 | B164: 61.98 | C164: 62.28 | D164: 61.34 | E164: 2157.746
A165: 2016-10-10 | B165: 61.97 | C165: 62.31 | D165: 62.21 | E165: 1633.689
A166: 2016-10-07 | B166: 62.7 | C166: 63.15 | D166: 61.79 | E166: 3345.269
A167: 2016-10-06 | B167: 62.07 | C167: 62.51 | D167: 62.25 | E167: 3195.839
A168: 2016-10-05 | B168: 62.19 | C168: 63.03 | D168: 62.18 | E168: 3825.863
A169: 2016-10-04 | B169: 63.47 | C169: 63.47 | D169: 62.18 | E169: 3586.483
A170: 2016-10-03 | B170: 64.04 | C170: 64.06 | D170: 63.51 | E170: 2813.361
A171: 2016-09-30 | B171: 64.8 | C171: 65.07 | D171: 64.21 | E171: 4152.613
A172: 2016-09-29 | B172: 65.42 | C172: 65.42 | D172: 64.5 | E172: 3632.12
A173: 2016-09-28 | B173: 65.65 | C173: 65.775 | D173: 65.36 | E173: 2516.232
A174: 2016-09-27 | B174: 66.66 | C174: 66.96 | D174: 65.5 | E174: 2229.779
A175: 2016-09-26 | B175: 66.66 | C175: 66.74 | D175: 66.36 | E175: 1745.753
A176: 2016-09-23 | B176: 66.48 | C176: 66.87 | D176: 66.66 | E176: 2031.124
A177: 2016-09-22 | B177: 66.51 | C177: 66.79 | D177: 66.6 | E177: 2582.455
A178: 2016-09-21 | B178: 64.95 | C178: 66.27 | D178: 66.19 | E178: 3381.417
A179: 2016-09-20 | B179: 65.23 | C179: 65.6899 | D179: 65.01 | E179: 2233.058
A180: 2016-09-19 | B180: 65 | C180: 65.49 | D180: 65.42 | E180: 2185.863
A181: 2016-09-16 | B181: 64.16 | C181: 64.88 | D181: 64.81 | E181: 3751.526
A182: 2016-09-15 | B182: 63.94 | C182: 64.475 | D182: 64.3 | E182: 2461.836
A183: 2016-09-14 | B183: 64.76 | C183: 64.76 | D183: 64.02 | E183: 2820.62
A184: 2016-09-13 | B184: 64.52 | C184: 64.9 | D184: 63.81 | E184: 3845.791
A185: 2016-09-12 | B185: 63.68 | C185: 64.89 | D185: 64.71 | E185: 2815.071
A186: 2016-09-09 | B186: 65.51 | C186: 65.6 | D186: 63.71 | E186: 3341.289
A187: 2016-09-08 | B187: 65.89 | C187: 66.35 | D187: 66.1 | E187: 1834.065
A188: 2016-09-07 | B188: 65.97 | C188: 66.24 | D188: 66.05 | E188: 1992.804
A189: 2016-09-06 | B189: 65.51 | C189: 66.17 | D189: 66.04 | E189: 2430.99
A190: 2016-09-02 | B190: 64.57 | C190: 65.37 | D190: 65.24 | E190: 2209.51
A191: 2016-09-01 | B191: 64.41 | C191: 64.7 | D191: 64.41 | E191: 2030.777
A192: 2016-08-31 | B192: 64.55 | C192: 64.61 | D192: 64.57 | E192: 3163.296
A193: 2016-08-30 | B193: 65.21 | C193: 65.5 | D193: 64.32 | E193: 3295.131
A194: 2016-08-29 | B194: 64.87 | C194: 65.37 | D194: 65.18 | E194: 2269.259
A195: 2016-08-26 | B195: 66.42 | C195: 66.91 | D195: 64.69 | E195: 3314.639
A196: 2016-08-25 | B196: 66.41 | C196: 66.64 | D196: 66.37 | E196: 1594.196
A197: 2016-08-24 | B197: 66.12 | C197: 66.4699 | D197: 66.34 | E197: 1584.1
A198: 2016-08-23 | B198: 66.64 | C198: 66.99 | D198: 66.28 | E198: 1858.475
A199: 2016-08-22 | B199: 66.56 | C199: 66.9 | D199: 66.52 | E199: 1595.111
A200: 2016-08-19 | B200: 67.11 | C200: 67.36 | D200: 66.37 | E200: 2056.772
... 309 more rows

Sheet AVA
A1: ='Div Yields'!C7 -> AVA | G1: Dividend | H1: 30 Day Avg | I1: 90 Day Avg | J1: 180 Day Avg | K1: 360 Day Avg | L1: 720 Day Avg
H2: =AVERAGE($D$4:$D$33) -> 41.35 | I2: =AVERAGE($D$4:$D$93) -> 39.93544444 | J2: =AVERAGE($D$4:$D$183) -> 40.24888889 | K2: =AVERAGE($D$4:$D$363) -> 40.21505556 | L2: =AVERAGE($D$4:$D$507) -> 38.07388889
A3: Date | B3: Open | C3: High | D3: Close | E3: Volume (k) | G3: =INDEX(Master,MATCH($A$1,Tickers,0),MATCH(G1,Header,0)) -> 1.43 | H3: =$G3/H2 -> 0.0345828295 | I3: =$G3/I2 -> 0.03580778979 | J3: 0.0355289311 | K3: 0.03555882194 | L3: 0.03755854844
A4: 2017-06-01 | B4: 42.77 | C4: 43.3 | D4: 43.29 | E4: 203.776
A5: 2017-05-31 | B5: 42.62 | C5: 42.86 | D5: 42.84 | E5: 328.216
A6: 2017-05-30 | B6: 42.51 | C6: 42.69 | D6: 42.59 | E6: 138.667
A7: 2017-05-26 | B7: 42.63 | C7: 42.65 | D7: 42.58 | E7: 181.524
A8: 2017-05-25 | B8: 42.2 | C8: 42.74 | D8: 42.68 | E8: 197.888
A9: 2017-05-24 | B9: 42.14 | C9: 42.4 | D9: 42.13 | E9: 267.85
A10: 2017-05-23 | B10: 41.93 | C10: 42.42 | D10: 42.04 | E10: 224.727
A11: 2017-05-22 | B11: 41.76 | C11: 42.29 | D11: 42.23 | E11: 213.597
A12: 2017-05-19 | B12: 41.6 | C12: 41.81 | D12: 41.74 | E12: 270.964
A13: 2017-05-18 | B13: 41.6 | C13: 41.8 | D13: 41.56 | E13: 239.191
A14: 2017-05-17 | B14: 41.17 | C14: 41.81 | D14: 41.6 | E14: 357.421
A15: 2017-05-16 | B15: 41.47 | C15: 41.59 | D15: 41.22 | E15: 188.913
A16: 2017-05-15 | B16: 41.37 | C16: 41.72 | D16: 41.49 | E16: 185.582
A17: 2017-05-12 | B17: 41.22 | C17: 41.59 | D17: 41.31 | E17: 137.961
A18: 2017-05-11 | B18: 40.97 | C18: 41.22 | D18: 41.16 | E18: 179.708
A19: 2017-05-10 | B19: 41.02 | C19: 41.29 | D19: 41.1 | E19: 254.707
A20: 2017-05-09 | B20: 41.37 | C20: 41.54 | D20: 40.98 | E20: 277.634
A21: 2017-05-08 | B21: 41.14 | C21: 41.38 | D21: 41.36 | E21: 224.185
A22: 2017-05-05 | B22: 40.89 | C22: 41.31 | D22: 41.28 | E22: 284.791
A23: 2017-05-04 | B23: 40.12 | C23: 40.84 | D23: 40.79 | E23: 340.01
A24: 2017-05-03 | B24: 40.35 | C24: 40.74 | D24: 40.31 | E24: 370.046
A25: 2017-05-02 | B25: 40.06 | C25: 40.28 | D25: 39.98 | E25: 233.716
A26: 2017-05-01 | B26: 40.45 | C26: 40.45 | D26: 40 | E26: 389.312
A27: 2017-04-28 | B27: 41.13 | C27: 41.13 | D27: 40.34 | E27: 300.517
A28: 2017-04-27 | B28: 41.09 | C28: 41.48 | D28: 41.05 | E28: 201.622
A29: 2017-04-26 | B29: 40.83 | C29: 41.24 | D29: 41.04 | E29: 296.275
A30: 2017-04-25 | B30: 40.5 | C30: 40.9597 | D30: 40.87 | E30: 280.636
A31: 2017-04-24 | B31: 40.17 | C31: 40.82 | D31: 40.68 | E31: 277.033
A32: 2017-04-21 | B32: 39.92 | C32: 40.43 | D32: 40.33 | E32: 291.812
A33: 2017-04-20 | B33: 40.09 | C33: 40.09 | D33: 39.93 | E33: 353.747
A34: 2017-04-19 | B34: 40.45 | C34: 40.48 | D34: 40.08 | E34: 293.914
A35: 2017-04-18 | B35: 40.52 | C35: 40.69 | D35: 40.46 | E35: 252.256
A36: 2017-04-17 | B36: 40.05 | C36: 40.49 | D36: 40.48 | E36: 276.182
A37: 2017-04-13 | B37: 40 | C37: 40.3 | D37: 40.01 | E37: 253.798
A38: 2017-04-12 | B38: 39.81 | C38: 40.1 | D38: 39.99 | E38: 248.566
A39: 2017-04-11 | B39: 39.47 | C39: 39.89 | D39: 39.88 | E39: 280.155
A40: 2017-04-10 | B40: 39.43 | C40: 39.74 | D40: 39.47 | E40: 276.63
A41: 2017-04-07 | B41: 39.52 | C41: 39.66 | D41: 39.41 | E41: 328.111
A42: 2017-04-06 | B42: 39.12 | C42: 39.487 | D42: 39.41 | E42: 240.662
A43: 2017-04-05 | B43: 38.82 | C43: 39.25 | D43: 39.2 | E43: 348.495
A44: 2017-04-04 | B44: 38.62 | C44: 39.08 | D44: 38.79 | E44: 309.101
A45: 2017-04-03 | B45: 39 | C45: 39 | D45: 38.62 | E45: 575.977
A46: 2017-03-31 | B46: 39.03 | C46: 39.2415 | D46: 39.05 | E46: 500.027
A47: 2017-03-30 | B47: 39.08 | C47: 39.09 | D47: 38.91 | E47: 484.938
A48: 2017-03-29 | B48: 39.25 | C48: 39.32 | D48: 39.11 | E48: 572.81
A49: 2017-03-28 | B49: 39.17 | C49: 39.67 | D49: 39.44 | E49: 697.775
A50: 2017-03-27 | B50: 39.85 | C50: 39.85 | D50: 39.33 | E50: 329.81
A51: 2017-03-24 | B51: 39.6 | C51: 39.94 | D51: 39.65 | E51: 301.9
A52: 2017-03-23 | B52: 39.53 | C52: 39.97 | D52: 39.52 | E52: 296.635
A53: 2017-03-22 | B53: 39.53 | C53: 39.92 | D53: 39.63 | E53: 254.384
A54: 2017-03-21 | B54: 38.88 | C54: 39.76 | D54: 39.47 | E54: 285.453
A55: 2017-03-20 | B55: 39.54 | C55: 39.57 | D55: 38.89 | E55: 425.639
A56: 2017-03-17 | B56: 39.26 | C56: 39.71 | D56: 39.49 | E56: 1246.878
A57: 2017-03-16 | B57: 39.51 | C57: 39.58 | D57: 39.05 | E57: 329.407
A58: 2017-03-15 | B58: 39.1 | C58: 39.87 | D58: 39.62 | E58: 347.157
A59: 2017-03-14 | B59: 38.89 | C59: 38.98 | D59: 38.86 | E59: 234.924
A60: 2017-03-13 | B60: 38.75 | C60: 39.17 | D60: 38.91 | E60: 327.035
A61: 2017-03-10 | B61: 38.72 | C61: 38.85 | D61: 38.75 | E61: 252.737
A62: 2017-03-09 | B62: 38.46 | C62: 38.85 | D62: 38.43 | E62: 270.766
A63: 2017-03-08 | B63: 38.92 | C63: 39.1561 | D63: 38.45 | E63: 369.605
A64: 2017-03-07 | B64: 39.61 | C64: 39.84 | D64: 39.4 | E64: 346.961
A65: 2017-03-06 | B65: 39.9 | C65: 39.92 | D65: 39.75 | E65: 263.566
A66: 2017-03-03 | B66: 40.2 | C66: 40.2 | D66: 39.98 | E66: 437.542
A67: 2017-03-02 | B67: 39.67 | C67: 40.37 | D67: 40.14 | E67: 308.436
A68: 2017-03-01 | B68: 39.27 | C68: 40.11 | D68: 39.77 | E68: 577.221
A69: 2017-02-28 | B69: 39.69 | C69: 39.98 | D69: 39.87 | E69: 444.454
A70: 2017-02-27 | B70: 39.44 | C70: 39.76 | D70: 39.74 | E70: 422.04
A71: 2017-02-24 | B71: 39.17 | C71: 39.58 | D71: 39.53 | E71: 357.187
A72: 2017-02-23 | B72: 38.91 | C72: 39.38 | D72: 39.15 | E72: 608.196
A73: 2017-02-22 | B73: 39.2 | C73: 39.81 | D73: 38.93 | E73: 562.917
A74: 2017-02-21 | B74: 39.14 | C74: 39.53 | D74: 39.35 | E74: 628.227
A75: 2017-02-17 | B75: 39.71 | C75: 39.71 | D75: 39.34 | E75: 420.324
A76: 2017-02-16 | B76: 39 | C76: 39.52 | D76: 39.52 | E76: 407.044
A77: 2017-02-15 | B77: 38.51 | C77: 39 | D77: 39 | E77: 370.998
A78: 2017-02-14 | B78: 38.94 | C78: 38.94 | D78: 38.87 | E78: 347.808
A79: 2017-02-13 | B79: 39.28 | C79: 39.48 | D79: 39.11 | E79: 414.171
A80: 2017-02-10 | B80: 39.03 | C80: 39.34 | D80: 39.32 | E80: 221.907
A81: 2017-02-09 | B81: 39.13 | C81: 39.57 | D81: 38.95 | E81: 201.834
A82: 2017-02-08 | B82: 39.11 | C82: 39.3 | D82: 39.13 | E82: 199.418
A83: 2017-02-07 | B83: 38.8 | C83: 39 | D83: 38.92 | E83: 234.752
A84: 2017-02-06 | B84: 38.84 | C84: 38.99 | D84: 38.71 | E84: 255.325
A85: 2017-02-03 | B85: 38.67 | C85: 38.74 | D85: 38.62 | E85: 177.381
A86: 2017-02-02 | B86: 38.17 | C86: 38.71 | D86: 38.42 | E86: 247.308
A87: 2017-02-01 | B87: 38.41 | C87: 38.66 | D87: 37.94 | E87: 294.48
A88: 2017-01-31 | B88: 38.2 | C88: 38.65 | D88: 38.64 | E88: 334.241
A89: 2017-01-30 | B89: 38.51 | C89: 38.54 | D89: 38.11 | E89: 278.499
A90: 2017-01-27 | B90: 38.59 | C90: 38.81 | D90: 38.49 | E90: 355.437
A91: 2017-01-26 | B91: 38.9 | C91: 38.9 | D91: 38.61 | E91: 516.438
A92: 2017-01-25 | B92: 39.16 | C92: 39.26 | D92: 38.84 | E92: 480.634
A93: 2017-01-24 | B93: 39.11 | C93: 39.28 | D93: 39.18 | E93: 398.619
A94: 2017-01-23 | B94: 39.42 | C94: 39.66 | D94: 39.16 | E94: 305.528
A95: 2017-01-20 | B95: 38.98 | C95: 39.39 | D95: 39.33 | E95: 298.356
A96: 2017-01-19 | B96: 39.27 | C96: 39.45 | D96: 39.02 | E96: 199.292
A97: 2017-01-18 | B97: 39.29 | C97: 39.54 | D97: 39.5 | E97: 282.001
A98: 2017-01-17 | B98: 39.55 | C98: 39.78 | D98: 39.43 | E98: 322.757
A99: 2017-01-13 | B99: 39.06 | C99: 39.48 | D99: 39.35 | E99: 198.64
A100: 2017-01-12 | B100: 39.47 | C100: 39.61 | D100: 39.15 | E100: 216.136
A101: 2017-01-11 | B101: 39.15 | C101: 39.59 | D101: 39.5 | E101: 252.587
A102: 2017-01-10 | B102: 38.98 | C102: 39.28 | D102: 39.1 | E102: 275.753
A103: 2017-01-09 | B103: 40.04 | C103: 40.12 | D103: 39.02 | E103: 343.783
A104: 2017-01-06 | B104: 39.55 | C104: 40.05 | D104: 39.69 | E104: 430.116
A105: 2017-01-05 | B105: 39.81 | C105: 39.9152 | D105: 39.87 | E105: 232.31
A106: 2017-01-04 | B106: 39.8 | C106: 40.17 | D106: 39.8 | E106: 501.252
A107: 2017-01-03 | B107: 39.68 | C107: 40.06 | D107: 39.71 | E107: 298.962
A108: 2016-12-30 | B108: 40.09 | C108: 40.335 | D108: 39.99 | E108: 325.14
A109: 2016-12-29 | B109: 39.66 | C109: 40.26 | D109: 40.18 | E109: 272.67
A110: 2016-12-28 | B110: 40.03 | C110: 40.16 | D110: 39.47 | E110: 292.967
A111: 2016-12-27 | B111: 39.64 | C111: 40.23 | D111: 39.99 | E111: 265.161
A112: 2016-12-23 | B112: 39.56 | C112: 39.85 | D112: 39.71 | E112: 236.468
A113: 2016-12-22 | B113: 39.66 | C113: 39.66 | D113: 39.49 | E113: 747.835
A114: 2016-12-21 | B114: 40.15 | C114: 40.5 | D114: 39.67 | E114: 389.459
A115: 2016-12-20 | B115: 40.19 | C115: 40.32 | D115: 40.05 | E115: 493.411
A116: 2016-12-19 | B116: 41.01 | C116: 41.07 | D116: 40.23 | E116: 488.635
A117: 2016-12-16 | B117: 41.77 | C117: 42.42 | D117: 40.77 | E117: 2455.461
A118: 2016-12-15 | B118: 41.62 | C118: 42.18 | D118: 42.17 | E118: 335.496
A119: 2016-12-14 | B119: 42.89 | C119: 43 | D119: 41.63 | E119: 283.867
A120: 2016-12-13 | B120: 42.67 | C120: 42.89 | D120: 42.63 | E120: 318.486
A121: 2016-12-12 | B121: 41.87 | C121: 42.76 | D121: 42.48 | E121: 343.328
A122: 2016-12-09 | B122: 41.69 | C122: 42.08 | D122: 42.08 | E122: 338.661
A123: 2016-12-08 | B123: 40.59 | C123: 41.74 | D123: 41.73 | E123: 433.075
A124: 2016-12-07 | B124: 40.86 | C124: 41.19 | D124: 41.17 | E124: 384.145
A125: 2016-12-06 | B125: 40.59 | C125: 40.86 | D125: 40.73 | E125: 317.754
A126: 2016-12-05 | B126: 40.41 | C126: 40.6699 | D126: 40.61 | E126: 281.57
A127: 2016-12-02 | B127: 40.55 | C127: 40.915 | D127: 40.55 | E127: 230.763
A128: 2016-12-01 | B128: 40.54 | C128: 40.54 | D128: 40.17 | E128: 389.052
A129: 2016-11-30 | B129: 41.26 | C129: 41.7 | D129: 40.47 | E129: 310.554
A130: 2016-11-29 | B130: 41.62 | C130: 42.26 | D130: 42.12 | E130: 238.087
A131: 2016-11-28 | B131: 41.41 | C131: 41.98 | D131: 41.83 | E131: 306.216
A132: 2016-11-25 | B132: 40.75 | C132: 41.35 | D132: 41.32 | E132: 87.117
A133: 2016-11-23 | B133: 40.21 | C133: 41.14 | D133: 40.62 | E133: 255.788
A134: 2016-11-22 | B134: 40.39 | C134: 41.17 | D134: 41.12 | E134: 253.715
A135: 2016-11-21 | B135: 40.01 | C135: 40.44 | D135: 40.32 | E135: 218.099
A136: 2016-11-18 | B136: 39.9 | C136: 40.27 | D136: 39.83 | E136: 347.708
A137: 2016-11-17 | B137: 39.86 | C137: 40.37 | D137: 39.89 | E137: 213.144
A138: 2016-11-16 | B138: 40.28 | C138: 40.82 | D138: 40.01 | E138: 267.854
A139: 2016-11-15 | B139: 40.29 | C139: 40.76 | D139: 40.6 | E139: 281.35
A140: 2016-11-14 | B140: 40.45 | C140: 40.57 | D140: 40.16 | E140: 411.054
A141: 2016-11-11 | B141: 40.28 | C141: 41.32 | D141: 40.7 | E141: 504.167
A142: 2016-11-10 | B142: 40.63 | C142: 40.89 | D142: 40.27 | E142: 514.3
A143: 2016-11-09 | B143: 40.57 | C143: 41.36 | D143: 40.87 | E143: 499.742
A144: 2016-11-08 | B144: 41.17 | C144: 41.89 | D144: 41.56 | E144: 369.104
A145: 2016-11-07 | B145: 40.19 | C145: 41.24 | D145: 41.16 | E145: 287.932
A146: 2016-11-04 | B146: 40.37 | C146: 40.5699 | D146: 40.04 | E146: 362.725
A147: 2016-11-03 | B147: 39.94 | C147: 40.42 | D147: 40.16 | E147: 295.054
A148: 2016-11-02 | B148: 39.9 | C148: 40.075 | D148: 39.91 | E148: 294.465
A149: 2016-11-01 | B149: 41.36 | C149: 41.38 | D149: 40.1 | E149: 373.599
A150: 2016-10-31 | B150: 40.52 | C150: 41.55 | D150: 41.4 | E150: 302.954
A151: 2016-10-28 | B151: 40.38 | C151: 40.6 | D151: 40.37 | E151: 171.46
A152: 2016-10-27 | B152: 39.72 | C152: 40.25 | D152: 40.2 | E152: 239.294
A153: 2016-10-26 | B153: 40.21 | C153: 40.385 | D153: 40.14 | E153: 190.303
A154: 2016-10-25 | B154: 40 | C154: 40.25 | D154: 40.23 | E154: 272.209
A155: 2016-10-24 | B155: 39.92 | C155: 40.3 | D155: 39.97 | E155: 233.004
A156: 2016-10-21 | B156: 40 | C156: 40.22 | D156: 39.84 | E156: 401.463
A157: 2016-10-20 | B157: 40.41 | C157: 40.61 | D157: 40.47 | E157: 174.084
A158: 2016-10-19 | B158: 40.41 | C158: 40.54 | D158: 40.32 | E158: 141.642
A159: 2016-10-18 | B159: 40.11 | C159: 40.55 | D159: 40.37 | E159: 184.695
A160: 2016-10-17 | B160: 39.7 | C160: 40.04 | D160: 39.89 | E160: 108.173
A161: 2016-10-14 | B161: 39.91 | C161: 40.06 | D161: 39.7 | E161: 182.453
A162: 2016-10-13 | B162: 39.6 | C162: 40.2 | D162: 39.81 | E162: 274.765
A163: 2016-10-12 | B163: 39.13 | C163: 39.56 | D163: 39.53 | E163: 143.64
A164: 2016-10-11 | B164: 39.74 | C164: 39.74 | D164: 39.11 | E164: 167.719
A165: 2016-10-10 | B165: 39.16 | C165: 39.87 | D165: 39.73 | E165: 238.593
A166: 2016-10-07 | B166: 39.83 | C166: 40.17 | D166: 39.14 | E166: 350.659
A167: 2016-10-06 | B167: 39.24 | C167: 39.6 | D167: 39.53 | E167: 339.579
A168: 2016-10-05 | B168: 39.8 | C168: 39.96 | D168: 39.45 | E168: 280.056
A169: 2016-10-04 | B169: 41.03 | C169: 41.07 | D169: 39.73 | E169: 282.415
A170: 2016-10-03 | B170: 41.74 | C170: 41.74 | D170: 41.14 | E170: 361.65
A171: 2016-09-30 | B171: 42.27 | C171: 42.53 | D171: 41.79 | E171: 397.966
A172: 2016-09-29 | B172: 42.71 | C172: 42.71 | D172: 42.14 | E172: 359.726
A173: 2016-09-28 | B173: 42.79 | C173: 42.94 | D173: 42.72 | E173: 186.52
A174: 2016-09-27 | B174: 43.44 | C174: 43.74 | D174: 42.77 | E174: 254.46
A175: 2016-09-26 | B175: 43.53 | C175: 43.67 | D175: 43.25 | E175: 224.754
A176: 2016-09-23 | B176: 43.45 | C176: 43.68 | D176: 43.53 | E176: 263.48
A177: 2016-09-22 | B177: 43.16 | C177: 43.66 | D177: 43.66 | E177: 440.479
A178: 2016-09-21 | B178: 42.03 | C178: 43.06 | D178: 43.03 | E178: 233.837
A179: 2016-09-20 | B179: 42.13 | C179: 42.53 | D179: 42.03 | E179: 230.834
A180: 2016-09-19 | B180: 41.64 | C180: 41.99 | D180: 41.98 | E180: 202.999
A181: 2016-09-16 | B181: 41.09 | C181: 41.64 | D181: 41.56 | E181: 630.147
A182: 2016-09-15 | B182: 40.68 | C182: 41.12 | D182: 41.09 | E182: 356.734
A183: 2016-09-14 | B183: 40.84 | C183: 41.19 | D183: 40.8 | E183: 248.648
A184: 2016-09-13 | B184: 41 | C184: 41.08 | D184: 40.73 | E184: 305.977
A185: 2016-09-12 | B185: 40.54 | C185: 41.18 | D185: 41.16 | E185: 236.81
A186: 2016-09-09 | B186: 41.51 | C186: 41.51 | D186: 40.43 | E186: 305.035
A187: 2016-09-08 | B187: 41.74 | C187: 42.08 | D187: 41.94 | E187: 258.779
A188: 2016-09-07 | B188: 41.61 | C188: 41.87 | D188: 41.82 | E188: 350.316
A189: 2016-09-06 | B189: 41.25 | C189: 41.705 | D189: 41.61 | E189: 172.391
A190: 2016-09-02 | B190: 40.56 | C190: 41.13 | D190: 41.12 | E190: 237.141
A191: 2016-09-01 | B191: 40.63 | C191: 40.73 | D191: 40.52 | E191: 321.474
A192: 2016-08-31 | B192: 40.58 | C192: 40.71 | D192: 40.62 | E192: 312.904
A193: 2016-08-30 | B193: 40.98 | C193: 41.16 | D193: 40.62 | E193: 308.559
A194: 2016-08-29 | B194: 41.01 | C194: 41.37 | D194: 41.26 | E194: 220.824
A195: 2016-08-26 | B195: 41.66 | C195: 42.0525 | D195: 40.91 | E195: 246.424
A196: 2016-08-25 | B196: 41.53 | C196: 41.835 | D196: 41.77 | E196: 219.706
A197: 2016-08-24 | B197: 41.58 | C197: 41.64 | D197: 41.55 | E197: 254.706
A198: 2016-08-23 | B198: 41.98 | C198: 42.12 | D198: 41.63 | E198: 156.485
A199: 2016-08-22 | B199: 41.75 | C199: 41.98 | D199: 41.87 | E199: 185.514
A200: 2016-08-19 | B200: 42.27 | C200: 42.395 | D200: 41.68 | E200: 253.008
... 309 more rows

Sheet BKH
A1: ='Div Yields'!C8 -> BKH | G1: Dividend | H1: 30 Day Avg | I1: 90 Day Avg | J1: 180 Day Avg | K1: 360 Day Avg | L1: 720 Day Avg
H2: =AVERAGE($D$4:$D$33) -> 68.39633333 | I2: =AVERAGE($D$4:$D$93) -> 65.84177778 | J2: =AVERAGE($D$4:$D$183) -> 62.99761111 | K2: =AVERAGE($D$4:$D$363) -> 60.39633333 | L2: =AVERAGE($D$4:$D$507) -> 55.3425
A3: Date | B3: Open | C3: High | D3: Close | E3: Volume (k) | G3: =INDEX(Master,MATCH($A$1,Tickers,0),MATCH(G1,Header,0)) -> 1.78 | H3: =$G3/H2 -> 0.0260247869 | I3: =$G3/I2 -> 0.02703450697 | J3: 0.02825503965 | K3: 0.02947198781 | L3: 0.03216334643
A4: 2017-06-01 | B4: 69.35 | C4: 70.34 | D4: 70.34 | E4: 293.677
A5: 2017-05-31 | B5: 69.34 | C5: 69.79 | D5: 69.54 | E5: 190.852
A6: 2017-05-30 | B6: 69.3 | C6: 69.6 | D6: 69.36 | E6: 150.129
A7: 2017-05-26 | B7: 69.5 | C7: 69.83 | D7: 69.34 | E7: 268.023
A8: 2017-05-25 | B8: 69.2 | C8: 69.495 | D8: 69.44 | E8: 270.406
A9: 2017-05-24 | B9: 68.63 | C9: 69.09 | D9: 69.02 | E9: 190.463
A10: 2017-05-23 | B10: 68.29 | C10: 68.84 | D10: 68.5 | E10: 330.949
A11: 2017-05-22 | B11: 67.62 | C11: 68.45 | D11: 68.14 | E11: 398.352
A12: 2017-05-19 | B12: 67.51 | C12: 68.11 | D12: 67.63 | E12: 674.865
A13: 2017-05-18 | B13: 68.35 | C13: 68.66 | D13: 67.48 | E13: 435.926
A14: 2017-05-17 | B14: 68.39 | C14: 68.75 | D14: 68.41 | E14: 301.561
A15: 2017-05-16 | B15: 68.51 | C15: 68.73 | D15: 68.39 | E15: 249.862
A16: 2017-05-15 | B16: 68.6 | C16: 69.2 | D16: 68.79 | E16: 274.903
A17: 2017-05-12 | B17: 68.45 | C17: 68.77 | D17: 68.53 | E17: 162.747
A18: 2017-05-11 | B18: 67.98 | C18: 68.3 | D18: 68.25 | E18: 287.355
A19: 2017-05-10 | B19: 67.98 | C19: 68.62 | D19: 68.18 | E19: 387.297
A20: 2017-05-09 | B20: 69.41 | C20: 69.64 | D20: 67.84 | E20: 382.946
A21: 2017-05-08 | B21: 69.41 | C21: 69.65 | D21: 69.44 | E21: 261.053
A22: 2017-05-05 | B22: 68.5 | C22: 69.365 | D22: 69.25 | E22: 251.094
A23: 2017-05-04 | B23: 65.96 | C23: 68.65 | D23: 68.36 | E23: 341.958
A24: 2017-05-03 | B24: 67.4 | C24: 67.44 | D24: 66.63 | E24: 442.572
A25: 2017-05-02 | B25: 67.22 | C25: 68 | D25: 67.42 | E25: 497.767
A26: 2017-05-01 | B26: 68.13 | C26: 68.16 | D26: 67.39 | E26: 354.325
A27: 2017-04-28 | B27: 68.55 | C27: 68.58 | D27: 68.02 | E27: 650.731
A28: 2017-04-27 | B28: 68.64 | C28: 69.16 | D28: 68.54 | E28: 247.983
A29: 2017-04-26 | B29: 68.26 | C29: 69.22 | D29: 68.62 | E29: 319.365
A30: 2017-04-25 | B30: 68.11 | C30: 68.69 | D30: 68.4 | E30: 285.143
A31: 2017-04-24 | B31: 67.6 | C31: 68.06 | D31: 68.03 | E31: 334.983
A32: 2017-04-21 | B32: 67.16 | C32: 67.68 | D32: 67.33 | E32: 426.263
A33: 2017-04-20 | B33: 67.63 | C33: 67.63 | D33: 67.28 | E33: 257.081
A34: 2017-04-19 | B34: 68.46 | C34: 68.51 | D34: 67.59 | E34: 272.804
A35: 2017-04-18 | B35: 67.98 | C35: 68.63 | D35: 68.48 | E35: 370.597
A36: 2017-04-17 | B36: 67.32 | C36: 68.03 | D36: 68.01 | E36: 139.496
A37: 2017-04-13 | B37: 67.83 | C37: 67.9 | D37: 67.25 | E37: 224.294
A38: 2017-04-12 | B38: 67.68 | C38: 67.96 | D38: 67.83 | E38: 178.988
A39: 2017-04-11 | B39: 67.27 | C39: 67.915 | D39: 67.66 | E39: 246.536
A40: 2017-04-10 | B40: 67.44 | C40: 67.69 | D40: 67.35 | E40: 324.969
A41: 2017-04-07 | B41: 67.66 | C41: 67.92 | D41: 67.39 | E41: 457.338
A42: 2017-04-06 | B42: 67.35 | C42: 67.67 | D42: 67.58 | E42: 295.546
A43: 2017-04-05 | B43: 66.73 | C43: 67.73 | D43: 67.55 | E43: 791.828
A44: 2017-04-04 | B44: 66.03 | C44: 67.03 | D44: 66.74 | E44: 320.475
A45: 2017-04-03 | B45: 66.22 | C45: 66.29 | D45: 66.1 | E45: 315.29
A46: 2017-03-31 | B46: 65.62 | C46: 66.72 | D46: 66.47 | E46: 430.991
A47: 2017-03-30 | B47: 65.54 | C47: 66 | D47: 65.55 | E47: 350.672
A48: 2017-03-29 | B48: 66.37 | C48: 66.4796 | D48: 65.7 | E48: 684.124
A49: 2017-03-28 | B49: 66.25 | C49: 66.82 | D49: 66.52 | E49: 369.15
A50: 2017-03-27 | B50: 66.28 | C50: 66.49 | D50: 66.34 | E50: 342.14
A51: 2017-03-24 | B51: 66.17 | C51: 66.62 | D51: 66.21 | E51: 247.694
A52: 2017-03-23 | B52: 65.71 | C52: 66.76 | D52: 66.19 | E52: 193.214
A53: 2017-03-22 | B53: 65.85 | C53: 66.26 | D53: 65.91 | E53: 288.984
A54: 2017-03-21 | B54: 65.11 | C54: 65.97 | D54: 65.65 | E54: 370.294
A55: 2017-03-20 | B55: 66.7 | C55: 66.95 | D55: 65.11 | E55: 338.457
A56: 2017-03-17 | B56: 66.76 | C56: 67.02 | D56: 66.65 | E56: 1150.433
A57: 2017-03-16 | B57: 66.25 | C57: 66.66 | D57: 66.33 | E57: 756.198
A58: 2017-03-15 | B58: 65.5 | C58: 66.69 | D58: 66.4 | E58: 386.609
A59: 2017-03-14 | B59: 65.03 | C59: 65.28 | D59: 65.15 | E59: 458.699
A60: 2017-03-13 | B60: 64.82 | C60: 65.4207 | D60: 65.2 | E60: 362.601
A61: 2017-03-10 | B61: 63.85 | C61: 64.77 | D61: 64.74 | E61: 299.597
A62: 2017-03-09 | B62: 63.87 | C62: 64.42 | D62: 63.85 | E62: 272.498
A63: 2017-03-08 | B63: 63.95 | C63: 64.12 | D63: 63.95 | E63: 1060.441
A64: 2017-03-07 | B64: 64.43 | C64: 64.87 | D64: 64.7 | E64: 373.793
A65: 2017-03-06 | B65: 64.66 | C65: 64.805 | D65: 64.53 | E65: 211.287
A66: 2017-03-03 | B66: 65.67 | C66: 65.82 | D66: 64.74 | E66: 262.15
A67: 2017-03-02 | B67: 65.23 | C67: 65.89 | D67: 65.58 | E67: 537.585
A68: 2017-03-01 | B68: 64.43 | C68: 66.11 | D68: 65.54 | E68: 320.027
A69: 2017-02-28 | B69: 64.62 | C69: 65.22 | D69: 64.88 | E69: 393.536
A70: 2017-02-27 | B70: 64.34 | C70: 64.98 | D70: 64.82 | E70: 264.002
A71: 2017-02-24 | B71: 64.24 | C71: 64.71 | D71: 64.62 | E71: 181.369
A72: 2017-02-23 | B72: 63.9 | C72: 64.47 | D72: 64.28 | E72: 249.916
A73: 2017-02-22 | B73: 63.37 | C73: 63.78 | D73: 63.58 | E73: 178.516
A74: 2017-02-21 | B74: 62.5 | C74: 63.32 | D74: 63.24 | E74: 225.36
A75: 2017-02-17 | B75: 62.49 | C75: 62.67 | D75: 62.64 | E75: 257.312
A76: 2017-02-16 | B76: 61.42 | C76: 62.25 | D76: 62.22 | E76: 261.666
A77: 2017-02-15 | B77: 61.05 | C77: 61.56 | D77: 61.48 | E77: 243.004
A78: 2017-02-14 | B78: 61.58 | C78: 61.8099 | D78: 61.43 | E78: 594.346
A79: 2017-02-13 | B79: 61.2 | C79: 61.87 | D79: 61.86 | E79: 265.299
A80: 2017-02-10 | B80: 60.74 | C80: 61.8 | D80: 61.55 | E80: 191.135
A81: 2017-02-09 | B81: 61.11 | C81: 61.38 | D81: 60.71 | E81: 217.762
A82: 2017-02-08 | B82: 61.15 | C82: 61.6 | D82: 61.11 | E82: 200.417
A83: 2017-02-07 | B83: 61.08 | C83: 61.27 | D83: 60.95 | E83: 229.081
A84: 2017-02-06 | B84: 61.92 | C84: 61.92 | D84: 61.07 | E84: 183.213
A85: 2017-02-03 | B85: 61.71 | C85: 62.16 | D85: 61.57 | E85: 225.215
A86: 2017-02-02 | B86: 61.98 | C86: 62.49 | D86: 61.38 | E86: 366.373
A87: 2017-02-01 | B87: 62.33 | C87: 62.54 | D87: 61.38 | E87: 267.582
A88: 2017-01-31 | B88: 61.76 | C88: 62.61 | D88: 62.55 | E88: 457.366
A89: 2017-01-30 | B89: 62.11 | C89: 62.11 | D89: 61.55 | E89: 840.155
A90: 2017-01-27 | B90: 62.47 | C90: 62.56 | D90: 62.08 | E90: 294.482
A91: 2017-01-26 | B91: 62.36 | C91: 62.7 | D91: 62.36 | E91: 220.165
A92: 2017-01-25 | B92: 62.06 | C92: 62.68 | D92: 62.15 | E92: 295.866
A93: 2017-01-24 | B93: 61.74 | C93: 62.24 | D93: 61.87 | E93: 213.837
A94: 2017-01-23 | B94: 61.66 | C94: 61.95 | D94: 61.71 | E94: 186.802
A95: 2017-01-20 | B95: 61.47 | C95: 62.12 | D95: 61.55 | E95: 233.156
A96: 2017-01-19 | B96: 61.7 | C96: 62.2 | D96: 61.56 | E96: 733.286
A97: 2017-01-18 | B97: 61.79 | C97: 62.61 | D97: 62.21 | E97: 244.62
A98: 2017-01-17 | B98: 61.34 | C98: 61.84 | D98: 61.73 | E98: 200.089
A99: 2017-01-13 | B99: 60.96 | C99: 61.4 | D99: 61.13 | E99: 267.802
A100: 2017-01-12 | B100: 61.4 | C100: 61.63 | D100: 60.95 | E100: 191.664
A101: 2017-01-11 | B101: 61.17 | C101: 61.6 | D101: 61.18 | E101: 417.531
A102: 2017-01-10 | B102: 61.18 | C102: 61.74 | D102: 61.03 | E102: 492.325
A103: 2017-01-09 | B103: 61.48 | C103: 61.49 | D103: 61.16 | E103: 373.134
A104: 2017-01-06 | B104: 60.54 | C104: 61.47 | D104: 61.22 | E104: 208.033
A105: 2017-01-05 | B105: 60.88 | C105: 61.5 | D105: 60.81 | E105: 263.1
A106: 2017-01-04 | B106: 60.78 | C106: 61.64 | D106: 60.81 | E106: 650.345
A107: 2017-01-03 | B107: 61.5 | C107: 61.5 | D107: 60.52 | E107: 440.845
A108: 2016-12-30 | B108: 61.75 | C108: 62 | D108: 61.34 | E108: 238.4
A109: 2016-12-29 | B109: 60.97 | C109: 62 | D109: 61.76 | E109: 296.279
A110: 2016-12-28 | B110: 61.62 | C110: 61.62 | D110: 60.62 | E110: 273.387
A111: 2016-12-27 | B111: 61.52 | C111: 61.93 | D111: 61.51 | E111: 205.63
A112: 2016-12-23 | B112: 62.2 | C112: 62.41 | D112: 61.64 | E112: 181.774
A113: 2016-12-22 | B113: 62.1 | C113: 62.44 | D113: 62 | E113: 253.761
A114: 2016-12-21 | B114: 62.31 | C114: 62.83 | D114: 62.11 | E114: 222.258
A115: 2016-12-20 | B115: 62.01 | C115: 62.35 | D115: 62.26 | E115: 218.544
A116: 2016-12-19 | B116: 61.14 | C116: 62.08 | D116: 62.07 | E116: 329.794
A117: 2016-12-16 | B117: 59.71 | C117: 60.86 | D117: 60.76 | E117: 1575.662
A118: 2016-12-15 | B118: 59.65 | C118: 60.79 | D118: 59.99 | E118: 317.608
A119: 2016-12-14 | B119: 61.99 | C119: 62.32 | D119: 59.8 | E119: 509.951
A120: 2016-12-13 | B120: 61.89 | C120: 62.26 | D120: 61.8 | E120: 382.828
A121: 2016-12-12 | B121: 60.41 | C121: 62 | D121: 61.47 | E121: 233.951
A122: 2016-12-09 | B122: 59.95 | C122: 61.1 | D122: 61 | E122: 338.34
A123: 2016-12-08 | B123: 59.34 | C123: 60.11 | D123: 60.1 | E123: 295.323
A124: 2016-12-07 | B124: 59.5 | C124: 59.67 | D124: 59.18 | E124: 427.918
A125: 2016-12-06 | B125: 59.01 | C125: 59.19 | D125: 59.02 | E125: 406.413
A126: 2016-12-05 | B126: 58.39 | C126: 58.76 | D126: 58.76 | E126: 367.412
A127: 2016-12-02 | B127: 58.6 | C127: 59.04 | D127: 58.5 | E127: 258.863
A128: 2016-12-01 | B128: 58.33 | C128: 59.09 | D128: 58.01 | E128: 358.519
A129: 2016-11-30 | B129: 60.05 | C129: 60.8 | D129: 58.75 | E129: 554.382
A130: 2016-11-29 | B130: 60.77 | C130: 61.62 | D130: 61.08 | E130: 314.575
A131: 2016-11-28 | B131: 59.92 | C131: 61.1 | D131: 60.95 | E131: 326.048
A132: 2016-11-25 | B132: 58.55 | C132: 59.79 | D132: 59.59 | E132: 151.9
A133: 2016-11-23 | B133: 59.52 | C133: 60.3899 | D133: 58.38 | E133: 840.722
A134: 2016-11-22 | B134: 59.77 | C134: 60.87 | D134: 60.5 | E134: 392.824
A135: 2016-11-21 | B135: 58.89 | C135: 59.82 | D135: 59.6 | E135: 226.239
A136: 2016-11-18 | B136: 58.29 | C136: 59.06 | D136: 58.73 | E136: 258.612
A137: 2016-11-17 | B137: 58.21 | C137: 58.7 | D137: 58.29 | E137: 283.685
A138: 2016-11-16 | B138: 58.68 | C138: 59.375 | D138: 58.21 | E138: 243.059
A139: 2016-11-15 | B139: 58.22 | C139: 59.15 | D139: 58.68 | E139: 288.59
A140: 2016-11-14 | B140: 57.54 | C140: 58.57 | D140: 58.38 | E140: 433.093
A141: 2016-11-11 | B141: 56.92 | C141: 58.65 | D141: 58.01 | E141: 448.464
A142: 2016-11-10 | B142: 58.5 | C142: 59 | D142: 56.82 | E142: 1097.445
A143: 2016-11-09 | B143: 59.94 | C143: 60.45 | D143: 58.74 | E143: 872.162
A144: 2016-11-08 | B144: 61.12 | C144: 61.85 | D144: 61.09 | E144: 420.553
A145: 2016-11-07 | B145: 60.7 | C145: 61.29 | D145: 61.24 | E145: 387.794
A146: 2016-11-04 | B146: 60.99 | C146: 61.5 | D146: 60.26 | E146: 243.67
A147: 2016-11-03 | B147: 59.29 | C147: 61.225 | D147: 60.6 | E147: 422.582
A148: 2016-11-02 | B148: 60.41 | C148: 60.43 | D148: 60.15 | E148: 274.612
A149: 2016-11-01 | B149: 61.7 | C149: 61.9 | D149: 60.55 | E149: 326.742
A150: 2016-10-31 | B150: 60.9 | C150: 62.07 | D150: 61.85 | E150: 475.56
A151: 2016-10-28 | B151: 60.31 | C151: 61.27 | D151: 60.63 | E151: 277.262
A152: 2016-10-27 | B152: 60.08 | C152: 60.64 | D152: 60.42 | E152: 287.887
A153: 2016-10-26 | B153: 60.03 | C153: 60.58 | D153: 60.47 | E153: 204.398
A154: 2016-10-25 | B154: 59.57 | C154: 60.24 | D154: 60.24 | E154: 216.646
A155: 2016-10-24 | B155: 60.49 | C155: 60.71 | D155: 59.7 | E155: 141.816
A156: 2016-10-21 | B156: 59.32 | C156: 59.61 | D156: 59.22 | E156: 172.451
A157: 2016-10-20 | B157: 59.56 | C157: 59.89 | D157: 59.7 | E157: 230.84
A158: 2016-10-19 | B158: 58.94 | C158: 59.79 | D158: 59.54 | E158: 228.618
A159: 2016-10-18 | B159: 59.1 | C159: 59.145 | D159: 58.91 | E159: 353.745
A160: 2016-10-17 | B160: 58.67 | C160: 59.02 | D160: 58.7 | E160: 298.617
A161: 2016-10-14 | B161: 58.55 | C161: 59.23 | D161: 58.52 | E161: 175.625
A162: 2016-10-13 | B162: 57.85 | C162: 59.14 | D162: 58.74 | E162: 219.521
A163: 2016-10-12 | B163: 56.54 | C163: 57.91 | D163: 57.85 | E163: 310.695
A164: 2016-10-11 | B164: 57.55 | C164: 57.56 | D164: 56.61 | E164: 381.496
A165: 2016-10-10 | B165: 56.69 | C165: 57.61 | D165: 57.55 | E165: 218.297
A166: 2016-10-07 | B166: 57.93 | C166: 58.11 | D166: 56.66 | E166: 265.41
A167: 2016-10-06 | B167: 57.14 | C167: 57.84 | D167: 57.41 | E167: 356.286
A168: 2016-10-05 | B168: 57.92 | C168: 58.24 | D168: 57.51 | E168: 494.675
A169: 2016-10-04 | B169: 60.02 | C169: 60.02 | D169: 57.65 | E169: 804.596
A170: 2016-10-03 | B170: 61.04 | C170: 61.25 | D170: 60.07 | E170: 379.3
A171: 2016-09-30 | B171: 61.9 | C171: 62.16 | D171: 61.22 | E171: 349.286
A172: 2016-09-29 | B172: 62.41 | C172: 62.57 | D172: 61.75 | E172: 369.718
A173: 2016-09-28 | B173: 63.37 | C173: 63.56 | D173: 62.68 | E173: 330.414
A174: 2016-09-27 | B174: 63.63 | C174: 63.79 | D174: 63.41 | E174: 522.498
A175: 2016-09-26 | B175: 62.99 | C175: 63.76 | D175: 63.43 | E175: 964.063
A176: 2016-09-23 | B176: 62.59 | C176: 63.21 | D176: 63.02 | E176: 442.414
A177: 2016-09-22 | B177: 62.07 | C177: 62.96 | D177: 62.91 | E177: 414.807
A178: 2016-09-21 | B178: 60.2 | C178: 61.64 | D178: 61.63 | E178: 363.684
A179: 2016-09-20 | B179: 60.01 | C179: 60.72 | D179: 60.22 | E179: 478.284
A180: 2016-09-19 | B180: 59.2 | C180: 59.87 | D180: 59.77 | E180: 227.522
A181: 2016-09-16 | B181: 58.37 | C181: 59.07 | D181: 59 | E181: 625.295
A182: 2016-09-15 | B182: 58.52 | C182: 58.69 | D182: 58.35 | E182: 314.007
A183: 2016-09-14 | B183: 58.25 | C183: 58.69 | D183: 58.6 | E183: 419.56
A184: 2016-09-13 | B184: 58.73 | C184: 58.73 | D184: 57.94 | E184: 259.923
A185: 2016-09-12 | B185: 57.68 | C185: 58.95 | D185: 58.93 | E185: 227.888
A186: 2016-09-09 | B186: 60.74 | C186: 60.82 | D186: 57.7 | E186: 376.276
A187: 2016-09-08 | B187: 60.46 | C187: 61.34 | D187: 61.32 | E187: 261.589
A188: 2016-09-07 | B188: 60.19 | C188: 60.9 | D188: 60.5 | E188: 325.355
A189: 2016-09-06 | B189: 59.7 | C189: 60.01 | D189: 60.01 | E189: 255.541
A190: 2016-09-02 | B190: 58.88 | C190: 59.35 | D190: 59.35 | E190: 226.095
A191: 2016-09-01 | B191: 58.62 | C191: 58.62 | D191: 58.41 | E191: 285.868
A192: 2016-08-31 | B192: 58.31 | C192: 58.62 | D192: 58.51 | E192: 222.842
A193: 2016-08-30 | B193: 59.04 | C193: 59.3 | D193: 58.49 | E193: 212.453
A194: 2016-08-29 | B194: 58.68 | C194: 59.23 | D194: 59.02 | E194: 253.115
A195: 2016-08-26 | B195: 59.76 | C195: 60.25 | D195: 58.54 | E195: 209.207
A196: 2016-08-25 | B196: 59.66 | C196: 59.805 | D196: 59.68 | E196: 224.364
A197: 2016-08-24 | B197: 59.84 | C197: 60.09 | D197: 59.65 | E197: 311.977
A198: 2016-08-23 | B198: 59.19 | C198: 60.25 | D198: 59.94 | E198: 752.47
A199: 2016-08-22 | B199: 58.55 | C199: 59.07 | D199: 58.9 | E199: 225.421
A200: 2016-08-19 | B200: 59.01 | C200: 59.37 | D200: 58.54 | E200: 403.898
... 309 more rows

Sheet ED
A1: ='Div Yields'!C9 -> ED | G1: Dividend | H1: 30 Day Avg | I1: 90 Day Avg | J1: 180 Day Avg | K1: 360 Day Avg | L1: 720 Day Avg
H2: =AVERAGE($D$4:$D$33) -> 80.03333333 | I2: =AVERAGE($D$4:$D$93) -> 77.47311111 | J2: =AVERAGE($D$4:$D$183) -> 75.29233333 | K2: =AVERAGE($D$4:$D$363) -> 74.79508333 | L2: =AVERAGE($D$4:$D$507) -> 71.41416667
A3: Date | B3: Open | C3: High | D3: Close | E3: Volume (k) | G3: =INDEX(Master,MATCH($A$1,Tickers,0),MATCH(G1,Header,0)) -> 2.76 | H3: =$G3/H2 -> 0.03448563099 | I3: =$G3/I2 -> 0.03562526353 | J3: 0.0366571187 | K3: 0.03690082124 | L3: 0.03864779397
A4: 2017-06-01 | B4: 82.77 | C4: 83.45 | D4: 83.43 | E4: 1467.028
A5: 2017-05-31 | B5: 82.31 | C5: 83.2531 | D5: 82.79 | E5: 1924.635
A6: 2017-05-30 | B6: 82.04 | C6: 82.39 | D6: 82.2 | E6: 1173.721
A7: 2017-05-26 | B7: 82.1 | C7: 82.4001 | D7: 82.1 | E7: 1123.82
A8: 2017-05-25 | B8: 81.58 | C8: 82.16 | D8: 82.04 | E8: 1341.753
A9: 2017-05-24 | B9: 81.28 | C9: 81.61 | D9: 81.45 | E9: 1632.568
A10: 2017-05-23 | B10: 81 | C10: 81.62 | D10: 81.31 | E10: 1788.807
A11: 2017-05-22 | B11: 80.1 | C11: 81.17 | D11: 80.95 | E11: 1366.259
A12: 2017-05-19 | B12: 80 | C12: 80.38 | D12: 80.37 | E12: 1337.871
A13: 2017-05-18 | B13: 79.46 | C13: 80.09 | D13: 79.92 | E13: 1613.547
A14: 2017-05-17 | B14: 79.39 | C14: 79.87 | D14: 79.36 | E14: 1748.109
A15: 2017-05-16 | B15: 79.64 | C15: 79.73 | D15: 79.14 | E15: 1288.565
A16: 2017-05-15 | B16: 79.36 | C16: 79.69 | D16: 79.61 | E16: 1507.408
A17: 2017-05-12 | B17: 79.66 | C17: 80.08 | D17: 79.9 | E17: 1282.9
A18: 2017-05-11 | B18: 79 | C18: 79.475 | D18: 79.46 | E18: 1337.795
A19: 2017-05-10 | B19: 78.95 | C19: 79.36 | D19: 79.04 | E19: 1490.008
A20: 2017-05-09 | B20: 79.28 | C20: 79.37 | D20: 78.81 | E20: 1472.413
A21: 2017-05-08 | B21: 79.28 | C21: 79.78 | D21: 79.39 | E21: 1168.672
A22: 2017-05-05 | B22: 79.43 | C22: 80.21 | D22: 79.81 | E22: 1650.299
A23: 2017-05-04 | B23: 78.46 | C23: 79.09 | D23: 78.88 | E23: 1598.44
A24: 2017-05-03 | B24: 79.25 | C24: 79.35 | D24: 78.76 | E24: 1496.544
A25: 2017-05-02 | B25: 79.03 | C25: 79.33 | D25: 79.26 | E25: 1386.68
A26: 2017-05-01 | B26: 79.3 | C26: 79.45 | D26: 78.85 | E26: 1284.325
A27: 2017-04-28 | B27: 79.39 | C27: 79.58 | D27: 79.28 | E27: 2890.281
A28: 2017-04-27 | B28: 79.17 | C28: 80.095 | D28: 79.58 | E28: 1495.313
A29: 2017-04-26 | B29: 79.32 | C29: 79.71 | D29: 79.14 | E29: 1099.029
A30: 2017-04-25 | B30: 79 | C30: 79.479 | D30: 79.4 | E30: 1146.037
A31: 2017-04-24 | B31: 79.14 | C31: 79.5 | D31: 79.4 | E31: 1744.623
A32: 2017-04-21 | B32: 78.24 | C32: 79.27 | D32: 79.09 | E32: 2137.338
A33: 2017-04-20 | B33: 78.54 | C33: 78.54 | D33: 78.28 | E33: 1836.553
A34: 2017-04-19 | B34: 78.89 | C34: 79.07 | D34: 78.78 | E34: 1700.804
A35: 2017-04-18 | B35: 78.89 | C35: 79.29 | D35: 79.09 | E35: 1549.325
A36: 2017-04-17 | B36: 78.61 | C36: 78.87 | D36: 78.87 | E36: 1307.294
A37: 2017-04-13 | B37: 78.48 | C37: 78.82 | D37: 78.53 | E37: 1578.79
A38: 2017-04-12 | B38: 77.63 | C38: 78.59 | D38: 78.58 | E38: 2095.645
A39: 2017-04-11 | B39: 77.87 | C39: 78.09 | D39: 77.9 | E39: 1733.055
A40: 2017-04-10 | B40: 77.87 | C40: 78.15 | D40: 78.01 | E40: 932.937
A41: 2017-04-07 | B41: 78.69 | C41: 78.7601 | D41: 77.82 | E41: 1988.464
A42: 2017-04-06 | B42: 78.37 | C42: 78.4999 | D42: 78.33 | E42: 1011.169
A43: 2017-04-05 | B43: 77.86 | C43: 78.605 | D43: 78.53 | E43: 1291.287
A44: 2017-04-04 | B44: 77.7 | C44: 78.28 | D44: 77.96 | E44: 1130.156
A45: 2017-04-03 | B45: 77.75 | C45: 77.83 | D45: 77.83 | E45: 2192.057
A46: 2017-03-31 | B46: 77.62 | C46: 78.08 | D46: 77.66 | E46: 1300.374
A47: 2017-03-30 | B47: 77.99 | C47: 78 | D47: 77.74 | E47: 827.069
A48: 2017-03-29 | B48: 78.27 | C48: 78.48 | D48: 78.18 | E48: 1260.838
A49: 2017-03-28 | B49: 78.33 | C49: 78.63 | D49: 78.53 | E49: 1241.424
A50: 2017-03-27 | B50: 78.52 | C50: 78.98 | D50: 78.55 | E50: 1783.756
A51: 2017-03-24 | B51: 77.89 | C51: 78.66 | D51: 78.41 | E51: 1130.247
A52: 2017-03-23 | B52: 78 | C52: 78.6801 | D52: 77.89 | E52: 1270.856
A53: 2017-03-22 | B53: 77.65 | C53: 78.355 | D53: 78.11 | E53: 2040.289
A54: 2017-03-21 | B54: 76.1 | C54: 77.57 | D54: 77.34 | E54: 1603.01
A55: 2017-03-20 | B55: 76.89 | C55: 77.05 | D55: 76.09 | E55: 1060.91
A56: 2017-03-17 | B56: 76.53 | C56: 77.09 | D56: 76.68 | E56: 2989.075
A57: 2017-03-16 | B57: 77.34 | C57: 77.62 | D57: 76.32 | E57: 1892.944
A58: 2017-03-15 | B58: 76.67 | C58: 78.11 | D58: 77.64 | E58: 1547.168
A59: 2017-03-14 | B59: 76.24 | C59: 76.57 | D59: 76.42 | E59: 1203.1
A60: 2017-03-13 | B60: 75.98 | C60: 76.28 | D60: 76.28 | E60: 1414.078
A61: 2017-03-10 | B61: 75.52 | C61: 76.02 | D61: 75.98 | E61: 1145.103
A62: 2017-03-09 | B62: 75.64 | C62: 76 | D62: 75.13 | E62: 1776.885
A63: 2017-03-08 | B63: 76.06 | C63: 76.09 | D63: 75.51 | E63: 1202.061
A64: 2017-03-07 | B64: 76.49 | C64: 76.86 | D64: 76.64 | E64: 1088.239
A65: 2017-03-06 | B65: 76.67 | C65: 77.02 | D65: 76.64 | E65: 1328.468
A66: 2017-03-03 | B66: 77.31 | C66: 77.31 | D66: 76.67 | E66: 1526.816
A67: 2017-03-02 | B67: 75.97 | C67: 77.5 | D67: 77.19 | E67: 2164.75
A68: 2017-03-01 | B68: 75.91 | C68: 76.91 | D68: 76.18 | E68: 1780.827
A69: 2017-02-28 | B69: 76.29 | C69: 77.24 | D69: 77.04 | E69: 1727.453
A70: 2017-02-27 | B70: 76.61 | C70: 76.71 | D70: 76.47 | E70: 1239.032
A71: 2017-02-24 | B71: 76.25 | C71: 76.76 | D71: 76.61 | E71: 1609.673
A72: 2017-02-23 | B72: 75.29 | C72: 75.99 | D72: 75.91 | E72: 1437.973
A73: 2017-02-22 | B73: 74.52 | C73: 75.09 | D73: 75.01 | E73: 2410.802
A74: 2017-02-21 | B74: 73.5 | C74: 74.68 | D74: 74.52 | E74: 1854.693
A75: 2017-02-17 | B75: 74.08 | C75: 74.08 | D75: 73.5 | E75: 2768.835
A76: 2017-02-16 | B76: 73.68 | C76: 74.49 | D76: 74.29 | E76: 2953.033
A77: 2017-02-15 | B77: 73.21 | C77: 73.76 | D77: 73.7 | E77: 1616.697
A78: 2017-02-14 | B78: 74.14 | C78: 74.3 | D78: 73.69 | E78: 1254.32
A79: 2017-02-13 | B79: 74.29 | C79: 74.48 | D79: 74.35 | E79: 1695.229
A80: 2017-02-10 | B80: 74.29 | C80: 74.96 | D80: 74.75 | E80: 1321.745
A81: 2017-02-09 | B81: 75.13 | C81: 75.44 | D81: 74.39 | E81: 1801.921
A82: 2017-02-08 | B82: 74.62 | C82: 75.31 | D82: 75.25 | E82: 1121.57
A83: 2017-02-07 | B83: 74.31 | C83: 74.6 | D83: 74.51 | E83: 831.919
A84: 2017-02-06 | B84: 74.55 | C84: 74.74 | D84: 74.3 | E84: 1758.295
A85: 2017-02-03 | B85: 74.5 | C85: 74.7 | D85: 74.2 | E85: 2302.11
A86: 2017-02-02 | B86: 73.47 | C86: 74.5 | D86: 74.47 | E86: 1488.112
A87: 2017-02-01 | B87: 73.82 | C87: 74.02 | D87: 73.33 | E87: 1766.3
A88: 2017-01-31 | B88: 73.44 | C88: 74.55 | D88: 74.35 | E88: 2990.993
A89: 2017-01-30 | B89: 73.34 | C89: 73.5639 | D89: 73.26 | E89: 1595.132
A90: 2017-01-27 | B90: 73.29 | C90: 73.51 | D90: 73.12 | E90: 1488.282
A91: 2017-01-26 | B91: 72.51 | C91: 73.52 | D91: 73.02 | E91: 1451.321
A92: 2017-01-25 | B92: 72.52 | C92: 72.77 | D92: 72.74 | E92: 1990.876
A93: 2017-01-24 | B93: 72.82 | C93: 73.11 | D93: 72.79 | E93: 1544.06
A94: 2017-01-23 | B94: 73.27 | C94: 73.53 | D94: 72.96 | E94: 1527.122
A95: 2017-01-20 | B95: 73.41 | C95: 73.8 | D95: 73.08 | E95: 2034.753
A96: 2017-01-19 | B96: 73.95 | C96: 74.15 | D96: 73.49 | E96: 1395.526
A97: 2017-01-18 | B97: 74.28 | C97: 74.83 | D97: 74.43 | E97: 1455.509
A98: 2017-01-17 | B98: 73.89 | C98: 74.64 | D98: 74.6 | E98: 1601.855
A99: 2017-01-13 | B99: 73.44 | C99: 73.65 | D99: 73.6 | E99: 1179.908
A100: 2017-01-12 | B100: 73.01 | C100: 73.74 | D100: 73.62 | E100: 1493.053
A101: 2017-01-11 | B101: 72.63 | C101: 73.17 | D101: 73.03 | E101: 1288.78
A102: 2017-01-10 | B102: 72.63 | C102: 72.82 | D102: 72.64 | E102: 1124.794
A103: 2017-01-09 | B103: 74.1 | C103: 74.1 | D103: 72.76 | E103: 1479.541
A104: 2017-01-06 | B104: 73.29 | C104: 74.02 | D104: 73.94 | E104: 914.55
A105: 2017-01-05 | B105: 73.54 | C105: 73.99 | D105: 73.72 | E105: 1802.903
A106: 2017-01-04 | B106: 73.72 | C106: 74.2 | D106: 73.56 | E106: 1259.634
A107: 2017-01-03 | B107: 73.72 | C107: 73.74 | D107: 73.63 | E107: 1699.63
A108: 2016-12-30 | B108: 74.08 | C108: 74.3 | D108: 73.68 | E108: 1138.952
A109: 2016-12-29 | B109: 73.16 | C109: 74.14 | D109: 74.07 | E109: 1111.407
A110: 2016-12-28 | B110: 73.72 | C110: 73.72 | D110: 73.07 | E110: 873.442
A111: 2016-12-27 | B111: 73.51 | C111: 73.93 | D111: 73.75 | E111: 724.438
A112: 2016-12-23 | B112: 73.65 | C112: 73.82 | D112: 73.63 | E112: 482.671
A113: 2016-12-22 | B113: 73.11 | C113: 73.64 | D113: 73.5 | E113: 1187.922
A114: 2016-12-21 | B114: 73.44 | C114: 73.86 | D114: 73.12 | E114: 730.097
A115: 2016-12-20 | B115: 73.02 | C115: 73.87 | D115: 73.44 | E115: 1626.506
A116: 2016-12-19 | B116: 73.03 | C116: 73.46 | D116: 73.04 | E116: 1151.888
A117: 2016-12-16 | B117: 71.79 | C117: 73.365 | D117: 72.68 | E117: 3048.401
A118: 2016-12-15 | B118: 71.15 | C118: 71.85 | D118: 71.75 | E118: 1658.016
A119: 2016-12-14 | B119: 73.44 | C119: 73.91 | D119: 71.21 | E119: 2129.367
A120: 2016-12-13 | B120: 72.87 | C120: 73.53 | D120: 73.28 | E120: 2068.325
A121: 2016-12-12 | B121: 71.37 | C121: 72.99 | D121: 72.82 | E121: 1788.626
A122: 2016-12-09 | B122: 70.66 | C122: 71.52 | D122: 71.44 | E122: 1775.788
A123: 2016-12-08 | B123: 69.89 | C123: 70.705 | D123: 70.58 | E123: 1269.41
A124: 2016-12-07 | B124: 69.38 | C124: 70.42 | D124: 70.41 | E124: 1416.912
A125: 2016-12-06 | B125: 69.97 | C125: 69.99 | D125: 69.15 | E125: 1446.236
A126: 2016-12-05 | B126: 69.31 | C126: 69.76 | D126: 69.72 | E126: 2048.418
A127: 2016-12-02 | B127: 70.09 | C127: 70.55 | D127: 69.69 | E127: 1551.097
A128: 2016-12-01 | B128: 69.31 | C128: 69.79 | D128: 69.47 | E128: 1959.305
A129: 2016-11-30 | B129: 71.67 | C129: 71.78 | D129: 69.77 | E129: 3847.094
A130: 2016-11-29 | B130: 72.43 | C130: 73.22 | D130: 72.65 | E130: 1988.281
A131: 2016-11-28 | B131: 70.78 | C131: 72.73 | D131: 72.65 | E131: 2065.795
A132: 2016-11-25 | B132: 69.9 | C132: 70.9 | D132: 70.66 | E132: 930.22
A133: 2016-11-23 | B133: 69.78 | C133: 70.37 | D133: 69.55 | E133: 1394.097
A134: 2016-11-22 | B134: 70.23 | C134: 70.57 | D134: 70.32 | E134: 1396.335
A135: 2016-11-21 | B135: 69.76 | C135: 70.15 | D135: 70.1 | E135: 1612.822
A136: 2016-11-18 | B136: 69.99 | C136: 70.33 | D136: 69.53 | E136: 1777.205
A137: 2016-11-17 | B137: 69.61 | C137: 70.41 | D137: 70.04 | E137: 1152.652
A138: 2016-11-16 | B138: 70.83 | C138: 71 | D138: 69.84 | E138: 1722.579
A139: 2016-11-15 | B139: 69.92 | C139: 71.03 | D139: 70.57 | E139: 2560.901
A140: 2016-11-14 | B140: 69.35 | C140: 69.82 | D140: 69.55 | E140: 2446.426
A141: 2016-11-11 | B141: 70.69 | C141: 71.6202 | D141: 70.49 | E141: 2107
A142: 2016-11-10 | B142: 72.05 | C142: 72.05 | D142: 70.69 | E142: 3992.9
A143: 2016-11-09 | B143: 72.95 | C143: 73.41 | D143: 72.26 | E143: 2983.324
A144: 2016-11-08 | B144: 74.72 | C144: 75.62 | D144: 75.33 | E144: 1361.367
A145: 2016-11-07 | B145: 73.94 | C145: 74.55 | D145: 74.54 | E145: 1728.676
A146: 2016-11-04 | B146: 75.27 | C146: 75.41 | D146: 73.75 | E146: 1841.669
A147: 2016-11-03 | B147: 73.62 | C147: 74.275 | D147: 73.87 | E147: 1516.961
A148: 2016-11-02 | B148: 74.03 | C148: 74.14 | D148: 73.82 | E148: 1870.246
A149: 2016-11-01 | B149: 75.48 | C149: 75.48 | D149: 74.05 | E149: 1635.261
A150: 2016-10-31 | B150: 74.22 | C150: 76.025 | D150: 75.55 | E150: 2506.876
A151: 2016-10-28 | B151: 73.61 | C151: 74.25 | D151: 73.99 | E151: 1108.933
A152: 2016-10-27 | B152: 73.57 | C152: 73.92 | D152: 73.47 | E152: 1256.326
A153: 2016-10-26 | B153: 73.57 | C153: 74 | D153: 73.88 | E153: 965.606
A154: 2016-10-25 | B154: 73.12 | C154: 73.73 | D154: 73.65 | E154: 1273.483
A155: 2016-10-24 | B155: 73.61 | C155: 73.72 | D155: 73.17 | E155: 1268.405
A156: 2016-10-21 | B156: 73.22 | C156: 73.55 | D156: 73.17 | E156: 1054.103
A157: 2016-10-20 | B157: 73.53 | C157: 74.25 | D157: 73.62 | E157: 989.415
A158: 2016-10-19 | B158: 73.26 | C158: 73.79 | D158: 73.44 | E158: 1486.944
A159: 2016-10-18 | B159: 73.42 | C159: 73.68 | D159: 73.24 | E159: 1670.279
A160: 2016-10-17 | B160: 72.73 | C160: 73.12 | D160: 73 | E160: 1164.519
A161: 2016-10-14 | B161: 72.65 | C161: 73.38 | D161: 72.49 | E161: 1288.225
A162: 2016-10-13 | B162: 72.23 | C162: 73.6 | D162: 72.94 | E162: 1583.434
A163: 2016-10-12 | B163: 71.76 | C163: 72.3 | D163: 72.07 | E163: 1675.881
A164: 2016-10-11 | B164: 71.91 | C164: 72.33 | D164: 71.66 | E164: 2069.891
A165: 2016-10-10 | B165: 71.99 | C165: 72.52 | D165: 72.2 | E165: 1340.282
A166: 2016-10-07 | B166: 72.8 | C166: 73.56 | D166: 72.03 | E166: 2096.558
A167: 2016-10-06 | B167: 72.25 | C167: 72.83 | D167: 72.33 | E167: 2003.435
A168: 2016-10-05 | B168: 72.82 | C168: 73.405 | D168: 72.5 | E168: 2341.94
A169: 2016-10-04 | B169: 74.12 | C169: 74.12 | D169: 72.77 | E169: 2553.591
A170: 2016-10-03 | B170: 75.15 | C170: 75.21 | D170: 74.24 | E170: 1937.322
A171: 2016-09-30 | B171: 76.79 | C171: 77.11 | D171: 75.3 | E171: 2978.93
A172: 2016-09-29 | B172: 76.91 | C172: 76.9647 | D172: 76.53 | E172: 1639.664
A173: 2016-09-28 | B173: 77.92 | C173: 78.04 | D173: 77.17 | E173: 1719.324
A174: 2016-09-27 | B174: 79.15 | C174: 79.54 | D174: 77.85 | E174: 1679.931
A175: 2016-09-26 | B175: 78.71 | C175: 78.985 | D175: 78.66 | E175: 1526.091
A176: 2016-09-23 | B176: 78.6 | C176: 79.02 | D176: 78.68 | E176: 1239.138
A177: 2016-09-22 | B177: 78.36 | C177: 79 | D177: 78.85 | E177: 1928.025
A178: 2016-09-21 | B178: 76.46 | C178: 78.09 | D178: 78.06 | E178: 2023.471
A179: 2016-09-20 | B179: 76.63 | C179: 76.83 | D179: 76.54 | E179: 2458.376
A180: 2016-09-19 | B180: 75.3 | C180: 76.45 | D180: 76.4 | E180: 1755.159
A181: 2016-09-16 | B181: 74.41 | C181: 75.37 | D181: 75.31 | E181: 2897.845
A182: 2016-09-15 | B182: 74.16 | C182: 74.72 | D182: 74.56 | E182: 1410.793
A183: 2016-09-14 | B183: 73.95 | C183: 74.64 | D183: 74.13 | E183: 2025.385
A184: 2016-09-13 | B184: 74.48 | C184: 74.49 | D184: 73.23 | E184: 1658.454
A185: 2016-09-12 | B185: 73 | C185: 74.64 | D185: 74.45 | E185: 2496.71
A186: 2016-09-09 | B186: 74.88 | C186: 75.24 | D186: 72.95 | E186: 3302.935
A187: 2016-09-08 | B187: 75.81 | C187: 76.27 | D187: 75.87 | E187: 1484.794
A188: 2016-09-07 | B188: 76.2 | C188: 76.29 | D188: 76.01 | E188: 1171.301
A189: 2016-09-06 | B189: 75.58 | C189: 76.45 | D189: 76.28 | E189: 1160.819
A190: 2016-09-02 | B190: 74.89 | C190: 75.9 | D190: 75.55 | E190: 1625.926
A191: 2016-09-01 | B191: 75.15 | C191: 75.25 | D191: 74.88 | E191: 1023.607
A192: 2016-08-31 | B192: 74.68 | C192: 75.28 | D192: 75.25 | E192: 2252.033
A193: 2016-08-30 | B193: 75.07 | C193: 75.57 | D193: 74.6 | E193: 1218.573
A194: 2016-08-29 | B194: 75.11 | C194: 75.66 | D194: 75.25 | E194: 1857.386
A195: 2016-08-26 | B195: 76.5 | C195: 76.93 | D195: 74.77 | E195: 1126.803
A196: 2016-08-25 | B196: 76.4 | C196: 76.89 | D196: 76.45 | E196: 1221.947
A197: 2016-08-24 | B197: 76.23 | C197: 76.5 | D197: 76.32 | E197: 1291.532
A198: 2016-08-23 | B198: 76.69 | C198: 77.19 | D198: 76.46 | E198: 815.235
A199: 2016-08-22 | B199: 76.77 | C199: 77.14 | D199: 76.75 | E199: 931.087
A200: 2016-08-19 | B200: 77.04 | C200: 77.08 | D200: 76.5 | E200: 1860.56
... 309 more rows

Sheet CMS
A1: ='Div Yields'!C10 -> CMS | G1: Dividend | H1: 30 Day Avg | I1: 90 Day Avg | J1: 180 Day Avg | K1: 360 Day Avg | L1: 720 Day Avg
H2: =AVERAGE($D$4:$D$33) -> 45.843 | I2: =AVERAGE($D$4:$D$93) -> 44.62511111 | J2: =AVERAGE($D$4:$D$183) -> 42.98072222 | K2: =AVERAGE($D$4:$D$363) -> 42.21422222 | L2: =AVERAGE($D$4:$D$507) -> 39.94652778
A3: Date | B3: Open | C3: High | D3: Close | E3: Volume (k) | G3: =INDEX(Master,MATCH($A$1,Tickers,0),MATCH(G1,Header,0)) -> 1.33 | H3: =$G3/H2 -> 0.02901206291 | I3: =$G3/I2 -> 0.02980384736 | J3: 0.03094410543 | K3: 0.03150596955 | L3: 0.03329450828
A4: 2017-06-01 | B4: 47.4 | C4: 47.68 | D4: 47.68 | E4: 1875.954
A5: 2017-05-31 | B5: 47.46 | C5: 47.695 | D5: 47.41 | E5: 4071.771
A6: 2017-05-30 | B6: 47.39 | C6: 47.61 | D6: 47.48 | E6: 2108.661
A7: 2017-05-26 | B7: 47.34 | C7: 47.5 | D7: 47.41 | E7: 1320.112
A8: 2017-05-25 | B8: 46.81 | C8: 47.435 | D8: 47.41 | E8: 1631.204
A9: 2017-05-24 | B9: 46.66 | C9: 46.85 | D9: 46.82 | E9: 2672.869
A10: 2017-05-23 | B10: 46.48 | C10: 46.94 | D10: 46.67 | E10: 1864.667
A11: 2017-05-22 | B11: 45.87 | C11: 46.52 | D11: 46.47 | E11: 2185.848
A12: 2017-05-19 | B12: 45.77 | C12: 46.08 | D12: 46.05 | E12: 2110.728
A13: 2017-05-18 | B13: 45.63 | C13: 45.96 | D13: 45.75 | E13: 2172.429
A14: 2017-05-17 | B14: 45.43 | C14: 45.76 | D14: 45.56 | E14: 2277.249
A15: 2017-05-16 | B15: 45.56 | C15: 45.69 | D15: 45.31 | E15: 1310.502
A16: 2017-05-15 | B16: 45.49 | C16: 45.77 | D16: 45.71 | E16: 1050.638
A17: 2017-05-12 | B17: 45.27 | C17: 45.62 | D17: 45.54 | E17: 1613.451
A18: 2017-05-11 | B18: 45.06 | C18: 45.25 | D18: 45.2 | E18: 1158.536
A19: 2017-05-10 | B19: 44.93 | C19: 45.275 | D19: 45.18 | E19: 1847.268
A20: 2017-05-09 | B20: 45.42 | C20: 45.44 | D20: 44.9 | E20: 1640.436
A21: 2017-05-08 | B21: 45.55 | C21: 45.55 | D21: 45.48 | E21: 1360.963
A22: 2017-05-05 | B22: 45.09 | C22: 45.58 | D22: 45.44 | E22: 1444.2
A23: 2017-05-04 | B23: 44.77 | C23: 45.18 | D23: 45.13 | E23: 1520.866
A24: 2017-05-03 | B24: 45.09 | C24: 45.25 | D24: 44.98 | E24: 2287.109
A25: 2017-05-02 | B25: 45.29 | C25: 45.49 | D25: 45.32 | E25: 2017.32
A26: 2017-05-01 | B26: 45.74 | C26: 45.94 | D26: 45.15 | E26: 1891.32
A27: 2017-04-28 | B27: 45.42 | C27: 45.58 | D27: 45.4 | E27: 2022.603
A28: 2017-04-27 | B28: 45.41 | C28: 45.85 | D28: 45.49 | E28: 1286.752
A29: 2017-04-26 | B29: 45.43 | C29: 45.75 | D29: 45.36 | E29: 1294.92
A30: 2017-04-25 | B30: 45.3 | C30: 45.56 | D30: 45.51 | E30: 1258.263
A31: 2017-04-24 | B31: 45.23 | C31: 45.525 | D31: 45.47 | E31: 1725.039
A32: 2017-04-21 | B32: 44.82 | C32: 45.3 | D32: 45.19 | E32: 1848.454
A33: 2017-04-20 | B33: 45.07 | C33: 45.07 | D33: 44.82 | E33: 2972.215
A34: 2017-04-19 | B34: 45.6 | C34: 45.71 | D34: 45.14 | E34: 2974.779
A35: 2017-04-18 | B35: 45.56 | C35: 45.76 | D35: 45.69 | E35: 1434.786
A36: 2017-04-17 | B36: 45.41 | C36: 45.55 | D36: 45.55 | E36: 1368.318
A37: 2017-04-13 | B37: 45.52 | C37: 45.56 | D37: 45.21 | E37: 2159.757
A38: 2017-04-12 | B38: 45.22 | C38: 45.77 | D38: 45.55 | E38: 3647.011
A39: 2017-04-11 | B39: 45.16 | C39: 45.39 | D39: 45.3 | E39: 1757.266
A40: 2017-04-10 | B40: 44.95 | C40: 45.28 | D40: 45.24 | E40: 1523.564
A41: 2017-04-07 | B41: 45.27 | C41: 45.345 | D41: 44.95 | E41: 1974.931
A42: 2017-04-06 | B42: 45.11 | C42: 45.22 | D42: 45.1 | E42: 1816.338
A43: 2017-04-05 | B43: 44.9 | C43: 45.3 | D43: 45.26 | E43: 2054.604
A44: 2017-04-04 | B44: 44.82 | C44: 45.1 | D44: 44.91 | E44: 1022.548
A45: 2017-04-03 | B45: 44.76 | C45: 44.84 | D45: 44.83 | E45: 1477.284
A46: 2017-03-31 | B46: 44.63 | C46: 44.91 | D46: 44.74 | E46: 1735.2
A47: 2017-03-30 | B47: 44.7 | C47: 44.72 | D47: 44.63 | E47: 1549.872
A48: 2017-03-29 | B48: 45.01 | C48: 45.07 | D48: 44.82 | E48: 1581.12
A49: 2017-03-28 | B49: 45.09 | C49: 45.21 | D49: 45.16 | E49: 1943.373
A50: 2017-03-27 | B50: 45.48 | C50: 45.5465 | D50: 45.1 | E50: 1344.849
A51: 2017-03-24 | B51: 45.12 | C51: 45.4314 | D51: 45.28 | E51: 1797.21
A52: 2017-03-23 | B52: 45.07 | C52: 45.49 | D52: 45.1 | E52: 2001.603
A53: 2017-03-22 | B53: 45.22 | C53: 45.55 | D53: 45.19 | E53: 1985.084
A54: 2017-03-21 | B54: 44.19 | C54: 45.14 | D54: 45.01 | E54: 1841.44
A55: 2017-03-20 | B55: 44.77 | C55: 44.88 | D55: 44.25 | E55: 2242.29
A56: 2017-03-17 | B56: 44.52 | C56: 44.88 | D56: 44.71 | E56: 2783.392
A57: 2017-03-16 | B57: 44.78 | C57: 44.78 | D57: 44.39 | E57: 1903.176
A58: 2017-03-15 | B58: 44.27 | C58: 45.25 | D58: 45 | E58: 1547.23
A59: 2017-03-14 | B59: 44.22 | C59: 44.34 | D59: 44.23 | E59: 1379.1
A60: 2017-03-13 | B60: 44.18 | C60: 44.29 | D60: 44.19 | E60: 1770.102
A61: 2017-03-10 | B61: 43.99 | C61: 44.1775 | D61: 44.14 | E61: 2791.758
A62: 2017-03-09 | B62: 43.69 | C62: 44 | D62: 43.72 | E62: 2087.45
A63: 2017-03-08 | B63: 44.11 | C63: 44.11 | D63: 43.67 | E63: 1493.19
A64: 2017-03-07 | B64: 44.31 | C64: 44.54 | D64: 44.44 | E64: 1507.448
A65: 2017-03-06 | B65: 44.38 | C65: 44.46 | D65: 44.35 | E65: 1835.449
A66: 2017-03-03 | B66: 44.52 | C66: 44.52 | D66: 44.3 | E66: 1642.368
A67: 2017-03-02 | B67: 44.04 | C67: 44.83 | D67: 44.52 | E67: 1799.153
A68: 2017-03-01 | B68: 44 | C68: 44.42 | D68: 44.13 | E68: 2982.296
A69: 2017-02-28 | B69: 44.14 | C69: 44.68 | D69: 44.52 | E69: 2874.911
A70: 2017-02-27 | B70: 44.67 | C70: 44.69 | D70: 44.3 | E70: 2001.722
A71: 2017-02-24 | B71: 44.39 | C71: 44.72 | D71: 44.68 | E71: 2406.809
A72: 2017-02-23 | B72: 43.95 | C72: 44.32 | D72: 44.19 | E72: 1701.91
A73: 2017-02-22 | B73: 43.6 | C73: 43.84 | D73: 43.76 | E73: 1138.272
A74: 2017-02-21 | B74: 43.23 | C74: 43.67 | D74: 43.54 | E74: 1188.029
A75: 2017-02-17 | B75: 43.16 | C75: 43.27 | D75: 43.22 | E75: 1827.951
A76: 2017-02-16 | B76: 42.78 | C76: 43.16 | D76: 43.09 | E76: 1297.142
A77: 2017-02-15 | B77: 42.41 | C77: 42.85 | D77: 42.77 | E77: 1737.229
A78: 2017-02-14 | B78: 42.99 | C78: 43.1 | D78: 42.78 | E78: 1308.71
A79: 2017-02-13 | B79: 42.97 | C79: 43.16 | D79: 43.13 | E79: 1192.689
A80: 2017-02-10 | B80: 42.64 | C80: 43.01 | D80: 42.93 | E80: 1357.623
A81: 2017-02-09 | B81: 42.84 | C81: 43.13 | D81: 42.74 | E81: 1255.205
A82: 2017-02-08 | B82: 42.61 | C82: 43.03 | D82: 42.9 | E82: 1673.433
A83: 2017-02-07 | B83: 42.49 | C83: 42.635 | D83: 42.51 | E83: 1375.724
A84: 2017-02-06 | B84: 42.8 | C84: 42.9 | D84: 42.45 | E84: 1415.143
A85: 2017-02-03 | B85: 42.97 | C85: 43 | D85: 42.62 | E85: 1740.775
A86: 2017-02-02 | B86: 41.86 | C86: 43.62 | D86: 42.76 | E86: 3616.581
A87: 2017-02-01 | B87: 42 | C87: 42.33 | D87: 42.12 | E87: 3072.079
A88: 2017-01-31 | B88: 42.17 | C88: 42.61 | D88: 42.6 | E88: 2529.719
A89: 2017-01-30 | B89: 42.04 | C89: 42.115 | D89: 42.04 | E89: 2357.647
A90: 2017-01-27 | B90: 42.09 | C90: 42.13 | D90: 41.78 | E90: 1110.669
A91: 2017-01-26 | B91: 41.72 | C91: 42.045 | D91: 41.96 | E91: 1375.984
A92: 2017-01-25 | B92: 41.87 | C92: 42 | D92: 41.81 | E92: 1498.116
A93: 2017-01-24 | B93: 42.19 | C93: 42.32 | D93: 41.97 | E93: 1300.973
A94: 2017-01-23 | B94: 42.39 | C94: 42.54 | D94: 42.29 | E94: 2148.439
A95: 2017-01-20 | B95: 42.2 | C95: 42.38 | D95: 42.33 | E95: 1972.791
A96: 2017-01-19 | B96: 41.93 | C96: 42.36 | D96: 42.13 | E96: 1975.227
A97: 2017-01-18 | B97: 42.17 | C97: 42.49 | D97: 42.19 | E97: 1907.368
A98: 2017-01-17 | B98: 42.05 | C98: 42.545 | D98: 42.2 | E98: 1649.724
A99: 2017-01-13 | B99: 41.82 | C99: 42.13 | D99: 41.94 | E99: 1039.806
A100: 2017-01-12 | B100: 41.94 | C100: 42.04 | D100: 41.9 | E100: 1595.372
A101: 2017-01-11 | B101: 41.53 | C101: 41.96 | D101: 41.95 | E101: 1150.588
A102: 2017-01-10 | B102: 41.58 | C102: 41.66 | D102: 41.51 | E102: 1300.489
A103: 2017-01-09 | B103: 42.2 | C103: 42.55 | D103: 41.58 | E103: 2057.885
A104: 2017-01-06 | B104: 41.75 | C104: 42.26 | D104: 42.15 | E104: 1792.739
A105: 2017-01-05 | B105: 41.74 | C105: 42.12 | D105: 41.99 | E105: 2408.458
A106: 2017-01-04 | B106: 41.64 | C106: 41.98 | D106: 41.76 | E106: 2443.866
A107: 2017-01-03 | B107: 41.64 | C107: 41.65 | D107: 41.53 | E107: 1746.469
A108: 2016-12-30 | B108: 41.76 | C108: 41.98 | D108: 41.62 | E108: 1681.31
A109: 2016-12-29 | B109: 41.48 | C109: 41.88 | D109: 41.77 | E109: 1325.451
A110: 2016-12-28 | B110: 41.74 | C110: 41.7701 | D110: 41.3 | E110: 1070.993
A111: 2016-12-27 | B111: 41.63 | C111: 41.77 | D111: 41.69 | E111: 515.491
A112: 2016-12-23 | B112: 41.76 | C112: 41.76 | D112: 41.7 | E112: 602.585
A113: 2016-12-22 | B113: 41.57 | C113: 41.65 | D113: 41.59 | E113: 1178.393
A114: 2016-12-21 | B114: 41.72 | C114: 41.96 | D114: 41.56 | E114: 1028.631
A115: 2016-12-20 | B115: 41.86 | C115: 41.955 | D115: 41.71 | E115: 1730.613
A116: 2016-12-19 | B116: 41.81 | C116: 42 | D116: 41.89 | E116: 1802.953
A117: 2016-12-16 | B117: 40.93 | C117: 41.65 | D117: 41.5 | E117: 4077.463
A118: 2016-12-15 | B118: 40.69 | C118: 41.06 | D118: 40.9 | E118: 2354.487
A119: 2016-12-14 | B119: 41.76 | C119: 41.96 | D119: 40.82 | E119: 2522.674
A120: 2016-12-13 | B120: 41.81 | C120: 41.96 | D120: 41.53 | E120: 2935.998
A121: 2016-12-12 | B121: 40.93 | C121: 41.75 | D121: 41.72 | E121: 1866.443
A122: 2016-12-09 | B122: 40.51 | C122: 41.19 | D122: 41.12 | E122: 1656.587
A123: 2016-12-08 | B123: 40.32 | C123: 40.76 | D123: 40.61 | E123: 1610.706
A124: 2016-12-07 | B124: 40.08 | C124: 40.59 | D124: 40.57 | E124: 2024.864
A125: 2016-12-06 | B125: 40.08 | C125: 40.205 | D125: 39.92 | E125: 1349.418
A126: 2016-12-05 | B126: 39.77 | C126: 39.99 | D126: 39.92 | E126: 1809.698
A127: 2016-12-02 | B127: 39.94 | C127: 40.33 | D127: 39.94 | E127: 1676.853
A128: 2016-12-01 | B128: 39.95 | C128: 40.08 | D128: 39.69 | E128: 2025.284
A129: 2016-11-30 | B129: 41.24 | C129: 41.31 | D129: 40.22 | E129: 3212.627
A130: 2016-11-29 | B130: 41.4 | C130: 42.17 | D130: 41.84 | E130: 3253.791
A131: 2016-11-28 | B131: 40.79 | C131: 41.56 | D131: 41.52 | E131: 1870.802
A132: 2016-11-25 | B132: 39.88 | C132: 40.65 | D132: 40.6 | E132: 787.274
A133: 2016-11-23 | B133: 40.07 | C133: 40.5 | D133: 39.72 | E133: 2730.326
A134: 2016-11-22 | B134: 40.28 | C134: 40.69 | D134: 40.53 | E134: 2249.395
A135: 2016-11-21 | B135: 39.75 | C135: 40.275 | D135: 40.18 | E135: 2186.601
A136: 2016-11-18 | B136: 39.74 | C136: 39.99 | D136: 39.72 | E136: 1257.027
A137: 2016-11-17 | B137: 39.75 | C137: 40.12 | D137: 39.77 | E137: 1356.392
A138: 2016-11-16 | B138: 40.05 | C138: 40.27 | D138: 39.92 | E138: 1978.268
A139: 2016-11-15 | B139: 39.66 | C139: 40.12 | D139: 39.99 | E139: 2240.239
A140: 2016-11-14 | B140: 39.48 | C140: 39.63 | D140: 39.49 | E140: 1935.215
A141: 2016-11-11 | B141: 39.46 | C141: 40.22 | D141: 39.75 | E141: 2732.821
A142: 2016-11-10 | B142: 40.13 | C142: 40.33 | D142: 39.49 | E142: 3427.966
A143: 2016-11-09 | B143: 41.16 | C143: 41.16 | D143: 40.34 | E143: 2385.528
A144: 2016-11-08 | B144: 41.77 | C144: 42.27 | D144: 41.98 | E144: 1381.131
A145: 2016-11-07 | B145: 41.02 | C145: 41.71 | D145: 41.71 | E145: 1615.997
A146: 2016-11-04 | B146: 41.36 | C146: 41.69 | D146: 40.78 | E146: 1561.341
A147: 2016-11-03 | B147: 40.67 | C147: 41.3 | D147: 41.16 | E147: 1595.208
A148: 2016-11-02 | B148: 41.2 | C148: 41.21 | D148: 40.87 | E148: 1630.075
A149: 2016-11-01 | B149: 42.14 | C149: 42.2 | D149: 41.53 | E149: 2530.64
A150: 2016-10-31 | B150: 41.47 | C150: 42.545 | D150: 42.15 | E150: 2134.677
A151: 2016-10-28 | B151: 41.24 | C151: 41.525 | D151: 41.3 | E151: 2264.236
A152: 2016-10-27 | B152: 41.52 | C152: 41.8 | D152: 41.36 | E152: 2074.497
A153: 2016-10-26 | B153: 41.6 | C153: 41.87 | D153: 41.65 | E153: 2032.946
A154: 2016-10-25 | B154: 41.27 | C154: 41.62 | D154: 41.61 | E154: 1293.555
A155: 2016-10-24 | B155: 41.36 | C155: 41.53 | D155: 41.38 | E155: 1420.362
A156: 2016-10-21 | B156: 41.15 | C156: 41.31 | D156: 41.16 | E156: 1154.207
A157: 2016-10-20 | B157: 41.47 | C157: 41.865 | D157: 41.35 | E157: 1808.404
A158: 2016-10-19 | B158: 41.34 | C158: 41.53 | D158: 41.36 | E158: 2138.608
A159: 2016-10-18 | B159: 41.17 | C159: 41.605 | D159: 41.42 | E159: 1698.168
A160: 2016-10-17 | B160: 40.83 | C160: 41.08 | D160: 41.04 | E160: 1270.872
A161: 2016-10-14 | B161: 40.73 | C161: 41.11 | D161: 40.7 | E161: 1449.634
A162: 2016-10-13 | B162: 40.47 | C162: 41.24 | D162: 40.85 | E162: 2216.582
A163: 2016-10-12 | B163: 40.07 | C163: 40.535 | D163: 40.41 | E163: 1552.43
A164: 2016-10-11 | B164: 40.45 | C164: 40.59 | D164: 40.11 | E164: 2098.974
A165: 2016-10-10 | B165: 40.36 | C165: 40.67 | D165: 40.61 | E165: 1711.517
A166: 2016-10-07 | B166: 40.77 | C166: 41.15 | D166: 40.26 | E166: 1747.166
A167: 2016-10-06 | B167: 40.23 | C167: 40.59 | D167: 40.45 | E167: 1794.797
A168: 2016-10-05 | B168: 40.52 | C168: 40.98 | D168: 40.38 | E168: 2452.34
A169: 2016-10-04 | B169: 41.35 | C169: 41.4 | D169: 40.46 | E169: 2091.802
A170: 2016-10-03 | B170: 41.92 | C170: 41.92 | D170: 41.4 | E170: 1307.344
A171: 2016-09-30 | B171: 42.38 | C171: 42.66 | D171: 42.01 | E171: 2221.25
A172: 2016-09-29 | B172: 42.87 | C172: 42.87 | D172: 42.31 | E172: 1887.503
A173: 2016-09-28 | B173: 43.23 | C173: 43.4 | D173: 43 | E173: 1839.461
A174: 2016-09-27 | B174: 44.15 | C174: 44.44 | D174: 43.26 | E174: 2087.112
A175: 2016-09-26 | B175: 43.87 | C175: 44.15 | D175: 44.02 | E175: 2008.535
A176: 2016-09-23 | B176: 43.6 | C176: 44.22 | D176: 43.87 | E176: 2414.404
A177: 2016-09-22 | B177: 43.84 | C177: 43.9 | D177: 43.76 | E177: 1908.647
A178: 2016-09-21 | B178: 42.66 | C178: 43.615 | D178: 43.6 | E178: 1985.104
A179: 2016-09-20 | B179: 43.01 | C179: 43.13 | D179: 42.7 | E179: 1395.941
A180: 2016-09-19 | B180: 42.56 | C180: 42.87 | D180: 42.81 | E180: 1455.559
A181: 2016-09-16 | B181: 41.75 | C181: 42.41 | D181: 42.33 | E181: 3008.133
A182: 2016-09-15 | B182: 41.6 | C182: 41.89 | D182: 41.88 | E182: 2108.663
A183: 2016-09-14 | B183: 41.63 | C183: 41.88 | D183: 41.68 | E183: 2519.7
A184: 2016-09-13 | B184: 41.83 | C184: 41.85 | D184: 41.4 | E184: 4103.458
A185: 2016-09-12 | B185: 41.32 | C185: 41.96 | D185: 41.86 | E185: 2203.542
A186: 2016-09-09 | B186: 42.51 | C186: 42.54 | D186: 41.31 | E186: 2023.678
A187: 2016-09-08 | B187: 42.67 | C187: 43.04 | D187: 42.93 | E187: 1157.454
A188: 2016-09-07 | B188: 42.75 | C188: 42.96 | D188: 42.84 | E188: 1829.552
A189: 2016-09-06 | B189: 42.47 | C189: 42.93 | D189: 42.8 | E189: 1568.546
A190: 2016-09-02 | B190: 41.89 | C190: 42.42 | D190: 42.31 | E190: 1240.812
A191: 2016-09-01 | B191: 41.95 | C191: 42.01 | D191: 41.85 | E191: 1476.759
A192: 2016-08-31 | B192: 41.69 | C192: 42.02 | D192: 41.97 | E192: 1775.398
A193: 2016-08-30 | B193: 42.25 | C193: 42.52 | D193: 41.79 | E193: 1449.728
A194: 2016-08-29 | B194: 42.08 | C194: 42.47 | D194: 42.33 | E194: 1423.168
A195: 2016-08-26 | B195: 43.05 | C195: 43.17 | D195: 41.95 | E195: 1939.311
A196: 2016-08-25 | B196: 42.88 | C196: 43.04 | D196: 42.96 | E196: 1121.906
A197: 2016-08-24 | B197: 42.81 | C197: 42.93 | D197: 42.86 | E197: 1383.451
A198: 2016-08-23 | B198: 43.18 | C198: 43.45 | D198: 42.82 | E198: 1259.289
A199: 2016-08-22 | B199: 43.12 | C199: 43.38 | D199: 43.18 | E199: 1243.069
A200: 2016-08-19 | B200: 43.35 | C200: 43.51 | D200: 43.06 | E200: 1971.59
... 309 more rows

Sheet D
A1: ='Div Yields'!C11 -> D | G1: Dividend | H1: 30 Day Avg | I1: 90 Day Avg | J1: 180 Day Avg | K1: 360 Day Avg | L1: 720 Day Avg
H2: =AVERAGE($D$4:$D$33) -> 78.443 | I2: =AVERAGE($D$4:$D$93) -> 76.82655556 | J2: =AVERAGE($D$4:$D$183) -> 75.57133333 | K2: =AVERAGE($D$4:$D$363) -> 74.24641667 | L2: =AVERAGE($D$4:$D$507) -> 72.86232143
A3: Date | B3: Open | C3: High | D3: Close | E3: Volume (k) | G3: =INDEX(Master,MATCH($A$1,Tickers,0),MATCH(G1,Header,0)) -> 3.02 | H3: =$G3/H2 -> 0.03849929248 | I3: =$G3/I2 -> 0.03930932447 | J3: 0.03996224318 | K3: 0.04067536368 | L3: 0.04144803433
A4: 2017-06-01 | B4: 80.77 | C4: 81.41 | D4: 81.41 | E4: 2271.498
A5: 2017-05-31 | B5: 80.27 | C5: 81.13 | D5: 80.77 | E5: 2416.784
A6: 2017-05-30 | B6: 80.94 | C6: 81.3 | D6: 81.02 | E6: 1877.878
A7: 2017-05-26 | B7: 80.85 | C7: 81.19 | D7: 81.03 | E7: 2080.678
A8: 2017-05-25 | B8: 80.19 | C8: 81.07 | D8: 80.97 | E8: 1875.551
A9: 2017-05-24 | B9: 79.82 | C9: 80.34 | D9: 80.29 | E9: 1536.764
A10: 2017-05-23 | B10: 79.69 | C10: 80.36 | D10: 79.71 | E10: 2119.273
A11: 2017-05-22 | B11: 78.15 | C11: 79.83 | D11: 79.7 | E11: 2354.163
A12: 2017-05-19 | B12: 78.48 | C12: 78.6 | D12: 78.59 | E12: 2718.628
A13: 2017-05-18 | B13: 77.62 | C13: 78.59 | D13: 78.32 | E13: 3371.572
A14: 2017-05-17 | B14: 77.28 | C14: 77.93 | D14: 77.48 | E14: 2542.351
A15: 2017-05-16 | B15: 78.02 | C15: 78.16 | D15: 77.21 | E15: 2254.824
A16: 2017-05-15 | B16: 77.8 | C16: 78.16 | D16: 77.97 | E16: 1826.92
A17: 2017-05-12 | B17: 77.79 | C17: 78.28 | D17: 77.93 | E17: 1469.713
A18: 2017-05-11 | B18: 77.58 | C18: 77.71 | D18: 77.61 | E18: 1423.319
A19: 2017-05-10 | B19: 77.53 | C19: 77.9 | D19: 77.73 | E19: 1921.372
A20: 2017-05-09 | B20: 78.32 | C20: 78.47 | D20: 77.48 | E20: 1553.985
A21: 2017-05-08 | B21: 78.25 | C21: 78.6 | D21: 78.53 | E21: 2064.885
A22: 2017-05-05 | B22: 77.53 | C22: 78.53 | D22: 78.23 | E22: 2291.156
A23: 2017-05-04 | B23: 76.65 | C23: 77.385 | D23: 77.3 | E23: 2445.404
A24: 2017-05-03 | B24: 77.07 | C24: 77.23 | D24: 76.57 | E24: 2252.026
A25: 2017-05-02 | B25: 77.1 | C25: 77.33 | D25: 77.22 | E25: 1251.822
A26: 2017-05-01 | B26: 77.45 | C26: 77.55 | D26: 76.94 | E26: 1641.609
A27: 2017-04-28 | B27: 77.66 | C27: 77.84 | D27: 77.43 | E27: 2001.585
A28: 2017-04-27 | B28: 77.51 | C28: 77.935 | D28: 77.69 | E28: 1593.258
A29: 2017-04-26 | B29: 77.62 | C29: 78.01 | D29: 77.49 | E29: 1505.814
A30: 2017-04-25 | B30: 77.67 | C30: 77.9001 | D30: 77.7 | E30: 1787.686
A31: 2017-04-24 | B31: 77.64 | C31: 78.225 | D31: 78.07 | E31: 2543.271
A32: 2017-04-21 | B32: 77.47 | C32: 78.12 | D32: 77.54 | E32: 3471.946
A33: 2017-04-20 | B33: 77.24 | C33: 77.41 | D33: 77.36 | E33: 2603.619
A34: 2017-04-19 | B34: 77.84 | C34: 77.96 | D34: 77.34 | E34: 1883.916
A35: 2017-04-18 | B35: 77.9 | C35: 78.23 | D35: 77.99 | E35: 2540.68
A36: 2017-04-17 | B36: 77.66 | C36: 78.05 | D36: 77.94 | E36: 2751.544
A37: 2017-04-13 | B37: 78 | C37: 78 | D37: 77.53 | E37: 2637.247
A38: 2017-04-12 | B38: 77.38 | C38: 77.98 | D38: 77.93 | E38: 2246.694
A39: 2017-04-11 | B39: 77.63 | C39: 77.92 | D39: 77.48 | E39: 1814.223
A40: 2017-04-10 | B40: 77.64 | C40: 77.98 | D40: 77.91 | E40: 1809.531
A41: 2017-04-07 | B41: 78.36 | C41: 78.461 | D41: 77.59 | E41: 2160.496
A42: 2017-04-06 | B42: 78 | C42: 78.3646 | D42: 78.21 | E42: 2781.742
A43: 2017-04-05 | B43: 77.73 | C43: 78.08 | D43: 77.96 | E43: 1839.956
A44: 2017-04-04 | B44: 77.77 | C44: 78.01 | D44: 77.62 | E44: 1985.714
A45: 2017-04-03 | B45: 77.14 | C45: 77.77 | D45: 77.74 | E45: 1991.472
A46: 2017-03-31 | B46: 77.53 | C46: 77.97 | D46: 77.57 | E46: 2050.534
A47: 2017-03-30 | B47: 77.48 | C47: 77.485 | D47: 77.41 | E47: 1520.551
A48: 2017-03-29 | B48: 77.84 | C48: 77.93 | D48: 77.67 | E48: 1791.508
A49: 2017-03-28 | B49: 77.98 | C49: 78.18 | D49: 78.06 | E49: 2869.038
A50: 2017-03-27 | B50: 78.63 | C50: 78.73 | D50: 77.92 | E50: 2548.696
A51: 2017-03-24 | B51: 78.29 | C51: 78.62 | D51: 78.26 | E51: 2367.274
A52: 2017-03-23 | B52: 78.54 | C52: 78.9 | D52: 78.26 | E52: 2618.107
A53: 2017-03-22 | B53: 78.53 | C53: 79.36 | D53: 78.65 | E53: 3122.745
A54: 2017-03-21 | B54: 76.83 | C54: 78.6125 | D54: 78.21 | E54: 3246.719
A55: 2017-03-20 | B55: 77.57 | C55: 77.76 | D55: 76.83 | E55: 2149.325
A56: 2017-03-17 | B56: 77.09 | C56: 77.48 | D56: 77.12 | E56: 3797.826
A57: 2017-03-16 | B57: 78.04 | C57: 78.04 | D57: 76.8 | E57: 2652.318
A58: 2017-03-15 | B58: 76.6 | C58: 78.21 | D58: 77.85 | E58: 2779.689
A59: 2017-03-14 | B59: 75.93 | C59: 76.715 | D59: 76.33 | E59: 2088.974
A60: 2017-03-13 | B60: 75.62 | C60: 76.19 | D60: 76.09 | E60: 2728.587
A61: 2017-03-10 | B61: 75.25 | C61: 75.75 | D61: 75.67 | E61: 1623.676
A62: 2017-03-09 | B62: 75.21 | C62: 75.6989 | D62: 74.9 | E62: 1381.837
A63: 2017-03-08 | B63: 75.52 | C63: 75.65 | D63: 75.13 | E63: 1878.504
A64: 2017-03-07 | B64: 75.98 | C64: 76.38 | D64: 76.12 | E64: 2479.73
A65: 2017-03-06 | B65: 76.3 | C65: 76.541 | D65: 76.24 | E65: 1948.118
A66: 2017-03-03 | B66: 77.19 | C66: 77.21 | D66: 76.56 | E66: 2956.027
A67: 2017-03-02 | B67: 75.99 | C67: 77.805 | D67: 77.22 | E67: 2604.406
A68: 2017-03-01 | B68: 75.88 | C68: 76.65 | D68: 76.25 | E68: 2663.158
A69: 2017-02-28 | B69: 76.67 | C69: 78.035 | D69: 77.64 | E69: 2920.354
A70: 2017-02-27 | B70: 76.89 | C70: 77.05 | D70: 76.87 | E70: 3344.738
A71: 2017-02-24 | B71: 76.45 | C71: 77.19 | D71: 77 | E71: 2384.826
A72: 2017-02-23 | B72: 75.62 | C72: 76.29 | D72: 76.16 | E72: 2513.319
A73: 2017-02-22 | B73: 74.75 | C73: 75.44 | D73: 75.35 | E73: 3105.743
A74: 2017-02-21 | B74: 73.65 | C74: 75.09 | D74: 74.76 | E74: 3541.201
A75: 2017-02-17 | B75: 73.265 | C75: 73.84 | D75: 73.77 | E75: 3426.44
A76: 2017-02-16 | B76: 72.53 | C76: 73.38 | D76: 73.28 | E76: 3026.285
A77: 2017-02-15 | B77: 72.55 | C77: 72.8 | D77: 72.38 | E77: 3184.377
A78: 2017-02-14 | B78: 73.59 | C78: 73.68 | D78: 73.12 | E78: 2824.257
A79: 2017-02-13 | B79: 73.41 | C79: 73.88 | D79: 73.73 | E79: 2829.005
A80: 2017-02-10 | B80: 72.15 | C80: 73.45 | D80: 73.37 | E80: 3563.804
A81: 2017-02-09 | B81: 73.26 | C81: 73.48 | D81: 72.15 | E81: 3752.894
A82: 2017-02-08 | B82: 72.56 | C82: 73.5226 | D82: 73.34 | E82: 2711.568
A83: 2017-02-07 | B83: 72.26 | C83: 72.45 | D83: 72.35 | E83: 2436.244
A84: 2017-02-06 | B84: 72.05 | C84: 72.42 | D84: 72.21 | E84: 3223.784
A85: 2017-02-03 | B85: 71.72 | C85: 71.99 | D85: 71.7 | E85: 3695.367
A86: 2017-02-02 | B86: 71.87 | C86: 72.15 | D86: 71.68 | E86: 4336.571
A87: 2017-02-01 | B87: 74.36 | C87: 75.44 | D87: 71.85 | E87: 7279.632
A88: 2017-01-31 | B88: 75.31 | C88: 76.31 | D88: 76.28 | E88: 3056.221
A89: 2017-01-30 | B89: 75.78 | C89: 75.79 | D89: 75.26 | E89: 2287.021
A90: 2017-01-27 | B90: 75.69 | C90: 75.84 | D90: 75.52 | E90: 1393.807
A91: 2017-01-26 | B91: 75.72 | C91: 76.24 | D91: 75.69 | E91: 1537.726
A92: 2017-01-25 | B92: 75.46 | C92: 75.93 | D92: 75.81 | E92: 2161.131
A93: 2017-01-24 | B93: 75.53 | C93: 75.77 | D93: 75.47 | E93: 1898.206
A94: 2017-01-23 | B94: 75.91 | C94: 76.1 | D94: 75.58 | E94: 1530.681
A95: 2017-01-20 | B95: 75.73 | C95: 76.04 | D95: 75.79 | E95: 1739.289
A96: 2017-01-19 | B96: 75.78 | C96: 76.16 | D96: 75.62 | E96: 1397.366
A97: 2017-01-18 | B97: 75.99 | C97: 76.64 | D97: 76.17 | E97: 1913.87
A98: 2017-01-17 | B98: 75.57 | C98: 76.3573 | D98: 76.2 | E98: 2111.51
A99: 2017-01-13 | B99: 75.07 | C99: 75.43 | D99: 75.21 | E99: 1992.744
A100: 2017-01-12 | B100: 75.65 | C100: 75.84 | D100: 75.28 | E100: 2468.805
A101: 2017-01-11 | B101: 75.44 | C101: 75.91 | D101: 75.63 | E101: 1902.366
A102: 2017-01-10 | B102: 75.59 | C102: 75.68 | D102: 75.43 | E102: 1534.164
A103: 2017-01-09 | B103: 76.93 | C103: 76.98 | D103: 75.72 | E103: 1948.159
A104: 2017-01-06 | B104: 76.04 | C104: 77.045 | D104: 76.9 | E104: 1847.97
A105: 2017-01-05 | B105: 75.79 | C105: 76.34 | D105: 76.28 | E105: 2688.036
A106: 2017-01-04 | B106: 76.39 | C106: 76.69 | D106: 76.18 | E106: 3426.199
A107: 2017-01-03 | B107: 76.57 | C107: 76.69 | D107: 76.25 | E107: 3017.521
A108: 2016-12-30 | B108: 77.04 | C108: 77.13 | D108: 76.59 | E108: 2460.027
A109: 2016-12-29 | B109: 76.53 | C109: 77.325 | D109: 76.99 | E109: 2342.683
A110: 2016-12-28 | B110: 76.73 | C110: 76.97 | D110: 76.33 | E110: 1734.455
A111: 2016-12-27 | B111: 76.61 | C111: 76.96 | D111: 76.67 | E111: 1163.464
A112: 2016-12-23 | B112: 76.68 | C112: 76.76 | D112: 76.75 | E112: 1074.153
A113: 2016-12-22 | B113: 76.36 | C113: 76.7 | D113: 76.63 | E113: 1664.824
A114: 2016-12-21 | B114: 76.64 | C114: 77.16 | D114: 76.24 | E114: 1837.291
A115: 2016-12-20 | B115: 76.44 | C115: 76.65 | D115: 76.51 | E115: 2136.436
A116: 2016-12-19 | B116: 76.37 | C116: 76.65 | D116: 76.51 | E116: 2358.977
A117: 2016-12-16 | B117: 74.64 | C117: 76.19 | D117: 75.87 | E117: 5570.654
A118: 2016-12-15 | B118: 74.24 | C118: 74.93 | D118: 74.57 | E118: 2728.974
A119: 2016-12-14 | B119: 76.19 | C119: 76.56 | D119: 74.12 | E119: 3767.002
A120: 2016-12-13 | B120: 75.68 | C120: 76.07 | D120: 75.95 | E120: 2326.585
A121: 2016-12-12 | B121: 74.35 | C121: 75.84 | D121: 75.46 | E121: 2479.634
A122: 2016-12-09 | B122: 73.51 | C122: 74.61 | D122: 74.53 | E122: 2224.948
A123: 2016-12-08 | B123: 73.16 | C123: 73.6 | D123: 73.5 | E123: 1868.998
A124: 2016-12-07 | B124: 73 | C124: 73.58 | D124: 73.5 | E124: 3935.36
A125: 2016-12-06 | B125: 73.55 | C125: 73.57 | D125: 72.71 | E125: 2897.868
A126: 2016-12-05 | B126: 73.46 | C126: 73.56 | D126: 73.48 | E126: 2851.263
A127: 2016-12-02 | B127: 73.37 | C127: 74.03 | D127: 73.78 | E127: 2952.469
A128: 2016-12-01 | B128: 72.93 | C128: 73.06 | D128: 72.75 | E128: 3178.074
A129: 2016-11-30 | B129: 74.64 | C129: 74.76 | D129: 73.29 | E129: 4406.989
A130: 2016-11-29 | B130: 74.84 | C130: 76.3 | D130: 76.11 | E130: 3376.858
A131: 2016-11-28 | B131: 74.14 | C131: 75.33 | D131: 75.17 | E131: 2580.249
A132: 2016-11-25 | B132: 73.01 | C132: 74.39 | D132: 73.95 | E132: 1392.659
A133: 2016-11-23 | B133: 72.47 | C133: 73.29 | D133: 72.87 | E133: 3358.893
A134: 2016-11-22 | B134: 72.1 | C134: 73.34 | D134: 73.19 | E134: 3421.407
A135: 2016-11-21 | B135: 71.39 | C135: 72.25 | D135: 72.25 | E135: 2118.482
A136: 2016-11-18 | B136: 71.06 | C136: 71.43 | D136: 71.15 | E136: 2696.455
A137: 2016-11-17 | B137: 70.77 | C137: 71.53 | D137: 71.03 | E137: 2766.355
A138: 2016-11-16 | B138: 71.44 | C138: 71.6799 | D138: 71.05 | E138: 2913.975
A139: 2016-11-15 | B139: 70.34 | C139: 71.44 | D139: 71.24 | E139: 3861.39
A140: 2016-11-14 | B140: 70.51 | C140: 70.64 | D140: 69.99 | E140: 4551.717
A141: 2016-11-11 | B141: 71.19 | C141: 71.75 | D141: 70.76 | E141: 2577.751
A142: 2016-11-10 | B142: 72.86 | C142: 72.88 | D142: 71.13 | E142: 4171.762
A143: 2016-11-09 | B143: 74.05 | C143: 74.25 | D143: 73.22 | E143: 3046.702
A144: 2016-11-08 | B144: 74.86 | C144: 75.81 | D144: 75.5 | E144: 1820.797
A145: 2016-11-07 | B145: 74.22 | C145: 74.74 | D145: 74.72 | E145: 2417.584
A146: 2016-11-04 | B146: 74.64 | C146: 75.165 | D146: 73.79 | E146: 2638.075
A147: 2016-11-03 | B147: 73.91 | C147: 74.56 | D147: 74.35 | E147: 1837.924
A148: 2016-11-02 | B148: 74.48 | C148: 74.53 | D148: 74.1 | E148: 2945.188
A149: 2016-11-01 | B149: 75.03 | C149: 75.145 | D149: 74.46 | E149: 2575.994
A150: 2016-10-31 | B150: 73.98 | C150: 75.91 | D150: 75.2 | E150: 4056.57
A151: 2016-10-28 | B151: 73.38 | C151: 73.78 | D151: 73.49 | E151: 1767.661
A152: 2016-10-27 | B152: 73.43 | C152: 73.8 | D152: 73.3 | E152: 1772.485
A153: 2016-10-26 | B153: 73.29 | C153: 73.93 | D153: 73.83 | E153: 1685.624
A154: 2016-10-25 | B154: 73.12 | C154: 73.455 | D154: 73.4 | E154: 2079.497
A155: 2016-10-24 | B155: 73.13 | C155: 73.35 | D155: 73.12 | E155: 2433.042
A156: 2016-10-21 | B156: 72.66 | C156: 73.06 | D156: 72.84 | E156: 1510.791
A157: 2016-10-20 | B157: 73.28 | C157: 73.47 | D157: 73.11 | E157: 1313.779
A158: 2016-10-19 | B158: 73.4 | C158: 73.51 | D158: 73.21 | E158: 1763.275
A159: 2016-10-18 | B159: 73.32 | C159: 73.72 | D159: 73.37 | E159: 1641.8
A160: 2016-10-17 | B160: 73.03 | C160: 73.3 | D160: 72.83 | E160: 1613.69
A161: 2016-10-14 | B161: 73.16 | C161: 73.47 | D161: 72.78 | E161: 1694.062
A162: 2016-10-13 | B162: 72.16 | C162: 73.88 | D162: 73.31 | E162: 3113.715
A163: 2016-10-12 | B163: 71.72 | C163: 72.34 | D163: 72.16 | E163: 1541.202
A164: 2016-10-11 | B164: 72.2 | C164: 72.28 | D164: 71.69 | E164: 2573.31
A165: 2016-10-10 | B165: 71.6 | C165: 72.31 | D165: 72.22 | E165: 1827.58
A166: 2016-10-07 | B166: 72.4 | C166: 73.1 | D166: 71.5 | E166: 1882.762
A167: 2016-10-06 | B167: 71.63 | C167: 72.28 | D167: 71.91 | E167: 2105.852
A168: 2016-10-05 | B168: 72.2 | C168: 72.64 | D168: 71.88 | E168: 3053.06
A169: 2016-10-04 | B169: 73.08 | C169: 73.1 | D169: 72.15 | E169: 3177.488
A170: 2016-10-03 | B170: 74.21 | C170: 74.21 | D170: 73.28 | E170: 2487.6
A171: 2016-09-30 | B171: 75.1 | C171: 75.32 | D171: 74.27 | E171: 3153.613
A172: 2016-09-29 | B172: 75.84 | C172: 75.95 | D172: 74.75 | E172: 2446.539
A173: 2016-09-28 | B173: 75.98 | C173: 76.115 | D173: 75.84 | E173: 2037.478
A174: 2016-09-27 | B174: 76.9 | C174: 77.25 | D174: 75.78 | E174: 2936.914
A175: 2016-09-26 | B175: 77.03 | C175: 77.22 | D175: 76.6 | E175: 2521.747
A176: 2016-09-23 | B176: 76.84 | C176: 77.24 | D176: 77.01 | E176: 2050.553
A177: 2016-09-22 | B177: 77 | C177: 77.32 | D177: 77.04 | E177: 2083.062
A178: 2016-09-21 | B178: 75.75 | C178: 76.78 | D178: 76.75 | E178: 2784.743
A179: 2016-09-20 | B179: 76.25 | C179: 76.36 | D179: 75.63 | E179: 2432.142
A180: 2016-09-19 | B180: 75.12 | C180: 75.93 | D180: 75.9 | E180: 2133.317
A181: 2016-09-16 | B181: 74.25 | C181: 75.3 | D181: 75.06 | E181: 4744.365
A182: 2016-09-15 | B182: 73.86 | C182: 74.62 | D182: 74.45 | E182: 2162.971
A183: 2016-09-14 | B183: 73.66 | C183: 74.41 | D183: 73.79 | E183: 1811.986
A184: 2016-09-13 | B184: 73.86 | C184: 74.03 | D184: 73.52 | E184: 3079.119
A185: 2016-09-12 | B185: 72.57 | C185: 74.22 | D185: 74.05 | E185: 3193.765
A186: 2016-09-09 | B186: 74.9 | C186: 74.96 | D186: 72.5 | E186: 2994.926
A187: 2016-09-08 | B187: 75.18 | C187: 75.59 | D187: 75.51 | E187: 2603.931
A188: 2016-09-07 | B188: 75.32 | C188: 75.6601 | D188: 75.39 | E188: 1662.533
A189: 2016-09-06 | B189: 75.21 | C189: 75.82 | D189: 75.5 | E189: 2477.423
A190: 2016-09-02 | B190: 74.05 | C190: 75.09 | D190: 74.75 | E190: 1794.941
A191: 2016-09-01 | B191: 74.18 | C191: 74.34 | D191: 74.06 | E191: 2144.244
A192: 2016-08-31 | B192: 73.99 | C192: 74.34 | D192: 74.16 | E192: 3448.82
A193: 2016-08-30 | B193: 75.65 | C193: 76.02 | D193: 74.95 | E193: 2415.477
A194: 2016-08-29 | B194: 75.09 | C194: 75.69 | D194: 75.69 | E194: 3758.852
A195: 2016-08-26 | B195: 76.27 | C195: 76.89 | D195: 74.74 | E195: 3243.742
A196: 2016-08-25 | B196: 76.02 | C196: 76.56 | D196: 76.24 | E196: 2193.258
A197: 2016-08-24 | B197: 75.6 | C197: 76.2225 | D197: 76.12 | E197: 2155.391
A198: 2016-08-23 | B198: 76.38 | C198: 76.78 | D198: 75.83 | E198: 2096.191
A199: 2016-08-22 | B199: 75.95 | C199: 76.58 | D199: 76.28 | E199: 2308.195
A200: 2016-08-19 | B200: 76.49 | C200: 76.63 | D200: 75.8 | E200: 3134.504
... 309 more rows

Sheet DTE
A1: ='Div Yields'!C12 -> DTE | G1: Dividend | H1: 30 Day Avg | I1: 90 Day Avg | J1: 180 Day Avg | K1: 360 Day Avg | L1: 720 Day Avg
H2: =AVERAGE($D$4:$D$33) -> 105.6936667 | I2: =AVERAGE($D$4:$D$93) -> 102.2574444 | J2: =AVERAGE($D$4:$D$183) -> 98.66644444 | K2: =AVERAGE($D$4:$D$363) -> 94.38008333 | L2: =AVERAGE($D$4:$D$507) -> 89.99478175
A3: Date | B3: Open | C3: High | D3: Close | E3: Volume (k) | G3: =INDEX(Master,MATCH($A$1,Tickers,0),MATCH(G1,Header,0)) -> 3.3 | H3: =$G3/H2 -> 0.03122230597 | I3: =$G3/I2 -> 0.03227148906 | J3: 0.03344602127 | K3: 0.03496500409 | L3: 0.03666879275
A4: 2017-06-01 | B4: 109.38 | C4: 110.47 | D4: 110.41 | E4: 653.913
A5: 2017-05-31 | B5: 109.22 | C5: 109.89 | D5: 109.52 | E5: 991.683
A6: 2017-05-30 | B6: 108.88 | C6: 109.49 | D6: 109.15 | E6: 871.745
A7: 2017-05-26 | B7: 108.52 | C7: 109.18 | D7: 108.88 | E7: 454.85
A8: 2017-05-25 | B8: 108.04 | C8: 109.08 | D8: 108.98 | E8: 688.125
A9: 2017-05-24 | B9: 107.28 | C9: 107.95 | D9: 107.92 | E9: 540.644
A10: 2017-05-23 | B10: 107 | C10: 108.25 | D10: 107.37 | E10: 805.424
A11: 2017-05-22 | B11: 105.96 | C11: 107.12 | D11: 107.04 | E11: 762.657
A12: 2017-05-19 | B12: 105.43 | C12: 106.11 | D12: 106.03 | E12: 892.117
A13: 2017-05-18 | B13: 105.54 | C13: 106.205 | D13: 105.34 | E13: 697.751
A14: 2017-05-17 | B14: 104.96 | C14: 105.71 | D14: 105.17 | E14: 627.255
A15: 2017-05-16 | B15: 105.85 | C15: 106.15 | D15: 104.8 | E15: 534.225
A16: 2017-05-15 | B16: 105.32 | C16: 106.01 | D16: 105.95 | E16: 664.993
A17: 2017-05-12 | B17: 104.82 | C17: 105.43 | D17: 105.42 | E17: 522.014
A18: 2017-05-11 | B18: 104.2 | C18: 104.77 | D18: 104.76 | E18: 546.932
A19: 2017-05-10 | B19: 103.99 | C19: 104.625 | D19: 104.62 | E19: 643.366
A20: 2017-05-09 | B20: 104.48 | C20: 104.5 | D20: 103.97 | E20: 564.743
A21: 2017-05-08 | B21: 104.76 | C21: 104.76 | D21: 104.49 | E21: 511.571
A22: 2017-05-05 | B22: 104.46 | C22: 105.15 | D22: 104.54 | E22: 673.194
A23: 2017-05-04 | B23: 103.78 | C23: 104.28 | D23: 104.19 | E23: 953.256
A24: 2017-05-03 | B24: 104.09 | C24: 104.39 | D24: 103.84 | E24: 478.813
A25: 2017-05-02 | B25: 104.15 | C25: 104.53 | D25: 104.26 | E25: 640.513
A26: 2017-05-01 | B26: 104.76 | C26: 104.76 | D26: 103.94 | E26: 480.587
A27: 2017-04-28 | B27: 104.99 | C27: 105.06 | D27: 104.59 | E27: 840.169
A28: 2017-04-27 | B28: 104.68 | C28: 105.81 | D28: 105.07 | E28: 1330.777
A29: 2017-04-26 | B29: 104.04 | C29: 105.1599 | D29: 104.44 | E29: 1225.574
A30: 2017-04-25 | B30: 104.07 | C30: 104.53 | D30: 104.28 | E30: 872.91
A31: 2017-04-24 | B31: 104.15 | C31: 104.47 | D31: 104.45 | E31: 973.765
A32: 2017-04-21 | B32: 103.4 | C32: 104.41 | D32: 103.95 | E32: 1639.941
A33: 2017-04-20 | B33: 103.72 | C33: 103.72 | D33: 103.44 | E33: 904.558
A34: 2017-04-19 | B34: 104.45 | C34: 104.53 | D34: 103.84 | E34: 531.951
A35: 2017-04-18 | B35: 104.4 | C35: 104.84 | D35: 104.42 | E35: 658.74
A36: 2017-04-17 | B36: 103.61 | C36: 104.51 | D36: 104.44 | E36: 942.146
A37: 2017-04-13 | B37: 103.93 | C37: 104.1 | D37: 103.51 | E37: 826.603
A38: 2017-04-12 | B38: 103.29 | C38: 104.09 | D38: 103.96 | E38: 945.09
A39: 2017-04-11 | B39: 103.2 | C39: 103.44 | D39: 103.13 | E39: 756.107
A40: 2017-04-10 | B40: 102.84 | C40: 103.43 | D40: 103.2 | E40: 909.309
A41: 2017-04-07 | B41: 103.18 | C41: 103.62 | D41: 102.97 | E41: 790.042
A42: 2017-04-06 | B42: 102.78 | C42: 103.19 | D42: 102.97 | E42: 772.824
A43: 2017-04-05 | B43: 102.15 | C43: 103.25 | D43: 103.13 | E43: 1106.12
A44: 2017-04-04 | B44: 101.81 | C44: 102.67 | D44: 102.24 | E44: 747.799
A45: 2017-04-03 | B45: 101.95 | C45: 102.09 | D45: 101.66 | E45: 1273.089
A46: 2017-03-31 | B46: 101.21 | C46: 102.22 | D46: 102.11 | E46: 1355.842
A47: 2017-03-30 | B47: 101.56 | C47: 101.9 | D47: 101.27 | E47: 579.37
A48: 2017-03-29 | B48: 101.47 | C48: 102.04 | D48: 101.78 | E48: 844.965
A49: 2017-03-28 | B49: 101.72 | C49: 102.24 | D49: 101.7 | E49: 861.897
A50: 2017-03-27 | B50: 102.59 | C50: 102.86 | D50: 101.89 | E50: 765.541
A51: 2017-03-24 | B51: 101.75 | C51: 102.34 | D51: 102.17 | E51: 577.782
A52: 2017-03-23 | B52: 101.73 | C52: 102.59 | D52: 101.6 | E52: 642.054
A53: 2017-03-22 | B53: 101.99 | C53: 102.6 | D53: 101.88 | E53: 760.539
A54: 2017-03-21 | B54: 100.18 | C54: 101.89 | D54: 101.47 | E54: 979.593
A55: 2017-03-20 | B55: 100.99 | C55: 101.31 | D55: 100.23 | E55: 671.393
A56: 2017-03-17 | B56: 100.46 | C56: 101.45 | D56: 100.9 | E56: 1687.596
A57: 2017-03-16 | B57: 101.43 | C57: 101.43 | D57: 100.21 | E57: 988.267
A58: 2017-03-15 | B58: 100.9 | C58: 102.96 | D58: 102.56 | E58: 1010.505
A59: 2017-03-14 | B59: 100.73 | C59: 100.84 | D59: 100.49 | E59: 766.211
A60: 2017-03-13 | B60: 100.25 | C60: 100.69 | D60: 100.61 | E60: 893.368
A61: 2017-03-10 | B61: 100.4 | C61: 100.69 | D61: 100.26 | E61: 911.209
A62: 2017-03-09 | B62: 100.11 | C62: 100.86 | D62: 99.72 | E62: 1041.642
A63: 2017-03-08 | B63: 100.64 | C63: 100.8753 | D63: 100.11 | E63: 885.219
A64: 2017-03-07 | B64: 101.57 | C64: 101.93 | D64: 101.55 | E64: 1025.996
A65: 2017-03-06 | B65: 100.96 | C65: 101.9525 | D65: 101.66 | E65: 922.465
A66: 2017-03-03 | B66: 101.64 | C66: 101.64 | D66: 101.13 | E66: 1069.23
A67: 2017-03-02 | B67: 100.81 | C67: 102.1 | D67: 101.54 | E67: 630.17
A68: 2017-03-01 | B68: 100.62 | C68: 101.81 | D68: 100.92 | E68: 1112.347
A69: 2017-02-28 | B69: 100.86 | C69: 101.55 | D69: 101.38 | E69: 865.269
A70: 2017-02-27 | B70: 100.93 | C70: 100.93 | D70: 100.6 | E70: 474.932
A71: 2017-02-24 | B71: 100.57 | C71: 101.49 | D71: 101.09 | E71: 1014.882
A72: 2017-02-23 | B72: 99.4 | C72: 100.23 | D72: 100.08 | E72: 1030.213
A73: 2017-02-22 | B73: 98.79 | C73: 99.381 | D73: 99.29 | E73: 689.761
A74: 2017-02-21 | B74: 98.13 | C74: 99.16 | D74: 98.95 | E74: 720.793
A75: 2017-02-17 | B75: 98.77 | C75: 98.83 | D75: 98.12 | E75: 797.231
A76: 2017-02-16 | B76: 97.96 | C76: 99 | D76: 98.67 | E76: 1096.065
A77: 2017-02-15 | B77: 97.47 | C77: 98.1 | D77: 97.96 | E77: 1022.28
A78: 2017-02-14 | B78: 97.59 | C78: 98.43 | D78: 98.21 | E78: 1369.634
A79: 2017-02-13 | B79: 97.39 | C79: 98.11 | D79: 98.07 | E79: 813.455
A80: 2017-02-10 | B80: 96.83 | C80: 97.565 | D80: 97.36 | E80: 1173.396
A81: 2017-02-09 | B81: 98.05 | C81: 98.98 | D81: 97.21 | E81: 1747.713
A82: 2017-02-08 | B82: 98.63 | C82: 99.19 | D82: 98.73 | E82: 1211.327
A83: 2017-02-07 | B83: 98.44 | C83: 98.668 | D83: 98.4 | E83: 896.156
A84: 2017-02-06 | B84: 98.9 | C84: 99.25 | D84: 98.11 | E84: 1151.224
A85: 2017-02-03 | B85: 99.13 | C85: 99.29 | D85: 99.01 | E85: 1271.8
A86: 2017-02-02 | B86: 98.15 | C86: 99.37 | D86: 98.95 | E86: 949.372
A87: 2017-02-01 | B87: 98.2 | C87: 98.7 | D87: 97.93 | E87: 1397.76
A88: 2017-01-31 | B88: 97.38 | C88: 98.79 | D88: 98.64 | E88: 1273.76
A89: 2017-01-30 | B89: 97.44 | C89: 97.55 | D89: 97.15 | E89: 837.845
A90: 2017-01-27 | B90: 98.35 | C90: 98.62 | D90: 97.1 | E90: 986.478
A91: 2017-01-26 | B91: 97.92 | C91: 98.65 | D91: 98.22 | E91: 599.031
A92: 2017-01-25 | B92: 97.54 | C92: 98.01 | D92: 97.94 | E92: 1128.46
A93: 2017-01-24 | B93: 97.78 | C93: 98.26 | D93: 97.96 | E93: 484.291
A94: 2017-01-23 | B94: 98.57 | C94: 98.67 | D94: 98.03 | E94: 442.061
A95: 2017-01-20 | B95: 98.47 | C95: 99.07 | D95: 98.4 | E95: 622.748
A96: 2017-01-19 | B96: 98.35 | C96: 98.7 | D96: 98.14 | E96: 1255.261
A97: 2017-01-18 | B97: 99.01 | C97: 99.46 | D97: 98.89 | E97: 782.422
A98: 2017-01-17 | B98: 98.55 | C98: 99.49 | D98: 99.2 | E98: 579.36
A99: 2017-01-13 | B99: 98.32 | C99: 98.95 | D99: 98.3 | E99: 689.492
A100: 2017-01-12 | B100: 98.41 | C100: 98.63 | D100: 98.37 | E100: 613.827
A101: 2017-01-11 | B101: 97.43 | C101: 98.51 | D101: 98.41 | E101: 710.605
A102: 2017-01-10 | B102: 97.93 | C102: 97.96 | D102: 97.43 | E102: 1038.989
A103: 2017-01-09 | B103: 98.5 | C103: 99.07 | D103: 97.88 | E103: 1581.944
A104: 2017-01-06 | B104: 98.35 | C104: 99.15 | D104: 98.86 | E104: 996.644
A105: 2017-01-05 | B105: 98.62 | C105: 98.785 | D105: 98.6 | E105: 1249.123
A106: 2017-01-04 | B106: 98.34 | C106: 99.045 | D106: 98.47 | E106: 1075.437
A107: 2017-01-03 | B107: 98.74 | C107: 98.83 | D107: 98.21 | E107: 1210.306
A108: 2016-12-30 | B108: 99.04 | C108: 99.29 | D108: 98.51 | E108: 571.441
A109: 2016-12-29 | B109: 98.16 | C109: 99.06 | D109: 98.93 | E109: 588.714
A110: 2016-12-28 | B110: 98.78 | C110: 98.78 | D110: 97.93 | E110: 528.576
A111: 2016-12-27 | B111: 98.56 | C111: 98.82 | D111: 98.65 | E111: 388.89
A112: 2016-12-23 | B112: 98.83 | C112: 99.25 | D112: 98.74 | E112: 659.076
A113: 2016-12-22 | B113: 98.28 | C113: 98.9 | D113: 98.51 | E113: 555.617
A114: 2016-12-21 | B114: 98.49 | C114: 99 | D114: 98.21 | E114: 595.716
A115: 2016-12-20 | B115: 98.27 | C115: 99 | D115: 98.62 | E115: 782.363
A116: 2016-12-19 | B116: 98.58 | C116: 98.69 | D116: 98.28 | E116: 1069.124
A117: 2016-12-16 | B117: 96.65 | C117: 98.44 | D117: 98.2 | E117: 1450.663
A118: 2016-12-15 | B118: 96.13 | C118: 96.76 | D118: 96.69 | E118: 1079.829
A119: 2016-12-14 | B119: 99.49 | C119: 99.915 | D119: 96.91 | E119: 1450.473
A120: 2016-12-13 | B120: 98.49 | C120: 99.1 | D120: 98.91 | E120: 932.323
A121: 2016-12-12 | B121: 97.1 | C121: 98.5 | D121: 98.42 | E121: 1034.271
A122: 2016-12-09 | B122: 96.3 | C122: 97.6 | D122: 97.45 | E122: 873.422
A123: 2016-12-08 | B123: 96.19 | C123: 96.6 | D123: 96.19 | E123: 1105.416
A124: 2016-12-07 | B124: 95.38 | C124: 97.06 | D124: 96.9 | E124: 1446.511
A125: 2016-12-06 | B125: 95.24 | C125: 95.89 | D125: 95.19 | E125: 807.302
A126: 2016-12-05 | B126: 94.67 | C126: 95.11 | D126: 95.08 | E126: 1499.168
A127: 2016-12-02 | B127: 94.36 | C127: 95.4 | D127: 95.13 | E127: 1847.535
A128: 2016-12-01 | B128: 92.49 | C128: 93.66 | D128: 93.61 | E128: 1568.463
A129: 2016-11-30 | B129: 94.47 | C129: 94.69 | D129: 93.09 | E129: 1260.354
A130: 2016-11-29 | B130: 95.28 | C130: 96.52 | D130: 95.8 | E130: 765.363
A131: 2016-11-28 | B131: 94.38 | C131: 96.04 | D131: 95.8 | E131: 1075.685
A132: 2016-11-25 | B132: 92.85 | C132: 94.24 | D132: 94.03 | E132: 434.756
A133: 2016-11-23 | B133: 92.82 | C133: 93.87 | D133: 92.66 | E133: 870.503
A134: 2016-11-22 | B134: 93.03 | C134: 94.25 | D134: 93.83 | E134: 1592.547
A135: 2016-11-21 | B135: 91.57 | C135: 92.3 | D135: 92.28 | E135: 773.393
A136: 2016-11-18 | B136: 91.63 | C136: 92.22 | D136: 91.22 | E136: 877.234
A137: 2016-11-17 | B137: 91.55 | C137: 92.31 | D137: 91.68 | E137: 723.526
A138: 2016-11-16 | B138: 93.45 | C138: 94.085 | D138: 91.96 | E138: 1269.622
A139: 2016-11-15 | B139: 91.88 | C139: 93.92 | D139: 93.39 | E139: 1745.368
A140: 2016-11-14 | B140: 90.69 | C140: 91.79 | D140: 91.38 | E140: 1379.953
A141: 2016-11-11 | B141: 91.06 | C141: 92.54 | D141: 90.97 | E141: 812.703
A142: 2016-11-10 | B142: 92.2 | C142: 92.23 | D142: 91.28 | E142: 1757.188
A143: 2016-11-09 | B143: 94.75 | C143: 94.75 | D143: 92.37 | E143: 1375.515
A144: 2016-11-08 | B144: 95.48 | C144: 96.78 | D144: 96.15 | E144: 1009.438
A145: 2016-11-07 | B145: 93.61 | C145: 95.33 | D145: 95.29 | E145: 825.063
A146: 2016-11-04 | B146: 93.85 | C146: 94.71 | D146: 93.09 | E146: 1069.156
A147: 2016-11-03 | B147: 92.79 | C147: 93.68 | D147: 93.27 | E147: 706.895
A148: 2016-11-02 | B148: 94.22 | C148: 94.22 | D148: 93.18 | E148: 907.984
A149: 2016-11-01 | B149: 96 | C149: 96 | D149: 94.29 | E149: 949.207
A150: 2016-10-31 | B150: 94.35 | C150: 96.54 | D150: 96.01 | E150: 1492.263
A151: 2016-10-28 | B151: 93.66 | C151: 94.42 | D151: 93.94 | E151: 1048.267
A152: 2016-10-27 | B152: 93.43 | C152: 94.03 | D152: 93.69 | E152: 1655.626
A153: 2016-10-26 | B153: 94.54 | C153: 94.67 | D153: 93.9 | E153: 1204.791
A154: 2016-10-25 | B154: 92.86 | C154: 94.02 | D154: 93.99 | E154: 1152.508
A155: 2016-10-24 | B155: 93.11 | C155: 93.5 | D155: 93.14 | E155: 969.78
A156: 2016-10-21 | B156: 92.16 | C156: 93.13 | D156: 92.75 | E156: 956.871
A157: 2016-10-20 | B157: 93 | C157: 93.85 | D157: 93.11 | E157: 1181.832
A158: 2016-10-19 | B158: 92.91 | C158: 93.065 | D158: 92.76 | E158: 826.53
A159: 2016-10-18 | B159: 92.92 | C159: 93.22 | D159: 92.84 | E159: 1239.579
A160: 2016-10-17 | B160: 92.26 | C160: 92.66 | D160: 92.39 | E160: 1252.096
A161: 2016-10-14 | B161: 92.48 | C161: 92.81 | D161: 92 | E161: 1144.518
A162: 2016-10-13 | B162: 91.82 | C162: 93.12 | D162: 92.73 | E162: 1978.568
A163: 2016-10-12 | B163: 91.46 | C163: 92.2 | D163: 91.75 | E163: 1218.7
A164: 2016-10-11 | B164: 92.16 | C164: 92.29 | D164: 91.6 | E164: 1520.657
A165: 2016-10-10 | B165: 92.05 | C165: 92.6 | D165: 92.35 | E165: 1391.548
A166: 2016-10-07 | B166: 92.84 | C166: 93.44 | D166: 91.81 | E166: 2191.82
A167: 2016-10-06 | B167: 91.44 | C167: 92.62 | D167: 92.22 | E167: 2443.445
A168: 2016-10-05 | B168: 91.56 | C168: 92.61 | D168: 91.82 | E168: 2664.086
A169: 2016-10-04 | B169: 92.74 | C169: 92.78 | D169: 91.21 | E169: 2700.123
A170: 2016-10-03 | B170: 93.45 | C170: 93.57 | D170: 92.84 | E170: 1872.646
A171: 2016-09-30 | B171: 93.44 | C171: 94.85 | D171: 93.67 | E171: 3205.672
A172: 2016-09-29 | B172: 94.39 | C172: 94.39 | D172: 93.05 | E172: 2965.1
A173: 2016-09-28 | B173: 95.44 | C173: 95.52 | D173: 94.88 | E173: 1298.583
A174: 2016-09-27 | B174: 97.03 | C174: 97.5999 | D174: 95.07 | E174: 1812.264
A175: 2016-09-26 | B175: 96.77 | C175: 97.25 | D175: 96.63 | E175: 787.922
A176: 2016-09-23 | B176: 96.14 | C176: 97.25 | D176: 96.85 | E176: 1135.841
A177: 2016-09-22 | B177: 96.13 | C177: 96.559 | D177: 96.16 | E177: 890.972
A178: 2016-09-21 | B178: 93.79 | C178: 95.94 | D178: 95.85 | E178: 1241.945
A179: 2016-09-20 | B179: 94.8 | C179: 95 | D179: 93.89 | E179: 744.91
A180: 2016-09-19 | B180: 93.8 | C180: 94.47 | D180: 94.4 | E180: 939.09
A181: 2016-09-16 | B181: 92.08 | C181: 93.68 | D181: 93.56 | E181: 1513.406
A182: 2016-09-15 | B182: 91.62 | C182: 92.44 | D182: 92.32 | E182: 972.461
A183: 2016-09-14 | B183: 91.51 | C183: 92.44 | D183: 92.35 | E183: 1570.008
A184: 2016-09-13 | B184: 92.39 | C184: 92.39 | D184: 91.35 | E184: 1023.675
A185: 2016-09-12 | B185: 91.16 | C185: 92.8 | D185: 92.56 | E185: 1194.503
A186: 2016-09-09 | B186: 94.09 | C186: 94.09 | D186: 91 | E186: 1113.548
A187: 2016-09-08 | B187: 94.07 | C187: 94.83 | D187: 94.5 | E187: 951.481
A188: 2016-09-07 | B188: 94.05 | C188: 94.64 | D188: 94.54 | E188: 1005.554
A189: 2016-09-06 | B189: 93.55 | C189: 94.8 | D189: 94.16 | E189: 818.167
A190: 2016-09-02 | B190: 92.24 | C190: 93.385 | D190: 93.2 | E190: 837.924
A191: 2016-09-01 | B191: 92.75 | C191: 92.91 | D191: 92.21 | E191: 878.573
A192: 2016-08-31 | B192: 92.59 | C192: 93.04 | D192: 92.9 | E192: 1089.476
A193: 2016-08-30 | B193: 93.64 | C193: 93.985 | D193: 92.49 | E193: 546.053
A194: 2016-08-29 | B194: 92.91 | C194: 93.71 | D194: 93.52 | E194: 848.91
A195: 2016-08-26 | B195: 95.24 | C195: 95.64 | D195: 92.59 | E195: 876.914
A196: 2016-08-25 | B196: 94.93 | C196: 95.3799 | D196: 95.16 | E196: 687.745
A197: 2016-08-24 | B197: 94.43 | C197: 94.97 | D197: 94.93 | E197: 738.723
A198: 2016-08-23 | B198: 95.2 | C198: 95.57 | D198: 94.61 | E198: 584.814
A199: 2016-08-22 | B199: 94.9 | C199: 95.4099 | D199: 95.12 | E199: 445.775
A200: 2016-08-19 | B200: 96.28 | C200: 96.535 | D200: 94.7 | E200: 1443.409
... 309 more rows

Sheet DUK
A1: ='Div Yields'!C13 -> DUK | G1: Dividend | H1: 30 Day Avg | I1: 90 Day Avg | J1: 180 Day Avg | K1: 360 Day Avg | L1: 720 Day Avg
H2: =AVERAGE($D$4:$D$33) -> 83.34866667 | I2: =AVERAGE($D$4:$D$93) -> 81.52166667 | J2: =AVERAGE($D$4:$D$183) -> 79.41294444 | K2: =AVERAGE($D$4:$D$363) -> 79.34472222 | L2: =AVERAGE($D$4:$D$507) -> 77.09970238
A3: Date | B3: Open | C3: High | D3: Close | E3: Volume (k) | G3: =INDEX(Master,MATCH($A$1,Tickers,0),MATCH(G1,Header,0)) -> 3.42 | H3: =$G3/H2 -> 0.04103245003 | I3: =$G3/I2 -> 0.04195203729 | J3: 0.04306602688 | K3: 0.04310305593 | L3: 0.04435814788
A4: 2017-06-01 | B4: 85.48 | C4: 86.4 | D4: 86.4 | E4: 3158.924
A5: 2017-05-31 | B5: 85.52 | C5: 86.01 | D5: 85.68 | E5: 3250.81
A6: 2017-05-30 | B6: 85.2 | C6: 85.54 | D6: 85.41 | E6: 2501.605
A7: 2017-05-26 | B7: 85.19 | C7: 85.3499 | D7: 85.07 | E7: 2023.992
A8: 2017-05-25 | B8: 84.81 | C8: 85.25 | D8: 85.14 | E8: 2802.506
A9: 2017-05-24 | B9: 84.47 | C9: 84.88 | D9: 84.69 | E9: 2971.948
A10: 2017-05-23 | B10: 84.13 | C10: 84.78 | D10: 84.3 | E10: 1749.293
A11: 2017-05-22 | B11: 83.27 | C11: 84.34 | D11: 84.1 | E11: 2213.195
A12: 2017-05-19 | B12: 83.36 | C12: 83.43 | D12: 83.37 | E12: 3104.653
A13: 2017-05-18 | B13: 83.1 | C13: 83.66 | D13: 83.25 | E13: 3772.291
A14: 2017-05-17 | B14: 82.3 | C14: 83.235 | D14: 82.78 | E14: 4344.7
A15: 2017-05-16 | B15: 83.58 | C15: 83.8 | D15: 83.12 | E15: 2614.679
A16: 2017-05-15 | B16: 83.55 | C16: 83.785 | D16: 83.58 | E16: 2043.048
A17: 2017-05-12 | B17: 83.1 | C17: 83.6701 | D17: 83.48 | E17: 2013.524
A18: 2017-05-11 | B18: 82.15 | C18: 83.02 | D18: 83 | E18: 2372.914
A19: 2017-05-10 | B19: 82.27 | C19: 82.695 | D19: 82.48 | E19: 2142.991
A20: 2017-05-09 | B20: 82.53 | C20: 82.97 | D20: 82.11 | E20: 2477.977
A21: 2017-05-08 | B21: 83.02 | C21: 83.155 | D21: 82.92 | E21: 2179.707
A22: 2017-05-05 | B22: 82.69 | C22: 83.15 | D22: 82.98 | E22: 2144.467
A23: 2017-05-04 | B23: 81.93 | C23: 82.66 | D23: 82.59 | E23: 2110.419
A24: 2017-05-03 | B24: 82.28 | C24: 82.5503 | D24: 82.04 | E24: 2128.876
A25: 2017-05-02 | B25: 82.23 | C25: 82.58 | D25: 82.39 | E25: 2576.111
A26: 2017-05-01 | B26: 82.51 | C26: 82.6248 | D26: 82.07 | E26: 2069.884
A27: 2017-04-28 | B27: 82.71 | C27: 82.9 | D27: 82.5 | E27: 2166.592
A28: 2017-04-27 | B28: 82.68 | C28: 83.35 | D28: 82.9 | E28: 1736.736
A29: 2017-04-26 | B29: 82.57 | C29: 83.285 | D29: 82.6 | E29: 2291.774
A30: 2017-04-25 | B30: 82.41 | C30: 82.72 | D30: 82.69 | E30: 2954.379
A31: 2017-04-24 | B31: 82.41 | C31: 82.69 | D31: 82.58 | E31: 2641.318
A32: 2017-04-21 | B32: 82.1 | C32: 82.7 | D32: 82.21 | E32: 2471.128
A33: 2017-04-20 | B33: 82.16 | C33: 82.16 | D33: 82.03 | E33: 2330.809
A34: 2017-04-19 | B34: 82.84 | C34: 82.91 | D34: 82.35 | E34: 2132.635
A35: 2017-04-18 | B35: 82.9 | C35: 83.26 | D35: 82.86 | E35: 2257.382
A36: 2017-04-17 | B36: 82.7 | C36: 83.0107 | D36: 82.93 | E36: 2046.645
A37: 2017-04-13 | B37: 82.76 | C37: 82.9 | D37: 82.59 | E37: 2425.152
A38: 2017-04-12 | B38: 81.96 | C38: 82.84 | D38: 82.78 | E38: 2230.805
A39: 2017-04-11 | B39: 82.32 | C39: 82.4 | D39: 82.19 | E39: 1876.596
A40: 2017-04-10 | B40: 82.3 | C40: 82.44 | D40: 82.4 | E40: 2563.932
A41: 2017-04-07 | B41: 82.8 | C41: 82.99 | D41: 82.26 | E41: 2453.141
A42: 2017-04-06 | B42: 82.66 | C42: 82.87 | D42: 82.59 | E42: 2499.238
A43: 2017-04-05 | B43: 82.27 | C43: 82.97 | D43: 82.87 | E43: 2063.954
A44: 2017-04-04 | B44: 82.24 | C44: 82.69 | D44: 82.37 | E44: 1761.394
A45: 2017-04-03 | B45: 81.9 | C45: 82.29 | D45: 82.25 | E45: 2756.209
A46: 2017-03-31 | B46: 81.91 | C46: 82.4731 | D46: 82.01 | E46: 2251.821
A47: 2017-03-30 | B47: 82.11 | C47: 82.12 | D47: 82.04 | E47: 2467.343
A48: 2017-03-29 | B48: 82.74 | C48: 82.74 | D48: 82.42 | E48: 2087.586
A49: 2017-03-28 | B49: 82.54 | C49: 82.98 | D49: 82.93 | E49: 2458.53
A50: 2017-03-27 | B50: 83.32 | C50: 83.58 | D50: 82.79 | E50: 2125.771
A51: 2017-03-24 | B51: 82.61 | C51: 83.27 | D51: 82.99 | E51: 2078.812
A52: 2017-03-23 | B52: 82.49 | C52: 83.29 | D52: 82.68 | E52: 2409.985
A53: 2017-03-22 | B53: 82.99 | C53: 83.59 | D53: 82.76 | E53: 2881.795
A54: 2017-03-21 | B54: 81.147 | C54: 83.01 | D54: 82.68 | E54: 5092.488
A55: 2017-03-20 | B55: 81.93 | C55: 82.1 | D55: 81.18 | E55: 3270.978
A56: 2017-03-17 | B56: 81.85 | C56: 82.25 | D56: 81.84 | E56: 7276.875
A57: 2017-03-16 | B57: 82.2 | C57: 82.33 | D57: 81.62 | E57: 4352.257
A58: 2017-03-15 | B58: 81.08 | C58: 82.36 | D58: 82 | E58: 3727.684
A59: 2017-03-14 | B59: 80.85 | C59: 81.11 | D59: 80.87 | E59: 2151.186
A60: 2017-03-13 | B60: 80.8 | C60: 80.975 | D60: 80.87 | E60: 3423.476
A61: 2017-03-10 | B61: 80.41 | C61: 80.95 | D61: 80.64 | E61: 3334.445
A62: 2017-03-09 | B62: 80.52 | C62: 80.79 | D62: 80.05 | E62: 3074.49
A63: 2017-03-08 | B63: 81.11 | C63: 81.12 | D63: 80.32 | E63: 3342.612
A64: 2017-03-07 | B64: 81.59 | C64: 82.07 | D64: 81.69 | E64: 3732.571
A65: 2017-03-06 | B65: 81.96 | C65: 82.08 | D65: 81.87 | E65: 2785.102
A66: 2017-03-03 | B66: 82.14 | C66: 82.16 | D66: 81.91 | E66: 2856.184
A67: 2017-03-02 | B67: 81.6 | C67: 82.7845 | D67: 82.36 | E67: 4176.131
A68: 2017-03-01 | B68: 81.6 | C68: 82.5152 | D68: 81.93 | E68: 4832.281
A69: 2017-02-28 | B69: 81.59 | C69: 82.82 | D69: 82.55 | E69: 3529.876
A70: 2017-02-27 | B70: 81.93 | C70: 82.2 | D70: 81.86 | E70: 2505.846
A71: 2017-02-24 | B71: 81.2 | C71: 82.21 | D71: 81.96 | E71: 3846.758
A72: 2017-02-23 | B72: 79.98 | C72: 81.07 | D72: 80.91 | E72: 2801.227
A73: 2017-02-22 | B73: 79.21 | C73: 79.99 | D73: 79.87 | E73: 2895.026
A74: 2017-02-21 | B74: 78.3 | C74: 79.22 | D74: 79.09 | E74: 2734.984
A75: 2017-02-17 | B75: 78.7 | C75: 78.99 | D75: 78.36 | E75: 4104.558
A76: 2017-02-16 | B76: 77.17 | C76: 79.21 | D76: 78.9 | E76: 6795.552
A77: 2017-02-15 | B77: 76.79 | C77: 77.17 | D77: 76.78 | E77: 3802.909
A78: 2017-02-14 | B78: 78.56 | C78: 78.6799 | D78: 78.04 | E78: 3715.806
A79: 2017-02-13 | B79: 78.26 | C79: 78.69 | D79: 78.69 | E79: 2925.882
A80: 2017-02-10 | B80: 77.59 | C80: 78.16 | D80: 78.1 | E80: 2549.973
A81: 2017-02-09 | B81: 78.53 | C81: 78.8355 | D81: 77.75 | E81: 3351.432
A82: 2017-02-08 | B82: 77.82 | C82: 78.71 | D82: 78.64 | E82: 2973.576
A83: 2017-02-07 | B83: 77.65 | C83: 77.8599 | D83: 77.75 | E83: 1629.926
A84: 2017-02-06 | B84: 77.89 | C84: 78.037 | D84: 77.57 | E84: 2017.146
A85: 2017-02-03 | B85: 77.89 | C85: 78.04 | D85: 77.65 | E85: 2478.07
A86: 2017-02-02 | B86: 77.57 | C86: 77.94 | D86: 77.79 | E86: 2997.371
A87: 2017-02-01 | B87: 78.14 | C87: 78.26 | D87: 77.36 | E87: 3455.08
A88: 2017-01-31 | B88: 77.12 | C88: 78.56 | D88: 78.54 | E88: 3753.652
A89: 2017-01-30 | B89: 76.98 | C89: 77.52 | D89: 77.12 | E89: 2379.117
A90: 2017-01-27 | B90: 77.32 | C90: 77.63 | D90: 76.94 | E90: 2562.052
A91: 2017-01-26 | B91: 76.99 | C91: 77.23 | D91: 77.12 | E91: 3085.41
A92: 2017-01-25 | B92: 76.93 | C92: 77.12 | D92: 77.08 | E92: 2346.97
A93: 2017-01-24 | B93: 77.2 | C93: 77.33 | D93: 77.18 | E93: 2751.383
A94: 2017-01-23 | B94: 77.43 | C94: 77.68 | D94: 77.03 | E94: 2166.778
A95: 2017-01-20 | B95: 77.32 | C95: 77.58 | D95: 77.33 | E95: 2662.84
A96: 2017-01-19 | B96: 77.27 | C96: 77.57 | D96: 77.12 | E96: 2575.474
A97: 2017-01-18 | B97: 77.38 | C97: 77.91 | D97: 77.5 | E97: 2235.709
A98: 2017-01-17 | B98: 77.47 | C98: 77.83 | D98: 77.46 | E98: 3754.997
A99: 2017-01-13 | B99: 77.34 | C99: 77.48 | D99: 77.21 | E99: 1954.531
A100: 2017-01-12 | B100: 76.97 | C100: 77.61 | D100: 77.54 | E100: 2476.286
A101: 2017-01-11 | B101: 76.28 | C101: 77.2 | D101: 77.1 | E101: 2726.221
A102: 2017-01-10 | B102: 76.49 | C102: 76.83 | D102: 76.5 | E102: 2839.994
A103: 2017-01-09 | B103: 77.61 | C103: 77.73 | D103: 76.64 | E103: 4585.676
A104: 2017-01-06 | B104: 77.5 | C104: 77.87 | D104: 77.49 | E104: 3132.399
A105: 2017-01-05 | B105: 77.9 | C105: 77.96 | D105: 77.75 | E105: 3284.643
A106: 2017-01-04 | B106: 77.65 | C106: 78.3499 | D106: 77.65 | E106: 2531.056
A107: 2017-01-03 | B107: 77.65 | C107: 78.02 | D107: 77.73 | E107: 2905.885
A108: 2016-12-30 | B108: 78.05 | C108: 78.24 | D108: 77.62 | E108: 2465.556
A109: 2016-12-29 | B109: 77.11 | C109: 78.17 | D109: 78.02 | E109: 2976.489
A110: 2016-12-28 | B110: 77.54 | C110: 77.62 | D110: 77.03 | E110: 1897.615
A111: 2016-12-27 | B111: 77.49 | C111: 77.73 | D111: 77.48 | E111: 1554.468
A112: 2016-12-23 | B112: 77.77 | C112: 77.83 | D112: 77.62 | E112: 1421.414
A113: 2016-12-22 | B113: 76.96 | C113: 78.05 | D113: 77.77 | E113: 3339.006
A114: 2016-12-21 | B114: 77.23 | C114: 77.66 | D114: 77 | E114: 2013.33
A115: 2016-12-20 | B115: 76.71 | C115: 77.583 | D115: 77.35 | E115: 2639.185
A116: 2016-12-19 | B116: 77.1 | C116: 77.24 | D116: 77.13 | E116: 2774.996
A117: 2016-12-16 | B117: 76.2 | C117: 76.8 | D117: 76.59 | E117: 7037.998
A118: 2016-12-15 | B118: 75.34 | C118: 76.11 | D118: 76.03 | E118: 3127.737
A119: 2016-12-14 | B119: 77.6 | C119: 77.9408 | D119: 75.53 | E119: 4756.011
A120: 2016-12-13 | B120: 76.67 | C120: 77.45 | D120: 77.32 | E120: 3968.706
A121: 2016-12-12 | B121: 75.65 | C121: 76.59 | D121: 76.48 | E121: 3963.608
A122: 2016-12-09 | B122: 74.68 | C122: 75.84 | D122: 75.82 | E122: 3196.119
A123: 2016-12-08 | B123: 74.11 | C123: 74.93 | D123: 74.73 | E123: 3386.584
A124: 2016-12-07 | B124: 73.98 | C124: 74.77 | D124: 74.67 | E124: 3370.91
A125: 2016-12-06 | B125: 73.83 | C125: 74.22 | D125: 73.86 | E125: 3140.033
A126: 2016-12-05 | B126: 73.14 | C126: 73.61 | D126: 73.61 | E126: 3559.201
A127: 2016-12-02 | B127: 73.3 | C127: 74.18 | D127: 73.42 | E127: 3754.148
A128: 2016-12-01 | B128: 73.5 | C128: 73.57 | D128: 72.75 | E128: 4324.845
A129: 2016-11-30 | B129: 75.27 | C129: 75.36 | D129: 73.77 | E129: 5583.153
A130: 2016-11-29 | B130: 75.79 | C130: 76.67 | D130: 76.37 | E130: 3763.059
A131: 2016-11-28 | B131: 74.66 | C131: 76.14 | D131: 76.08 | E131: 4049.028
A132: 2016-11-25 | B132: 73.75 | C132: 74.71 | D132: 74.35 | E132: 1972.203
A133: 2016-11-23 | B133: 73.32 | C133: 74.3 | D133: 73.54 | E133: 2947.778
A134: 2016-11-22 | B134: 74.12 | C134: 74.34 | D134: 73.88 | E134: 3590.753
A135: 2016-11-21 | B135: 73.99 | C135: 74.5 | D135: 74.43 | E135: 3204.317
A136: 2016-11-18 | B136: 74.01 | C136: 74.21 | D136: 73.6 | E136: 4450.492
A137: 2016-11-17 | B137: 73.96 | C137: 74.495 | D137: 73.87 | E137: 4460.056
A138: 2016-11-16 | B138: 75.28 | C138: 75.57 | D138: 73.97 | E138: 4849.292
A139: 2016-11-15 | B139: 74.96 | C139: 76.37 | D139: 75.93 | E139: 4441.954
A140: 2016-11-14 | B140: 75.09 | C140: 75.1 | D140: 74.44 | E140: 5902.955
A141: 2016-11-11 | B141: 75.11 | C141: 75.98 | D141: 75.24 | E141: 3745.967
A142: 2016-11-10 | B142: 76.99 | C142: 76.99 | D142: 75.16 | E142: 6005.42
A143: 2016-11-09 | B143: 79 | C143: 79 | D143: 77.34 | E143: 4758.422
A144: 2016-11-08 | B144: 79.32 | C144: 79.99 | D144: 79.65 | E144: 2243.228
A145: 2016-11-07 | B145: 77.81 | C145: 79.13 | D145: 79.13 | E145: 3303.852
A146: 2016-11-04 | B146: 78.5 | C146: 79.18 | D146: 77.27 | E146: 2849.356
A147: 2016-11-03 | B147: 77.83 | C147: 78.36 | D147: 77.98 | E147: 2455.263
A148: 2016-11-02 | B148: 78.37 | C148: 78.47 | D148: 78 | E148: 3239.576
A149: 2016-11-01 | B149: 80.04 | C149: 80.045 | D149: 78.57 | E149: 2985.024
A150: 2016-10-31 | B150: 78.96 | C150: 80.4905 | D150: 80.02 | E150: 3523.874
A151: 2016-10-28 | B151: 78.57 | C151: 79.0909 | D151: 78.72 | E151: 1608.778
A152: 2016-10-27 | B152: 78.44 | C152: 78.74 | D152: 78.42 | E152: 1982.544
A153: 2016-10-26 | B153: 78.58 | C153: 78.93 | D153: 78.77 | E153: 2215.132
A154: 2016-10-25 | B154: 78.27 | C154: 78.82 | D154: 78.59 | E154: 3664.546
A155: 2016-10-24 | B155: 78.31 | C155: 78.61 | D155: 78.4 | E155: 2868.073
A156: 2016-10-21 | B156: 78.02 | C156: 78.26 | D156: 78.02 | E156: 2133.129
A157: 2016-10-20 | B157: 78.23 | C157: 79.09 | D157: 78.42 | E157: 2803.992
A158: 2016-10-19 | B158: 77.9 | C158: 78.28 | D158: 78.13 | E158: 2547.351
A159: 2016-10-18 | B159: 77.91 | C159: 78.25 | D159: 77.9 | E159: 2481.537
A160: 2016-10-17 | B160: 77.3 | C160: 77.81 | D160: 77.54 | E160: 1784.521
A161: 2016-10-14 | B161: 77.68 | C161: 77.98 | D161: 77.21 | E161: 2460.481
A162: 2016-10-13 | B162: 76.57 | C162: 78.47 | D162: 77.94 | E162: 3773.614
A163: 2016-10-12 | B163: 76.03 | C163: 76.8099 | D163: 76.65 | E163: 3082.368
A164: 2016-10-11 | B164: 76.8 | C164: 76.82 | D164: 75.91 | E164: 3479.439
A165: 2016-10-10 | B165: 76.88 | C165: 77.38 | D165: 77.06 | E165: 2381.509
A166: 2016-10-07 | B166: 77.63 | C166: 78.21 | D166: 76.57 | E166: 4537.993
A167: 2016-10-06 | B167: 77.05 | C167: 77.905 | D167: 77.09 | E167: 5137.591
A168: 2016-10-05 | B168: 77.58 | C168: 78.37 | D168: 77.09 | E168: 3834.155
A169: 2016-10-04 | B169: 79.1 | C169: 79.49 | D169: 77.46 | E169: 3491.927
A170: 2016-10-03 | B170: 79.78 | C170: 79.84 | D170: 79.09 | E170: 2963.183
A171: 2016-09-30 | B171: 80.62 | C171: 80.94 | D171: 80.04 | E171: 3883.04
A172: 2016-09-29 | B172: 80.82 | C172: 80.82 | D172: 80.31 | E172: 2898.863
A173: 2016-09-28 | B173: 81.73 | C173: 81.73 | D173: 81.1 | E173: 1998.505
A174: 2016-09-27 | B174: 82.51 | C174: 82.81 | D174: 81.43 | E174: 2268.288
A175: 2016-09-26 | B175: 82.42 | C175: 82.67 | D175: 82.15 | E175: 2718.086
A176: 2016-09-23 | B176: 82.28 | C176: 82.79 | D176: 82.52 | E176: 2348.821
A177: 2016-09-22 | B177: 82.12 | C177: 82.625 | D177: 82.51 | E177: 2707.344
A178: 2016-09-21 | B178: 80.18 | C178: 81.93 | D178: 81.9 | E178: 2728.149
A179: 2016-09-20 | B179: 80.51 | C179: 80.8399 | D179: 80.17 | E179: 2399.704
A180: 2016-09-19 | B180: 79.77 | C180: 80.52 | D180: 80.46 | E180: 3159.627
A181: 2016-09-16 | B181: 78.54 | C181: 79.68 | D181: 79.61 | E181: 5058.225
A182: 2016-09-15 | B182: 78.26 | C182: 79.17 | D182: 79.06 | E182: 2518.507
A183: 2016-09-14 | B183: 79.75 | C183: 87.75 | D183: 78.67 | E183: 2531.975
A184: 2016-09-13 | B184: 79.32 | C184: 79.46 | D184: 78.79 | E184: 3602.362
A185: 2016-09-12 | B185: 78.11 | C185: 79.56 | D185: 79.28 | E185: 3518.388
A186: 2016-09-09 | B186: 80.04 | C186: 80.22 | D186: 77.95 | E186: 3329.491
A187: 2016-09-08 | B187: 80.44 | C187: 81.01 | D187: 80.81 | E187: 2047.107
A188: 2016-09-07 | B188: 81.26 | C188: 81.26 | D188: 80.54 | E188: 2259.627
A189: 2016-09-06 | B189: 80.55 | C189: 81.23 | D189: 80.94 | E189: 2775.929
A190: 2016-09-02 | B190: 79.33 | C190: 80.275 | D190: 80.24 | E190: 2767.609
A191: 2016-09-01 | B191: 79.66 | C191: 79.8 | D191: 79.33 | E191: 2428.567
A192: 2016-08-31 | B192: 79.52 | C192: 79.75 | D192: 79.66 | E192: 3546.181
A193: 2016-08-30 | B193: 80.4 | C193: 80.79 | D193: 79.52 | E193: 3101.032
A194: 2016-08-29 | B194: 80.11 | C194: 80.61 | D194: 80.44 | E194: 1923.422
A195: 2016-08-26 | B195: 81.74 | C195: 82.17 | D195: 79.92 | E195: 2400.721
A196: 2016-08-25 | B196: 81.66 | C196: 82.075 | D196: 81.73 | E196: 1858.326
A197: 2016-08-24 | B197: 81.38 | C197: 81.75 | D197: 81.56 | E197: 2048.569
A198: 2016-08-23 | B198: 82.02 | C198: 82.35 | D198: 81.45 | E198: 2199.417
A199: 2016-08-22 | B199: 81.88 | C199: 82.2237 | D199: 81.89 | E199: 1888.706
A200: 2016-08-19 | B200: 82.45 | C200: 82.56 | D200: 81.65 | E200: 2632.006
... 309 more rows

Sheet EIX
A1: ='Div Yields'!C14 -> EIX | G1: Dividend | H1: 30 Day Avg | I1: 90 Day Avg | J1: 180 Day Avg | K1: 360 Day Avg | L1: 720 Day Avg
H2: =AVERAGE($D$4:$D$33) -> 79.56466667 | I2: =AVERAGE($D$4:$D$93) -> 78.302 | J2: =AVERAGE($D$4:$D$183) -> 74.77116667 | K2: =AVERAGE($D$4:$D$363) -> 72.48061111 | L2: =AVERAGE($D$4:$D$507) -> 68.87585317
A3: Date | B3: Open | C3: High | D3: Close | E3: Volume (k) | G3: =INDEX(Master,MATCH($A$1,Tickers,0),MATCH(G1,Header,0)) -> 2.17 | H3: =$G3/H2 -> 0.02727341282 | I3: =$G3/I2 -> 0.02771321294 | J3: 0.02902188232 | K3: 0.02993904117 | L3: 0.03150596181
A4: 2017-06-01 | B4: 81.31 | C4: 82.15 | D4: 82.15 | E4: 1934.301
A5: 2017-05-31 | B5: 80.62 | C5: 81.715 | D5: 81.57 | E5: 2596.064
A6: 2017-05-30 | B6: 79.89 | C6: 80.805 | D6: 80.67 | E6: 1357.8
A7: 2017-05-26 | B7: 79.86 | C7: 80.24 | D7: 79.96 | E7: 775.774
A8: 2017-05-25 | B8: 79.17 | C8: 80.1 | D8: 79.95 | E8: 789.522
A9: 2017-05-24 | B9: 79.02 | C9: 79.34 | D9: 79.22 | E9: 1106.292
A10: 2017-05-23 | B10: 78.85 | C10: 79.56 | D10: 78.82 | E10: 1358.075
A11: 2017-05-22 | B11: 77.92 | C11: 79.075 | D11: 78.91 | E11: 1702.27
A12: 2017-05-19 | B12: 77.96 | C12: 78.24 | D12: 78.2 | E12: 2151.758
A13: 2017-05-18 | B13: 77.82 | C13: 78.465 | D13: 77.96 | E13: 1571.551
A14: 2017-05-17 | B14: 77.78 | C14: 78.15 | D14: 77.59 | E14: 2195.121
A15: 2017-05-16 | B15: 78.76 | C15: 78.99 | D15: 77.87 | E15: 1656.674
A16: 2017-05-15 | B16: 78.68 | C16: 79.15 | D16: 78.72 | E16: 1760.506
A17: 2017-05-12 | B17: 78.62 | C17: 78.97 | D17: 78.78 | E17: 1530.724
A18: 2017-05-11 | B18: 78.84 | C18: 78.85 | D18: 78.57 | E18: 2609.683
A19: 2017-05-10 | B19: 79.59 | C19: 79.93 | D19: 79.04 | E19: 2262.965
A20: 2017-05-09 | B20: 79.46 | C20: 79.97 | D20: 79.53 | E20: 1312.823
A21: 2017-05-08 | B21: 79.93 | C21: 79.93 | D21: 79.6 | E21: 968.024
A22: 2017-05-05 | B22: 80 | C22: 80.1 | D22: 79.7 | E22: 1364.214
A23: 2017-05-04 | B23: 78.67 | C23: 79.85 | D23: 79.78 | E23: 1712.307
A24: 2017-05-03 | B24: 79.03 | C24: 79.27 | D24: 78.82 | E24: 1144.77
A25: 2017-05-02 | B25: 80.43 | C25: 80.55 | D25: 79.11 | E25: 1497.88
A26: 2017-05-01 | B26: 80.14 | C26: 80.14 | D26: 79.24 | E26: 1541.266
A27: 2017-04-28 | B27: 80.36 | C27: 80.7 | D27: 79.97 | E27: 1604.085
A28: 2017-04-27 | B28: 80.29 | C28: 80.96 | D28: 80.35 | E28: 1708.132
A29: 2017-04-26 | B29: 80.83 | C29: 80.94 | D29: 80.19 | E29: 1876.362
A30: 2017-04-25 | B30: 80.62 | C30: 81.06 | D30: 80.82 | E30: 1387.429
A31: 2017-04-24 | B31: 80.52 | C31: 81.06 | D31: 80.94 | E31: 1539.209
A32: 2017-04-21 | B32: 80.25 | C32: 80.82 | D32: 80.6 | E32: 1617.551
A33: 2017-04-20 | B33: 80.45 | C33: 80.45 | D33: 80.31 | E33: 1036.858
A34: 2017-04-19 | B34: 80.93 | C34: 81 | D34: 80.62 | E34: 1285.337
A35: 2017-04-18 | B35: 80.71 | C35: 81.1925 | D35: 80.87 | E35: 1459.021
A36: 2017-04-17 | B36: 80.57 | C36: 80.85 | D36: 80.67 | E36: 1414.897
A37: 2017-04-13 | B37: 80.55 | C37: 80.79 | D37: 80.31 | E37: 1257.543
A38: 2017-04-12 | B38: 79.67 | C38: 80.85 | D38: 80.8 | E38: 1105.129
A39: 2017-04-11 | B39: 80.01 | C39: 80.19 | D39: 79.99 | E39: 1318.106
A40: 2017-04-10 | B40: 80.23 | C40: 80.25 | D40: 80.08 | E40: 1288.222
A41: 2017-04-07 | B41: 80.62 | C41: 80.86 | D41: 80.25 | E41: 2044.357
A42: 2017-04-06 | B42: 80.31 | C42: 80.8 | D42: 80.46 | E42: 2141.175
A43: 2017-04-05 | B43: 79.95 | C43: 80.68 | D43: 80.59 | E43: 1613.63
A44: 2017-04-04 | B44: 79.86 | C44: 80.325 | D44: 79.97 | E44: 1550.453
A45: 2017-04-03 | B45: 79.62 | C45: 79.95 | D45: 79.95 | E45: 2214.742
A46: 2017-03-31 | B46: 79.43 | C46: 80.07 | D46: 79.61 | E46: 1217.408
A47: 2017-03-30 | B47: 79.62 | C47: 79.76 | D47: 79.49 | E47: 991.771
A48: 2017-03-29 | B48: 80.15 | C48: 80.2 | D48: 79.82 | E48: 1669.331
A49: 2017-03-28 | B49: 80.31 | C49: 80.98 | D49: 80.9 | E49: 1421.26
A50: 2017-03-27 | B50: 80.98 | C50: 81.335 | D50: 80.5 | E50: 1334.37
A51: 2017-03-24 | B51: 79.99 | C51: 80.99 | D51: 80.71 | E51: 1266.53
A52: 2017-03-23 | B52: 79.74 | C52: 80.54 | D52: 80.19 | E52: 1971.505
A53: 2017-03-22 | B53: 79.9 | C53: 80.53 | D53: 79.86 | E53: 1867.947
A54: 2017-03-21 | B54: 78.65 | C54: 79.81 | D54: 79.56 | E54: 1786.08
A55: 2017-03-20 | B55: 79.7 | C55: 79.855 | D55: 78.8 | E55: 1691.342
A56: 2017-03-17 | B56: 79.26 | C56: 79.91 | D56: 79.6 | E56: 3897.614
A57: 2017-03-16 | B57: 79.5 | C57: 79.61 | D57: 79.18 | E57: 1609.994
A58: 2017-03-15 | B58: 78.78 | C58: 80.04 | D58: 79.81 | E58: 2573.806
A59: 2017-03-14 | B59: 78.72 | C59: 78.72 | D59: 78.42 | E59: 3502.906
A60: 2017-03-13 | B60: 78.75 | C60: 79.195 | D60: 79.08 | E60: 1234.229
A61: 2017-03-10 | B61: 78.51 | C61: 78.98 | D61: 78.81 | E61: 1586.901
A62: 2017-03-09 | B62: 78.15 | C62: 78.54 | D62: 78 | E62: 1631.299
A63: 2017-03-08 | B63: 78.76 | C63: 78.76 | D63: 78.12 | E63: 1868.901
A64: 2017-03-07 | B64: 79.3 | C64: 79.62 | D64: 79.25 | E64: 1820.622
A65: 2017-03-06 | B65: 79.4 | C65: 79.61 | D65: 79.35 | E65: 1568.196
A66: 2017-03-03 | B66: 79.86 | C66: 79.99 | D66: 79.49 | E66: 1821.319
A67: 2017-03-02 | B67: 78.94 | C67: 80.61 | D67: 79.92 | E67: 2041.799
A68: 2017-03-01 | B68: 78.92 | C68: 79.98 | D68: 79.38 | E68: 2709.993
A69: 2017-02-28 | B69: 79.03 | C69: 79.94 | D69: 79.74 | E69: 2506.822
A70: 2017-02-27 | B70: 78.93 | C70: 79.21 | D70: 79 | E70: 1530.387
A71: 2017-02-24 | B71: 78.13 | C71: 78.94 | D71: 78.87 | E71: 1926.233
A72: 2017-02-23 | B72: 77.57 | C72: 78.04 | D72: 77.9 | E72: 1750.856
A73: 2017-02-22 | B73: 77.5 | C73: 77.64 | D73: 77.19 | E73: 3380.025
A74: 2017-02-21 | B74: 76.04 | C74: 77.35 | D74: 77.22 | E74: 1852.902
A75: 2017-02-17 | B75: 75.82 | C75: 76.43 | D75: 76.34 | E75: 1985.051
A76: 2017-02-16 | B76: 75.13 | C76: 75.82 | D76: 75.79 | E76: 1254.405
A77: 2017-02-15 | B77: 74.83 | C77: 75.1 | D77: 74.98 | E77: 1890.731
A78: 2017-02-14 | B78: 75.57 | C78: 75.615 | D78: 75.39 | E78: 1483.399
A79: 2017-02-13 | B79: 75.2 | C79: 75.64 | D79: 75.56 | E79: 1242.354
A80: 2017-02-10 | B80: 74.24 | C80: 75.23 | D80: 75.21 | E80: 1598.283
A81: 2017-02-09 | B81: 74.5 | C81: 74.99 | D81: 74.76 | E81: 1849.089
A82: 2017-02-08 | B82: 73.7 | C82: 75.09 | D82: 74.83 | E82: 3262.019
A83: 2017-02-07 | B83: 72.73 | C83: 73.12 | D83: 73.05 | E83: 1800.996
A84: 2017-02-06 | B84: 72.83 | C84: 73.16 | D84: 72.75 | E84: 1531.841
A85: 2017-02-03 | B85: 72 | C85: 72.74 | D85: 72.54 | E85: 2098.569
A86: 2017-02-02 | B86: 71.77 | C86: 72.65 | D86: 72.61 | E86: 1931.944
A87: 2017-02-01 | B87: 72.35 | C87: 72.58 | D87: 71.6 | E87: 1413.381
A88: 2017-01-31 | B88: 72.06 | C88: 72.9 | D88: 72.88 | E88: 2880.851
A89: 2017-01-30 | B89: 72.29 | C89: 72.29 | D89: 71.93 | E89: 993.211
A90: 2017-01-27 | B90: 72.33 | C90: 72.33 | D90: 72 | E90: 1047.536
A91: 2017-01-26 | B91: 71.8 | C91: 72.27 | D91: 71.96 | E91: 1061.808
A92: 2017-01-25 | B92: 71.75 | C92: 71.99 | D92: 71.73 | E92: 861.959
A93: 2017-01-24 | B93: 71.72 | C93: 72.11 | D93: 72 | E93: 1522.548
A94: 2017-01-23 | B94: 72.08 | C94: 72.16 | D94: 71.82 | E94: 1037.246
A95: 2017-01-20 | B95: 71.87 | C95: 72.31 | D95: 71.97 | E95: 921.218
A96: 2017-01-19 | B96: 72.1 | C96: 72.55 | D96: 71.72 | E96: 1219.056
A97: 2017-01-18 | B97: 72.61 | C97: 72.95 | D97: 72.3 | E97: 1173.647
A98: 2017-01-17 | B98: 72.39 | C98: 72.89 | D98: 72.51 | E98: 1674.231
A99: 2017-01-13 | B99: 72.24 | C99: 72.49 | D99: 72.1 | E99: 979.44
A100: 2017-01-12 | B100: 72.06 | C100: 72.49 | D100: 72.38 | E100: 1176.79
A101: 2017-01-11 | B101: 71.07 | C101: 72.31 | D101: 72.13 | E101: 1505.503
A102: 2017-01-10 | B102: 71.08 | C102: 71.33 | D102: 71.11 | E102: 1258.2
A103: 2017-01-09 | B103: 71.91 | C103: 72.08 | D103: 71.02 | E103: 1252.296
A104: 2017-01-06 | B104: 71.82 | C104: 72.06 | D104: 71.69 | E104: 2066.24
A105: 2017-01-05 | B105: 72.48 | C105: 72.73 | D105: 72.1 | E105: 2270.26
A106: 2017-01-04 | B106: 71.94 | C106: 72.6 | D106: 72.36 | E106: 1790.734
A107: 2017-01-03 | B107: 71.76 | C107: 71.96 | D107: 71.75 | E107: 1971.714
A108: 2016-12-30 | B108: 72.35 | C108: 72.62 | D108: 71.99 | E108: 1960.607
A109: 2016-12-29 | B109: 71.38 | C109: 72.44 | D109: 72.28 | E109: 1524.821
A110: 2016-12-28 | B110: 71.5 | C110: 71.69 | D110: 71.15 | E110: 1778.82
A111: 2016-12-27 | B111: 71.59 | C111: 72.08 | D111: 71.94 | E111: 841.525
A112: 2016-12-23 | B112: 72.16 | C112: 72.38 | D112: 71.9 | E112: 791.794
A113: 2016-12-22 | B113: 71.71 | C113: 72.31 | D113: 72.13 | E113: 1172.898
A114: 2016-12-21 | B114: 71.96 | C114: 72.48 | D114: 71.74 | E114: 1633.39
A115: 2016-12-20 | B115: 71.6 | C115: 72.29 | D115: 72.11 | E115: 1597.349
A116: 2016-12-19 | B116: 71.78 | C116: 72.02 | D116: 71.61 | E116: 1516.264
A117: 2016-12-16 | B117: 70.3 | C117: 71.78 | D117: 71.72 | E117: 3499.383
A118: 2016-12-15 | B118: 69.25 | C118: 70.43 | D118: 70.19 | E118: 1453.876
A119: 2016-12-14 | B119: 71.62 | C119: 71.84 | D119: 69.59 | E119: 2185.371
A120: 2016-12-13 | B120: 70.72 | C120: 71.25 | D120: 71.17 | E120: 2755.82
A121: 2016-12-12 | B121: 69.66 | C121: 70.52 | D121: 70.45 | E121: 2698.329
A122: 2016-12-09 | B122: 69.59 | C122: 70.33 | D122: 69.97 | E122: 3307.626
A123: 2016-12-08 | B123: 69.09 | C123: 69.77 | D123: 69.44 | E123: 1627.776
A124: 2016-12-07 | B124: 69.06 | C124: 69.91 | D124: 69.61 | E124: 2236.522
A125: 2016-12-06 | B125: 69.89 | C125: 69.99 | D125: 68.85 | E125: 1873.676
A126: 2016-12-05 | B126: 69.13 | C126: 69.75 | D126: 69.74 | E126: 2705.358
A127: 2016-12-02 | B127: 69 | C127: 69.86 | D127: 69.4 | E127: 1435.505
A128: 2016-12-01 | B128: 68.39 | C128: 68.6 | D128: 68.56 | E128: 1565.649
A129: 2016-11-30 | B129: 70.21 | C129: 70.39 | D129: 68.77 | E129: 2276.797
A130: 2016-11-29 | B130: 71.02 | C130: 71.74 | D130: 71.15 | E130: 1527.606
A131: 2016-11-28 | B131: 69.96 | C131: 71.35 | D131: 71.27 | E131: 1873.439
A132: 2016-11-25 | B132: 69.26 | C132: 69.97 | D132: 69.76 | E132: 812.986
A133: 2016-11-23 | B133: 69 | C133: 69.71 | D133: 68.99 | E133: 993
A134: 2016-11-22 | B134: 69.31 | C134: 69.92 | D134: 69.73 | E134: 1551.913
A135: 2016-11-21 | B135: 68.8 | C135: 69.39 | D135: 69.28 | E135: 1430.998
A136: 2016-11-18 | B136: 68.66 | C136: 69.04 | D136: 68.45 | E136: 982.17
A137: 2016-11-17 | B137: 68.64 | C137: 69.49 | D137: 68.69 | E137: 1571.236
A138: 2016-11-16 | B138: 69.57 | C138: 69.73 | D138: 68.84 | E138: 1027.447
A139: 2016-11-15 | B139: 68.76 | C139: 69.8 | D139: 69.44 | E139: 1398.394
A140: 2016-11-14 | B140: 68.62 | C140: 68.72 | D140: 68.34 | E140: 2471.8
A141: 2016-11-11 | B141: 68.8 | C141: 69.65 | D141: 68.85 | E141: 1512.352
A142: 2016-11-10 | B142: 69.86 | C142: 69.86 | D142: 68.76 | E142: 3689.175
A143: 2016-11-09 | B143: 70.86 | C143: 71.01 | D143: 70.17 | E143: 2204.552
A144: 2016-11-08 | B144: 71.74 | C144: 72.63 | D144: 72.26 | E144: 1362.852
A145: 2016-11-07 | B145: 70.76 | C145: 71.57 | D145: 71.57 | E145: 1367.131
A146: 2016-11-04 | B146: 71.45 | C146: 72.11 | D146: 70.31 | E146: 1471.377
A147: 2016-11-03 | B147: 70.37 | C147: 71.335 | D147: 71.05 | E147: 1229.974
A148: 2016-11-02 | B148: 72.29 | C148: 72.33 | D148: 70.7 | E148: 1957.15
A149: 2016-11-01 | B149: 73.39 | C149: 73.44 | D149: 72.5 | E149: 1871.151
A150: 2016-10-31 | B150: 71.97 | C150: 73.81 | D150: 73.48 | E150: 1912.187
A151: 2016-10-28 | B151: 71.51 | C151: 72.04 | D151: 71.88 | E151: 826.272
A152: 2016-10-27 | B152: 71.46 | C152: 71.72 | D152: 71.41 | E152: 861.64
A153: 2016-10-26 | B153: 71.66 | C153: 71.95 | D153: 71.76 | E153: 1054.82
A154: 2016-10-25 | B154: 71.1 | C154: 71.685 | D154: 71.62 | E154: 1145.408
A155: 2016-10-24 | B155: 71.22 | C155: 71.47 | D155: 71.26 | E155: 1191.914
A156: 2016-10-21 | B156: 71.38 | C156: 71.65 | D156: 70.9 | E156: 1625.069
A157: 2016-10-20 | B157: 72.03 | C157: 72.41 | D157: 71.75 | E157: 1508.66
A158: 2016-10-19 | B158: 72.07 | C158: 72.33 | D158: 72.02 | E158: 2727.979
A159: 2016-10-18 | B159: 71.61 | C159: 72.13 | D159: 72.07 | E159: 1885.168
A160: 2016-10-17 | B160: 71.09 | C160: 71.4 | D160: 71.22 | E160: 813.894
A161: 2016-10-14 | B161: 70.69 | C161: 71.42 | D161: 70.85 | E161: 1790.056
A162: 2016-10-13 | B162: 70.14 | C162: 71.48 | D162: 71.01 | E162: 1531.649
A163: 2016-10-12 | B163: 69.55 | C163: 70.22 | D163: 70.06 | E163: 1130.622
A164: 2016-10-11 | B164: 70.18 | C164: 70.24 | D164: 69.41 | E164: 1420.123
A165: 2016-10-10 | B165: 70.08 | C165: 70.37 | D165: 70.26 | E165: 1114.547
A166: 2016-10-07 | B166: 70.23 | C166: 70.92 | D166: 69.89 | E166: 1533.059
A167: 2016-10-06 | B167: 69.52 | C167: 70.12 | D167: 69.82 | E167: 1606.336
A168: 2016-10-05 | B168: 70.01 | C168: 70.5 | D168: 69.76 | E168: 2705.4
A169: 2016-10-04 | B169: 71.31 | C169: 71.31 | D169: 69.89 | E169: 2262.514
A170: 2016-10-03 | B170: 72.06 | C170: 72.14 | D170: 71.39 | E170: 1707.665
A171: 2016-09-30 | B171: 73.03 | C171: 73.53 | D171: 72.25 | E171: 1734.361
A172: 2016-09-29 | B172: 73.45 | C172: 73.48 | D172: 72.68 | E172: 1311.465
A173: 2016-09-28 | B173: 73.95 | C173: 74.18 | D173: 73.7 | E173: 1289.632
A174: 2016-09-27 | B174: 75.89 | C174: 76.3 | D174: 74.24 | E174: 1769.825
A175: 2016-09-26 | B175: 75.64 | C175: 75.82 | D175: 75.55 | E175: 1565.066
A176: 2016-09-23 | B176: 75.14 | C176: 75.96 | D176: 75.62 | E176: 1399.24
A177: 2016-09-22 | B177: 75.36 | C177: 75.59 | D177: 75.51 | E177: 1016.842
A178: 2016-09-21 | B178: 73.29 | C178: 75.08 | D178: 75 | E178: 1551.403
A179: 2016-09-20 | B179: 73.67 | C179: 74.07 | D179: 73.36 | E179: 979.122
A180: 2016-09-19 | B180: 73.21 | C180: 73.56 | D180: 73.52 | E180: 1379.985
A181: 2016-09-16 | B181: 71.97 | C181: 73.14 | D181: 73.08 | E181: 2086.112
A182: 2016-09-15 | B182: 71.65 | C182: 72.32 | D182: 72.2 | E182: 1245.484
A183: 2016-09-14 | B183: 71.89 | C183: 72.35 | D183: 71.83 | E183: 1611.825
A184: 2016-09-13 | B184: 72.34 | C184: 72.53 | D184: 71.63 | E184: 2139.192
A185: 2016-09-12 | B185: 71.38 | C185: 72.69 | D185: 72.52 | E185: 1685.575
A186: 2016-09-09 | B186: 73.17 | C186: 73.27 | D186: 71.4 | E186: 2995.568
A187: 2016-09-08 | B187: 73.59 | C187: 74.01 | D187: 73.85 | E187: 1254.211
A188: 2016-09-07 | B188: 74 | C188: 74.04 | D188: 73.77 | E188: 1156.342
A189: 2016-09-06 | B189: 73.96 | C189: 74.5 | D189: 74.11 | E189: 1592.466
A190: 2016-09-02 | B190: 73.05 | C190: 73.88 | D190: 73.7 | E190: 1828.807
A191: 2016-09-01 | B191: 72.66 | C191: 72.76 | D191: 72.7 | E191: 1509.66
A192: 2016-08-31 | B192: 72.02 | C192: 72.74 | D192: 72.72 | E192: 1724.596
A193: 2016-08-30 | B193: 72.65 | C193: 72.995 | D193: 71.96 | E193: 1004.368
A194: 2016-08-29 | B194: 72.04 | C194: 72.85 | D194: 72.81 | E194: 1820.021
A195: 2016-08-26 | B195: 73.72 | C195: 74.2 | D195: 71.9 | E195: 1984.322
A196: 2016-08-25 | B196: 74.04 | C196: 74.23 | D196: 73.65 | E196: 1536.734
A197: 2016-08-24 | B197: 73.85 | C197: 74.08 | D197: 73.99 | E197: 979.259
A198: 2016-08-23 | B198: 74.35 | C198: 74.77 | D198: 73.97 | E198: 1066.426
A199: 2016-08-22 | B199: 74.42 | C199: 74.68 | D199: 74.38 | E199: 868.199
A200: 2016-08-19 | B200: 74.78 | C200: 74.93 | D200: 74.21 | E200: 1675.874
... 309 more rows

Sheet EE
A1: ='Div Yields'!C15 -> EE | G1: Dividend | H1: 30 Day Avg | I1: 90 Day Avg | J1: 180 Day Avg | K1: 360 Day Avg | L1: 720 Day Avg
H2: =AVERAGE($D$4:$D$33) -> 52.05333333 | I2: =AVERAGE($D$4:$D$93) -> 49.57666667 | J2: =AVERAGE($D$4:$D$183) -> 47.66422222 | K2: =AVERAGE($D$4:$D$363) -> 45.86327778 | L2: =AVERAGE($D$4:$D$507) -> 43.23549603
A3: Date | B3: Open | C3: High | D3: Close | E3: Volume (k) | G3: =INDEX(Master,MATCH($A$1,Tickers,0),MATCH(G1,Header,0)) -> 1.24 | H3: =$G3/H2 -> 0.02382172131 | I3: =$G3/I2 -> 0.02501176629 | J3: 0.02601532013 | K3: 0.02703688136 | L3: 0.02868013817
A4: 2017-06-01 | B4: 53.9 | C4: 54.65 | D4: 54.6 | E4: 168.049
A5: 2017-05-31 | B5: 53.6 | C5: 54.1 | D5: 54 | E5: 207.802
A6: 2017-05-30 | B6: 53.35 | C6: 53.55 | D6: 53.5 | E6: 118.647
A7: 2017-05-26 | B7: 53.75 | C7: 53.95 | D7: 53.4 | E7: 161.958
A8: 2017-05-25 | B8: 53.4 | C8: 53.75 | D8: 53.65 | E8: 153.137
A9: 2017-05-24 | B9: 53 | C9: 53.5 | D9: 53.25 | E9: 205.653
A10: 2017-05-23 | B10: 53.2 | C10: 53.9 | D10: 53.05 | E10: 155.569
A11: 2017-05-22 | B11: 52 | C11: 53.05 | D11: 53 | E11: 105.007
A12: 2017-05-19 | B12: 51.7 | C12: 52.15 | D12: 52.05 | E12: 129.188
A13: 2017-05-18 | B13: 51.8 | C13: 52 | D13: 51.8 | E13: 173.989
A14: 2017-05-17 | B14: 51.65 | C14: 52.15 | D14: 51.65 | E14: 240.395
A15: 2017-05-16 | B15: 51.65 | C15: 51.75 | D15: 51.7 | E15: 187.883
A16: 2017-05-15 | B16: 51.4 | C16: 51.8 | D16: 51.65 | E16: 126.161
A17: 2017-05-12 | B17: 51.35 | C17: 51.5 | D17: 51.45 | E17: 105.13
A18: 2017-05-11 | B18: 51 | C18: 51.15 | D18: 51.15 | E18: 113.129
A19: 2017-05-10 | B19: 50.9 | C19: 51.362 | D19: 51.2 | E19: 133.439
A20: 2017-05-09 | B20: 51.45 | C20: 51.65 | D20: 50.95 | E20: 154.756
A21: 2017-05-08 | B21: 51.8 | C21: 52 | D21: 51.45 | E21: 134.755
A22: 2017-05-05 | B22: 51.2 | C22: 51.85 | D22: 51.75 | E22: 185.343
A23: 2017-05-04 | B23: 51.15 | C23: 51.4 | D23: 51.1 | E23: 201.128
A24: 2017-05-03 | B24: 49.75 | C24: 51.35 | D24: 51.15 | E24: 174.375
A25: 2017-05-02 | B25: 51.15 | C25: 51.65 | D25: 50.85 | E25: 173.948
A26: 2017-05-01 | B26: 51.7 | C26: 51.7 | D26: 51.15 | E26: 232.629
A27: 2017-04-28 | B27: 52.15 | C27: 52.2 | D27: 51.6 | E27: 228.537
A28: 2017-04-27 | B28: 52 | C28: 52.5 | D28: 52.1 | E28: 130.804
A29: 2017-04-26 | B29: 51.7 | C29: 52.5 | D29: 52.05 | E29: 217.911
A30: 2017-04-25 | B30: 51.75 | C30: 52.1 | D30: 51.8 | E30: 175.805
A31: 2017-04-24 | B31: 51.7 | C31: 52.15 | D31: 51.85 | E31: 175.931
A32: 2017-04-21 | B32: 50.95 | C32: 51.65 | D32: 51.65 | E32: 159.039
A33: 2017-04-20 | B33: 51.1 | C33: 51.15 | D33: 51.05 | E33: 137.79
A34: 2017-04-19 | B34: 51.45 | C34: 51.45 | D34: 51.2 | E34: 143.589
A35: 2017-04-18 | B35: 51.45 | C35: 51.55 | D35: 51.45 | E35: 158.984
A36: 2017-04-17 | B36: 51.2 | C36: 51.5 | D36: 51.35 | E36: 120.803
A37: 2017-04-13 | B37: 51.35 | C37: 51.7 | D37: 51.1 | E37: 266.122
A38: 2017-04-12 | B38: 51.45 | C38: 51.7 | D38: 51.4 | E38: 128.826
A39: 2017-04-11 | B39: 50.85 | C39: 51.5 | D39: 51.4 | E39: 131.623
A40: 2017-04-10 | B40: 50.95 | C40: 51.1 | D40: 50.95 | E40: 146.077
A41: 2017-04-07 | B41: 51.1 | C41: 51.3 | D41: 50.9 | E41: 289.091
A42: 2017-04-06 | B42: 50.7 | C42: 51.05 | D42: 51 | E42: 187.859
A43: 2017-04-05 | B43: 50.4 | C43: 51 | D43: 50.9 | E43: 213.465
A44: 2017-04-04 | B44: 50.1 | C44: 50.5 | D44: 50.4 | E44: 152.44
A45: 2017-04-03 | B45: 50.7 | C45: 50.7 | D45: 50.2 | E45: 284.527
A46: 2017-03-31 | B46: 49.95 | C46: 50.75 | D46: 50.5 | E46: 314.884
A47: 2017-03-30 | B47: 49.85 | C47: 49.9 | D47: 49.8 | E47: 216.855
A48: 2017-03-29 | B48: 49.9 | C48: 49.9 | D48: 49.6 | E48: 343.486
A49: 2017-03-28 | B49: 49.7 | C49: 49.8 | D49: 49.8 | E49: 175.755
A50: 2017-03-27 | B50: 49.55 | C50: 49.8 | D50: 49.7 | E50: 144.415
A51: 2017-03-24 | B51: 49.1 | C51: 49.9 | D51: 49.55 | E51: 126.356
A52: 2017-03-23 | B52: 49.05 | C52: 49.55 | D52: 49.2 | E52: 161.088
A53: 2017-03-22 | B53: 49.15 | C53: 49.45 | D53: 49 | E53: 164.088
A54: 2017-03-21 | B54: 48.4 | C54: 49.2 | D54: 48.9 | E54: 134.644
A55: 2017-03-20 | B55: 49.1 | C55: 49.2 | D55: 48.35 | E55: 238.899
A56: 2017-03-17 | B56: 48.4 | C56: 49.2 | D56: 49.1 | E56: 349.958
A57: 2017-03-16 | B57: 48.75 | C57: 48.95 | D57: 48.4 | E57: 228.468
A58: 2017-03-15 | B58: 47.95 | C58: 49.15 | D58: 48.85 | E58: 289.569
A59: 2017-03-14 | B59: 48.15 | C59: 48.45 | D59: 48.05 | E59: 79.043
A60: 2017-03-13 | B60: 47.95 | C60: 48.4 | D60: 48.2 | E60: 82.367
A61: 2017-03-10 | B61: 47.9 | C61: 48.15 | D61: 48 | E61: 121.787
A62: 2017-03-09 | B62: 47.65 | C62: 48 | D62: 47.65 | E62: 162.652
A63: 2017-03-08 | B63: 48.45 | C63: 48.7 | D63: 47.7 | E63: 126.567
A64: 2017-03-07 | B64: 48.85 | C64: 49.1 | D64: 48.85 | E64: 129.221
A65: 2017-03-06 | B65: 49.35 | C65: 49.55 | D65: 48.85 | E65: 136.686
A66: 2017-03-03 | B66: 49.5 | C66: 49.65 | D66: 49.5 | E66: 175.25
A67: 2017-03-02 | B67: 49.05 | C67: 49.625 | D67: 49.6 | E67: 275.786
A68: 2017-03-01 | B68: 48.8 | C68: 49.6 | D68: 49.25 | E68: 281.03
A69: 2017-02-28 | B69: 48.65 | C69: 48.975 | D69: 48.85 | E69: 225.598
A70: 2017-02-27 | B70: 48.55 | C70: 48.85 | D70: 48.7 | E70: 273.586
A71: 2017-02-24 | B71: 48.3 | C71: 49 | D71: 48.55 | E71: 163.218
A72: 2017-02-23 | B72: 48.45 | C72: 48.65 | D72: 48.35 | E72: 253.663
A73: 2017-02-22 | B73: 47.15 | C73: 47.4 | D73: 47.25 | E73: 108.101
A74: 2017-02-21 | B74: 46.45 | C74: 47.3 | D74: 47.25 | E74: 107.854
A75: 2017-02-17 | B75: 47 | C75: 47 | D75: 46.6 | E75: 157.435
A76: 2017-02-16 | B76: 46.3 | C76: 46.75 | D76: 46.75 | E76: 143.22
A77: 2017-02-15 | B77: 46.05 | C77: 46.35 | D77: 46.25 | E77: 76.474
A78: 2017-02-14 | B78: 46.5 | C78: 46.5 | D78: 46.4 | E78: 154.283
A79: 2017-02-13 | B79: 46.7 | C79: 46.75 | D79: 46.65 | E79: 75.14
A80: 2017-02-10 | B80: 46.3 | C80: 46.7 | D80: 46.65 | E80: 85.194
A81: 2017-02-09 | B81: 46.25 | C81: 46.45 | D81: 46.25 | E81: 113.015
A82: 2017-02-08 | B82: 45.9 | C82: 46.45 | D82: 46.25 | E82: 111.717
A83: 2017-02-07 | B83: 45.85 | C83: 46.25 | D83: 45.95 | E83: 96.825
A84: 2017-02-06 | B84: 46.5 | C84: 46.55 | D84: 45.75 | E84: 102.118
A85: 2017-02-03 | B85: 46.2 | C85: 46.35 | D85: 46.25 | E85: 106.667
A86: 2017-02-02 | B86: 45.55 | C86: 46 | D86: 45.9 | E86: 170.534
A87: 2017-02-01 | B87: 45.6 | C87: 46.1 | D87: 45.3 | E87: 150.377
A88: 2017-01-31 | B88: 44.85 | C88: 46.025 | D88: 45.9 | E88: 171.322
A89: 2017-01-30 | B89: 44.85 | C89: 45.1 | D89: 44.9 | E89: 183.748
A90: 2017-01-27 | B90: 45.25 | C90: 45.25 | D90: 45 | E90: 222.793
A91: 2017-01-26 | B91: 45.3 | C91: 45.5 | D91: 45.2 | E91: 234.764
A92: 2017-01-25 | B92: 45.35 | C92: 45.65 | D92: 45.25 | E92: 275.756
A93: 2017-01-24 | B93: 45.6 | C93: 45.7 | D93: 45.5 | E93: 316.012
A94: 2017-01-23 | B94: 46.05 | C94: 46.1 | D94: 45.65 | E94: 150.588
A95: 2017-01-20 | B95: 45.7 | C95: 46.1 | D95: 46 | E95: 192.872
A96: 2017-01-19 | B96: 46.2 | C96: 46.5 | D96: 45.8 | E96: 172.481
A97: 2017-01-18 | B97: 46.25 | C97: 46.6 | D97: 46.55 | E97: 124.174
A98: 2017-01-17 | B98: 46.75 | C98: 46.9 | D98: 46.3 | E98: 177.529
A99: 2017-01-13 | B99: 46.4 | C99: 46.7 | D99: 46.5 | E99: 95.482
A100: 2017-01-12 | B100: 46.9 | C100: 47.2 | D100: 46.5 | E100: 127.988
A101: 2017-01-11 | B101: 45.85 | C101: 46.8 | D101: 46.8 | E101: 292.501
A102: 2017-01-10 | B102: 45.6 | C102: 46.2 | D102: 46.1 | E102: 241.132
A103: 2017-01-09 | B103: 46.95 | C103: 47.05 | D103: 45.7 | E103: 148.437
A104: 2017-01-06 | B104: 46.6 | C104: 47.2 | D104: 46.85 | E104: 260.557
A105: 2017-01-05 | B105: 46.95 | C105: 47.1 | D105: 46.95 | E105: 203.238
A106: 2017-01-04 | B106: 46.8 | C106: 47.2 | D106: 46.95 | E106: 156.332
A107: 2017-01-03 | B107: 46.6 | C107: 46.8 | D107: 46.65 | E107: 180.178
A108: 2016-12-30 | B108: 46.85 | C108: 47.1 | D108: 46.5 | E108: 138.828
A109: 2016-12-29 | B109: 46.6 | C109: 47 | D109: 46.8 | E109: 160.585
A110: 2016-12-28 | B110: 47 | C110: 47.1 | D110: 46.35 | E110: 166.934
A111: 2016-12-27 | B111: 46.95 | C111: 47.2 | D111: 46.95 | E111: 181.736
A112: 2016-12-23 | B112: 47.2 | C112: 47.25 | D112: 47.1 | E112: 110.763
A113: 2016-12-22 | B113: 47.2 | C113: 47.35 | D113: 47 | E113: 347.198
A114: 2016-12-21 | B114: 47.3 | C114: 47.95 | D114: 47.2 | E114: 247.631
A115: 2016-12-20 | B115: 47.1 | C115: 47.3 | D115: 47.3 | E115: 240.135
A116: 2016-12-19 | B116: 46.85 | C116: 47.65 | D116: 47.15 | E116: 320.882
A117: 2016-12-16 | B117: 47 | C117: 47.35 | D117: 46.9 | E117: 623.747
A118: 2016-12-15 | B118: 46 | C118: 47.05 | D118: 46.8 | E118: 211.215
A119: 2016-12-14 | B119: 48.05 | C119: 48.35 | D119: 46 | E119: 216.016
A120: 2016-12-13 | B120: 47.35 | C120: 47.875 | D120: 47.7 | E120: 161.701
A121: 2016-12-12 | B121: 46.8 | C121: 47.2 | D121: 47.1 | E121: 348.088
A122: 2016-12-09 | B122: 46.5 | C122: 47.425 | D122: 47.35 | E122: 260.532
A123: 2016-12-08 | B123: 45.75 | C123: 46.7 | D123: 46.5 | E123: 191.204
A124: 2016-12-07 | B124: 45.5 | C124: 46.15 | D124: 46.05 | E124: 279.921
A125: 2016-12-06 | B125: 45.3 | C125: 45.75 | D125: 45.4 | E125: 244.043
A126: 2016-12-05 | B126: 44.8 | C126: 45.2 | D126: 45.15 | E126: 273.71
A127: 2016-12-02 | B127: 44.9 | C127: 45.65 | D127: 45 | E127: 130.572
A128: 2016-12-01 | B128: 44.75 | C128: 45.25 | D128: 44.6 | E128: 212.719
A129: 2016-11-30 | B129: 46.15 | C129: 46.3 | D129: 45.05 | E129: 195.005
A130: 2016-11-29 | B130: 47.1 | C130: 47.55 | D130: 46.85 | E130: 229.015
A131: 2016-11-28 | B131: 46.35 | C131: 47.45 | D131: 47.15 | E131: 149.889
A132: 2016-11-25 | B132: 45.85 | C132: 46.6 | D132: 46.2 | E132: 61.755
A133: 2016-11-23 | B133: 45.4 | C133: 46 | D133: 45.75 | E133: 214.18
A134: 2016-11-22 | B134: 45.1 | C134: 45.95 | D134: 45.95 | E134: 191.291
A135: 2016-11-21 | B135: 44.35 | C135: 45.3 | D135: 45.05 | E135: 201.965
A136: 2016-11-18 | B136: 44.3 | C136: 44.7 | D136: 44.35 | E136: 418.021
A137: 2016-11-17 | B137: 44.45 | C137: 44.9 | D137: 44.2 | E137: 217.902
A138: 2016-11-16 | B138: 44.85 | C138: 45.05 | D138: 44.6 | E138: 261.488
A139: 2016-11-15 | B139: 44.6 | C139: 45.45 | D139: 44.9 | E139: 485.684
A140: 2016-11-14 | B140: 45.45 | C140: 45.9 | D140: 45 | E140: 340.75
A141: 2016-11-11 | B141: 45.1 | C141: 45.925 | D141: 45.7 | E141: 314.97
A142: 2016-11-10 | B142: 46.1 | C142: 46.375 | D142: 45.1 | E142: 428.378
A143: 2016-11-09 | B143: 45.7 | C143: 46.45 | D143: 46.3 | E143: 320.134
A144: 2016-11-08 | B144: 46.15 | C144: 47.05 | D144: 46.65 | E144: 123.578
A145: 2016-11-07 | B145: 45.1 | C145: 46.2 | D145: 46.15 | E145: 168.467
A146: 2016-11-04 | B146: 45.2 | C146: 45.65 | D146: 44.85 | E146: 88.174
A147: 2016-11-03 | B147: 44.35 | C147: 45.1 | D147: 45 | E147: 103.322
A148: 2016-11-02 | B148: 46.5 | C148: 46.5 | D148: 44.45 | E148: 262.939
A149: 2016-11-01 | B149: 46.15 | C149: 46.15 | D149: 45.2 | E149: 165.731
A150: 2016-10-31 | B150: 45.45 | C150: 46.45 | D150: 46.2 | E150: 204.169
A151: 2016-10-28 | B151: 44.72 | C151: 45.32 | D151: 45.3 | E151: 148.06
A152: 2016-10-27 | B152: 44.63 | C152: 45.05 | D152: 44.87 | E152: 147.935
A153: 2016-10-26 | B153: 44.43 | C153: 45.04 | D153: 44.89 | E153: 210.113
A154: 2016-10-25 | B154: 44.07 | C154: 44.65 | D154: 44.65 | E154: 241.507
A155: 2016-10-24 | B155: 43.81 | C155: 44.25 | D155: 44.07 | E155: 114.386
A156: 2016-10-21 | B156: 43.77 | C156: 43.88 | D156: 43.67 | E156: 130
A157: 2016-10-20 | B157: 43.76 | C157: 43.98 | D157: 43.77 | E157: 140.532
A158: 2016-10-19 | B158: 43.73 | C158: 43.96 | D158: 43.73 | E158: 126.583
A159: 2016-10-18 | B159: 43.65 | C159: 43.93 | D159: 43.74 | E159: 127.934
A160: 2016-10-17 | B160: 43.12 | C160: 43.55 | D160: 43.41 | E160: 158.42
A161: 2016-10-14 | B161: 42.92 | C161: 43.4 | D161: 42.95 | E161: 386.472
A162: 2016-10-13 | B162: 42.71 | C162: 43.39 | D162: 43.05 | E162: 235.121
A163: 2016-10-12 | B163: 42.62 | C163: 43.04 | D163: 42.71 | E163: 239.107
A164: 2016-10-11 | B164: 43.46 | C164: 43.78 | D164: 42.57 | E164: 286.918
A165: 2016-10-10 | B165: 43.52 | C165: 43.88 | D165: 43.6 | E165: 443.577
A166: 2016-10-07 | B166: 44.3 | C166: 44.33 | D166: 43.5 | E166: 212.505
A167: 2016-10-06 | B167: 44.02 | C167: 44.26 | D167: 43.98 | E167: 151.066
A168: 2016-10-05 | B168: 44.6 | C168: 44.94 | D168: 44.27 | E168: 143.684
A169: 2016-10-04 | B169: 45.99 | C169: 45.99 | D169: 44.55 | E169: 119.624
A170: 2016-10-03 | B170: 46.73 | C170: 47 | D170: 46.09 | E170: 181.23
A171: 2016-09-30 | B171: 47.16 | C171: 47.35 | D171: 46.77 | E171: 180.462
A172: 2016-09-29 | B172: 47.48 | C172: 47.53 | D172: 47.18 | E172: 163.424
A173: 2016-09-28 | B173: 47.59 | C173: 47.92 | D173: 47.57 | E173: 185.664
A174: 2016-09-27 | B174: 48.46 | C174: 48.4846 | D174: 47.74 | E174: 124.662
A175: 2016-09-26 | B175: 48.42 | C175: 48.75 | D175: 48.34 | E175: 197.989
A176: 2016-09-23 | B176: 48.35 | C176: 48.67 | D176: 48.43 | E176: 162.547
A177: 2016-09-22 | B177: 48.36 | C177: 48.65 | D177: 48.62 | E177: 176.869
A178: 2016-09-21 | B178: 47.07 | C178: 48.04 | D178: 47.98 | E178: 126.979
A179: 2016-09-20 | B179: 46.66 | C179: 47.25 | D179: 46.92 | E179: 192.512
A180: 2016-09-19 | B180: 45.97 | C180: 46.61 | D180: 46.58 | E180: 113.161
A181: 2016-09-16 | B181: 45.14 | C181: 46.01 | D181: 45.89 | E181: 279.501
A182: 2016-09-15 | B182: 44.39 | C182: 44.98 | D182: 44.89 | E182: 93.881
A183: 2016-09-14 | B183: 44.62 | C183: 44.81 | D183: 44.53 | E183: 102.611
A184: 2016-09-13 | B184: 44.93 | C184: 44.93 | D184: 44.38 | E184: 146.88
A185: 2016-09-12 | B185: 44.27 | C185: 45.21 | D185: 45.12 | E185: 182.421
A186: 2016-09-09 | B186: 46.14 | C186: 46.14 | D186: 44.75 | E186: 223.276
A187: 2016-09-08 | B187: 46.28 | C187: 46.77 | D187: 46.72 | E187: 98.045
A188: 2016-09-07 | B188: 46.45 | C188: 46.78 | D188: 46.59 | E188: 106.916
A189: 2016-09-06 | B189: 46.4 | C189: 46.65 | D189: 46.51 | E189: 138.103
A190: 2016-09-02 | B190: 45.28 | C190: 46.32 | D190: 46.3 | E190: 159.569
A191: 2016-09-01 | B191: 45.49 | C191: 45.66 | D191: 45.23 | E191: 132.198
A192: 2016-08-31 | B192: 45.6 | C192: 45.88 | D192: 45.69 | E192: 148.804
A193: 2016-08-30 | B193: 45.72 | C193: 45.99 | D193: 45.49 | E193: 174.44
A194: 2016-08-29 | B194: 45.2 | C194: 45.68 | D194: 45.63 | E194: 100.048
A195: 2016-08-26 | B195: 45.84 | C195: 46.22 | D195: 45.18 | E195: 187.421
A196: 2016-08-25 | B196: 45.77 | C196: 45.96 | D196: 45.85 | E196: 81.782
A197: 2016-08-24 | B197: 45.44 | C197: 45.83 | D197: 45.78 | E197: 133.499
A198: 2016-08-23 | B198: 45.76 | C198: 46.08 | D198: 45.51 | E198: 93.557
A199: 2016-08-22 | B199: 45.52 | C199: 46.07 | D199: 45.78 | E199: 74.991
A200: 2016-08-19 | B200: 46.13 | C200: 46.23 | D200: 45.59 | E200: 173.758
... 309 more rows

Sheet ETR
A1: ='Div Yields'!C16 -> ETR | G1: Dividend | H1: 30 Day Avg | I1: 90 Day Avg | J1: 180 Day Avg | K1: 360 Day Avg | L1: 720 Day Avg
H2: =AVERAGE($D$4:$D$33) -> 76.542 | I2: =AVERAGE($D$4:$D$93) -> 74.99755556 | J2: =AVERAGE($D$4:$D$183) -> 73.90094444 | K2: =AVERAGE($D$4:$D$363) -> 74.94944444 | L2: =AVERAGE($D$4:$D$507) -> 72.96890873
A3: Date | B3: Open | C3: High | D3: Close | E3: Volume (k) | G3: =INDEX(Master,MATCH($A$1,Tickers,0),MATCH(G1,Header,0)) -> 3.48 | H3: =$G3/H2 -> 0.04546523477 | I3: =$G3/I2 -> 0.04640151235 | J3: 0.04709006125 | K3: 0.04643129813 | L3: 0.04769154508
A4: 2017-06-01 | B4: 78.94 | C4: 80 | D4: 79.87 | E4: 1684.251
A5: 2017-05-31 | B5: 78.35 | C5: 79.48 | D5: 79.06 | E5: 2183.658
A6: 2017-05-30 | B6: 77.69 | C6: 78.59 | D6: 78.24 | E6: 1040.625
A7: 2017-05-26 | B7: 77.99 | C7: 78.07 | D7: 77.65 | E7: 1065.925
A8: 2017-05-25 | B8: 77.2 | C8: 78.115 | D8: 77.86 | E8: 1358.457
A9: 2017-05-24 | B9: 76.54 | C9: 77.09 | D9: 77.02 | E9: 822.958
A10: 2017-05-23 | B10: 76.38 | C10: 77.02 | D10: 76.56 | E10: 780.798
A11: 2017-05-22 | B11: 75.54 | C11: 76.64 | D11: 76.36 | E11: 1483.475
A12: 2017-05-19 | B12: 75.87 | C12: 75.9 | D12: 75.69 | E12: 1108.242
A13: 2017-05-18 | B13: 75.5 | C13: 75.97 | D13: 75.77 | E13: 987.867
A14: 2017-05-17 | B14: 75.16 | C14: 75.91 | D14: 75.38 | E14: 1127.504
A15: 2017-05-16 | B15: 75.8 | C15: 75.98 | D15: 75.14 | E15: 707.428
A16: 2017-05-15 | B16: 75.65 | C16: 76.45 | D16: 75.8 | E16: 1003.96
A17: 2017-05-12 | B17: 75.39 | C17: 75.89 | D17: 75.7 | E17: 972.212
A18: 2017-05-11 | B18: 75.35 | C18: 75.72 | D18: 75.38 | E18: 1227.347
A19: 2017-05-10 | B19: 75.32 | C19: 75.75 | D19: 75.68 | E19: 1183.145
A20: 2017-05-09 | B20: 76.05 | C20: 76.299 | D20: 75.23 | E20: 922.888
A21: 2017-05-08 | B21: 77.34 | C21: 77.37 | D21: 77.14 | E21: 1240.75
A22: 2017-05-05 | B22: 76.76 | C22: 77.42 | D22: 77.36 | E22: 858.049
A23: 2017-05-04 | B23: 76.31 | C23: 76.74 | D23: 76.56 | E23: 1171.662
A24: 2017-05-03 | B24: 76.13 | C24: 76.75 | D24: 76.44 | E24: 1058.903
A25: 2017-05-02 | B25: 75.87 | C25: 76.28 | D25: 76.26 | E25: 1053.121
A26: 2017-05-01 | B26: 76.33 | C26: 76.4392 | D26: 75.8 | E26: 894.811
A27: 2017-04-28 | B27: 76.84 | C27: 76.89 | D27: 76.26 | E27: 1344.374
A28: 2017-04-27 | B28: 75.89 | C28: 77.17 | D28: 76.68 | E28: 1333.658
A29: 2017-04-26 | B29: 76.25 | C29: 76.6 | D29: 75.99 | E29: 1377.456
A30: 2017-04-25 | B30: 76.37 | C30: 76.79 | D30: 76.71 | E30: 1555.047
A31: 2017-04-24 | B31: 76.63 | C31: 76.7899 | D31: 76.46 | E31: 2042.41
A32: 2017-04-21 | B32: 75.85 | C32: 76.61 | D32: 76.41 | E32: 1076.481
A33: 2017-04-20 | B33: 76.29 | C33: 76.335 | D33: 75.8 | E33: 737.133
A34: 2017-04-19 | B34: 76.92 | C34: 76.99 | D34: 76.36 | E34: 972.326
A35: 2017-04-18 | B35: 77.05 | C35: 77.4 | D35: 76.89 | E35: 1062.571
A36: 2017-04-17 | B36: 77.14 | C36: 77.4052 | D36: 77.13 | E36: 610.541
A37: 2017-04-13 | B37: 77.02 | C37: 77.16 | D37: 76.99 | E37: 1415.895
A38: 2017-04-12 | B38: 76.34 | C38: 77.11 | D38: 77.08 | E38: 1179.926
A39: 2017-04-11 | B39: 76.02 | C39: 76.78 | D39: 76.6 | E39: 1129.207
A40: 2017-04-10 | B40: 75.98 | C40: 76.06 | D40: 75.85 | E40: 742.003
A41: 2017-04-07 | B41: 75.98 | C41: 76.45 | D41: 75.95 | E41: 1580.335
A42: 2017-04-06 | B42: 75.8 | C42: 76.07 | D42: 75.88 | E42: 1079.45
A43: 2017-04-05 | B43: 75.79 | C43: 76.26 | D43: 76.13 | E43: 2553.636
A44: 2017-04-04 | B44: 75.69 | C44: 76.21 | D44: 75.81 | E44: 1199.631
A45: 2017-04-03 | B45: 75.8 | C45: 75.8 | D45: 75.69 | E45: 1045.969
A46: 2017-03-31 | B46: 75.87 | C46: 76.32 | D46: 75.96 | E46: 826.776
A47: 2017-03-30 | B47: 76.19 | C47: 76.19 | D47: 75.85 | E47: 707.825
A48: 2017-03-29 | B48: 76.33 | C48: 76.56 | D48: 76.19 | E48: 579.312
A49: 2017-03-28 | B49: 76.25 | C49: 76.57 | D49: 76.51 | E49: 808.653
A50: 2017-03-27 | B50: 77.08 | C50: 77.3659 | D50: 76.48 | E50: 1150.924
A51: 2017-03-24 | B51: 76.05 | C51: 77.085 | D51: 76.81 | E51: 1293.805
A52: 2017-03-23 | B52: 76.33 | C52: 76.99 | D52: 76.63 | E52: 1374.99
A53: 2017-03-22 | B53: 76.02 | C53: 77.51 | D53: 76.52 | E53: 2513.002
A54: 2017-03-21 | B54: 75.15 | C54: 75.93 | D54: 75.76 | E54: 2043.209
A55: 2017-03-20 | B55: 75.54 | C55: 75.69 | D55: 75.2 | E55: 1358.244
A56: 2017-03-17 | B56: 74.76 | C56: 75.77 | D56: 75.41 | E56: 2548.43
A57: 2017-03-16 | B57: 75.33 | C57: 75.5 | D57: 74.95 | E57: 1543.801
A58: 2017-03-15 | B58: 74.13 | C58: 75.47 | D58: 75.18 | E58: 1325.488
A59: 2017-03-14 | B59: 74.05 | C59: 74.34 | D59: 73.86 | E59: 927.403
A60: 2017-03-13 | B60: 73.56 | C60: 74.09 | D60: 74.08 | E60: 1355.788
A61: 2017-03-10 | B61: 73.66 | C61: 73.79 | D61: 73.61 | E61: 971.545
A62: 2017-03-09 | B62: 73.25 | C62: 73.68 | D62: 73.15 | E62: 1879.348
A63: 2017-03-08 | B63: 74.16 | C63: 74.62 | D63: 73.29 | E63: 2033.767
A64: 2017-03-07 | B64: 74.87 | C64: 75.27 | D64: 75 | E64: 1481.844
A65: 2017-03-06 | B65: 75.33 | C65: 75.47 | D65: 74.97 | E65: 1366.02
A66: 2017-03-03 | B66: 75.63 | C66: 75.71 | D66: 75.38 | E66: 1038.58
A67: 2017-03-02 | B67: 75.37 | C67: 76.21 | D67: 75.54 | E67: 2009.916
A68: 2017-03-01 | B68: 75.85 | C68: 76.7 | D68: 75.58 | E68: 1865.353
A69: 2017-02-28 | B69: 75.38 | C69: 76.79 | D69: 76.66 | E69: 1900.247
A70: 2017-02-27 | B70: 75.79 | C70: 75.86 | D70: 75.48 | E70: 1392.559
A71: 2017-02-24 | B71: 75.54 | C71: 75.86 | D71: 75.8 | E71: 1259.32
A72: 2017-02-23 | B72: 74.06 | C72: 75.34 | D72: 75.14 | E72: 1090.463
A73: 2017-02-22 | B73: 73.75 | C73: 73.99 | D73: 73.71 | E73: 1669.96
A74: 2017-02-21 | B74: 73.3 | C74: 74.105 | D74: 73.91 | E74: 1225.589
A75: 2017-02-17 | B75: 73 | C75: 73.67 | D75: 73.55 | E75: 1711.276
A76: 2017-02-16 | B76: 70.87 | C76: 72.85 | D76: 72.77 | E76: 2363.659
A77: 2017-02-15 | B77: 70.96 | C77: 71.81 | D77: 70.77 | E77: 1791.263
A78: 2017-02-14 | B78: 71.68 | C78: 71.81 | D78: 70.79 | E78: 1483.252
A79: 2017-02-13 | B79: 71.67 | C79: 72 | D79: 71.96 | E79: 778.875
A80: 2017-02-10 | B80: 70.9 | C80: 71.7 | D80: 71.63 | E80: 1023.696
A81: 2017-02-09 | B81: 71.27 | C81: 71.51 | D81: 71 | E81: 1178.785
A82: 2017-02-08 | B82: 70.75 | C82: 71.44 | D82: 71.4 | E82: 943.02
A83: 2017-02-07 | B83: 71.01 | C83: 71.14 | D83: 70.68 | E83: 1048.575
A84: 2017-02-06 | B84: 71.99 | C84: 72.19 | D84: 71.67 | E84: 1323.378
A85: 2017-02-03 | B85: 71.63 | C85: 72.11 | D85: 71.82 | E85: 936.714
A86: 2017-02-02 | B86: 70.79 | C86: 71.46 | D86: 71.44 | E86: 1414.693
A87: 2017-02-01 | B87: 71.16 | C87: 71.66 | D87: 70.72 | E87: 1329.916
A88: 2017-01-31 | B88: 70.61 | C88: 71.9799 | D88: 71.64 | E88: 2035.944
A89: 2017-01-30 | B89: 70.88 | C89: 70.88 | D89: 70.61 | E89: 1053.946
A90: 2017-01-27 | B90: 70.81 | C90: 71 | D90: 70.55 | E90: 916.381
A91: 2017-01-26 | B91: 70.71 | C91: 70.91 | D91: 70.53 | E91: 828.928
A92: 2017-01-25 | B92: 70.24 | C92: 70.61 | D92: 70.58 | E92: 1211.504
A93: 2017-01-24 | B93: 70.76 | C93: 71.07 | D93: 70.44 | E93: 1267.695
A94: 2017-01-23 | B94: 71.33 | C94: 71.39 | D94: 70.68 | E94: 787.483
A95: 2017-01-20 | B95: 71.22 | C95: 71.5 | D95: 71.17 | E95: 961.945
A96: 2017-01-19 | B96: 71.78 | C96: 71.78 | D96: 71.08 | E96: 1260.268
A97: 2017-01-18 | B97: 72.08 | C97: 72.53 | D97: 71.89 | E97: 1217.777
A98: 2017-01-17 | B98: 71.94 | C98: 72.64 | D98: 72.14 | E98: 1323.286
A99: 2017-01-13 | B99: 71.87 | C99: 71.95 | D99: 71.58 | E99: 726.642
A100: 2017-01-12 | B100: 71.58 | C100: 71.99 | D100: 71.83 | E100: 959.548
A101: 2017-01-11 | B101: 71.46 | C101: 71.94 | D101: 71.7 | E101: 1114.98
A102: 2017-01-10 | B102: 71.39 | C102: 71.63 | D102: 71.24 | E102: 1515.336
A103: 2017-01-09 | B103: 73.42 | C103: 73.57 | D103: 71.09 | E103: 2162.882
A104: 2017-01-06 | B104: 72.74 | C104: 73.89 | D104: 73.24 | E104: 2516.141
A105: 2017-01-05 | B105: 73.17 | C105: 73.41 | D105: 73 | E105: 2304.422
A106: 2017-01-04 | B106: 73.18 | C106: 73.7 | D106: 73.26 | E106: 1251.21
A107: 2017-01-03 | B107: 73.5 | C107: 73.66 | D107: 72.94 | E107: 1263.069
A108: 2016-12-30 | B108: 73.65 | C108: 73.74 | D108: 73.47 | E108: 971.074
A109: 2016-12-29 | B109: 72.37 | C109: 73.59 | D109: 73.5 | E109: 870.423
A110: 2016-12-28 | B110: 73.06 | C110: 73.06 | D110: 71.99 | E110: 768.726
A111: 2016-12-27 | B111: 72.79 | C111: 73.29 | D111: 73.01 | E111: 769.864
A112: 2016-12-23 | B112: 73.17 | C112: 73.32 | D112: 72.89 | E112: 703.983
A113: 2016-12-22 | B113: 72.86 | C113: 73.41 | D113: 73.18 | E113: 1226.408
A114: 2016-12-21 | B114: 73.24 | C114: 73.64 | D114: 72.9 | E114: 965.819
A115: 2016-12-20 | B115: 73.01 | C115: 73.66 | D115: 73.23 | E115: 1127.58
A116: 2016-12-19 | B116: 73.5 | C116: 73.54 | D116: 73.18 | E116: 1077.92
A117: 2016-12-16 | B117: 72.23 | C117: 73.23 | D117: 73.17 | E117: 4669.533
A118: 2016-12-15 | B118: 71.44 | C118: 72.607 | D118: 72.39 | E118: 1460.494
A119: 2016-12-14 | B119: 73.17 | C119: 73.79 | D119: 71.67 | E119: 1757.075
A120: 2016-12-13 | B120: 71.87 | C120: 72.79 | D120: 72.73 | E120: 1276.45
A121: 2016-12-12 | B121: 70.54 | C121: 71.67 | D121: 71.56 | E121: 1457.471
A122: 2016-12-09 | B122: 70.15 | C122: 70.82 | D122: 70.76 | E122: 1002.061
A123: 2016-12-08 | B123: 69.88 | C123: 70.68 | D123: 70.41 | E123: 1673.709
A124: 2016-12-07 | B124: 69.49 | C124: 70.485 | D124: 70.44 | E124: 1137.657
A125: 2016-12-06 | B125: 69.55 | C125: 69.57 | D125: 69.26 | E125: 1114.967
A126: 2016-12-05 | B126: 68.98 | C126: 69.4 | D126: 69.38 | E126: 1922.432
A127: 2016-12-02 | B127: 69.36 | C127: 70.13 | D127: 69.28 | E127: 2052.37
A128: 2016-12-01 | B128: 68.33 | C128: 68.95 | D128: 68.88 | E128: 1992.73
A129: 2016-11-30 | B129: 70.65 | C129: 70.65 | D129: 68.73 | E129: 2280.607
A130: 2016-11-29 | B130: 70.31 | C130: 71.5 | D130: 71.4 | E130: 1857.144
A131: 2016-11-28 | B131: 69.73 | C131: 70.835 | D131: 70.58 | E131: 1314.039
A132: 2016-11-25 | B132: 68.32 | C132: 69.76 | D132: 69.53 | E132: 740.274
A133: 2016-11-23 | B133: 67.94 | C133: 68.56 | D133: 68.12 | E133: 1162.025
A134: 2016-11-22 | B134: 68.09 | C134: 69.03 | D134: 68.41 | E134: 2100.146
A135: 2016-11-21 | B135: 68.17 | C135: 68.553 | D135: 68.42 | E135: 1447.516
A136: 2016-11-18 | B136: 68.09 | C136: 68.43 | D136: 67.83 | E136: 1298.358
A137: 2016-11-17 | B137: 67.93 | C137: 68.608 | D137: 68.18 | E137: 1205.198
A138: 2016-11-16 | B138: 68.69 | C138: 68.875 | D138: 68.12 | E138: 1045.819
A139: 2016-11-15 | B139: 68.34 | C139: 68.81 | D139: 68.63 | E139: 1824.7
A140: 2016-11-14 | B140: 67.15 | C140: 68.31 | D140: 68.03 | E140: 2131.904
A141: 2016-11-11 | B141: 67.88 | C141: 68.55 | D141: 67.41 | E141: 1134.16
A142: 2016-11-10 | B142: 68.5 | C142: 69.29 | D142: 67.87 | E142: 2943.356
A143: 2016-11-09 | B143: 70.36 | C143: 70.81 | D143: 68.85 | E143: 1696.316
A144: 2016-11-08 | B144: 70.8 | C144: 71.985 | D144: 71.73 | E144: 1758.126
A145: 2016-11-07 | B145: 71.15 | C145: 71.57 | D145: 71.51 | E145: 1752.554
A146: 2016-11-04 | B146: 71.7 | C146: 72.45 | D146: 70.82 | E146: 1229.577
A147: 2016-11-03 | B147: 71.32 | C147: 71.76 | D147: 71.39 | E147: 1395.213
A148: 2016-11-02 | B148: 71.77 | C148: 71.83 | D148: 71.42 | E148: 1665.304
A149: 2016-11-01 | B149: 73.54 | C149: 73.71 | D149: 71.93 | E149: 1920.363
A150: 2016-10-31 | B150: 72.59 | C150: 73.91 | D150: 73.68 | E150: 2040.757
A151: 2016-10-28 | B151: 72.04 | C151: 72.71 | D151: 72.36 | E151: 1544.256
A152: 2016-10-27 | B152: 71.55 | C152: 71.96 | D152: 71.88 | E152: 2170.163
A153: 2016-10-26 | B153: 72.35 | C153: 72.53 | D153: 72.28 | E153: 1846.484
A154: 2016-10-25 | B154: 73.51 | C154: 73.74 | D154: 72.48 | E154: 2218.357
A155: 2016-10-24 | B155: 74.05 | C155: 74.48 | D155: 74.07 | E155: 1153.716
A156: 2016-10-21 | B156: 74.13 | C156: 74.64 | D156: 74.17 | E156: 976.101
A157: 2016-10-20 | B157: 74.76 | C157: 75.07 | D157: 74.51 | E157: 782.328
A158: 2016-10-19 | B158: 75.05 | C158: 75.125 | D158: 74.89 | E158: 958.489
A159: 2016-10-18 | B159: 75.1 | C159: 75.44 | D159: 74.93 | E159: 944.638
A160: 2016-10-17 | B160: 74.04 | C160: 74.86 | D160: 74.64 | E160: 1236.736
A161: 2016-10-14 | B161: 74.59 | C161: 75.02 | D161: 74.16 | E161: 1118.736
A162: 2016-10-13 | B162: 74.1 | C162: 75.51 | D162: 74.88 | E162: 1781.194
A163: 2016-10-12 | B163: 73.32 | C163: 74.1447 | D163: 74.06 | E163: 1895.356
A164: 2016-10-11 | B164: 73.89 | C164: 74.14 | D164: 73.29 | E164: 1517.282
A165: 2016-10-10 | B165: 73.37 | C165: 73.98 | D165: 73.89 | E165: 1444.138
A166: 2016-10-07 | B166: 74.27 | C166: 74.75 | D166: 73.13 | E166: 1952.013
A167: 2016-10-06 | B167: 73.12 | C167: 74.4 | D167: 73.81 | E167: 1698.204
A168: 2016-10-05 | B168: 74.08 | C168: 74.86 | D168: 73.35 | E168: 2578.344
A169: 2016-10-04 | B169: 75.54 | C169: 75.55 | D169: 74.02 | E169: 1969.162
A170: 2016-10-03 | B170: 76.56 | C170: 76.56 | D170: 75.76 | E170: 1628.281
A171: 2016-09-30 | B171: 77.57 | C171: 77.96 | D171: 76.73 | E171: 1753.507
A172: 2016-09-29 | B172: 78.65 | C172: 78.65 | D172: 77.33 | E172: 1960.359
A173: 2016-09-28 | B173: 79.98 | C173: 80.07 | D173: 78.92 | E173: 1936.365
A174: 2016-09-27 | B174: 81.3 | C174: 81.72 | D174: 79.6 | E174: 1066.776
A175: 2016-09-26 | B175: 81.53 | C175: 81.56 | D175: 80.98 | E175: 1102.693
A176: 2016-09-23 | B176: 81.57 | C176: 81.83 | D176: 81.43 | E176: 1095.226
A177: 2016-09-22 | B177: 81.42 | C177: 81.81 | D177: 81.73 | E177: 1032.231
A178: 2016-09-21 | B178: 79.25 | C178: 81 | D178: 80.97 | E178: 953.107
A179: 2016-09-20 | B179: 79.5 | C179: 79.77 | D179: 79.25 | E179: 1060.789
A180: 2016-09-19 | B180: 78.79 | C180: 79.28 | D180: 79.14 | E180: 959.728
A181: 2016-09-16 | B181: 77.36 | C181: 78.56 | D181: 78.47 | E181: 1407.811
A182: 2016-09-15 | B182: 76.84 | C182: 77.75 | D182: 77.63 | E182: 681.922
A183: 2016-09-14 | B183: 77.16 | C183: 77.81 | D183: 76.94 | E183: 1273.241
A184: 2016-09-13 | B184: 78.25 | C184: 78.45 | D184: 76.89 | E184: 1467.141
A185: 2016-09-12 | B185: 77.27 | C185: 78.86 | D185: 78.61 | E185: 1183.891
A186: 2016-09-09 | B186: 80.33 | C186: 80.33 | D186: 77.56 | E186: 1188.637
A187: 2016-09-08 | B187: 79.95 | C187: 81.32 | D187: 80.78 | E187: 1855.793
A188: 2016-09-07 | B188: 79.37 | C188: 80.32 | D188: 80.27 | E188: 1287.409
A189: 2016-09-06 | B189: 79.39 | C189: 79.885 | D189: 79.57 | E189: 1004.916
A190: 2016-09-02 | B190: 77.79 | C190: 79.04 | D190: 78.97 | E190: 883.075
A191: 2016-09-01 | B191: 78.15 | C191: 78.45 | D191: 77.65 | E191: 1586.64
A192: 2016-08-31 | B192: 77.77 | C192: 78.27 | D192: 78.2 | E192: 1700.975
A193: 2016-08-30 | B193: 78.17 | C193: 78.67 | D193: 77.71 | E193: 664.61
A194: 2016-08-29 | B194: 77.5 | C194: 78.35 | D194: 78.33 | E194: 852.358
A195: 2016-08-26 | B195: 79.07 | C195: 79.64 | D195: 77.26 | E195: 737.028
A196: 2016-08-25 | B196: 78.87 | C196: 79.3 | D196: 79.08 | E196: 620.038
A197: 2016-08-24 | B197: 78.72 | C197: 79.0248 | D197: 78.83 | E197: 643.931
A198: 2016-08-23 | B198: 79.25 | C198: 79.74 | D198: 78.91 | E198: 620.534
A199: 2016-08-22 | B199: 78.58 | C199: 79.23 | D199: 78.95 | E199: 839.388
A200: 2016-08-19 | B200: 78.93 | C200: 79.17 | D200: 77.99 | E200: 1066.341
... 309 more rows

Sheet ES
A1: ='Div Yields'!C17 -> ES | G1: Dividend | H1: 30 Day Avg | I1: 90 Day Avg | J1: 180 Day Avg | K1: 360 Day Avg | L1: 720 Day Avg
H2: =AVERAGE($D$4:$D$33) -> 60.17133333 | I2: =AVERAGE($D$4:$D$93) -> 58.58722222 | J2: =AVERAGE($D$4:$D$183) -> 56.24972222 | K2: =AVERAGE($D$4:$D$363) -> 56.04844444 | L2: =AVERAGE($D$4:$D$507) -> 54.04305556
A3: Date | B3: Open | C3: High | D3: Close | E3: Volume (k) | G3: =INDEX(Master,MATCH($A$1,Tickers,0),MATCH(G1,Header,0)) -> 1.9 | H3: =$G3/H2 -> 0.03157649822 | I3: =$G3/I2 -> 0.03243027964 | J3: 0.03377794458 | K3: 0.03389924589 | L3: 0.0351571535
A4: 2017-06-01 | B4: 62.1 | C4: 62.35 | D4: 62.35 | E4: 1278.582
A5: 2017-05-31 | B5: 61.54 | C5: 62.19 | D5: 62.07 | E5: 1565.156
A6: 2017-05-30 | B6: 61.4 | C6: 61.66 | D6: 61.48 | E6: 908.389
A7: 2017-05-26 | B7: 61.34 | C7: 61.58 | D7: 61.4 | E7: 825.893
A8: 2017-05-25 | B8: 61.4 | C8: 61.94 | D8: 61.84 | E8: 909.759
A9: 2017-05-24 | B9: 61.28 | C9: 61.46 | D9: 61.41 | E9: 1023.325
A10: 2017-05-23 | B10: 60.75 | C10: 61.32 | D10: 61.14 | E10: 2430.493
A11: 2017-05-22 | B11: 60.1 | C11: 60.84 | D11: 60.74 | E11: 1060.024
A12: 2017-05-19 | B12: 60.17 | C12: 60.21 | D12: 60.11 | E12: 1683.435
A13: 2017-05-18 | B13: 60.41 | C13: 60.78 | D13: 60.24 | E13: 1495.009
A14: 2017-05-17 | B14: 59.73 | C14: 60.451 | D14: 60.19 | E14: 1180.229
A15: 2017-05-16 | B15: 60.15 | C15: 60.27 | D15: 59.63 | E15: 1076.374
A16: 2017-05-15 | B16: 59.89 | C16: 60.195 | D16: 60.15 | E16: 833.403
A17: 2017-05-12 | B17: 59.44 | C17: 59.9699 | D17: 59.88 | E17: 805.976
A18: 2017-05-11 | B18: 59.04 | C18: 59.48 | D18: 59.48 | E18: 1279.083
A19: 2017-05-10 | B19: 59.38 | C19: 59.5 | D19: 59.23 | E19: 1168.217
A20: 2017-05-09 | B20: 59.6 | C20: 59.82 | D20: 59.35 | E20: 899.743
A21: 2017-05-08 | B21: 59.68 | C21: 59.81 | D21: 59.76 | E21: 1133.282
A22: 2017-05-05 | B22: 59.71 | C22: 59.89 | D22: 59.55 | E22: 926.481
A23: 2017-05-04 | B23: 58.11 | C23: 59.52 | D23: 59.49 | E23: 1308.714
A24: 2017-05-03 | B24: 59.14 | C24: 59.48 | D24: 59.11 | E24: 952.02
A25: 2017-05-02 | B25: 59.28 | C25: 59.55 | D25: 59.22 | E25: 1161.44
A26: 2017-05-01 | B26: 59.58 | C26: 59.58 | D26: 59.14 | E26: 861.25
A27: 2017-04-28 | B27: 59.72 | C27: 59.74 | D27: 59.4 | E27: 2029.118
A28: 2017-04-27 | B28: 59.75 | C28: 60.3 | D28: 59.77 | E28: 1489.466
A29: 2017-04-26 | B29: 59.95 | C29: 60.16 | D29: 59.74 | E29: 1105.4
A30: 2017-04-25 | B30: 59.81 | C30: 60.16 | D30: 60 | E30: 1340.343
A31: 2017-04-24 | B31: 60 | C31: 60.19 | D31: 60.03 | E31: 1026.113
A32: 2017-04-21 | B32: 59.45 | C32: 59.97 | D32: 59.8 | E32: 1286.756
A33: 2017-04-20 | B33: 59.58 | C33: 59.58 | D33: 59.44 | E33: 1125.177
A34: 2017-04-19 | B34: 60.12 | C34: 60.14 | D34: 59.64 | E34: 1414.727
A35: 2017-04-18 | B35: 60.2 | C35: 60.5 | D35: 60.14 | E35: 1385.727
A36: 2017-04-17 | B36: 59.78 | C36: 60.34 | D36: 60.29 | E36: 1513.553
A37: 2017-04-13 | B37: 59.71 | C37: 59.92 | D37: 59.62 | E37: 1057.962
A38: 2017-04-12 | B38: 59.08 | C38: 59.91 | D38: 59.88 | E38: 1280.363
A39: 2017-04-11 | B39: 59.16 | C39: 59.36 | D39: 59.21 | E39: 1214.913
A40: 2017-04-10 | B40: 59.31 | C40: 59.39 | D40: 59.28 | E40: 1036.41
A41: 2017-04-07 | B41: 59.67 | C41: 59.84 | D41: 59.4 | E41: 1645.239
A42: 2017-04-06 | B42: 59.22 | C42: 59.57 | D42: 59.54 | E42: 1714.032
A43: 2017-04-05 | B43: 58.74 | C43: 59.475 | D43: 59.41 | E43: 1729.246
A44: 2017-04-04 | B44: 58.83 | C44: 59.035 | D44: 58.86 | E44: 2147.752
A45: 2017-04-03 | B45: 58.76 | C45: 58.92 | D45: 58.89 | E45: 1205.263
A46: 2017-03-31 | B46: 58.56 | C46: 59.09 | D46: 58.78 | E46: 1670.736
A47: 2017-03-30 | B47: 58.83 | C47: 58.94 | D47: 58.62 | E47: 1186.11
A48: 2017-03-29 | B48: 59.43 | C48: 59.43 | D48: 59.07 | E48: 1453.839
A49: 2017-03-28 | B49: 59.51 | C49: 59.73 | D49: 59.49 | E49: 1749.675
A50: 2017-03-27 | B50: 60.26 | C50: 60.36 | D50: 59.55 | E50: 1370.456
A51: 2017-03-24 | B51: 59.58 | C51: 60.155 | D51: 60.01 | E51: 1310.636
A52: 2017-03-23 | B52: 59.6 | C52: 60.28 | D52: 59.67 | E52: 1245.475
A53: 2017-03-22 | B53: 59.76 | C53: 60.21 | D53: 59.71 | E53: 1514.245
A54: 2017-03-21 | B54: 58.41 | C54: 59.715 | D54: 59.44 | E54: 1782.332
A55: 2017-03-20 | B55: 58.98 | C55: 59.3 | D55: 58.48 | E55: 1318.39
A56: 2017-03-17 | B56: 58.78 | C56: 59.41 | D56: 58.93 | E56: 3335.934
A57: 2017-03-16 | B57: 58.85 | C57: 58.95 | D57: 58.54 | E57: 1047.648
A58: 2017-03-15 | B58: 58.39 | C58: 59.445 | D58: 59.13 | E58: 2074.102
A59: 2017-03-14 | B59: 58 | C59: 58.3375 | D59: 58.33 | E59: 1630.834
A60: 2017-03-13 | B60: 57.68 | C60: 58.17 | D60: 58.04 | E60: 2299.298
A61: 2017-03-10 | B61: 57.76 | C61: 58.12 | D61: 57.71 | E61: 1221.174
A62: 2017-03-09 | B62: 57.68 | C62: 58 | D62: 57.38 | E62: 1025.181
A63: 2017-03-08 | B63: 57.93 | C63: 58.2 | D63: 57.52 | E63: 1324.516
A64: 2017-03-07 | B64: 58.19 | C64: 58.77 | D64: 58.56 | E64: 1652.819
A65: 2017-03-06 | B65: 58.26 | C65: 58.475 | D65: 58.35 | E65: 1539.574
A66: 2017-03-03 | B66: 58.48 | C66: 58.6 | D66: 58.28 | E66: 1674.099
A67: 2017-03-02 | B67: 58 | C67: 58.9599 | D67: 58.59 | E67: 1258.864
A68: 2017-03-01 | B68: 57.98 | C68: 58.6 | D68: 58.19 | E68: 1787.799
A69: 2017-02-28 | B69: 58.35 | C69: 58.75 | D69: 58.66 | E69: 1927.619
A70: 2017-02-27 | B70: 58.98 | C70: 59.1 | D70: 58.72 | E70: 1334.06
A71: 2017-02-24 | B71: 58.2 | C71: 59.11 | D71: 59.03 | E71: 2113.24
A72: 2017-02-23 | B72: 57.86 | C72: 58.76 | D72: 58.12 | E72: 1902.063
A73: 2017-02-22 | B73: 56.26 | C73: 57.67 | D73: 57.6 | E73: 1856.964
A74: 2017-02-21 | B74: 56.02 | C74: 56.92 | D74: 56.84 | E74: 1333.298
A75: 2017-02-17 | B75: 56.3 | C75: 56.46 | D75: 56.15 | E75: 1529.703
A76: 2017-02-16 | B76: 55.74 | C76: 56.3 | D76: 56.29 | E76: 1009.41
A77: 2017-02-15 | B77: 55.6 | C77: 55.78 | D77: 55.76 | E77: 995.591
A78: 2017-02-14 | B78: 56.34 | C78: 56.44 | D78: 55.95 | E78: 1048.944
A79: 2017-02-13 | B79: 56.34 | C79: 56.56 | D79: 56.49 | E79: 1003.939
A80: 2017-02-10 | B80: 55.89 | C80: 56.45 | D80: 56.42 | E80: 700.572
A81: 2017-02-09 | B81: 56.35 | C81: 56.62 | D81: 56.05 | E81: 1087.677
A82: 2017-02-08 | B82: 55.66 | C82: 56.71 | D82: 56.49 | E82: 1341.627
A83: 2017-02-07 | B83: 55.66 | C83: 55.9 | D83: 55.78 | E83: 784.408
A84: 2017-02-06 | B84: 55.91 | C84: 56 | D84: 55.68 | E84: 900.023
A85: 2017-02-03 | B85: 55.61 | C85: 56.14 | D85: 55.72 | E85: 1933.822
A86: 2017-02-02 | B86: 54.77 | C86: 55.41 | D86: 55.35 | E86: 1099.93
A87: 2017-02-01 | B87: 54.91 | C87: 55.24 | D87: 54.7 | E87: 1298.557
A88: 2017-01-31 | B88: 54.42 | C88: 55.39 | D88: 55.32 | E88: 1572.023
A89: 2017-01-30 | B89: 54.4 | C89: 54.62 | D89: 54.43 | E89: 1240.505
A90: 2017-01-27 | B90: 54.71 | C90: 54.74 | D90: 54.25 | E90: 1319.127
A91: 2017-01-26 | B91: 54.3 | C91: 54.69 | D91: 54.53 | E91: 1541.9
A92: 2017-01-25 | B92: 54.37 | C92: 54.77 | D92: 54.3 | E92: 1134.898
A93: 2017-01-24 | B93: 54.7 | C93: 54.92 | D93: 54.55 | E93: 1220.219
A94: 2017-01-23 | B94: 55.17 | C94: 55.37 | D94: 54.74 | E94: 1913.861
A95: 2017-01-20 | B95: 55.15 | C95: 55.45 | D95: 55 | E95: 1373.74
A96: 2017-01-19 | B96: 55.25 | C96: 55.67 | D96: 55.07 | E96: 1232.678
A97: 2017-01-18 | B97: 55.69 | C97: 55.9 | D97: 55.52 | E97: 1288.955
A98: 2017-01-17 | B98: 55.46 | C98: 55.78 | D98: 55.72 | E98: 1303.612
A99: 2017-01-13 | B99: 55.17 | C99: 55.42 | D99: 55.15 | E99: 1053.547
A100: 2017-01-12 | B100: 54.91 | C100: 55.41 | D100: 55.31 | E100: 1353.903
A101: 2017-01-11 | B101: 54.4 | C101: 55.11 | D101: 55.06 | E101: 1369.592
A102: 2017-01-10 | B102: 54.49 | C102: 54.5157 | D102: 54.28 | E102: 1609.446
A103: 2017-01-09 | B103: 55.31 | C103: 55.51 | D103: 54.57 | E103: 1303.493
A104: 2017-01-06 | B104: 54.84 | C104: 55.475 | D104: 55.26 | E104: 1224.268
A105: 2017-01-05 | B105: 55.49 | C105: 55.49 | D105: 55.28 | E105: 1590.713
A106: 2017-01-04 | B106: 55.17 | C106: 55.62 | D106: 55.27 | E106: 1264.613
A107: 2017-01-03 | B107: 55.25 | C107: 55.4299 | D107: 55.08 | E107: 1123.173
A108: 2016-12-30 | B108: 55.6 | C108: 55.74 | D108: 55.23 | E108: 1447.375
A109: 2016-12-29 | B109: 54.85 | C109: 55.6199 | D109: 55.57 | E109: 1187.299
A110: 2016-12-28 | B110: 55.4 | C110: 55.44 | D110: 54.72 | E110: 802.479
A111: 2016-12-27 | B111: 55.48 | C111: 55.52 | D111: 55.38 | E111: 817.779
A112: 2016-12-23 | B112: 55.56 | C112: 55.7 | D112: 55.46 | E112: 760.07
A113: 2016-12-22 | B113: 54.89 | C113: 55.52 | D113: 55.44 | E113: 1296.164
A114: 2016-12-21 | B114: 55.18 | C114: 55.55 | D114: 54.95 | E114: 938.884
A115: 2016-12-20 | B115: 55.61 | C115: 55.61 | D115: 55.26 | E115: 1282.54
A116: 2016-12-19 | B116: 54.94 | C116: 55.09 | D116: 55.07 | E116: 1545.524
A117: 2016-12-16 | B117: 53.73 | C117: 54.67 | D117: 54.57 | E117: 2373.526
A118: 2016-12-15 | B118: 52.94 | C118: 53.685 | D118: 53.68 | E118: 1470.873
A119: 2016-12-14 | B119: 54.32 | C119: 54.78 | D119: 53.07 | E119: 1424.652
A120: 2016-12-13 | B120: 54.28 | C120: 54.7199 | D120: 54.55 | E120: 1392.775
A121: 2016-12-12 | B121: 53.54 | C121: 54.37 | D121: 54.29 | E121: 1683.703
A122: 2016-12-09 | B122: 53.28 | C122: 53.8234 | D122: 53.76 | E122: 1538.782
A123: 2016-12-08 | B123: 52.55 | C123: 53.36 | D123: 53.3 | E123: 1623.314
A124: 2016-12-07 | B124: 52.17 | C124: 52.98 | D124: 52.97 | E124: 1643.522
A125: 2016-12-06 | B125: 52.1 | C125: 52.17 | D125: 52.01 | E125: 1436.714
A126: 2016-12-05 | B126: 51.44 | C126: 51.97 | D126: 51.93 | E126: 1639.724
A127: 2016-12-02 | B127: 51.43 | C127: 51.9 | D127: 51.68 | E127: 2039.612
A128: 2016-12-01 | B128: 51.27 | C128: 51.44 | D128: 51.1 | E128: 1783.026
A129: 2016-11-30 | B129: 53.13 | C129: 53.21 | D129: 51.62 | E129: 2733.872
A130: 2016-11-29 | B130: 53.71 | C130: 54.3152 | D130: 53.75 | E130: 1927.849
A131: 2016-11-28 | B131: 52.87 | C131: 53.94 | D131: 53.84 | E131: 2377.83
A132: 2016-11-25 | B132: 51.97 | C132: 52.7 | D132: 52.59 | E132: 829.574
A133: 2016-11-23 | B133: 51.87 | C133: 52.45 | D133: 51.74 | E133: 1340.99
A134: 2016-11-22 | B134: 52.3 | C134: 52.7 | D134: 52.45 | E134: 2331.778
A135: 2016-11-21 | B135: 51.94 | C135: 52.37 | D135: 52.2 | E135: 1440.109
A136: 2016-11-18 | B136: 52.11 | C136: 52.38 | D136: 51.82 | E136: 1099.804
A137: 2016-11-17 | B137: 51.95 | C137: 52.47 | D137: 52.2 | E137: 872.342
A138: 2016-11-16 | B138: 52.5 | C138: 52.695 | D138: 51.97 | E138: 1579.171
A139: 2016-11-15 | B139: 51.88 | C139: 52.67 | D139: 52.43 | E139: 1437.762
A140: 2016-11-14 | B140: 51.46 | C140: 51.84 | D140: 51.69 | E140: 1553.6
A141: 2016-11-11 | B141: 52.16 | C141: 52.9 | D141: 51.95 | E141: 1548.674
A142: 2016-11-10 | B142: 52.85 | C142: 53.36 | D142: 52.34 | E142: 3051.583
A143: 2016-11-09 | B143: 54.12 | C143: 54.12 | D143: 53.23 | E143: 2228.085
A144: 2016-11-08 | B144: 54.47 | C144: 55.33 | D144: 55.03 | E144: 1901.501
A145: 2016-11-07 | B145: 53.48 | C145: 54.3 | D145: 54.29 | E145: 1282.31
A146: 2016-11-04 | B146: 53.64 | C146: 54.37 | D146: 53.18 | E146: 1658.265
A147: 2016-11-03 | B147: 53.26 | C147: 53.63 | D147: 53.38 | E147: 1749.289
A148: 2016-11-02 | B148: 53.89 | C148: 54.46 | D148: 53.44 | E148: 2505.025
A149: 2016-11-01 | B149: 55.16 | C149: 55.16 | D149: 54.08 | E149: 1378.416
A150: 2016-10-31 | B150: 54.36 | C150: 55.465 | D150: 55.06 | E150: 1490.144
A151: 2016-10-28 | B151: 54.04 | C151: 54.41 | D151: 54.2 | E151: 867.832
A152: 2016-10-27 | B152: 54 | C152: 54.18 | D152: 53.91 | E152: 1535.386
A153: 2016-10-26 | B153: 54.2 | C153: 54.43 | D153: 54.31 | E153: 1584.856
A154: 2016-10-25 | B154: 53.95 | C154: 54.52 | D154: 54.3 | E154: 1260.653
A155: 2016-10-24 | B155: 54.19 | C155: 54.41 | D155: 54.13 | E155: 1008.688
A156: 2016-10-21 | B156: 53.74 | C156: 54.26 | D156: 54 | E156: 1826.595
A157: 2016-10-20 | B157: 54.16 | C157: 54.59 | D157: 54.12 | E157: 1070.002
A158: 2016-10-19 | B158: 54.13 | C158: 54.19 | D158: 53.97 | E158: 1629.979
A159: 2016-10-18 | B159: 54.05 | C159: 54.3 | D159: 54.13 | E159: 1308.834
A160: 2016-10-17 | B160: 53.24 | C160: 53.77 | D160: 53.75 | E160: 1455.058
A161: 2016-10-14 | B161: 53.07 | C161: 53.81 | D161: 53.18 | E161: 1412.901
A162: 2016-10-13 | B162: 52.71 | C162: 53.54 | D162: 53.3 | E162: 1850.793
A163: 2016-10-12 | B163: 52.05 | C163: 52.66 | D163: 52.58 | E163: 2211.941
A164: 2016-10-11 | B164: 52.66 | C164: 52.66 | D164: 51.98 | E164: 1781.306
A165: 2016-10-10 | B165: 52.46 | C165: 52.81 | D165: 52.76 | E165: 1111.637
A166: 2016-10-07 | B166: 53.01 | C166: 53.57 | D166: 52.44 | E166: 1509.784
A167: 2016-10-06 | B167: 52.53 | C167: 52.82 | D167: 52.72 | E167: 1808.706
A168: 2016-10-05 | B168: 53.22 | C168: 53.24 | D168: 52.56 | E168: 2671.49
A169: 2016-10-04 | B169: 53.28 | C169: 53.4 | D169: 52.61 | E169: 2520.209
A170: 2016-10-03 | B170: 54 | C170: 54.03 | D170: 53.54 | E170: 1676.974
A171: 2016-09-30 | B171: 54.91 | C171: 55.22 | D171: 54.18 | E171: 2550.587
A172: 2016-09-29 | B172: 54.95 | C172: 55.15 | D172: 54.69 | E172: 1197.706
A173: 2016-09-28 | B173: 55.51 | C173: 55.58 | D173: 55.24 | E173: 1120.563
A174: 2016-09-27 | B174: 56.66 | C174: 56.84 | D174: 55.41 | E174: 1374.881
A175: 2016-09-26 | B175: 56.24 | C175: 56.59 | D175: 56.34 | E175: 1769.395
A176: 2016-09-23 | B176: 55.65 | C176: 56.41 | D176: 56.23 | E176: 1731.632
A177: 2016-09-22 | B177: 55.78 | C177: 56.06 | D177: 55.82 | E177: 1871.919
A178: 2016-09-21 | B178: 54.38 | C178: 55.49 | D178: 55.45 | E178: 1979.638
A179: 2016-09-20 | B179: 54.86 | C179: 55.02 | D179: 54.43 | E179: 1633.06
A180: 2016-09-19 | B180: 54.39 | C180: 54.63 | D180: 54.59 | E180: 1426.072
A181: 2016-09-16 | B181: 53.62 | C181: 54.26 | D181: 54.18 | E181: 2736.488
A182: 2016-09-15 | B182: 53.24 | C182: 53.86 | D182: 53.77 | E182: 1273.242
A183: 2016-09-14 | B183: 53.84 | C183: 54.24 | D183: 53.7 | E183: 1651.379
A184: 2016-09-13 | B184: 54.24 | C184: 54.27 | D184: 53.61 | E184: 2782.237
A185: 2016-09-12 | B185: 53.34 | C185: 54.41 | D185: 54.31 | E185: 2766.196
A186: 2016-09-09 | B186: 54.52 | C186: 54.6 | D186: 53.25 | E186: 2740.02
A187: 2016-09-08 | B187: 54.73 | C187: 55.119 | D187: 55.01 | E187: 1009.668
A188: 2016-09-07 | B188: 54.9 | C188: 54.97 | D188: 54.87 | E188: 903.239
A189: 2016-09-06 | B189: 54.61 | C189: 55.14 | D189: 54.96 | E189: 1352.243
A190: 2016-09-02 | B190: 53.59 | C190: 54.45 | D190: 54.37 | E190: 1624.84
A191: 2016-09-01 | B191: 53.96 | C191: 54 | D191: 53.59 | E191: 1134.068
A192: 2016-08-31 | B192: 53.71 | C192: 53.98 | D192: 53.97 | E192: 1503.055
A193: 2016-08-30 | B193: 54.34 | C193: 54.635 | D193: 53.74 | E193: 1202.774
A194: 2016-08-29 | B194: 54.29 | C194: 54.68 | D194: 54.37 | E194: 995.092
A195: 2016-08-26 | B195: 55.42 | C195: 55.77 | D195: 54.12 | E195: 1401.656
A196: 2016-08-25 | B196: 55.31 | C196: 55.625 | D196: 55.27 | E196: 1138.281
A197: 2016-08-24 | B197: 55.2 | C197: 55.35 | D197: 55.34 | E197: 1140.696
A198: 2016-08-23 | B198: 55.67 | C198: 56.18 | D198: 55.28 | E198: 959.658
A199: 2016-08-22 | B199: 55.65 | C199: 55.96 | D199: 55.63 | E199: 1015.029
A200: 2016-08-19 | B200: 56.33 | C200: 56.47 | D200: 55.54 | E200: 1538.827
... 309 more rows

Sheet FE
A1: ='Div Yields'!C18 -> FE | G1: Dividend | H1: 30 Day Avg | I1: 90 Day Avg | J1: 180 Day Avg | K1: 360 Day Avg | L1: 720 Day Avg
H2: =AVERAGE($D$4:$D$33) -> 29.22433333 | I2: =AVERAGE($D$4:$D$93) -> 30.42011111 | J2: =AVERAGE($D$4:$D$183) -> 31.23583333 | K2: =AVERAGE($D$4:$D$363) -> 32.51858333 | L2: =AVERAGE($D$4:$D$507) -> 32.45176587
A3: Date | B3: Open | C3: High | D3: Close | E3: Volume (k) | G3: =INDEX(Master,MATCH($A$1,Tickers,0),MATCH(G1,Header,0)) -> 1.44 | H3: =$G3/H2 -> 0.04927400682 | I3: =$G3/I2 -> 0.0473371052 | J3: 0.04610089907 | K3: 0.04428237187 | L3: 0.04437354829
A4: 2017-06-01 | B4: 29.23 | C4: 29.4 | D4: 29.39 | E4: 2940.061
A5: 2017-05-31 | B5: 29.13 | C5: 29.38 | D5: 29.24 | E5: 3308.892
A6: 2017-05-30 | B6: 28.87 | C6: 29.42 | D6: 29.19 | E6: 3148.539
A7: 2017-05-26 | B7: 28.89 | C7: 28.97 | D7: 28.92 | E7: 2475.868
A8: 2017-05-25 | B8: 28.62 | C8: 28.97 | D8: 28.86 | E8: 3512.275
A9: 2017-05-24 | B9: 28.55 | C9: 28.69 | D9: 28.67 | E9: 2679.97
A10: 2017-05-23 | B10: 28.44 | C10: 28.65 | D10: 28.5 | E10: 3222.564
A11: 2017-05-22 | B11: 28.18 | C11: 28.5399 | D11: 28.44 | E11: 3050.68
A12: 2017-05-19 | B12: 28.15 | C12: 28.25 | D12: 28.24 | E12: 4896.993
A13: 2017-05-18 | B13: 28.43 | C13: 28.83 | D13: 28.16 | E13: 5121.882
A14: 2017-05-17 | B14: 28.71 | C14: 28.89 | D14: 28.59 | E14: 2710.212
A15: 2017-05-16 | B15: 28.87 | C15: 28.955 | D15: 28.69 | E15: 3272.845
A16: 2017-05-15 | B16: 28.69 | C16: 29.06 | D16: 28.93 | E16: 4446.466
A17: 2017-05-12 | B17: 28.86 | C17: 28.9111 | D17: 28.72 | E17: 2578.876
A18: 2017-05-11 | B18: 28.85 | C18: 28.87 | D18: 28.81 | E18: 4804.4
A19: 2017-05-10 | B19: 28.83 | C19: 29 | D19: 28.85 | E19: 3227.653
A20: 2017-05-09 | B20: 28.94 | C20: 29.2 | D20: 28.76 | E20: 6631.647
A21: 2017-05-08 | B21: 28.88 | C21: 29.12 | D21: 29.06 | E21: 4651.985
A22: 2017-05-05 | B22: 28.91 | C22: 29.1 | D22: 28.83 | E22: 4303.65
A23: 2017-05-04 | B23: 28.89 | C23: 29.07 | D23: 28.87 | E23: 4818.603
A24: 2017-05-03 | B24: 28.68 | C24: 29.075 | D24: 28.95 | E24: 8991.78
A25: 2017-05-02 | B25: 29.53 | C25: 29.72 | D25: 29.03 | E25: 7206.966
A26: 2017-05-01 | B26: 29.98 | C26: 30.0201 | D26: 29.46 | E26: 6328.537
A27: 2017-04-28 | B27: 30.68 | C27: 30.9 | D27: 29.94 | E27: 9610.023
A28: 2017-04-27 | B28: 30.52 | C28: 30.74 | D28: 30.52 | E28: 4538.599
A29: 2017-04-26 | B29: 30.6 | C29: 31.15 | D29: 30.52 | E29: 5786.127
A30: 2017-04-25 | B30: 30.59 | C30: 30.825 | D30: 30.61 | E30: 4050.953
A31: 2017-04-24 | B31: 30.6 | C31: 30.75 | D31: 30.71 | E31: 5218.4
A32: 2017-04-21 | B32: 30.64 | C32: 30.83 | D32: 30.61 | E32: 4208.211
A33: 2017-04-20 | B33: 30.79 | C33: 30.86 | D33: 30.66 | E33: 4598.948
A34: 2017-04-19 | B34: 31.45 | C34: 31.48 | D34: 30.85 | E34: 4920.378
A35: 2017-04-18 | B35: 31.45 | C35: 31.57 | D35: 31.47 | E35: 2988.74
A36: 2017-04-17 | B36: 31.3 | C36: 31.47 | D36: 31.43 | E36: 3007.135
A37: 2017-04-13 | B37: 31.61 | C37: 31.72 | D37: 31.27 | E37: 3432.165
A38: 2017-04-12 | B38: 31.4 | C38: 31.64 | D38: 31.61 | E38: 2718.663
A39: 2017-04-11 | B39: 31.52 | C39: 31.65 | D39: 31.44 | E39: 2588.282
A40: 2017-04-10 | B40: 31.32 | C40: 31.62 | D40: 31.6 | E40: 3235.327
A41: 2017-04-07 | B41: 31.89 | C41: 31.94 | D41: 31.32 | E41: 5747.582
A42: 2017-04-06 | B42: 31.66 | C42: 31.82 | D42: 31.76 | E42: 3060.694
A43: 2017-04-05 | B43: 31.63 | C43: 31.86 | D43: 31.78 | E43: 2590.521
A44: 2017-04-04 | B44: 31.49 | C44: 31.82 | D44: 31.73 | E44: 3992.494
A45: 2017-04-03 | B45: 31.72 | C45: 31.74 | D45: 31.46 | E45: 3753.564
A46: 2017-03-31 | B46: 31.42 | C46: 31.93 | D46: 31.82 | E46: 5805.913
A47: 2017-03-30 | B47: 31.49 | C47: 31.5 | D47: 31.37 | E47: 3646.657
A48: 2017-03-29 | B48: 31.54 | C48: 31.85 | D48: 31.57 | E48: 3458.666
A49: 2017-03-28 | B49: 31.3 | C49: 31.64 | D49: 31.61 | E49: 2877.63
A50: 2017-03-27 | B50: 31.5 | C50: 31.59 | D50: 31.39 | E50: 2457.592
A51: 2017-03-24 | B51: 31.4 | C51: 31.53 | D51: 31.34 | E51: 3171.033
A52: 2017-03-23 | B52: 31.39 | C52: 31.5 | D52: 31.2 | E52: 3360.393
A53: 2017-03-22 | B53: 31.5 | C53: 31.81 | D53: 31.41 | E53: 4159.376
A54: 2017-03-21 | B54: 30.93 | C54: 31.5 | D54: 31.36 | E54: 4362.927
A55: 2017-03-20 | B55: 31.2 | C55: 31.42 | D55: 30.96 | E55: 3960.54
A56: 2017-03-17 | B56: 31.22 | C56: 31.48 | D56: 31.36 | E56: 8680.742
A57: 2017-03-16 | B57: 31.47 | C57: 31.58 | D57: 31.13 | E57: 3865.452
A58: 2017-03-15 | B58: 31.09 | C58: 31.71 | D58: 31.59 | E58: 3906.392
A59: 2017-03-14 | B59: 31.04 | C59: 31.08 | D59: 31 | E59: 3435.103
A60: 2017-03-13 | B60: 31.23 | C60: 31.45 | D60: 31.1 | E60: 2735.097
A61: 2017-03-10 | B61: 31.21 | C61: 31.555 | D61: 31.26 | E61: 3846.881
A62: 2017-03-09 | B62: 31.05 | C62: 32.53 | D62: 31.1 | E62: 4161.139
A63: 2017-03-08 | B63: 30.92 | C63: 31.16 | D63: 31.11 | E63: 4202.244
A64: 2017-03-07 | B64: 31.22 | C64: 31.42 | D64: 31.18 | E64: 4515.697
A65: 2017-03-06 | B65: 31.92 | C65: 31.92 | D65: 31.32 | E65: 4357.946
A66: 2017-03-03 | B66: 31.68 | C66: 31.75 | D66: 31.74 | E66: 3630.05
A67: 2017-03-02 | B67: 31.45 | C67: 32 | D67: 31.64 | E67: 3980.128
A68: 2017-03-01 | B68: 32.09 | C68: 32.09 | D68: 31.56 | E68: 7326.094
A69: 2017-02-28 | B69: 31.81 | C69: 32.54 | D69: 32.43 | E69: 5503.093
A70: 2017-02-27 | B70: 32.35 | C70: 32.35 | D70: 31.81 | E70: 4398.167
A71: 2017-02-24 | B71: 31.56 | C71: 32.345 | D71: 32.32 | E71: 6126.75
A72: 2017-02-23 | B72: 30.97 | C72: 31.615 | D72: 31.39 | E72: 5776.154
A73: 2017-02-22 | B73: 30.81 | C73: 31.02 | D73: 30.79 | E73: 6792.905
A74: 2017-02-21 | B74: 30.92 | C74: 31.35 | D74: 31.33 | E74: 5193.542
A75: 2017-02-17 | B75: 30.66 | C75: 31.04 | D75: 31.01 | E75: 4410.407
A76: 2017-02-16 | B76: 30.38 | C76: 30.635 | D76: 30.62 | E76: 3805.72
A77: 2017-02-15 | B77: 30.13 | C77: 30.46 | D77: 30.4 | E77: 2828.697
A78: 2017-02-14 | B78: 30.54 | C78: 30.6399 | D78: 30.36 | E78: 2566.774
A79: 2017-02-13 | B79: 30.52 | C79: 30.72 | D79: 30.53 | E79: 5645.17
A80: 2017-02-10 | B80: 29.86 | C80: 30.52 | D80: 30.45 | E80: 3805.535
A81: 2017-02-09 | B81: 30.06 | C81: 30.09 | D81: 29.88 | E81: 4045.987
A82: 2017-02-08 | B82: 30.03 | C82: 30.07 | D82: 30.04 | E82: 4244.157
A83: 2017-02-07 | B83: 29.92 | C83: 30.04 | D83: 29.99 | E83: 2773.886
A84: 2017-02-06 | B84: 29.98 | C84: 30.15 | D84: 29.88 | E84: 4332.651
A85: 2017-02-03 | B85: 29.67 | C85: 30.03 | D85: 29.89 | E85: 3374.136
A86: 2017-02-02 | B86: 29.9 | C86: 30 | D86: 29.95 | E86: 5426.521
A87: 2017-02-01 | B87: 30.09 | C87: 30.32 | D87: 29.84 | E87: 4356.998
A88: 2017-01-31 | B88: 29.83 | C88: 30.37 | D88: 30.32 | E88: 4811.353
A89: 2017-01-30 | B89: 30.14 | C89: 30.14 | D89: 29.82 | E89: 4584.486
A90: 2017-01-27 | B90: 29.89 | C90: 30.02 | D90: 29.99 | E90: 3355.954
A91: 2017-01-26 | B91: 29.78 | C91: 29.925 | D91: 29.82 | E91: 5205.162
A92: 2017-01-25 | B92: 29.54 | C92: 30.01 | D92: 29.8 | E92: 5785.924
A93: 2017-01-24 | B93: 29.67 | C93: 29.85 | D93: 29.58 | E93: 3838.089
A94: 2017-01-23 | B94: 30.15 | C94: 30.26 | D94: 29.61 | E94: 3935.952
A95: 2017-01-20 | B95: 30.35 | C95: 30.5188 | D95: 30.04 | E95: 4713.891
A96: 2017-01-19 | B96: 30.64 | C96: 30.7292 | D96: 30.31 | E96: 4519.371
A97: 2017-01-18 | B97: 31.08 | C97: 31.23 | D97: 30.76 | E97: 3481.522
A98: 2017-01-17 | B98: 30.86 | C98: 31.36 | D98: 31.15 | E98: 4092.617
A99: 2017-01-13 | B99: 30.64 | C99: 30.72 | D99: 30.61 | E99: 3889.258
A100: 2017-01-12 | B100: 30.73 | C100: 30.91 | D100: 30.68 | E100: 4247.187
A101: 2017-01-11 | B101: 30.33 | C101: 30.94 | D101: 30.73 | E101: 5282.99
A102: 2017-01-10 | B102: 30.84 | C102: 30.85 | D102: 30.37 | E102: 7195.984
A103: 2017-01-09 | B103: 31.21 | C103: 31.23 | D103: 31.01 | E103: 4802.751
A104: 2017-01-06 | B104: 30.71 | C104: 31.24 | D104: 31.13 | E104: 3485.064
A105: 2017-01-05 | B105: 30.94 | C105: 31.05 | D105: 30.85 | E105: 3947.581
A106: 2017-01-04 | B106: 30.99 | C106: 31.2901 | D106: 30.97 | E106: 3242.019
A107: 2017-01-03 | B107: 30.97 | C107: 31.14 | D107: 30.95 | E107: 3757.235
A108: 2016-12-30 | B108: 31.17 | C108: 31.29 | D108: 30.97 | E108: 2523.604
A109: 2016-12-29 | B109: 30.84 | C109: 31.305 | D109: 31.12 | E109: 2927.871
A110: 2016-12-28 | B110: 31.31 | C110: 31.39 | D110: 30.84 | E110: 2558.086
A111: 2016-12-27 | B111: 31.16 | C111: 31.32 | D111: 31.28 | E111: 2110.509
A112: 2016-12-23 | B112: 31.33 | C112: 31.42 | D112: 31.27 | E112: 2494.779
A113: 2016-12-22 | B113: 31.37 | C113: 31.5099 | D113: 31.22 | E113: 3144.622
A114: 2016-12-21 | B114: 31.33 | C114: 31.945 | D114: 31.42 | E114: 4233.74
A115: 2016-12-20 | B115: 31.5 | C115: 31.65 | D115: 31.29 | E115: 5217.97
A116: 2016-12-19 | B116: 31.92 | C116: 31.95 | D116: 31.65 | E116: 4557.271
A117: 2016-12-16 | B117: 31.3 | C117: 31.975 | D117: 31.78 | E117: 10195.79
A118: 2016-12-15 | B118: 31.17 | C118: 31.35 | D118: 31.32 | E118: 5667.01
A119: 2016-12-14 | B119: 31.74 | C119: 32.3 | D119: 31.29 | E119: 8340.545
A120: 2016-12-13 | B120: 31.14 | C120: 31.62 | D120: 31.61 | E120: 3646.781
A121: 2016-12-12 | B121: 30.57 | C121: 31.14 | D121: 31.06 | E121: 4062.048
A122: 2016-12-09 | B122: 30.6 | C122: 31.1 | D122: 30.73 | E122: 3913.199
A123: 2016-12-08 | B123: 29.98 | C123: 30.7 | D123: 30.53 | E123: 6336.237
A124: 2016-12-07 | B124: 30.41 | C124: 30.5 | D124: 30.06 | E124: 7314.272
A125: 2016-12-06 | B125: 30.62 | C125: 30.64 | D125: 30.37 | E125: 5763.678
A126: 2016-12-05 | B126: 30.54 | C126: 30.56 | D126: 30.5 | E126: 5709.486
A127: 2016-12-02 | B127: 31 | C127: 31.24 | D127: 30.57 | E127: 5280.823
A128: 2016-12-01 | B128: 31.14 | C128: 31.2 | D128: 30.99 | E128: 3272.351
A129: 2016-11-30 | B129: 32.2 | C129: 32.2 | D129: 31.29 | E129: 5668.526
A130: 2016-11-29 | B130: 32.48 | C130: 32.75 | D130: 32.55 | E130: 3151.288
A131: 2016-11-28 | B131: 32.27 | C131: 32.62 | D131: 32.59 | E131: 3943.33
A132: 2016-11-25 | B132: 31.59 | C132: 32.17 | D132: 32.14 | E132: 2063.216
A133: 2016-11-23 | B133: 31.56 | C133: 31.81 | D133: 31.49 | E133: 4596.116
A134: 2016-11-22 | B134: 31.94 | C134: 32.1 | D134: 31.9 | E134: 2782.32
A135: 2016-11-21 | B135: 31.63 | C135: 31.99 | D135: 31.91 | E135: 3203.305
A136: 2016-11-18 | B136: 31.93 | C136: 32.1 | D136: 31.4 | E136: 4396.644
A137: 2016-11-17 | B137: 31.72 | C137: 32.15 | D137: 31.96 | E137: 2693.212
A138: 2016-11-16 | B138: 32.12 | C138: 32.24 | D138: 31.87 | E138: 3781.829
A139: 2016-11-15 | B139: 31.99 | C139: 32.42 | D139: 32.09 | E139: 4640.489
A140: 2016-11-14 | B140: 31.46 | C140: 31.935 | D140: 31.84 | E140: 6102.79
A141: 2016-11-11 | B141: 31.88 | C141: 32.31 | D141: 31.62 | E141: 5239.473
A142: 2016-11-10 | B142: 33.36 | C142: 33.37 | D142: 31.85 | E142: 7318.764
A143: 2016-11-09 | B143: 33.92 | C143: 34.02 | D143: 33.49 | E143: 4126.091
A144: 2016-11-08 | B144: 34.4 | C144: 34.83 | D144: 34.5 | E144: 4316.147
A145: 2016-11-07 | B145: 33.89 | C145: 34.48 | D145: 34.41 | E145: 7564.726
A146: 2016-11-04 | B146: 33.28 | C146: 34.22 | D146: 33.57 | E146: 5323.987
A147: 2016-11-03 | B147: 32.87 | C147: 33.375 | D147: 33.29 | E147: 4561.933
A148: 2016-11-02 | B148: 33.37 | C148: 33.45 | D148: 33.36 | E148: 4394.957
A149: 2016-11-01 | B149: 34.34 | C149: 34.34 | D149: 33.47 | E149: 3963.809
A150: 2016-10-31 | B150: 34.08 | C150: 34.5 | D150: 34.29 | E150: 5212.048
A151: 2016-10-28 | B151: 33.95 | C151: 34.2119 | D151: 33.96 | E151: 6192.86
A152: 2016-10-27 | B152: 33.89 | C152: 34.03 | D152: 33.9 | E152: 3827.417
A153: 2016-10-26 | B153: 33.6 | C153: 34.025 | D153: 33.96 | E153: 4233.349
A154: 2016-10-25 | B154: 33.57 | C154: 33.73 | D154: 33.62 | E154: 3997.773
A155: 2016-10-24 | B155: 33.35 | C155: 33.49 | D155: 33.34 | E155: 2383.29
A156: 2016-10-21 | B156: 32.7 | C156: 33.36 | D156: 33.19 | E156: 4060.791
A157: 2016-10-20 | B157: 33.2 | C157: 33.42 | D157: 32.85 | E157: 4609.083
A158: 2016-10-19 | B158: 32.96 | C158: 33.27 | D158: 33.15 | E158: 5856.886
A159: 2016-10-18 | B159: 32.75 | C159: 33.31 | D159: 33.16 | E159: 7351.089
A160: 2016-10-17 | B160: 31.73 | C160: 32.41 | D160: 32.23 | E160: 6129.438
A161: 2016-10-14 | B161: 31.52 | C161: 32.04 | D161: 31.51 | E161: 3228.568
A162: 2016-10-13 | B162: 31.79 | C162: 31.83 | D162: 31.56 | E162: 4795.829
A163: 2016-10-12 | B163: 31.27 | C163: 31.72 | D163: 31.36 | E163: 13766.46
A164: 2016-10-11 | B164: 31.73 | C164: 31.77 | D164: 31.22 | E164: 2293.543
A165: 2016-10-10 | B165: 31.41 | C165: 31.79 | D165: 31.73 | E165: 2389.314
A166: 2016-10-07 | B166: 31.68 | C166: 31.95 | D166: 31.32 | E166: 3572.729
A167: 2016-10-06 | B167: 31.34 | C167: 31.76 | D167: 31.47 | E167: 4321.161
A168: 2016-10-05 | B168: 31.64 | C168: 31.86 | D168: 31.39 | E168: 12571.53
A169: 2016-10-04 | B169: 32.38 | C169: 32.42 | D169: 31.63 | E169: 4667.063
A170: 2016-10-03 | B170: 33.07 | C170: 33.07 | D170: 32.3 | E170: 4786.749
A171: 2016-09-30 | B171: 33.36 | C171: 33.5 | D171: 33.08 | E171: 3504.01
A172: 2016-09-29 | B172: 33.54 | C172: 33.63 | D172: 33.17 | E172: 2556.258
A173: 2016-09-28 | B173: 33.78 | C173: 33.88 | D173: 33.54 | E173: 3954.414
A174: 2016-09-27 | B174: 34.7 | C174: 34.83 | D174: 33.67 | E174: 5301.436
A175: 2016-09-26 | B175: 34.34 | C175: 34.82 | D175: 34.58 | E175: 3341.708
A176: 2016-09-23 | B176: 34.62 | C176: 34.87 | D176: 34.49 | E176: 4010.237
A177: 2016-09-22 | B177: 34.79 | C177: 34.955 | D177: 34.84 | E177: 3279.141
A178: 2016-09-21 | B178: 33.75 | C178: 34.62 | D178: 34.57 | E178: 3175.065
A179: 2016-09-20 | B179: 33.82 | C179: 33.97 | D179: 33.74 | E179: 2909.424
A180: 2016-09-19 | B180: 33.09 | C180: 33.77 | D180: 33.74 | E180: 3757.331
A181: 2016-09-16 | B181: 32.63 | C181: 33.03 | D181: 32.99 | E181: 3507.056
A182: 2016-09-15 | B182: 32.61 | C182: 32.97 | D182: 32.84 | E182: 2120.271
A183: 2016-09-14 | B183: 32.83 | C183: 33.011 | D183: 32.62 | E183: 3062.361
A184: 2016-09-13 | B184: 33.1 | C184: 33.19 | D184: 32.7 | E184: 3745.248
A185: 2016-09-12 | B185: 32.62 | C185: 33.47 | D185: 33.28 | E185: 3339.536
A186: 2016-09-09 | B186: 33.28 | C186: 33.35 | D186: 32.64 | E186: 5017.764
A187: 2016-09-08 | B187: 33.02 | C187: 33.67 | D187: 33.64 | E187: 3108.527
A188: 2016-09-07 | B188: 33.03 | C188: 33.275 | D188: 33.13 | E188: 2237.858
A189: 2016-09-06 | B189: 32.94 | C189: 33.11 | D189: 33.05 | E189: 2766.45
A190: 2016-09-02 | B190: 32.49 | C190: 33 | D190: 32.82 | E190: 2326.925
A191: 2016-09-01 | B191: 32.67 | C191: 32.77 | D191: 32.45 | E191: 4637.119
A192: 2016-08-31 | B192: 32.19 | C192: 32.75 | D192: 32.73 | E192: 4190.408
A193: 2016-08-30 | B193: 32.64 | C193: 32.74 | D193: 32.21 | E193: 2511.218
A194: 2016-08-29 | B194: 32.51 | C194: 32.78 | D194: 32.6 | E194: 1840.133
A195: 2016-08-26 | B195: 33.07 | C195: 33.3501 | D195: 32.32 | E195: 3756.739
A196: 2016-08-25 | B196: 32.99 | C196: 33.25 | D196: 32.93 | E196: 2052.542
A197: 2016-08-24 | B197: 32.83 | C197: 33.07 | D197: 33 | E197: 2633.697
A198: 2016-08-23 | B198: 32.74 | C198: 33.08 | D198: 32.92 | E198: 2843.996
A199: 2016-08-22 | B199: 32.7 | C199: 32.795 | D199: 32.63 | E199: 1915.184
A200: 2016-08-19 | B200: 33.06 | C200: 33.06 | D200: 32.69 | E200: 2638.54
... 309 more rows

Sheet HE
A1: ='Div Yields'!C19 -> HE | G1: Dividend | H1: 30 Day Avg | I1: 90 Day Avg | J1: 180 Day Avg | K1: 360 Day Avg | L1: 720 Day Avg
H2: =AVERAGE($D$4:$D$33) -> 33.097 | I2: =AVERAGE($D$4:$D$93) -> 33.21244444 | J2: =AVERAGE($D$4:$D$183) -> 32.06177778 | K2: =AVERAGE($D$4:$D$363) -> 31.64866667 | L2: =AVERAGE($D$4:$D$507) -> 30.96882937
A3: Date | B3: Open | C3: High | D3: Close | E3: Volume (k) | G3: =INDEX(Master,MATCH($A$1,Tickers,0),MATCH(G1,Header,0)) -> 1.24 | H3: =$G3/H2 -> 0.03746563133 | I3: =$G3/I2 -> 0.03733540306 | J3: 0.03867533512 | K3: 0.03918016557 | L3: 0.04004026066
A4: 2017-06-01 | B4: 33.15 | C4: 33.73 | D4: 33.72 | E4: 590.286
A5: 2017-05-31 | B5: 33.08 | C5: 33.22 | D5: 33.14 | E5: 492.347
A6: 2017-05-30 | B6: 32.79 | C6: 33.045 | D6: 33 | E6: 192.519
A7: 2017-05-26 | B7: 33.05 | C7: 33.0503 | D7: 32.86 | E7: 171.138
A8: 2017-05-25 | B8: 32.82 | C8: 33.1299 | D8: 33.05 | E8: 289.952
A9: 2017-05-24 | B9: 32.65 | C9: 32.91 | D9: 32.87 | E9: 350.98
A10: 2017-05-23 | B10: 32.25 | C10: 32.84 | D10: 32.64 | E10: 549.91
A11: 2017-05-22 | B11: 32.15 | C11: 32.33 | D11: 32.27 | E11: 357.824
A12: 2017-05-19 | B12: 32.32 | C12: 32.42 | D12: 32.42 | E12: 539.066
A13: 2017-05-18 | B13: 32.4 | C13: 32.58 | D13: 32.27 | E13: 358.257
A14: 2017-05-17 | B14: 32.44 | C14: 32.56 | D14: 32.38 | E14: 329.17
A15: 2017-05-16 | B15: 32.55 | C15: 32.71 | D15: 32.45 | E15: 268.471
A16: 2017-05-15 | B16: 32.58 | C16: 32.7501 | D16: 32.58 | E16: 423.65
A17: 2017-05-12 | B17: 32.75 | C17: 32.77 | D17: 32.58 | E17: 271.416
A18: 2017-05-11 | B18: 32.55 | C18: 32.695 | D18: 32.68 | E18: 310.593
A19: 2017-05-10 | B19: 32.78 | C19: 32.83 | D19: 32.7 | E19: 443.333
A20: 2017-05-09 | B20: 33.15 | C20: 33.15 | D20: 32.7 | E20: 517.372
A21: 2017-05-08 | B21: 33.55 | C21: 33.75 | D21: 33.12 | E21: 717.679
A22: 2017-05-05 | B22: 33.67 | C22: 33.84 | D22: 33.62 | E22: 362.526
A23: 2017-05-04 | B23: 33.39 | C23: 33.54 | D23: 33.52 | E23: 408.753
A24: 2017-05-03 | B24: 33.57 | C24: 33.61 | D24: 33.38 | E24: 433.653
A25: 2017-05-02 | B25: 33.51 | C25: 33.66 | D25: 33.58 | E25: 311.308
A26: 2017-05-01 | B26: 33.58 | C26: 33.71 | D26: 33.51 | E26: 451.579
A27: 2017-04-28 | B27: 33.8 | C27: 33.8 | D27: 33.52 | E27: 407.235
A28: 2017-04-27 | B28: 33.65 | C28: 34.0801 | D28: 33.86 | E28: 313.51
A29: 2017-04-26 | B29: 33.68 | C29: 33.89 | D29: 33.66 | E29: 380.842
A30: 2017-04-25 | B30: 33.93 | C30: 33.99 | D30: 33.73 | E30: 440.016
A31: 2017-04-24 | B31: 33.77 | C31: 34 | D31: 33.96 | E31: 410.315
A32: 2017-04-21 | B32: 33.5 | C32: 33.79 | D32: 33.68 | E32: 384.752
A33: 2017-04-20 | B33: 33.6 | C33: 33.6 | D33: 33.46 | E33: 331.944
A34: 2017-04-19 | B34: 33.76 | C34: 33.81 | D34: 33.62 | E34: 362.05
A35: 2017-04-18 | B35: 33.9 | C35: 33.95 | D35: 33.76 | E35: 371.262
A36: 2017-04-17 | B36: 33.66 | C36: 33.865 | D36: 33.83 | E36: 401.246
A37: 2017-04-13 | B37: 33.79 | C37: 33.8299 | D37: 33.6 | E37: 349.2
A38: 2017-04-12 | B38: 33.79 | C38: 33.885 | D38: 33.82 | E38: 369.526
A39: 2017-04-11 | B39: 33.62 | C39: 33.925 | D39: 33.76 | E39: 414.948
A40: 2017-04-10 | B40: 33.66 | C40: 33.71 | D40: 33.63 | E40: 278.004
A41: 2017-04-07 | B41: 33.69 | C41: 33.79 | D41: 33.64 | E41: 350.825
A42: 2017-04-06 | B42: 33.74 | C42: 33.76 | D42: 33.7 | E42: 393.269
A43: 2017-04-05 | B43: 33.4 | C43: 33.86 | D43: 33.8 | E43: 1968.909
A44: 2017-04-04 | B44: 33.11 | C44: 33.49 | D44: 33.42 | E44: 555.128
A45: 2017-04-03 | B45: 33.13 | C45: 33.21 | D45: 33.16 | E45: 736.215
A46: 2017-03-31 | B46: 33.49 | C46: 33.715 | D46: 33.31 | E46: 681.476
A47: 2017-03-30 | B47: 33.38 | C47: 33.47 | D47: 33.46 | E47: 529.825
A48: 2017-03-29 | B48: 33.48 | C48: 33.48 | D48: 33.4 | E48: 531.435
A49: 2017-03-28 | B49: 33.41 | C49: 33.58 | D49: 33.55 | E49: 367.219
A50: 2017-03-27 | B50: 33.76 | C50: 33.87 | D50: 33.46 | E50: 480.231
A51: 2017-03-24 | B51: 33.47 | C51: 33.77 | D51: 33.68 | E51: 286.436
A52: 2017-03-23 | B52: 33.45 | C52: 33.94 | D52: 33.48 | E52: 396.895
A53: 2017-03-22 | B53: 33.3 | C53: 33.71 | D53: 33.58 | E53: 565.454
A54: 2017-03-21 | B54: 33.12 | C54: 33.37 | D54: 33.3 | E54: 640.945
A55: 2017-03-20 | B55: 33.43 | C55: 33.48 | D55: 33.15 | E55: 387.358
A56: 2017-03-17 | B56: 32.94 | C56: 33.48 | D56: 33.3 | E56: 782.333
A57: 2017-03-16 | B57: 33.2 | C57: 33.39 | D57: 32.95 | E57: 470.715
A58: 2017-03-15 | B58: 32.77 | C58: 33.54 | D58: 33.29 | E58: 882.16
A59: 2017-03-14 | B59: 32.82 | C59: 32.89 | D59: 32.67 | E59: 301.421
A60: 2017-03-13 | B60: 32.6 | C60: 32.95 | D60: 32.89 | E60: 508.876
A61: 2017-03-10 | B61: 32.58 | C61: 32.76 | D61: 32.53 | E61: 528.798
A62: 2017-03-09 | B62: 32.45 | C62: 32.76 | D62: 32.49 | E62: 674.849
A63: 2017-03-08 | B63: 32.75 | C63: 32.79 | D63: 32.43 | E63: 761.917
A64: 2017-03-07 | B64: 32.88 | C64: 33.14 | D64: 32.97 | E64: 889.61
A65: 2017-03-06 | B65: 33.02 | C65: 33.23 | D65: 32.88 | E65: 689.973
A66: 2017-03-03 | B66: 33.25 | C66: 33.37 | D66: 33.33 | E66: 592.268
A67: 2017-03-02 | B67: 33.41 | C67: 33.6 | D67: 33.36 | E67: 529.399
A68: 2017-03-01 | B68: 33.01 | C68: 33.62 | D68: 33.44 | E68: 587.036
A69: 2017-02-28 | B69: 33.23 | C69: 33.4 | D69: 33.28 | E69: 615.279
A70: 2017-02-27 | B70: 33.17 | C70: 33.255 | D70: 33.25 | E70: 497.406
A71: 2017-02-24 | B71: 32.85 | C71: 33.24 | D71: 33.14 | E71: 466.98
A72: 2017-02-23 | B72: 32.78 | C72: 32.99 | D72: 32.85 | E72: 719.918
A73: 2017-02-22 | B73: 32.56 | C73: 32.74 | D73: 32.65 | E73: 533.282
A74: 2017-02-21 | B74: 32.6 | C74: 32.88 | D74: 32.8 | E74: 641.027
A75: 2017-02-17 | B75: 32.81 | C75: 32.84 | D75: 32.69 | E75: 516.473
A76: 2017-02-16 | B76: 32.5 | C76: 32.76 | D76: 32.75 | E76: 483.163
A77: 2017-02-15 | B77: 32.61 | C77: 33 | D77: 32.51 | E77: 1017.911
A78: 2017-02-14 | B78: 33.69 | C78: 33.69 | D78: 33.1 | E78: 598.59
A79: 2017-02-13 | B79: 33.75 | C79: 33.8367 | D79: 33.68 | E79: 423.991
A80: 2017-02-10 | B80: 33.68 | C80: 33.85 | D80: 33.78 | E80: 471.168
A81: 2017-02-09 | B81: 33.68 | C81: 33.8 | D81: 33.75 | E81: 633.99
A82: 2017-02-08 | B82: 33.74 | C82: 33.74 | D82: 33.69 | E82: 328.396
A83: 2017-02-07 | B83: 33.8 | C83: 33.84 | D83: 33.68 | E83: 609.019
A84: 2017-02-06 | B84: 33.55 | C84: 33.74 | D84: 33.73 | E84: 1208.861
A85: 2017-02-03 | B85: 33.43 | C85: 33.69 | D85: 33.55 | E85: 304.214
A86: 2017-02-02 | B86: 33.12 | C86: 33.34 | D86: 33.34 | E86: 556.984
A87: 2017-02-01 | B87: 33.3 | C87: 33.47 | D87: 33.1 | E87: 456.316
A88: 2017-01-31 | B88: 33.02 | C88: 33.49 | D88: 33.48 | E88: 402.36
A89: 2017-01-30 | B89: 32.82 | C89: 32.9 | D89: 32.9 | E89: 478.984
A90: 2017-01-27 | B90: 33.03 | C90: 33.03 | D90: 32.72 | E90: 217.908
A91: 2017-01-26 | B91: 33.1 | C91: 33.18 | D91: 32.94 | E91: 366.618
A92: 2017-01-25 | B92: 33.14 | C92: 33.25 | D92: 33.08 | E92: 339.397
A93: 2017-01-24 | B93: 33 | C93: 33.3 | D93: 33.13 | E93: 423.425
A94: 2017-01-23 | B94: 33.13 | C94: 33.38 | D94: 33.02 | E94: 483.559
A95: 2017-01-20 | B95: 33.19 | C95: 33.45 | D95: 33.19 | E95: 261.043
A96: 2017-01-19 | B96: 33.48 | C96: 33.54 | D96: 33.08 | E96: 218.497
A97: 2017-01-18 | B97: 33.52 | C97: 33.8 | D97: 33.54 | E97: 474.725
A98: 2017-01-17 | B98: 33.54 | C98: 33.9 | D98: 33.6 | E98: 358.459
A99: 2017-01-13 | B99: 33.53 | C99: 33.7525 | D99: 33.4 | E99: 477.648
A100: 2017-01-12 | B100: 33.48 | C100: 33.5 | D100: 33.49 | E100: 483.376
A101: 2017-01-11 | B101: 33.07 | C101: 33.61 | D101: 33.52 | E101: 548.751
A102: 2017-01-10 | B102: 32.84 | C102: 33.13 | D102: 33.06 | E102: 537.729
A103: 2017-01-09 | B103: 33.37 | C103: 33.37 | D103: 32.82 | E103: 608.174
A104: 2017-01-06 | B104: 32.77 | C104: 33.429 | D104: 33.33 | E104: 481.25
A105: 2017-01-05 | B105: 33.01 | C105: 33.15 | D105: 32.89 | E105: 1172.975
A106: 2017-01-04 | B106: 32.92 | C106: 33.44 | D106: 33.01 | E106: 729.436
A107: 2017-01-03 | B107: 33.02 | C107: 33.0651 | D107: 32.88 | E107: 443.878
A108: 2016-12-30 | B108: 33.36 | C108: 33.4386 | D108: 33.07 | E108: 410.595
A109: 2016-12-29 | B109: 33.05 | C109: 33.39 | D109: 33.36 | E109: 564.764
A110: 2016-12-28 | B110: 33.47 | C110: 33.47 | D110: 32.97 | E110: 563.44
A111: 2016-12-27 | B111: 33.57 | C111: 33.64 | D111: 33.5 | E111: 295.152
A112: 2016-12-23 | B112: 33.65 | C112: 33.7 | D112: 33.62 | E112: 154.287
A113: 2016-12-22 | B113: 33.66 | C113: 33.665 | D113: 33.64 | E113: 315.205
A114: 2016-12-21 | B114: 33.59 | C114: 34.08 | D114: 33.65 | E114: 456.029
A115: 2016-12-20 | B115: 33.63 | C115: 33.9 | D115: 33.59 | E115: 578.324
A116: 2016-12-19 | B116: 33.48 | C116: 33.875 | D116: 33.78 | E116: 663.469
A117: 2016-12-16 | B117: 32.98 | C117: 33.46 | D117: 33.37 | E117: 1385.546
A118: 2016-12-15 | B118: 32.35 | C118: 32.99 | D118: 32.98 | E118: 478.272
A119: 2016-12-14 | B119: 33.32 | C119: 33.55 | D119: 32.45 | E119: 593.035
A120: 2016-12-13 | B120: 33.06 | C120: 33.28 | D120: 33.05 | E120: 618.428
A121: 2016-12-12 | B121: 32.46 | C121: 33.11 | D121: 32.93 | E121: 773.136
A122: 2016-12-09 | B122: 32.37 | C122: 32.485 | D122: 32.42 | E122: 661.619
A123: 2016-12-08 | B123: 31.22 | C123: 32.7025 | D123: 32.36 | E123: 1092.104
A124: 2016-12-07 | B124: 30.96 | C124: 31.32 | D124: 31.31 | E124: 1137.461
A125: 2016-12-06 | B125: 31.57 | C125: 31.6 | D125: 30.93 | E125: 822.48
A126: 2016-12-05 | B126: 31.36 | C126: 31.46 | D126: 31.44 | E126: 356.027
A127: 2016-12-02 | B127: 30.92 | C127: 31.39 | D127: 31.39 | E127: 453.878
A128: 2016-12-01 | B128: 30.7 | C128: 30.76 | D128: 30.72 | E128: 476.839
A129: 2016-11-30 | B129: 31.5 | C129: 31.5 | D129: 30.8 | E129: 743.557
A130: 2016-11-29 | B130: 31.31 | C130: 31.94 | D130: 31.7 | E130: 664.296
A131: 2016-11-28 | B131: 30.77 | C131: 31.45 | D131: 31.37 | E131: 631.17
A132: 2016-11-25 | B132: 30.58 | C132: 30.94 | D132: 30.71 | E132: 223.477
A133: 2016-11-23 | B133: 30.43 | C133: 30.69 | D133: 30.56 | E133: 887.393
A134: 2016-11-22 | B134: 30.25 | C134: 30.67 | D134: 30.65 | E134: 529.204
A135: 2016-11-21 | B135: 29.78 | C135: 30.35 | D135: 30.35 | E135: 637.55
A136: 2016-11-18 | B136: 29.58 | C136: 29.7508 | D136: 29.7 | E136: 547.522
A137: 2016-11-17 | B137: 29.83 | C137: 30.09 | D137: 29.89 | E137: 385.124
A138: 2016-11-16 | B138: 29.74 | C138: 30 | D138: 29.98 | E138: 826.941
A139: 2016-11-15 | B139: 29.45 | C139: 29.75 | D139: 29.74 | E139: 618.979
A140: 2016-11-14 | B140: 29.24 | C140: 29.39 | D140: 29.37 | E140: 450.572
A141: 2016-11-11 | B141: 28.92 | C141: 29.52 | D141: 29.41 | E141: 590.889
A142: 2016-11-10 | B142: 29.3 | C142: 29.3 | D142: 28.95 | E142: 791.429
A143: 2016-11-09 | B143: 29.53 | C143: 29.57 | D143: 29.34 | E143: 495.295
A144: 2016-11-08 | B144: 29.84 | C144: 30.115 | D144: 30.01 | E144: 560.29
A145: 2016-11-07 | B145: 29.21 | C145: 29.84 | D145: 29.82 | E145: 579.224
A146: 2016-11-04 | B146: 28.72 | C146: 29.09 | D146: 28.78 | E146: 524.487
A147: 2016-11-03 | B147: 28.62 | C147: 28.81 | D147: 28.63 | E147: 460.582
A148: 2016-11-02 | B148: 28.94 | C148: 28.94 | D148: 28.57 | E148: 482.482
A149: 2016-11-01 | B149: 29.45 | C149: 29.52 | D149: 28.99 | E149: 496.376
A150: 2016-10-31 | B150: 28.84 | C150: 29.6617 | D150: 29.5 | E150: 593.27
A151: 2016-10-28 | B151: 29.05 | C151: 29.29 | D151: 29.08 | E151: 327.65
A152: 2016-10-27 | B152: 28.84 | C152: 29.13 | D152: 29.03 | E152: 393.963
A153: 2016-10-26 | B153: 28.84 | C153: 29.055 | D153: 28.96 | E153: 341.982
A154: 2016-10-25 | B154: 28.7 | C154: 28.89 | D154: 28.89 | E154: 269.109
A155: 2016-10-24 | B155: 29.29 | C155: 29.29 | D155: 28.8 | E155: 237.297
A156: 2016-10-21 | B156: 28.89 | C156: 28.95 | D156: 28.69 | E156: 595.373
A157: 2016-10-20 | B157: 29.11 | C157: 29.29 | D157: 29 | E157: 372.829
A158: 2016-10-19 | B158: 28.9 | C158: 29.16 | D158: 29.09 | E158: 451.682
A159: 2016-10-18 | B159: 29.02 | C159: 29.06 | D159: 28.95 | E159: 408.271
A160: 2016-10-17 | B160: 28.9 | C160: 29.03 | D160: 28.9 | E160: 313.987
A161: 2016-10-14 | B161: 28.85 | C161: 29.0501 | D161: 28.83 | E161: 366.648
A162: 2016-10-13 | B162: 28.74 | C162: 29.19 | D162: 28.9 | E162: 498.536
A163: 2016-10-12 | B163: 28.41 | C163: 28.83 | D163: 28.74 | E163: 931.423
A164: 2016-10-11 | B164: 28.66 | C164: 28.67 | D164: 28.4 | E164: 488.099
A165: 2016-10-10 | B165: 28.51 | C165: 28.81 | D165: 28.78 | E165: 454.312
A166: 2016-10-07 | B166: 28.85 | C166: 28.91 | D166: 28.45 | E166: 668.857
A167: 2016-10-06 | B167: 28.6 | C167: 28.8 | D167: 28.66 | E167: 1563.619
A168: 2016-10-05 | B168: 29.08 | C168: 29.12 | D168: 28.76 | E168: 1343.974
A169: 2016-10-04 | B169: 29.41 | C169: 29.44 | D169: 28.94 | E169: 934.612
A170: 2016-10-03 | B170: 29.85 | C170: 29.85 | D170: 29.47 | E170: 822.875
A171: 2016-09-30 | B171: 30.51 | C171: 30.57 | D171: 29.85 | E171: 719.086
A172: 2016-09-29 | B172: 30.52 | C172: 30.58 | D172: 30.44 | E172: 599.417
A173: 2016-09-28 | B173: 30.69 | C173: 30.83 | D173: 30.65 | E173: 423.422
A174: 2016-09-27 | B174: 31.25 | C174: 31.4 | D174: 30.69 | E174: 497.743
A175: 2016-09-26 | B175: 31.16 | C175: 31.38 | D175: 31.26 | E175: 461.562
A176: 2016-09-23 | B176: 31.15 | C176: 31.3399 | D176: 31.19 | E176: 527.065
A177: 2016-09-22 | B177: 30.97 | C177: 31.4 | D177: 31.34 | E177: 589.208
A178: 2016-09-21 | B178: 30.29 | C178: 30.89 | D178: 30.87 | E178: 361.166
A179: 2016-09-20 | B179: 30.45 | C179: 30.74 | D179: 30.25 | E179: 460.232
A180: 2016-09-19 | B180: 30.17 | C180: 30.54 | D180: 30.51 | E180: 513.59
A181: 2016-09-16 | B181: 29.66 | C181: 30.05 | D181: 30.02 | E181: 597.645
A182: 2016-09-15 | B182: 29.74 | C182: 29.82 | D182: 29.71 | E182: 349.198
A183: 2016-09-14 | B183: 29.42 | C183: 29.785 | D183: 29.72 | E183: 423.906
A184: 2016-09-13 | B184: 29.54 | C184: 29.575 | D184: 29.43 | E184: 614.164
A185: 2016-09-12 | B185: 29.31 | C185: 29.58 | D185: 29.56 | E185: 503.726
A186: 2016-09-09 | B186: 30.14 | C186: 30.16 | D186: 29.25 | E186: 572.253
A187: 2016-09-08 | B187: 30.25 | C187: 30.41 | D187: 30.35 | E187: 437.155
A188: 2016-09-07 | B188: 30 | C188: 30.345 | D188: 30.3 | E188: 541.544
A189: 2016-09-06 | B189: 29.98 | C189: 30.16 | D189: 30 | E189: 494.308
A190: 2016-09-02 | B190: 29.53 | C190: 29.96 | D190: 29.9 | E190: 499.291
A191: 2016-09-01 | B191: 29.85 | C191: 29.99 | D191: 29.49 | E191: 611.709
A192: 2016-08-31 | B192: 29.85 | C192: 30.07 | D192: 30.01 | E192: 1491.17
A193: 2016-08-30 | B193: 30.04 | C193: 30.16 | D193: 29.83 | E193: 422.877
A194: 2016-08-29 | B194: 29.76 | C194: 30.07 | D194: 30 | E194: 537.712
A195: 2016-08-26 | B195: 30.26 | C195: 30.38 | D195: 29.64 | E195: 489.401
A196: 2016-08-25 | B196: 30.28 | C196: 30.3 | D196: 30.16 | E196: 557.678
A197: 2016-08-24 | B197: 30.08 | C197: 30.26 | D197: 30.23 | E197: 380.835
A198: 2016-08-23 | B198: 30.08 | C198: 30.35 | D198: 30.07 | E198: 338.367
A199: 2016-08-22 | B199: 30.42 | C199: 30.53 | D199: 30.08 | E199: 414.629
A200: 2016-08-19 | B200: 30.76 | C200: 30.82 | D200: 30.74 | E200: 839.701
... 309 more rows

Sheet IDA
A1: ='Div Yields'!C20 -> IDA | G1: Dividend | H1: 30 Day Avg | I1: 90 Day Avg | J1: 180 Day Avg | K1: 360 Day Avg | L1: 720 Day Avg
H2: =AVERAGE($D$4:$D$33) -> 84.69633333 | I2: =AVERAGE($D$4:$D$93) -> 82.62633333 | J2: =AVERAGE($D$4:$D$183) -> 80.15972222 | K2: =AVERAGE($D$4:$D$363) -> 77.09655556 | L2: =AVERAGE($D$4:$D$507) -> 72.97914683
A3: Date | B3: Open | C3: High | D3: Close | E3: Volume (k) | G3: =INDEX(Master,MATCH($A$1,Tickers,0),MATCH(G1,Header,0)) -> 2.2 | H3: =$G3/H2 -> 0.02597515044 | I3: =$G3/I2 -> 0.02662589409 | J3: 0.02744520489 | K3: 0.02853564578 | L3: 0.03014559769
A4: 2017-06-01 | B4: 87.32 | C4: 88.28 | D4: 88.28 | E4: 218.932
A5: 2017-05-31 | B5: 86.9 | C5: 87.5 | D5: 87.3 | E5: 164.797
A6: 2017-05-30 | B6: 86.53 | C6: 86.84 | D6: 86.64 | E6: 105.579
A7: 2017-05-26 | B7: 86.44 | C7: 86.54 | D7: 86.46 | E7: 176.371
A8: 2017-05-25 | B8: 85.52 | C8: 86.41 | D8: 86.31 | E8: 125.77
A9: 2017-05-24 | B9: 85.56 | C9: 85.9 | D9: 85.65 | E9: 128.141
A10: 2017-05-23 | B10: 84.64 | C10: 85.72 | D10: 85.25 | E10: 157.258
A11: 2017-05-22 | B11: 83.65 | C11: 84.45 | D11: 84.32 | E11: 188.052
A12: 2017-05-19 | B12: 83.21 | C12: 83.83 | D12: 83.64 | E12: 213.007
A13: 2017-05-18 | B13: 83.53 | C13: 83.79 | D13: 83.32 | E13: 204.609
A14: 2017-05-17 | B14: 83.09 | C14: 83.98 | D14: 83.5 | E14: 241.088
A15: 2017-05-16 | B15: 83.7 | C15: 83.99 | D15: 83.23 | E15: 141.46
A16: 2017-05-15 | B16: 83.5 | C16: 84.17 | D16: 83.84 | E16: 158.774
A17: 2017-05-12 | B17: 83.46 | C17: 84 | D17: 83.55 | E17: 151.408
A18: 2017-05-11 | B18: 83.08 | C18: 83.36 | D18: 83.26 | E18: 151.318
A19: 2017-05-10 | B19: 83.11 | C19: 83.6 | D19: 83.21 | E19: 169.079
A20: 2017-05-09 | B20: 84.02 | C20: 84.42 | D20: 83.13 | E20: 287.269
A21: 2017-05-08 | B21: 84.72 | C21: 85.4499 | D21: 83.98 | E21: 186.779
A22: 2017-05-05 | B22: 84.47 | C22: 84.91 | D22: 84.5 | E22: 233.698
A23: 2017-05-04 | B23: 83.02 | C23: 84.33 | D23: 84.16 | E23: 211.543
A24: 2017-05-03 | B24: 83.01 | C24: 83.22 | D24: 83.01 | E24: 184.218
A25: 2017-05-02 | B25: 83.7 | C25: 84.245 | D25: 83.85 | E25: 200.805
A26: 2017-05-01 | B26: 84.71 | C26: 84.899 | D26: 83.79 | E26: 171.627
A27: 2017-04-28 | B27: 85.58 | C27: 85.87 | D27: 84.52 | E27: 214.231
A28: 2017-04-27 | B28: 85.8 | C28: 86.46 | D28: 85.77 | E28: 113.174
A29: 2017-04-26 | B29: 85.5 | C29: 86.07 | D29: 85.66 | E29: 185.782
A30: 2017-04-25 | B30: 85.03 | C30: 85.9099 | D30: 85.48 | E30: 153.399
A31: 2017-04-24 | B31: 84.99 | C31: 85.73 | D31: 85.51 | E31: 200.803
A32: 2017-04-21 | B32: 84.48 | C32: 85.59 | D32: 85.24 | E32: 425.066
A33: 2017-04-20 | B33: 84.79 | C33: 84.88 | D33: 84.53 | E33: 203.696
A34: 2017-04-19 | B34: 85.42 | C34: 85.42 | D34: 84.74 | E34: 233.875
A35: 2017-04-18 | B35: 85.52 | C35: 85.7 | D35: 85.36 | E35: 189.43
A36: 2017-04-17 | B36: 84.93 | C36: 85.45 | D36: 85.36 | E36: 175.894
A37: 2017-04-13 | B37: 84.81 | C37: 85.105 | D37: 84.71 | E37: 323.44
A38: 2017-04-12 | B38: 83.88 | C38: 84.94 | D38: 84.84 | E38: 231.417
A39: 2017-04-11 | B39: 83 | C39: 84.04 | D39: 83.96 | E39: 226.292
A40: 2017-04-10 | B40: 82.98 | C40: 83.27 | D40: 83.1 | E40: 84.563
A41: 2017-04-07 | B41: 83.42 | C41: 83.8 | D41: 82.82 | E41: 174.801
A42: 2017-04-06 | B42: 83.26 | C42: 83.6 | D42: 83.39 | E42: 151.218
A43: 2017-04-05 | B43: 83.25 | C43: 83.62 | D43: 83.48 | E43: 222.736
A44: 2017-04-04 | B44: 82.29 | C44: 83.51 | D44: 83.21 | E44: 186.415
A45: 2017-04-03 | B45: 82.66 | C45: 82.92 | D45: 82.58 | E45: 226.777
A46: 2017-03-31 | B46: 82.92 | C46: 83.56 | D46: 82.96 | E46: 206.725
A47: 2017-03-30 | B47: 83.31 | C47: 83.31 | D47: 82.95 | E47: 317.432
A48: 2017-03-29 | B48: 83.68 | C48: 83.68 | D48: 83.26 | E48: 297.176
A49: 2017-03-28 | B49: 82.89 | C49: 83.6 | D49: 83.51 | E49: 189.555
A50: 2017-03-27 | B50: 83.28 | C50: 83.52 | D50: 83.29 | E50: 224.892
A51: 2017-03-24 | B51: 82.8 | C51: 83.66 | D51: 83.04 | E51: 146.472
A52: 2017-03-23 | B52: 82.43 | C52: 83.405 | D52: 82.82 | E52: 163.67
A53: 2017-03-22 | B53: 82.34 | C53: 82.9 | D53: 82.53 | E53: 267.95
A54: 2017-03-21 | B54: 81.26 | C54: 82.33 | D54: 81.93 | E54: 160.15
A55: 2017-03-20 | B55: 82.17 | C55: 82.17 | D55: 81.26 | E55: 129.979
A56: 2017-03-17 | B56: 81.41 | C56: 82.72 | D56: 82.31 | E56: 425.706
A57: 2017-03-16 | B57: 81.54 | C57: 81.79 | D57: 81.12 | E57: 105.612
A58: 2017-03-15 | B58: 80.35 | C58: 82.28 | D58: 81.76 | E58: 223.362
A59: 2017-03-14 | B59: 80.34 | C59: 80.61 | D59: 80.09 | E59: 159.31
A60: 2017-03-13 | B60: 80.1 | C60: 80.54 | D60: 80.43 | E60: 200.404
A61: 2017-03-10 | B61: 80.69 | C61: 80.92 | D61: 80.26 | E61: 185.223
A62: 2017-03-09 | B62: 80.33 | C62: 81.035 | D62: 80.2 | E62: 294.92
A63: 2017-03-08 | B63: 81.55 | C63: 81.695 | D63: 80.25 | E63: 161.493
A64: 2017-03-07 | B64: 82.19 | C64: 82.41 | D64: 82.03 | E64: 163.418
A65: 2017-03-06 | B65: 82.95 | C65: 82.95 | D65: 82.18 | E65: 141.187
A66: 2017-03-03 | B66: 82.86 | C66: 83.04 | D66: 82.96 | E66: 227.684
A67: 2017-03-02 | B67: 82.74 | C67: 83.49 | D67: 83.11 | E67: 236.736
A68: 2017-03-01 | B68: 82.58 | C68: 83.953 | D68: 83.13 | E68: 266.601
A69: 2017-02-28 | B69: 83.03 | C69: 83.385 | D69: 82.93 | E69: 326.661
A70: 2017-02-27 | B70: 82.44 | C70: 82.98 | D70: 82.94 | E70: 204.108
A71: 2017-02-24 | B71: 82.34 | C71: 83.99 | D71: 82.77 | E71: 183.337
A72: 2017-02-23 | B72: 80.97 | C72: 82.21 | D72: 82.21 | E72: 257.689
A73: 2017-02-22 | B73: 80.62 | C73: 81.19 | D73: 80.79 | E73: 100.884
A74: 2017-02-21 | B74: 80 | C74: 80.884 | D74: 80.86 | E74: 114.646
A75: 2017-02-17 | B75: 80.31 | C75: 80.31 | D75: 80 | E75: 154.026
A76: 2017-02-16 | B76: 79 | C76: 79.8 | D76: 79.8 | E76: 118.213
A77: 2017-02-15 | B77: 79.15 | C77: 79.69 | D77: 78.96 | E77: 119.755
A78: 2017-02-14 | B78: 79.26 | C78: 79.63 | D78: 79.55 | E78: 142.604
A79: 2017-02-13 | B79: 80.08 | C79: 80.17 | D79: 79.85 | E79: 222.383
A80: 2017-02-10 | B80: 79.4 | C80: 80.1 | D80: 80.02 | E80: 113.792
A81: 2017-02-09 | B81: 79.47 | C81: 80.265 | D81: 79.43 | E81: 115.229
A82: 2017-02-08 | B82: 78.95 | C82: 80.34 | D82: 79.67 | E82: 138.357
A83: 2017-02-07 | B83: 79.45 | C83: 79.45 | D83: 79.07 | E83: 117.946
A84: 2017-02-06 | B84: 79.72 | C84: 79.7355 | D84: 79.12 | E84: 151.579
A85: 2017-02-03 | B85: 79.5 | C85: 79.85 | D85: 79.38 | E85: 149.616
A86: 2017-02-02 | B86: 78.5 | C86: 79.18 | D86: 79.05 | E86: 216.314
A87: 2017-02-01 | B87: 79.49 | C87: 80.07 | D87: 78.49 | E87: 195.201
A88: 2017-01-31 | B88: 78.92 | C88: 80.11 | D88: 80.02 | E88: 246.102
A89: 2017-01-30 | B89: 79.36 | C89: 79.56 | D89: 79.04 | E89: 264.347
A90: 2017-01-27 | B90: 79.41 | C90: 79.41 | D90: 79.22 | E90: 129.542
A91: 2017-01-26 | B91: 78.98 | C91: 79.46 | D91: 79.02 | E91: 112.683
A92: 2017-01-25 | B92: 79.13 | C92: 79.22 | D92: 79.03 | E92: 164.248
A93: 2017-01-24 | B93: 79.14 | C93: 79.57 | D93: 79.33 | E93: 173.69
A94: 2017-01-23 | B94: 79.21 | C94: 79.68 | D94: 79.02 | E94: 117.56
A95: 2017-01-20 | B95: 78.52 | C95: 79.31 | D95: 78.96 | E95: 115.856
A96: 2017-01-19 | B96: 79.19 | C96: 80.05 | D96: 78.7 | E96: 148.545
A97: 2017-01-18 | B97: 78.97 | C97: 79.955 | D97: 79.41 | E97: 131.487
A98: 2017-01-17 | B98: 79.13 | C98: 79.61 | D98: 79.28 | E98: 131.652
A99: 2017-01-13 | B99: 78.74 | C99: 79.46 | D99: 78.97 | E99: 119.166
A100: 2017-01-12 | B100: 78.99 | C100: 79.23 | D100: 79.09 | E100: 152.224
A101: 2017-01-11 | B101: 78.26 | C101: 79.24 | D101: 79.09 | E101: 127.682
A102: 2017-01-10 | B102: 78.07 | C102: 78.54 | D102: 78.31 | E102: 163.109
A103: 2017-01-09 | B103: 80.03 | C103: 80.22 | D103: 77.98 | E103: 248.197
A104: 2017-01-06 | B104: 79.7 | C104: 80.21 | D104: 79.83 | E104: 209.497
A105: 2017-01-05 | B105: 80.71 | C105: 80.79 | D105: 80.06 | E105: 223.351
A106: 2017-01-04 | B106: 80.51 | C106: 81.14 | D106: 80.51 | E106: 221.636
A107: 2017-01-03 | B107: 80.5 | C107: 80.5 | D107: 80.06 | E107: 139.716
A108: 2016-12-30 | B108: 80.47 | C108: 81.05 | D108: 80.55 | E108: 143.088
A109: 2016-12-29 | B109: 80.14 | C109: 80.82 | D109: 80.78 | E109: 157.853
A110: 2016-12-28 | B110: 81.34 | C110: 81.34 | D110: 79.89 | E110: 119.862
A111: 2016-12-27 | B111: 80.61 | C111: 81.5 | D111: 81.15 | E111: 86.011
A112: 2016-12-23 | B112: 80.87 | C112: 81.32 | D112: 81.05 | E112: 56.411
A113: 2016-12-22 | B113: 80.59 | C113: 81.23 | D113: 80.91 | E113: 111.347
A114: 2016-12-21 | B114: 81.33 | C114: 81.81 | D114: 80.56 | E114: 150.027
A115: 2016-12-20 | B115: 80.75 | C115: 81.42 | D115: 81.28 | E115: 174.14
A116: 2016-12-19 | B116: 80.66 | C116: 81.34 | D116: 81.13 | E116: 175.378
A117: 2016-12-16 | B117: 80.06 | C117: 81.045 | D117: 80.27 | E117: 843.64
A118: 2016-12-15 | B118: 78.66 | C118: 79.79 | D118: 79.71 | E118: 202.382
A119: 2016-12-14 | B119: 81.3 | C119: 81.81 | D119: 78.8 | E119: 223.845
A120: 2016-12-13 | B120: 80.62 | C120: 81.32 | D120: 81.14 | E120: 208.292
A121: 2016-12-12 | B121: 79.43 | C121: 80.56 | D121: 80.31 | E121: 249.881
A122: 2016-12-09 | B122: 79.07 | C122: 79.99 | D122: 79.92 | E122: 205.911
A123: 2016-12-08 | B123: 77.34 | C123: 79.12 | D123: 79.08 | E123: 260.156
A124: 2016-12-07 | B124: 76.94 | C124: 78.095 | D124: 77.97 | E124: 239.398
A125: 2016-12-06 | B125: 76.39 | C125: 76.99 | D125: 76.8 | E125: 179.327
A126: 2016-12-05 | B126: 76.65 | C126: 76.91 | D126: 76.63 | E126: 221.228
A127: 2016-12-02 | B127: 76.37 | C127: 77.28 | D127: 76.64 | E127: 184.787
A128: 2016-12-01 | B128: 75.47 | C128: 76.17 | D128: 75.8 | E128: 223.604
A129: 2016-11-30 | B129: 78.33 | C129: 78.36 | D129: 76.15 | E129: 259.135
A130: 2016-11-29 | B130: 78.67 | C130: 79.43 | D130: 79.03 | E130: 179.738
A131: 2016-11-28 | B131: 78.39 | C131: 79.2 | D131: 78.72 | E131: 220.96
A132: 2016-11-25 | B132: 76.85 | C132: 77.99 | D132: 77.99 | E132: 90.003
A133: 2016-11-23 | B133: 76.26 | C133: 77.21 | D133: 76.66 | E133: 205.32
A134: 2016-11-22 | B134: 76.11 | C134: 77.57 | D134: 77.42 | E134: 178.295
A135: 2016-11-21 | B135: 75.43 | C135: 76.08 | D135: 76.08 | E135: 242.5
A136: 2016-11-18 | B136: 75.12 | C136: 75.7 | D136: 75.41 | E136: 244.264
A137: 2016-11-17 | B137: 74.87 | C137: 75.44 | D137: 75.09 | E137: 185.49
A138: 2016-11-16 | B138: 75.4 | C138: 76.18 | D138: 74.95 | E138: 212.454
A139: 2016-11-15 | B139: 75.25 | C139: 75.96 | D139: 75.43 | E139: 233.777
A140: 2016-11-14 | B140: 76.14 | C140: 76.74 | D140: 75.09 | E140: 339.442
A141: 2016-11-11 | B141: 75.22 | C141: 77.02 | D141: 76.49 | E141: 353.434
A142: 2016-11-10 | B142: 75.7 | C142: 76.64 | D142: 75.29 | E142: 305.536
A143: 2016-11-09 | B143: 75.94 | C143: 77.26 | D143: 76.06 | E143: 332.1
A144: 2016-11-08 | B144: 77.72 | C144: 78.52 | D144: 77.85 | E144: 151.564
A145: 2016-11-07 | B145: 75.74 | C145: 77.47 | D145: 77.34 | E145: 211.946
A146: 2016-11-04 | B146: 75.93 | C146: 76.62 | D146: 75.37 | E146: 181.06
A147: 2016-11-03 | B147: 75.25 | C147: 75.97 | D147: 75.55 | E147: 169.079
A148: 2016-11-02 | B148: 76.22 | C148: 76.55 | D148: 76 | E148: 164.192
A149: 2016-11-01 | B149: 78.19 | C149: 78.37 | D149: 76.57 | E149: 183.528
A150: 2016-10-31 | B150: 76.97 | C150: 78.86 | D150: 78.39 | E150: 350.859
A151: 2016-10-28 | B151: 75.82 | C151: 77.01 | D151: 76.67 | E151: 180.149
A152: 2016-10-27 | B152: 75.97 | C152: 76.91 | D152: 75.83 | E152: 243.749
A153: 2016-10-26 | B153: 75.68 | C153: 76.23 | D153: 75.98 | E153: 151.762
A154: 2016-10-25 | B154: 75.2 | C154: 76 | D154: 75.75 | E154: 173.647
A155: 2016-10-24 | B155: 76.16 | C155: 76.29 | D155: 75.53 | E155: 195.296
A156: 2016-10-21 | B156: 75.16 | C156: 76.17 | D156: 75.26 | E156: 242.261
A157: 2016-10-20 | B157: 76.05 | C157: 76.65 | D157: 75.99 | E157: 127.675
A158: 2016-10-19 | B158: 75.63 | C158: 76.19 | D158: 75.98 | E158: 145.324
A159: 2016-10-18 | B159: 75.93 | C159: 76.1129 | D159: 75.79 | E159: 194.011
A160: 2016-10-17 | B160: 75.03 | C160: 75.59 | D160: 75.21 | E160: 201.797
A161: 2016-10-14 | B161: 74.46 | C161: 75.26 | D161: 74.86 | E161: 183.685
A162: 2016-10-13 | B162: 74.23 | C162: 75.41 | D162: 74.9 | E162: 225.621
A163: 2016-10-12 | B163: 73.59 | C163: 74.25 | D163: 74.09 | E163: 113.025
A164: 2016-10-11 | B164: 74.22 | C164: 74.3 | D164: 73.49 | E164: 138.652
A165: 2016-10-10 | B165: 73.38 | C165: 74.84 | D165: 74.51 | E165: 126.228
A166: 2016-10-07 | B166: 74.82 | C166: 75.07 | D166: 73.37 | E166: 237.792
A167: 2016-10-06 | B167: 73.53 | C167: 74.66 | D167: 74.3 | E167: 140.966
A168: 2016-10-05 | B168: 74.59 | C168: 74.82 | D168: 73.98 | E168: 200.737
A169: 2016-10-04 | B169: 76.8 | C169: 76.8 | D169: 74.51 | E169: 179.792
A170: 2016-10-03 | B170: 78.02 | C170: 78.02 | D170: 76.94 | E170: 294.351
A171: 2016-09-30 | B171: 79.15 | C171: 79.15 | D171: 78.28 | E171: 222.264
A172: 2016-09-29 | B172: 79.6 | C172: 79.6 | D172: 78.64 | E172: 141.671
A173: 2016-09-28 | B173: 80 | C173: 80.07 | D173: 79.86 | E173: 131.193
A174: 2016-09-27 | B174: 80.99 | C174: 81.51 | D174: 79.94 | E174: 162.632
A175: 2016-09-26 | B175: 81.21 | C175: 81.55 | D175: 80.81 | E175: 175.638
A176: 2016-09-23 | B176: 80.76 | C176: 81.49 | D176: 81.28 | E176: 156.548
A177: 2016-09-22 | B177: 81.01 | C177: 81.31 | D177: 81.3 | E177: 250.906
A178: 2016-09-21 | B178: 78.4 | C178: 80.24 | D178: 80.2 | E178: 141.038
A179: 2016-09-20 | B179: 78.74 | C179: 79.18 | D179: 78.43 | E179: 155.569
A180: 2016-09-19 | B180: 77.65 | C180: 78.42 | D180: 78.39 | E180: 106.659
A181: 2016-09-16 | B181: 76.57 | C181: 77.71 | D181: 77.58 | E181: 457.367
A182: 2016-09-15 | B182: 75.47 | C182: 76.66 | D182: 76.62 | E182: 142.309
A183: 2016-09-14 | B183: 75.63 | C183: 76.25 | D183: 75.54 | E183: 136.224
A184: 2016-09-13 | B184: 76.32 | C184: 76.53 | D184: 75.45 | E184: 190.254
A185: 2016-09-12 | B185: 75.38 | C185: 76.59 | D185: 76.56 | E185: 179.469
A186: 2016-09-09 | B186: 77.06 | C186: 77.12 | D186: 75.49 | E186: 322.168
A187: 2016-09-08 | B187: 77.92 | C187: 78.23 | D187: 77.86 | E187: 173.241
A188: 2016-09-07 | B188: 77.6 | C188: 78.3 | D188: 78.17 | E188: 188.899
A189: 2016-09-06 | B189: 77.38 | C189: 77.84 | D189: 77.51 | E189: 154.84
A190: 2016-09-02 | B190: 76.22 | C190: 77.23 | D190: 77.18 | E190: 147.075
A191: 2016-09-01 | B191: 76.17 | C191: 76.23 | D191: 75.81 | E191: 182.258
A192: 2016-08-31 | B192: 75.67 | C192: 76.17 | D192: 76.07 | E192: 139.431
A193: 2016-08-30 | B193: 76.15 | C193: 76.69 | D193: 75.82 | E193: 176.734
A194: 2016-08-29 | B194: 75.63 | C194: 76.52 | D194: 76.21 | E194: 126.23
A195: 2016-08-26 | B195: 77.54 | C195: 77.85 | D195: 75.5 | E195: 140.551
A196: 2016-08-25 | B196: 77.19 | C196: 77.64 | D196: 77.43 | E196: 119.918
A197: 2016-08-24 | B197: 77.25 | C197: 77.41 | D197: 77.15 | E197: 117.699
A198: 2016-08-23 | B198: 77.88 | C198: 78.17 | D198: 77.3 | E198: 103.004
A199: 2016-08-22 | B199: 76.87 | C199: 77.88 | D199: 77.61 | E199: 143.606
A200: 2016-08-19 | B200: 77.7 | C200: 78.415 | D200: 76.78 | E200: 195.178
... 309 more rows

Sheet MGEE
A1: ='Div Yields'!C21 -> MGEE | G1: Dividend | H1: 30 Day Avg | I1: 90 Day Avg | J1: 180 Day Avg | K1: 360 Day Avg | L1: 720 Day Avg
H2: =AVERAGE($D$4:$D$33) -> 64.435 | I2: =AVERAGE($D$4:$D$93) -> 63.90777778 | J2: =AVERAGE($D$4:$D$183) -> 61.90813889 | K2: =AVERAGE($D$4:$D$363) -> 56.96905556 | L2: =AVERAGE($D$4:$D$507) -> 52.30943452
A3: Date | B3: Open | C3: High | D3: Close | E3: Volume (k) | G3: =INDEX(Master,MATCH($A$1,Tickers,0),MATCH(G1,Header,0)) -> 1.23 | H3: =$G3/H2 -> 0.01908900442 | I3: =$G3/I2 -> 0.01924648365 | J3: 0.01986814694 | K3: 0.02159066862 | L3: 0.0235139227
A4: 2017-06-01 | B4: 65 | C4: 66.1 | D4: 66 | E4: 72.519
A5: 2017-05-31 | B5: 64.95 | C5: 65.325 | D5: 65.1 | E5: 62.185
A6: 2017-05-30 | B6: 64.15 | C6: 64.9 | D6: 64.8 | E6: 43.519
A7: 2017-05-26 | B7: 64.95 | C7: 65.175 | D7: 64.6 | E7: 44.702
A8: 2017-05-25 | B8: 64.6 | C8: 65.325 | D8: 64.95 | E8: 53.323
A9: 2017-05-24 | B9: 64.3 | C9: 64.75 | D9: 64.25 | E9: 36.926
A10: 2017-05-23 | B10: 63.65 | C10: 64.25 | D10: 64.1 | E10: 69.587
A11: 2017-05-22 | B11: 63.55 | C11: 64.4 | D11: 63.6 | E11: 109.077
A12: 2017-05-19 | B12: 63.3 | C12: 63.75 | D12: 63.4 | E12: 93.616
A13: 2017-05-18 | B13: 64.05 | C13: 64.1 | D13: 63.3 | E13: 103.001
A14: 2017-05-17 | B14: 63.7 | C14: 64.35 | D14: 63.85 | E14: 72.547
A15: 2017-05-16 | B15: 64.8 | C15: 64.8 | D15: 64.15 | E15: 47.22
A16: 2017-05-15 | B16: 64.6 | C16: 65.25 | D16: 64.9 | E16: 42.106
A17: 2017-05-12 | B17: 64.2 | C17: 64.7 | D17: 64.4 | E17: 53.803
A18: 2017-05-11 | B18: 64.05 | C18: 64.4 | D18: 64.25 | E18: 44.781
A19: 2017-05-10 | B19: 64.05 | C19: 64.5 | D19: 64.2 | E19: 64.97
A20: 2017-05-09 | B20: 64.65 | C20: 64.65 | D20: 64 | E20: 74.901
A21: 2017-05-08 | B21: 64.85 | C21: 65.1 | D21: 64.75 | E21: 44.207
A22: 2017-05-05 | B22: 64.65 | C22: 65 | D22: 64.9 | E22: 63.73
A23: 2017-05-04 | B23: 64.05 | C23: 64.7 | D23: 64.6 | E23: 53.829
A24: 2017-05-03 | B24: 63.7 | C24: 64.35 | D24: 64 | E24: 74.561
A25: 2017-05-02 | B25: 64.15 | C25: 64.65 | D25: 64.05 | E25: 73.577
A26: 2017-05-01 | B26: 64.5 | C26: 64.5 | D26: 64.1 | E26: 82.971
A27: 2017-04-28 | B27: 64.75 | C27: 65.45 | D27: 64.3 | E27: 83.575
A28: 2017-04-27 | B28: 65.15 | C28: 65.85 | D28: 64.75 | E28: 62.167
A29: 2017-04-26 | B29: 63.95 | C29: 65.35 | D29: 64.95 | E29: 464.71
A30: 2017-04-25 | B30: 65.4 | C30: 65.4 | D30: 63.9 | E30: 374.729
A31: 2017-04-24 | B31: 65.55 | C31: 66.1 | D31: 65.4 | E31: 104.23
A32: 2017-04-21 | B32: 64.35 | C32: 65.2 | D32: 65 | E32: 102.199
A33: 2017-04-20 | B33: 64.85 | C33: 64.85 | D33: 64.5 | E33: 95.502
A34: 2017-04-19 | B34: 65.3 | C34: 65.3 | D34: 64.6 | E34: 64.002
A35: 2017-04-18 | B35: 64.8 | C35: 65.35 | D35: 65.1 | E35: 53.065
A36: 2017-04-17 | B36: 64.55 | C36: 65.05 | D36: 64.95 | E36: 72.831
A37: 2017-04-13 | B37: 65.6 | C37: 65.65 | D37: 64.5 | E37: 122.566
A38: 2017-04-12 | B38: 65.05 | C38: 65.85 | D38: 65.8 | E38: 50.621
A39: 2017-04-11 | B39: 64.45 | C39: 65.6 | D39: 65.15 | E39: 69.178
A40: 2017-04-10 | B40: 64.8 | C40: 64.8 | D40: 64.7 | E40: 47.791
A41: 2017-04-07 | B41: 64.65 | C41: 65.3 | D41: 64.7 | E41: 76.994
A42: 2017-04-06 | B42: 64.55 | C42: 64.9 | D42: 64.75 | E42: 78.953
A43: 2017-04-05 | B43: 65.4 | C43: 65.85 | D43: 64.7 | E43: 123.526
A44: 2017-04-04 | B44: 64.3 | C44: 65.275 | D44: 65.15 | E44: 81.205
A45: 2017-04-03 | B45: 65.15 | C45: 65.25 | D45: 64.4 | E45: 146.529
A46: 2017-03-31 | B46: 65.65 | C46: 66.25 | D46: 65 | E46: 127.868
A47: 2017-03-30 | B47: 65.65 | C47: 65.7 | D47: 65.4 | E47: 99.001
A48: 2017-03-29 | B48: 66.6 | C48: 66.85 | D48: 65.65 | E48: 790.064
A49: 2017-03-28 | B49: 63.45 | C49: 67.2 | D49: 66.9 | E49: 321.64
A50: 2017-03-27 | B50: 62.35 | C50: 63.5 | D50: 63.3 | E50: 73.116
A51: 2017-03-24 | B51: 62.85 | C51: 63.45 | D51: 62.9 | E51: 48.048
A52: 2017-03-23 | B52: 62.3 | C52: 63.8 | D52: 62.8 | E52: 58.001
A53: 2017-03-22 | B53: 62.35 | C53: 62.8 | D53: 62.35 | E53: 59.643
A54: 2017-03-21 | B54: 62.4 | C54: 62.85 | D54: 62.2 | E54: 80.914
A55: 2017-03-20 | B55: 62.65 | C55: 62.7 | D55: 62.15 | E55: 59.066
A56: 2017-03-17 | B56: 61.85 | C56: 63.2 | D56: 62.6 | E56: 235.58
A57: 2017-03-16 | B57: 62.55 | C57: 63.2 | D57: 62.25 | E57: 97.604
A58: 2017-03-15 | B58: 61.4 | C58: 62.875 | D58: 62.65 | E58: 90.347
A59: 2017-03-14 | B59: 61.75 | C59: 61.9 | D59: 60.95 | E59: 65.303
A60: 2017-03-13 | B60: 61.35 | C60: 62.3 | D60: 62.2 | E60: 58.5
A61: 2017-03-10 | B61: 61.4 | C61: 61.95 | D61: 61.65 | E61: 88.745
A62: 2017-03-09 | B62: 61.65 | C62: 62.2 | D62: 61.25 | E62: 61.173
A63: 2017-03-08 | B63: 63.6 | C63: 63.6 | D63: 61.85 | E63: 54.957
A64: 2017-03-07 | B64: 63.6 | C64: 64.2 | D64: 63.65 | E64: 52.092
A65: 2017-03-06 | B65: 63.75 | C65: 64.35 | D65: 63.95 | E65: 48.806
A66: 2017-03-03 | B66: 65.05 | C66: 65.05 | D66: 64.2 | E66: 82.806
A67: 2017-03-02 | B67: 64.75 | C67: 65.35 | D67: 64.95 | E67: 50.433
A68: 2017-03-01 | B68: 64.25 | C68: 65.1 | D68: 64.75 | E68: 125.972
A69: 2017-02-28 | B69: 64.35 | C69: 64.75 | D69: 63.95 | E69: 99.454
A70: 2017-02-27 | B70: 64.35 | C70: 64.85 | D70: 64.7 | E70: 133.417
A71: 2017-02-24 | B71: 63.65 | C71: 65.175 | D71: 64.95 | E71: 108.399
A72: 2017-02-23 | B72: 62.6 | C72: 64.1 | D72: 63.7 | E72: 922.942
A73: 2017-02-22 | B73: 63.5 | C73: 63.55 | D73: 62.45 | E73: 222.218
A74: 2017-02-21 | B74: 63.45 | C74: 64.35 | D74: 64.1 | E74: 64.713
A75: 2017-02-17 | B75: 63.75 | C75: 63.9 | D75: 63.45 | E75: 79.074
A76: 2017-02-16 | B76: 62.7 | C76: 63.55 | D76: 63.4 | E76: 37.975
A77: 2017-02-15 | B77: 62.65 | C77: 62.9 | D77: 62.85 | E77: 40.944
A78: 2017-02-14 | B78: 63.05 | C78: 63.2 | D78: 63.15 | E78: 80.044
A79: 2017-02-13 | B79: 63.7 | C79: 63.85 | D79: 63.4 | E79: 66.328
A80: 2017-02-10 | B80: 62.7 | C80: 63.6 | D80: 63.5 | E80: 56.811
A81: 2017-02-09 | B81: 62.2 | C81: 62.75 | D81: 62.55 | E81: 51.104
A82: 2017-02-08 | B82: 62.6 | C82: 63.2 | D82: 62.4 | E82: 68.477
A83: 2017-02-07 | B83: 62.7 | C83: 62.95 | D83: 62.6 | E83: 67.733
A84: 2017-02-06 | B84: 62.7 | C84: 62.85 | D84: 62.55 | E84: 46.926
A85: 2017-02-03 | B85: 62.95 | C85: 63.05 | D85: 62.7 | E85: 55.392
A86: 2017-02-02 | B86: 62.6 | C86: 62.774 | D86: 62.45 | E86: 62.8
A87: 2017-02-01 | B87: 63.9 | C87: 63.9 | D87: 62.45 | E87: 67.065
A88: 2017-01-31 | B88: 62.5 | C88: 63.9 | D88: 63.65 | E88: 82.936
A89: 2017-01-30 | B89: 63.65 | C89: 64.2 | D89: 62.65 | E89: 61.161
A90: 2017-01-27 | B90: 63.8 | C90: 64.05 | D90: 63.85 | E90: 62.616
A91: 2017-01-26 | B91: 64.25 | C91: 64.45 | D91: 63.8 | E91: 87.886
A92: 2017-01-25 | B92: 65.25 | C92: 65.85 | D92: 64.2 | E92: 729.43
A93: 2017-01-24 | B93: 61 | C93: 65.4 | D93: 65.15 | E93: 279.257
A94: 2017-01-23 | B94: 60.5 | C94: 61.25 | D94: 60.65 | E94: 62.364
A95: 2017-01-20 | B95: 60.65 | C95: 61 | D95: 60.8 | E95: 91.043
A96: 2017-01-19 | B96: 62.2 | C96: 62.2 | D96: 60.6 | E96: 53.378
A97: 2017-01-18 | B97: 62.3 | C97: 62.75 | D97: 62.5 | E97: 77.875
A98: 2017-01-17 | B98: 62.8 | C98: 62.9 | D98: 62.35 | E98: 69.189
A99: 2017-01-13 | B99: 62 | C99: 63.05 | D99: 62.65 | E99: 71.734
A100: 2017-01-12 | B100: 63.6 | C100: 63.85 | D100: 62.45 | E100: 109.748
A101: 2017-01-11 | B101: 63.8 | C101: 64.15 | D101: 63.7 | E101: 79.985
A102: 2017-01-10 | B102: 63.25 | C102: 64.15 | D102: 63.9 | E102: 90.111
A103: 2017-01-09 | B103: 64.85 | C103: 64.95 | D103: 63.5 | E103: 76.364
A104: 2017-01-06 | B104: 64.45 | C104: 65.15 | D104: 64.6 | E104: 51.499
A105: 2017-01-05 | B105: 65.55 | C105: 65.55 | D105: 64.55 | E105: 46.165
A106: 2017-01-04 | B106: 64.1 | C106: 65.85 | D106: 65.5 | E106: 103.32
A107: 2017-01-03 | B107: 65.25 | C107: 65.25 | D107: 64 | E107: 107.999
A108: 2016-12-30 | B108: 65.45 | C108: 65.65 | D108: 65.3 | E108: 69.169
A109: 2016-12-29 | B109: 65 | C109: 65.55 | D109: 65.5 | E109: 40.018
A110: 2016-12-28 | B110: 65.1 | C110: 65.4 | D110: 64.65 | E110: 45.43
A111: 2016-12-27 | B111: 64.95 | C111: 65.45 | D111: 65.3 | E111: 57.837
A112: 2016-12-23 | B112: 64.55 | C112: 65 | D112: 64.9 | E112: 43.101
A113: 2016-12-22 | B113: 64.4 | C113: 64.85 | D113: 64.55 | E113: 56.716
A114: 2016-12-21 | B114: 65.05 | C114: 66 | D114: 64.4 | E114: 60.951
A115: 2016-12-20 | B115: 65.45 | C115: 65.85 | D115: 65.3 | E115: 93.435
A116: 2016-12-19 | B116: 65.15 | C116: 65.9 | D116: 65.2 | E116: 76.393
A117: 2016-12-16 | B117: 65.35 | C117: 66.3 | D117: 65.2 | E117: 351.931
A118: 2016-12-15 | B118: 64.35 | C118: 65.7 | D118: 65.25 | E118: 108.687
A119: 2016-12-14 | B119: 65.55 | C119: 66.25 | D119: 64 | E119: 68.901
A120: 2016-12-13 | B120: 65.75 | C120: 66.85 | D120: 65.5 | E120: 107.481
A121: 2016-12-12 | B121: 63.25 | C121: 65.7 | D121: 65.4 | E121: 108.699
A122: 2016-12-09 | B122: 62.95 | C122: 64.5 | D122: 64.35 | E122: 105.114
A123: 2016-12-08 | B123: 61.1 | C123: 63.5 | D123: 63.475 | E123: 115.909
A124: 2016-12-07 | B124: 60.5 | C124: 61.8 | D124: 61.5 | E124: 86.102
A125: 2016-12-06 | B125: 60.1 | C125: 61 | D125: 60.5 | E125: 70.716
A126: 2016-12-05 | B126: 59.6 | C126: 60.2 | D126: 60.2 | E126: 61.956
A127: 2016-12-02 | B127: 59.4 | C127: 60.15 | D127: 59.3 | E127: 38.265
A128: 2016-12-01 | B128: 59.05 | C128: 59.85 | D128: 59.15 | E128: 64.926
A129: 2016-11-30 | B129: 60.6 | C129: 60.85 | D129: 59.2 | E129: 96.764
A130: 2016-11-29 | B130: 60.85 | C130: 61.75 | D130: 61.15 | E130: 74.722
A131: 2016-11-28 | B131: 60.5 | C131: 62.6 | D131: 61.2 | E131: 198.214
A132: 2016-11-25 | B132: 58.8 | C132: 60.5 | D132: 60.45 | E132: 100.881
A133: 2016-11-23 | B133: 61.9 | C133: 62.35 | D133: 59.2 | E133: 541.405
A134: 2016-11-22 | B134: 63.15 | C134: 63.5 | D134: 62.4 | E134: 169.53
A135: 2016-11-21 | B135: 62.85 | C135: 63.55 | D135: 63.3 | E135: 66.938
A136: 2016-11-18 | B136: 62.9 | C136: 63.3 | D136: 63.1 | E136: 97.283
A137: 2016-11-17 | B137: 61.65 | C137: 63 | D137: 62.7 | E137: 83.156
A138: 2016-11-16 | B138: 61.5 | C138: 62.25 | D138: 62.15 | E138: 61.875
A139: 2016-11-15 | B139: 61.55 | C139: 62.8995 | D139: 61.5 | E139: 79.008
A140: 2016-11-14 | B140: 60.3 | C140: 61.75 | D140: 61.3 | E140: 113.443
A141: 2016-11-11 | B141: 58.85 | C141: 60.25 | D141: 60.15 | E141: 228.457
A142: 2016-11-10 | B142: 58.3 | C142: 59.75 | D142: 58.65 | E142: 130.745
A143: 2016-11-09 | B143: 57.05 | C143: 58.65 | D143: 58.55 | E143: 109.697
A144: 2016-11-08 | B144: 57.65 | C144: 58.9 | D144: 58.15 | E144: 66.95
A145: 2016-11-07 | B145: 57.3 | C145: 58.05 | D145: 57.95 | E145: 70.67
A146: 2016-11-04 | B146: 57.3 | C146: 58.1 | D146: 56.8 | E146: 65.492
A147: 2016-11-03 | B147: 56.25 | C147: 57.2 | D147: 56.6 | E147: 49.155
A148: 2016-11-02 | B148: 56.8 | C148: 57.2 | D148: 56.35 | E148: 65.524
A149: 2016-11-01 | B149: 58.65 | C149: 58.7 | D149: 56.7 | E149: 65.556
A150: 2016-10-31 | B150: 57.6 | C150: 59.25 | D150: 58.45 | E150: 127.288
A151: 2016-10-28 | B151: 57.09 | C151: 57.93 | D151: 57.76 | E151: 79.315
A152: 2016-10-27 | B152: 57 | C152: 57.41 | D152: 57.12 | E152: 72.251
A153: 2016-10-26 | B153: 56.6 | C153: 56.95 | D153: 56.78 | E153: 62.183
A154: 2016-10-25 | B154: 55.87 | C154: 56.74 | D154: 56.68 | E154: 51.218
A155: 2016-10-24 | B155: 55.57 | C155: 56.34 | D155: 55.95 | E155: 43.552
A156: 2016-10-21 | B156: 55.3 | C156: 55.57 | D156: 55.38 | E156: 32.73
A157: 2016-10-20 | B157: 55.91 | C157: 56.16 | D157: 55.64 | E157: 45.822
A158: 2016-10-19 | B158: 55.88 | C158: 56.25 | D158: 55.9 | E158: 43.503
A159: 2016-10-18 | B159: 55.81 | C159: 56.41 | D159: 55.81 | E159: 66.655
A160: 2016-10-17 | B160: 55.9 | C160: 56.26 | D160: 55.75 | E160: 63.615
A161: 2016-10-14 | B161: 55.86 | C161: 56.3 | D161: 55.68 | E161: 59.127
A162: 2016-10-13 | B162: 55.45 | C162: 56.28 | D162: 55.79 | E162: 57.702
A163: 2016-10-12 | B163: 54.51 | C163: 55.5799 | D163: 55.41 | E163: 50.303
A164: 2016-10-11 | B164: 54.88 | C164: 54.98 | D164: 54.68 | E164: 127.29
A165: 2016-10-10 | B165: 54.17 | C165: 55 | D165: 54.87 | E165: 65.314
A166: 2016-10-07 | B166: 54.06 | C166: 54.82 | D166: 54.01 | E166: 99.116
A167: 2016-10-06 | B167: 53.48 | C167: 54.29 | D167: 53.82 | E167: 78.474
A168: 2016-10-05 | B168: 54.65 | C168: 54.65 | D168: 53.83 | E168: 84.324
A169: 2016-10-04 | B169: 55.61 | C169: 55.61 | D169: 54.37 | E169: 80.348
A170: 2016-10-03 | B170: 56.4 | C170: 56.4 | D170: 55.61 | E170: 76.458
A171: 2016-09-30 | B171: 56.88 | C171: 57.35 | D171: 56.51 | E171: 150.639
A172: 2016-09-29 | B172: 57.44 | C172: 57.599 | D172: 56.88 | E172: 63.002
A173: 2016-09-28 | B173: 57.81 | C173: 58.03 | D173: 57.67 | E173: 75.309
A174: 2016-09-27 | B174: 58.62 | C174: 59.49 | D174: 57.75 | E174: 118.912
A175: 2016-09-26 | B175: 58.75 | C175: 59.14 | D175: 58.87 | E175: 74.135
A176: 2016-09-23 | B176: 58.7 | C176: 59.19 | D176: 58.81 | E176: 57.31
A177: 2016-09-22 | B177: 58.45 | C177: 59 | D177: 58.99 | E177: 52.827
A178: 2016-09-21 | B178: 57.12 | C178: 58.21 | D178: 58.17 | E178: 59.009
A179: 2016-09-20 | B179: 57 | C179: 57.5 | D179: 56.99 | E179: 68.001
A180: 2016-09-19 | B180: 56.76 | C180: 56.8 | D180: 56.78 | E180: 71.194
A181: 2016-09-16 | B181: 55.71 | C181: 56.58 | D181: 56.21 | E181: 214.367
A182: 2016-09-15 | B182: 55.06 | C182: 55.5 | D182: 55.45 | E182: 55.294
A183: 2016-09-14 | B183: 55.04 | C183: 55.46 | D183: 55.17 | E183: 53.404
A184: 2016-09-13 | B184: 55.24 | C184: 55.32 | D184: 54.76 | E184: 101.588
A185: 2016-09-12 | B185: 54.1 | C185: 55.6 | D185: 55.6 | E185: 118.89
A186: 2016-09-09 | B186: 55.88 | C186: 55.88 | D186: 53.89 | E186: 74.893
A187: 2016-09-08 | B187: 56.27 | C187: 56.65 | D187: 56.3 | E187: 47.13
A188: 2016-09-07 | B188: 55.57 | C188: 56.63 | D188: 56.45 | E188: 134.013
A189: 2016-09-06 | B189: 55.62 | C189: 56.18 | D189: 55.63 | E189: 95.101
A190: 2016-09-02 | B190: 54.28 | C190: 55.7034 | D190: 55.61 | E190: 47.845
A191: 2016-09-01 | B191: 55.01 | C191: 55.01 | D191: 54.6 | E191: 69.067
A192: 2016-08-31 | B192: 54.71 | C192: 55.1 | D192: 54.94 | E192: 81.899
A193: 2016-08-30 | B193: 55.28 | C193: 55.32 | D193: 54.78 | E193: 87.309
A194: 2016-08-29 | B194: 55.26 | C194: 55.93 | D194: 55.49 | E194: 52.003
A195: 2016-08-26 | B195: 56.88 | C195: 57.32 | D195: 55.22 | E195: 56.732
A196: 2016-08-25 | B196: 56.33 | C196: 56.89 | D196: 56.82 | E196: 70.648
A197: 2016-08-24 | B197: 56.58 | C197: 56.62 | D197: 56.57 | E197: 80.794
A198: 2016-08-23 | B198: 56.59 | C198: 57.48 | D198: 56.73 | E198: 102.884
A199: 2016-08-22 | B199: 56.55 | C199: 57.12 | D199: 56.73 | E199: 48.337
A200: 2016-08-19 | B200: 56.92 | C200: 56.92 | D200: 56.55 | E200: 75.34
... 309 more rows

Sheet NEE
A1: ='Div Yields'!C41 -> NEE | G1: Dividend | H1: 30 Day Avg | I1: 90 Day Avg | J1: 180 Day Avg | K1: 360 Day Avg | L1: 720 Day Avg
H2: =AVERAGE($D$4:$D$33) -> 135.907 | I2: =AVERAGE($D$4:$D$93) -> 130.7604444 | J2: =AVERAGE($D$4:$D$183) -> 125.5086667 | K2: =AVERAGE($D$4:$D$363) -> 122.1731667 | L2: =AVERAGE($D$4:$D$507) -> 116.1486905
A3: Date | B3: Open | C3: High | D3: Close | E3: Volume (k) | G3: =INDEX(Master,MATCH($A$1,Tickers,0),MATCH(G1,Header,0)) -> 3.93 | H3: =$G3/H2 -> 0.02891683283 | I3: =$G3/I2 -> 0.03005496056 | J3: 0.03131257868 | K3: 0.0321674563 | L3: 0.03383593895
A4: 2017-06-01 | B4: 141.35 | C4: 141.9 | D4: 141.9 | E4: 1611.592
A5: 2017-05-31 | B5: 140.72 | C5: 141.83 | D5: 141.44 | E5: 3316.913
A6: 2017-05-30 | B6: 140.53 | C6: 141.05 | D6: 140.65 | E6: 2750.13
A7: 2017-05-26 | B7: 140.79 | C7: 141.06 | D7: 140.71 | E7: 1107.508
A8: 2017-05-25 | B8: 139.73 | C8: 140.87 | D8: 140.7 | E8: 1191.314
A9: 2017-05-24 | B9: 139.18 | C9: 140.43 | D9: 140.15 | E9: 1564.123
A10: 2017-05-23 | B10: 138.52 | C10: 140.06 | D10: 138.96 | E10: 1947.171
A11: 2017-05-22 | B11: 137.36 | C11: 138.58 | D11: 138.35 | E11: 2137.382
A12: 2017-05-19 | B12: 137.03 | C12: 137.6 | D12: 137.29 | E12: 1728.715
A13: 2017-05-18 | B13: 136.63 | C13: 137.73 | D13: 136.94 | E13: 2219.5
A14: 2017-05-17 | B14: 136.12 | C14: 137.17 | D14: 136.45 | E14: 1871.176
A15: 2017-05-16 | B15: 136.13 | C15: 136.81 | D15: 135.9 | E15: 1359.511
A16: 2017-05-15 | B16: 135.24 | C16: 136.64 | D16: 136.13 | E16: 1928.131
A17: 2017-05-12 | B17: 134.73 | C17: 135.83 | D17: 135.55 | E17: 1528.757
A18: 2017-05-11 | B18: 134.08 | C18: 134.66 | D18: 134.64 | E18: 895.342
A19: 2017-05-10 | B19: 133.82 | C19: 134.46 | D19: 134.17 | E19: 1874.727
A20: 2017-05-09 | B20: 134.44 | C20: 134.93 | D20: 133.77 | E20: 1547.471
A21: 2017-05-08 | B21: 134.5 | C21: 135.16 | D21: 134.95 | E21: 1451.193
A22: 2017-05-05 | B22: 134.78 | C22: 135.21 | D22: 134.33 | E22: 1828.089
A23: 2017-05-04 | B23: 133.11 | C23: 134.5 | D23: 134.34 | E23: 1753.293
A24: 2017-05-03 | B24: 133.86 | C24: 134.25 | D24: 133.36 | E24: 1644.186
A25: 2017-05-02 | B25: 133.24 | C25: 134.04 | D25: 134.02 | E25: 1714.711
A26: 2017-05-01 | B26: 134.14 | C26: 134.32 | D26: 133.04 | E26: 1801.06
A27: 2017-04-28 | B27: 133.35 | C27: 134.12 | D27: 133.56 | E27: 1663.159
A28: 2017-04-27 | B28: 132.66 | C28: 134.2 | D28: 133.52 | E28: 1406.236
A29: 2017-04-26 | B29: 133 | C29: 133.83 | D29: 132.83 | E29: 1491.774
A30: 2017-04-25 | B30: 132.61 | C30: 133 | D30: 132.92 | E30: 1291.835
A31: 2017-04-24 | B31: 132.62 | C31: 133.11 | D31: 132.75 | E31: 2436.145
A32: 2017-04-21 | B32: 131.26 | C32: 134.33 | D32: 133.02 | E32: 2620.162
A33: 2017-04-20 | B33: 131.08 | C33: 131.44 | D33: 130.87 | E33: 2013.662
A34: 2017-04-19 | B34: 131.93 | C34: 131.99 | D34: 131.5 | E34: 2080.008
A35: 2017-04-18 | B35: 130.9 | C35: 132.07 | D35: 131.94 | E35: 1955.61
A36: 2017-04-17 | B36: 130.67 | C36: 131.27 | D36: 130.91 | E36: 1127.058
A37: 2017-04-13 | B37: 130.09 | C37: 131.5 | D37: 130.77 | E37: 1936.626
A38: 2017-04-12 | B38: 128.61 | C38: 130.54 | D38: 130.51 | E38: 1468.731
A39: 2017-04-11 | B39: 129.13 | C39: 129.57 | D39: 129.32 | E39: 1053.55
A40: 2017-04-10 | B40: 128.95 | C40: 129.64 | D40: 129.43 | E40: 1051.939
A41: 2017-04-07 | B41: 130.03 | C41: 130.35 | D41: 128.93 | E41: 1766.833
A42: 2017-04-06 | B42: 130.06 | C42: 130.4485 | D42: 129.76 | E42: 1529.468
A43: 2017-04-05 | B43: 129.41 | C43: 130.84 | D43: 130.64 | E43: 1786.559
A44: 2017-04-04 | B44: 128.93 | C44: 129.92 | D44: 129.54 | E44: 1359.94
A45: 2017-04-03 | B45: 128.5 | C45: 128.77 | D45: 128.72 | E45: 1742.541
A46: 2017-03-31 | B46: 128.06 | C46: 129.28 | D46: 128.37 | E46: 2336.537
A47: 2017-03-30 | B47: 130.04 | C47: 130.58 | D47: 128.13 | E47: 3398.074
A48: 2017-03-29 | B48: 130.55 | C48: 131.03 | D48: 130.55 | E48: 1106.697
A49: 2017-03-28 | B49: 130.75 | C49: 131.56 | D49: 131.26 | E49: 1377.774
A50: 2017-03-27 | B50: 133.05 | C50: 133.105 | D50: 131.1 | E50: 2040.078
A51: 2017-03-24 | B51: 131.97 | C51: 133.28 | D51: 132.8 | E51: 1431.984
A52: 2017-03-23 | B52: 132.49 | C52: 133.12 | D52: 132.09 | E52: 1550.231
A53: 2017-03-22 | B53: 132.01 | C53: 133.2 | D53: 132.41 | E53: 1383.759
A54: 2017-03-21 | B54: 130.22 | C54: 132.34 | D54: 131.85 | E54: 2384.128
A55: 2017-03-20 | B55: 130.72 | C55: 131.18 | D55: 129.89 | E55: 1891.696
A56: 2017-03-17 | B56: 130.12 | C56: 131.78 | D56: 130.23 | E56: 4662.097
A57: 2017-03-16 | B57: 131.61 | C57: 131.77 | D57: 129.9 | E57: 2610.669
A58: 2017-03-15 | B58: 130.84 | C58: 132.625 | D58: 131.9 | E58: 2030.305
A59: 2017-03-14 | B59: 130.33 | C59: 130.97 | D59: 130.57 | E59: 1342.431
A60: 2017-03-13 | B60: 130.09 | C60: 130.67 | D60: 130.46 | E60: 1459.315
A61: 2017-03-10 | B61: 129.8 | C61: 130.17 | D61: 130.06 | E61: 1481.28
A62: 2017-03-09 | B62: 129.66 | C62: 130.18 | D62: 128.75 | E62: 1261.067
A63: 2017-03-08 | B63: 129.57 | C63: 130.12 | D63: 129.44 | E63: 1582.549
A64: 2017-03-07 | B64: 130.37 | C64: 131.12 | D64: 130.65 | E64: 1991.144
A65: 2017-03-06 | B65: 130.5 | C65: 130.99 | D65: 130.64 | E65: 2052.05
A66: 2017-03-03 | B66: 130.7 | C66: 131 | D66: 130.8 | E66: 1322.085
A67: 2017-03-02 | B67: 129.31 | C67: 131.64 | D67: 130.94 | E67: 1530.144
A68: 2017-03-01 | B68: 129.56 | C68: 130.2577 | D68: 129.41 | E68: 2268
A69: 2017-02-28 | B69: 129.96 | C69: 131.48 | D69: 131 | E69: 2248.58
A70: 2017-02-27 | B70: 131.07 | C70: 131.07 | D70: 129.87 | E70: 1833.239
